Workbook

Sheet Instructions
B1: General Instructions to Complete the Annual Financial Statement Workbook
A3: a) | B3: This workbook is composed of several individual worksheets to complete the Annual Financial Statement.
A4: b) | B4: It is designed to automatically calculate linked schedules from each of the data entry points.
A5: c) | B5: The individual spreadsheets containing formulas are locked to protect the formulas.
A6: d) | B6: Fill in only the gray sections of the worksheet.
A7: e) | B7: Begin by navigating to the "Key Inputs" tab.
A8: f) | B8: Select the municipality (and county) or County by clicking on the arrow on the right side to choose. This will populate the name and county and dates throughout the workbook. Then continue to complete each of the fields in order to populate throughout the workbook. If a Utility(s) exist, enter the type of utility into the fields listed.
A9: g) | B9: In all applicable signature lines insert appropriate officials email address.
A10: h) | B10: The completed AFS must be submitted to the Division, via the FAST portal and it must be precisely named as: xxxx_afs_20xx.xls (provide 4 digits municode and year).
A11: i) | B11: Only the Chief Financial Officer has access to the submit for review tab within the FAST portal.
A12: j) | B12: If copying data from a prior workbook, utilize the copy and paste-special values functionality built into Excel to preserve formatting.
A13: k) | B13: On the Key Inputs tab, users can click the "Convert to Standard Template" button to reduce the number of unused pages throughout the document. To revert back to the full-size version of the workbook, click the "Revert to Expanded Template" button.
B14: Quick Guide:
B15: https://www.nj.gov/dca/divisions/dlgs/pdf/FAST%20AFS%20Quick%20User%20Guide.pdf

Sheet 69 - Instructions (hidden)
B2: INSTRUCTIONS IN PREPARATION OF
B3: ="ANNUAL FINANCIAL STATEMENT OF "&TEXT('KEY INPUTS'!D34,"0") -> ANNUAL FINANCIAL STATEMENT OF 2020
C5: The arrangement of the schedules is shown by the index appearing at the bottom hereof. The statement is prepared
B6: on a full cash basis. Any variations from a full cash basis must be taken up with the Division in advance of the preparation
B7: of the statement and the budget.
C9: Summary statements only of debt service are required. The use of summarized forms is permitted to conserve time.
B10: Responsibility for the supporting detail is placed on the Chief Financial Officer who must be in a position to support the
B11: summarized figures.
C13: No sheets should be eliminated, except utility fund sheets under the conditions stipulated on sheet 2. Those sheets
B14: not filled in should be marked "Not Applicable".
B17: INDEX
B19: 1, 1a, & 1b. | D19: Certification and Affidavit
B20: 1c. | D20: Municipal Budget Local Examination Certification
B21: 1d. | D21: Report of Federal and State Financial Assistance Expenditures of Awards
B22: 2. | D22: Instructions and Certification
B23: 3 & 3a | D23: Trial Balance-Current Fund
B24: 4. | D24: Trial Balance-Public Assistance Fund
B25: 5. | D25: Trial Balance-Federal and State Funds
B26: 6 & 6b. | D26: Trial Balance-Trust Funds/ Schedule of Trust Fund Deposits and Reserves
B27: 6a. | D27: Municipal Public Defender -- P.L. 1998, C. 256
B28: 7. | D28: Analysis of Trust Assessment Cash and Investments Pledged to Liabilities and Surplus
B29: 8. | D29: Trial Balance-Capital Fund
B30: 9 & 9a. | D30: Cash Reconciliation
B31: 10. | D31: Federal and State Grants Receivable
B32: 11 & 11a. | D32: Appropriated Reserves for Federal and State Grants
B33: 12. | D33: Unappropriated Reserves for Federal and State Grants
B34: 13. | D34: Local District School Tax-Municipal Open Space Tax
B35: 14. | D35: Regional School Tax-Regional High School Tax
B36: 15. | D36: County Taxes Payable-Special District Taxes
B37: 17 & 17a. | D37: General Budget Revenues
B38: 17. | D38: Allocation of Current Tax Collections
B39: 18. | D39: General Budget Appropriations
B40: 18. | D40: Emergency Appropriations for Local District School Purposes
B41: 19. | D41: ="Results of "&TEXT('KEY INPUTS'!D34,"0")&" Operation-Current Fund" -> Results of 2020 Operation-Current Fund
B42: 20. | D42: Schedule of Miscellaneous Revenues Not Anticipated
B43: 21. | D43: Surplus Account and Analysis of Balance
B44: 22. | D44: Current Tax Levy
B45: 22a. | D45: ="Accelerated Tax Sale/Tax Levy Sale Chapter 99 To Calculate Underlying Tax Collection Rate for "&TEXT('KEY INPUTS'!D34,"0") -> Accelerated Tax Sale/Tax Levy Sale Chapter 99 To Calculate Underlying Tax Collection Rate for 2020
B46: 23. | D46: Due from/to State of New Jersey for Senior Citizens and Veterans Deductions
B47: 24. | D47: Reserve for Tax Appeals Pending-N.J. Division of Tax Appeals (N.J.S.A. 54:3-37)
B48: 25. | D48: Municipal Budget-Computation of "Reserve for Uncollected Taxes" and "Amount to be Raised by Taxation"
B49: 25a. | D49: Accelerated Tax Sale - Chapter 99. Calculation to Utilize Proceeds in Current Budget as Deduction to Reserve
D50: for Uncollected Taxes Appropriation
B51: 26. | D51: Delinquent Taxes and Tax Title Liens
B52: 27. | D52: Foreclosed Property; Contract Sales; Mortgage Sales
B53: 28. | D53: Deferred Charges and List of Judgments-Current
B54: 29. | D54: Emergency-Tax Map; Revaluation; Master Plan; Revisions and Codification of Ordinance; Drainage Maps for
D55: Flood Control; Preliminary Studies, etc. for Sanitary Sewer Systems, Municipal Consolidation Act; Flood or
D56: Hurricane Damage
B57: 30. | D57: Emergency - Damage to Roads and Bridges by Snow, Ice, etc.; Public Exigencies Caused by Civil Disturbances
B58: 31 &31a. | D58: Summary Statement of Debt Service Requirements-Municipal (or County)
B59: 32. | D59: Summary Statement of Debt Service Requirements-School-Type I and Current
B60: 33. | D60: Debt Service for Notes (Other than Assessment Notes)
B61: 34 & 34a. | D61: Debt Service for Assessment Notes/ Schedule of Capital Lease Program Obligations
B62: 35 & 35a. | D62: Improvement Authorizations
B63: 36. | D63: Capital Improvement Fund
B64: 37. | D64: Down Payment
B65: 37. | D65: ="Capital Improvements Authorized in "&TEXT('KEY INPUTS'!D34,"0") -> Capital Improvements Authorized in 2020
B66: 38. | D66: General Capital Surplus, Bond Covenants
B67: 39. | D67: Required Information (N.J.S.A. 52:27BB-55 as amended by Chap. 211, P.L. 1981)
B69: UTILITIES ONLY
B70: 40. | D70: Instructions
B71: 41 & 55. | D71: Trial Balance-Utility Fund
B72: 42 & 56. | D72: Trial Balance-Utility Assessment Trust Funds
B73: 43 & 57. | D73: Analysis of Utility Assessment Trust Cash and Investments Pledged to Liabilities and Surplus
B74: 44 & 58. | D74: Utility Revenues and Appropriations
B75: 45 & 59. | D75: =TEXT('KEY INPUTS'!D34,"0")&" Utility Operations" -> 2020 Utility Operations
B76: 46 & 60. | D76: Results of Operation, Operating Surplus and Analysis
B77: 47 & 61. | D77: Utility Accounts Receivable; Utility Liens
B78: 48 & 62. | D78: Deferred Charges and List of Judgments-Utility
B79: 49 & 63. | D79: Summary Statement of Debt Service Requirements
B80: 49a & 63a. | D80: Summary Statement of Loan Requirements
B81: 50 & 64. | D81: Debt Service for Utility Notes (Other than Utility Assessment Notes)
B82: 51 & 65. | D82: Debt Service for Utility Assessment Notes
B83: 51a & 65a. | D83: Schedule of Capital Lease Program Obligations
B84: 52 & 66. | D84: Improvement Authorizations (Utility Capital)
B85: 53 & 67. | D85: Capital Improvement Fund and Down Payments
B86: 54 & 68. | D86: ="Utility Capital Improvements Authorized in "&TEXT('KEY INPUTS'!D34,"0")&"; Utility Capital Surplus" -> Utility Capital Improvements Authorized in 2020; Utility Capital Surplus
B87: Sheet 69

Sheet KEY INPUTS
C2: Annual Financial Statement - Key Inputs
D3: Municipal AFS Version 2020.1 | AB3: DLGS
C5: Information Required for
C6: Annual Financial Statement | D6: Responses and Data | R6: Muncode | S6: Town | T6: County | U6: Town Name | V6: Name of Municipality | W6: Muniname | X6: Type of Government | Y6: Governing Body Members | Z6: Governing Body Type | AA6: 2010 Census Population
Q7: 1 | R7: 1330 | S7: Aberdeen Township | T7: Monmouth | U7: Aberdeen Township, Monmouth County | V7: Aberdeen Township | W7: Aberdeen | X7: Township | Y7: Council Members | Z7: Mayor-6 Council Members | AA7: 18210
C8: Name and County of Municipality | D8: 123 | Q8: =Q7+1 -> 2 | R8: 0101 | S8: Absecon City | T8: Atlantic | U8: Absecon City, Atlantic County | V8: Absecon | W8: Absecon | X8: City | Y8: Council Members | Z8: Mayor-7 Council Members | AA8: 8411
C9: Full Name of Municipality / County | D9: =UPPER(VLOOKUP($D$8,$Q$7:$X$592,8,FALSE)&" Of "&VLOOKUP($D$8,$Q$7:$X$592,7,FALSE)) -> BOROUGH OF EDGEWATER | Q9: =Q8+1 -> 3 | R9: 1001 | S9: Alexandria Township | T9: Hunterdon | U9: =S9&", "&T9&" County" -> Alexandria Township, Hunterdon County | V9: Alexandria Township | W9: Alexandria | X9: Township | Y9: Committeepersons | Z9: 3 Committee Members | AA9: 4938
C10: County of Municipality / County | D10: =UPPER(VLOOKUP($D$8,$Q$7:$X$592,4,FALSE)) -> BERGEN | Q10: 4 | R10: 2101 | S10: Allamuchy Township | T10: Warren | U10: =S10&", "&T10&" County" -> Allamuchy Township, Warren County | V10: Allamuchy Township | W10: Allamuchy | X10: Township | Y10: Council Members | Z10: Mayor-4 Council Members | AA10: 4323
C11: Name of Municipality / County | D11: =UPPER(VLOOKUP($D$8,$Q$7:$X$592,7,FALSE)) -> EDGEWATER | Q11: 5 | R11: 0201 | S11: Allendale Borough | T11: Bergen | U11: Allendale Borough, Bergen County | V11: Allendale | W11: Allendale | X11: Borough | Y11: Council Members | Z11: Mayor-6 Council Members | AA11: 6505
C12: Type | D12: =UPPER(VLOOKUP($D$8,$Q$7:$X$592,8,FALSE)) -> BOROUGH | Q12: 6 | R12: 1301 | S12: Allenhurst Borough | T12: Monmouth | U12: Allenhurst Borough, Monmouth County | V12: Allenhurst | W12: Allenhurst | X12: Borough | Y12: Commissioners | Z12: 3 Commissioners | AA12: 496
C13: Federal ID # | D13: 226007776 | Q13: 7 | R13: 1302 | S13: Allentown Borough | T13: Monmouth | U13: Allentown Borough, Monmouth County | V13: Allentown | W13: Allentown | X13: Borough | Y13: Council Members | Z13: Mayor-6 Council Members | AA13: 1828
C14: Governing Body Type | D14: =UPPER(VLOOKUP($D$8,$Q$7:$Z$592,9,FALSE)) -> COUNCIL MEMBERS | Q14: 8 | R14: 1701 | S14: Alloway Township | T14: Salem | U14: Alloway Township, Salem County | V14: Alloway Township | W14: Alloway | X14: Township | Y14: Committeepersons | Z14: 3 Committee Members | AA14: 3467
Q15: 9 | R15: 2102 | S15: Alpha Borough | T15: Warren | U15: Alpha Borough, Warren County | V15: Alpha | W15: Alpha | X15: Borough | Y15: Council Members | Z15: Mayor-6 Council Members | AA15: 2369
C16: Address | D16: 55 River Road | Q16: 10 | R16: 0202 | S16: Alpine Borough | T16: Bergen | U16: Alpine Borough, Bergen County | V16: Alpine | W16: Alpine | X16: Borough | Y16: Council Members | Z16: Mayor-6 Council Members | AA16: 1849
C17: Address | D17: Edgewater, NJ 07020 | Q17: 11 | R17: 1901 | S17: Andover Borough | T17: Sussex | U17: Andover Borough, Sussex County | V17: Andover | W17: Andover | X17: Borough | Y17: Council Members | Z17: Mayor-6 Council Members | AA17: 606
C18: Phone | D18: 201-943-1700 | Q18: 12 | R18: 1902 | S18: Andover Township | T18: Sussex | U18: Andover Township, Sussex County | V18: Andover Township | W18: Andover | X18: Township | Y18: Committeepersons | Z18: 5 Committee Members | AA18: 6319
C19: Fax | D19: 201-943-9242 | Q19: 13 | R19: 1303 | S19: Asbury Park City | T19: Monmouth | U19: Asbury Park City, Monmouth County | V19: Asbury Park | W19: Asbury Park | X19: City | Y19: Council Members | Z19: 5 Council Members | AA19: 16116
E20: Certificate # | Q20: 14 | R20: 0102 | S20: Atlantic City City | T20: Atlantic | U20: Atlantic City City, Atlantic County | V20: Atlantic City | W20: Atlantic City | X20: City | Y20: Council Members | Z20: Mayor-9 Council Members | AA20: 39558
C21: Chief Financial Officer | D21: Gregory Franz | E21: 935 | Q21: 15 | R21: 1304 | S21: Atlantic Highlands Borough | T21: Monmouth | U21: Atlantic Highlands Borough, Monmouth County | V21: Atlantic Highlands | W21: Atlantic Highlands | X21: Borough | Y21: Council Members | Z21: Mayor-6 Council Members | AA21: 4385
C22: Registered Municipal Accountant | D22: Steven Wielkotz | F22: Leave blank if CFO prepared | Q22: 16 | R22: 0401 | S22: Audubon Borough | T22: Camden | U22: Audubon Borough, Camden County | V22: Audubon | W22: Audubon | X22: Borough | Y22: Commissioners | Z22: 3 Commissioners | AA22: 8819
C23: Year Ending | D23: 2020-12-31 | Q23: 17 | R23: 0402 | S23: Audubon Park Borough | T23: Camden | U23: Audubon Park Borough, Camden County | V23: Audubon Park | W23: Audubon Park | X23: Borough | Y23: Council Members | Z23: Mayor-6 Council Members | AA23: 1023
Q24: 18 | R24: 0501 | S24: Avalon Borough | T24: Cape May | U24: Avalon Borough, Cape May County | V24: Avalon | W24: Avalon | X24: Borough | Y24: Council Members | Z24: Mayor-5 Council Members | AA24: 1334
C25: DATES | D25: ="Balance - January 1, "&D34 -> Balance - January 1, 2020 | Q25: 19 | R25: 1305 | S25: Avon-by-the-Sea Borough | T25: Monmouth | U25: Avon-by-the-Sea Borough, Monmouth County | V25: Avon-by-the-Sea | W25: Avon-by-the-Sea | X25: Borough | Y25: Commissioners | Z25: 3 Commissioners | AA25: 1901
D26: ="Balance - December 31, "&D34 -> Balance - December 31, 2020 | Q26: 20 | R26: 1501 | S26: Barnegat Light Borough | T26: Ocean | U26: Barnegat Light Borough, Ocean County | V26: Barnegat Light | W26: Barnegat Light | X26: Borough | Y26: Council Members | Z26: Mayor-6 Council Members | AA26: 574
D27: ="Outstanding - January 1, "&D34 -> Outstanding - January 1, 2020 | Q27: 21 | R27: 1533 | S27: Barnegat Township | T27: Ocean | U27: Barnegat Township, Ocean County | V27: Barnegat Township | W27: Barnegat | X27: Township | Y27: Committeepersons | Z27: 5 Committee Members | AA27: 20936
D28: ="Outstanding - December 31, "&D34 -> Outstanding - December 31, 2020 | Q28: 22 | R28: 0403 | S28: Barrington Borough | T28: Camden | U28: Barrington Borough, Camden County | V28: Barrington | W28: Barrington | X28: Borough | Y28: Council Members | Z28: Mayor-6 Council Members | AA28: 6983
C29: Year End | D29: =DATE(D34,12,31) -> 2020-12-31 | Q29: 23 | R29: 0301 | S29: Bass River Township | T29: Burlington | U29: Bass River Township, Burlington County | V29: Bass River Township | W29: Bass River | X29: Township | Y29: Commissioners | Z29: 3 Commissioners | AA29: 1443
C30: Next Year End | D30: =DATE(D33,12,31) -> 2021-12-31 | Q30: 24 | R30: 1502 | S30: Bay Head Borough | T30: Ocean | U30: Bay Head Borough, Ocean County | V30: Bay Head | W30: Bay Head | X30: Borough | Y30: Council Members | Z30: Mayor-6 Council Members | AA30: 968
Q31: 25 | R31: 0901 | S31: Bayonne City | T31: Hudson | U31: Bayonne City, Hudson County | V31: Bayonne | W31: Bayonne | X31: City | Y31: Council Members | Z31: Mayor-5 Council Members | AA31: 63024
Q32: 26 | R32: 1503 | S32: Beach Haven Borough | T32: Ocean | U32: Beach Haven Borough, Ocean County | V32: Beach Haven | W32: Beach Haven | X32: Borough | Y32: Council Members | Z32: 5 Council Members | AA32: 1170
C33: Budget Year | D33: 2021 | Q33: 27 | R33: 1504 | S33: Beachwood Borough | T33: Ocean | U33: Beachwood Borough, Ocean County | V33: Beachwood | W33: Beachwood | X33: Borough | Y33: Council Members | Z33: Mayor-6 Council Members | AA33: 11045
C34: AFS Year | D34: =D33-1 -> 2020 | Q34: 28 | R34: 1801 | S34: Bedminster Township | T34: Somerset | U34: Bedminster Township, Somerset County | V34: Bedminster Township | W34: Bedminster | X34: Township | Y34: Committeepersons | Z34: 5 Committee Members | AA34: 8165
C35: PY | D35: =D34-1 -> 2019 | Q35: 29 | R35: 0701 | S35: Belleville Township | T35: Essex | U35: Belleville Township, Essex County | V35: Belleville Township | W35: Belleville | X35: Township | Y35: Council Members | Z35: 7 Council Members | AA35: 35926
Q36: 30 | R36: 0404 | S36: Bellmawr Borough | T36: Camden | U36: Bellmawr Borough, Camden County | V36: Bellmawr | W36: Bellmawr | X36: Borough | Y36: Council Members | Z36: Mayor-6 Council Members | AA36: 11583
C37: POPULATION LAST CENSUS | D37: =VLOOKUP(D8,$Q$7:$AA$592,11,FALSE) -> 11513 | Q37: 31 | R37: 1306 | S37: Belmar Borough | T37: Monmouth | U37: Belmar Borough, Monmouth County | V37: Belmar | W37: Belmar | X37: Borough | Y37: Council Members | Z37: Mayor-4 Council Members | AA37: 5794
C38: ="NET VALUATION TAXABLE "&D34 -> NET VALUATION TAXABLE 2020 | D38: 2966012792 | Q38: 32 | R38: 2103 | S38: Belvidere Town | T38: Warren | U38: Belvidere Town, Warren County | V38: Belvidere | W38: Belvidere | X38: Town | Y38: Council Members | Z38: Mayor-6 Council Members | AA38: 2681
C39: Muni Code | D39: =VLOOKUP($D$8,$Q$7:$R$592,2,FALSE) -> 0213 | Q39: 33 | R39: 0203 | S39: Bergenfield Borough | T39: Bergen | U39: Bergenfield Borough, Bergen County | V39: Bergenfield | W39: Bergenfield | X39: Borough | Y39: Council Members | Z39: Mayor-6 Council Members | AA39: 26764
Q40: 34 | R40: 2001 | S40: Berkeley Heights Township | T40: Union | U40: Berkeley Heights Township, Union County | V40: Berkeley Heights Township | W40: Berkeley Heights | X40: Township | Y40: Council Members | Z40: Mayor-6 Council Members | AA40: 13183
D41: ="ANNUAL FINANCIAL STATEMENT FOR THE YEAR "&D34 -> ANNUAL FINANCIAL STATEMENT FOR THE YEAR 2020 | Q41: 35 | R41: 1505 | S41: Berkeley Township | T41: Ocean | U41: Berkeley Township, Ocean County | V41: Berkeley Township | W41: Berkeley | X41: Township | Y41: Council Members | Z41: Mayor-7 Council Members | AA41: 41255
D42: ="COUNTIES - JANUARY 26, "&D33 -> COUNTIES - JANUARY 26, 2021 | Q42: 36 | R42: 0405 | S42: Berlin Borough | T42: Camden | U42: Berlin Borough, Camden County | V42: Berlin | W42: Berlin | X42: Borough | Y42: Council Members | Z42: Mayor-6 Council Members | AA42: 7588
D43: ="MUNICIPALITIES - FEBRUARY 10, "&D33 -> MUNICIPALITIES - FEBRUARY 10, 2021 | Q43: 37 | R43: 0406 | S43: Berlin Township | T43: Camden | U43: Berlin Township, Camden County | V43: Berlin Township | W43: Berlin | X43: Township | Y43: Council Members | Z43: Mayor-4 Council Members | AA43: 5357
D44: ="AS AT DECEMBER 31, "&D34 -> AS AT DECEMBER 31, 2020 | Q44: 38 | R44: 1802 | S44: Bernards Township | T44: Somerset | U44: Bernards Township, Somerset County | V44: Bernards Township | W44: Bernards | X44: Township | Y44: Committeepersons | Z44: 5 Committee Members | AA44: 26652
D45: ="Dec. 31, "&D35 -> Dec. 31, 2019 | Q45: 39 | R45: 1803 | S45: Bernardsville Borough | T45: Somerset | U45: Bernardsville Borough, Somerset County | V45: Bernardsville | W45: Bernardsville | X45: Borough | Y45: Council Members | Z45: Mayor-6 Council Members | AA45: 7707
D46: ="Dec. 31, "&D34 -> Dec. 31, 2020 | Q46: 40 | R46: 1002 | S46: Bethlehem Township | T46: Hunterdon | U46: Bethlehem Township, Hunterdon County | V46: Bethlehem Township | W46: Bethlehem | X46: Township | Y46: Committeepersons | Z46: 5 Committee Members | AA46: 3979
D47: ="Jan. 1, "&D34 -> Jan. 1, 2020 | Q47: 41 | R47: 0302 | S47: Beverly City | T47: Burlington | U47: Beverly City, Burlington County | V47: Beverly | W47: Beverly | X47: City | Y47: Council Members | Z47: Mayor-9 Council Members | AA47: 2577
D48: ="YEAR - "&D35 -> YEAR - 2019 | Q48: 42 | R48: 2104 | S48: Blairstown Township | T48: Warren | U48: Blairstown Township, Warren County | V48: Blairstown Township | W48: Blairstown | X48: Township | Y48: Committeepersons | Z48: 5 Committee Members | AA48: 5967
D49: ="YEAR - "&D34 -> YEAR - 2020 | Q49: 43 | R49: 0702 | S49: Bloomfield Township | T49: Essex | U49: Bloomfield Township, Essex County | V49: Bloomfield Township | W49: Bloomfield | X49: Township | Y49: Council Members | Z49: Mayor-6 Council Members | AA49: 47315
Q50: 44 | R50: 1601 | S50: Bloomingdale Borough | T50: Passaic | U50: Bloomingdale Borough, Passaic County | V50: Bloomingdale | W50: Bloomingdale | X50: Borough | Y50: Council Members | Z50: Mayor-6 Council Members | AA50: 7656
D51: UTILITY NAME | Q51: =Q50+1 -> 45 | R51: 1003 | S51: Bloomsbury Borough | T51: Hunterdon | U51: Bloomsbury Borough, Hunterdon County | V51: Bloomsbury | W51: Bloomsbury | X51: Borough | Y51: Council Members | Z51: Mayor-6 Council Members | AA51: 870
C52: UTILITY 1 | D52: Marina Utility | Q52: 46 | R52: 0204 | S52: Bogota Borough | T52: Bergen | U52: Bogota Borough, Bergen County | V52: Bogota | W52: Bogota | X52: Borough | Y52: Council Members | Z52: Mayor-6 Council Members | AA52: 8187
C53: UTILITY 2 | Q53: 47 | R53: 1401 | S53: Boonton Town | T53: Morris | U53: Boonton Town, Morris County | V53: Boonton | W53: Boonton | X53: Town | Y53: Alderpersons | Z53: Mayor-8 Alder Persons | AA53: 8347
C54: UTILITY 3 | Q54: 48 | R54: 1402 | S54: Boonton Township | T54: Morris | U54: Boonton Township, Morris County | V54: Boonton Township | W54: Boonton | X54: Township | Y54: Committeepersons | Z54: 5 Committee Members | AA54: 4263
C55: UTILITY 4 | Q55: 49 | R55: 0303 | S55: Bordentown City | T55: Burlington | U55: Bordentown City, Burlington County | V55: Bordentown | W55: Bordentown | X55: City | Y55: Commissioners | Z55: 3 Commissioners | AA55: 3924
C56: UTILITY 5 | Q56: 50 | R56: 0304 | S56: Bordentown Township | T56: Burlington | U56: Bordentown Township, Burlington County | V56: Bordentown Township | W56: Bordentown | X56: Township | Y56: Committeepersons | Z56: 5 Committee Members | AA56: 11367
C57: UTILITY 6 | Q57: 51 | R57: 1804 | S57: Bound Brook Borough | T57: Somerset | U57: Bound Brook Borough, Somerset County | V57: Bound Brook | W57: Bound Brook | X57: Borough | Y57: Council Members | Z57: Mayor-6 Council Members | AA57: 10402
Q58: 52 | R58: 1307 | S58: Bradley Beach Borough | T58: Monmouth | U58: Bradley Beach Borough, Monmouth County | V58: Bradley Beach | W58: Bradley Beach | X58: Borough | Y58: Council Members | Z58: Mayor-4 Council Members | AA58: 4298
Q59: 53 | R59: 1805 | S59: Branchburg Township | T59: Somerset | U59: Branchburg Township, Somerset County | V59: Branchburg Township | W59: Branchburg | X59: Township | Y59: Committeepersons | Z59: 5 Committee Members | AA59: 14459
Q60: 54 | R60: 1903 | S60: Branchville Borough | T60: Sussex | U60: Branchville Borough, Sussex County | V60: Branchville | W60: Branchville | X60: Borough | Y60: Council Members | Z60: Mayor-6 Council Members | AA60: 841
Q61: 55 | R61: 1506 | S61: Brick Township | T61: Ocean | U61: Brick Township, Ocean County | V61: Brick Township | W61: Brick | X61: Township | Y61: Council Members | Z61: Mayor-7 Council Members | AA61: 75072
Q62: 56 | R62: 0601 | S62: Bridgeton City | T62: Cumberland | U62: Bridgeton City, Cumberland County | V62: Bridgeton | W62: Bridgeton | X62: City | Y62: Council Members | Z62: Mayor-5 Council Members | AA62: 25349
Q63: 57 | R63: 1806 | S63: Bridgewater Township | T63: Somerset | U63: Bridgewater Township, Somerset County | V63: Bridgewater Township | W63: Bridgewater | X63: Township | Y63: Council Members | Z63: Mayor-5 Council Members | AA63: 44464
Q64: 58 | R64: 1308 | S64: Brielle Borough | T64: Monmouth | U64: Brielle Borough, Monmouth County | V64: Brielle | W64: Brielle | X64: Borough | Y64: Council Members | Z64: Mayor-6 Council Members | AA64: 4774
Q65: 59 | R65: 0103 | S65: Brigantine City | T65: Atlantic | U65: Brigantine City, Atlantic County | V65: Brigantine | W65: Brigantine | X65: City | Y65: Council Members | Z65: 7 Council Members | AA65: 9450
Q66: 60 | R66: 0407 | S66: Brooklawn Borough | T66: Camden | U66: Brooklawn Borough, Camden County | V66: Brooklawn | W66: Brooklawn | X66: Borough | Y66: Council Members | Z66: Mayor-6 Council Members | AA66: 1955
Q67: 61 | R67: 0104 | S67: Buena Borough | T67: Atlantic | U67: Buena Borough, Atlantic County | V67: Buena | W67: Buena | X67: Borough | Y67: Council Members | Z67: Mayor-6 Council Members | AA67: 4603
Q68: 62 | R68: 0105 | S68: Buena Vista Township | T68: Atlantic | U68: Buena Vista Township, Atlantic County | V68: Buena Vista Township | W68: Buena Vista | X68: Township | Y68: Committeepersons | Z68: 5 Committee Members | AA68: 7570
Q69: 63 | R69: 0305 | S69: Burlington City | T69: Burlington | U69: Burlington City, Burlington County | V69: Burlington | W69: Burlington | X69: City | Y69: Council Members | Z69: Mayor-7 Council Members | AA69: 9920
Q70: 64 | R70: 0306 | S70: Burlington Township | T70: Burlington | U70: Burlington Township, Burlington County | V70: Burlington Township | W70: Burlington | X70: Township | Y70: Council Members | Z70: Mayor-7 Council Members | AA70: 22594
Q71: 65 | R71: 1403 | S71: Butler Borough | T71: Morris | U71: Butler Borough, Morris County | V71: Butler | W71: Butler | X71: Borough | Y71: Council Members | Z71: Mayor-6 Council Members | AA71: 7539
Q72: 66 | R72: 1904 | S72: Byram Township | T72: Sussex | U72: Byram Township, Sussex County | V72: Byram Township | W72: Byram | X72: Township | Y72: Council Members | Z72: Mayor-4 Council Members | AA72: 8350
Q73: =Q72+1 -> 67 | R73: 0703 | S73: Caldwell Borough | T73: Essex | U73: Caldwell Borough, Essex County | V73: Caldwell Borough | W73: Caldwell | X73: Borough | Y73: Council Members | Z73: Mayor-6 Council Members | AA73: 7822
Q74: 68 | R74: 1004 | S74: Califon Borough | T74: Hunterdon | U74: Califon Borough, Hunterdon County | V74: Califon | W74: Califon | X74: Borough | Y74: Council Members | Z74: Mayor-6 Council Members | AA74: 1076
Q75: 69 | R75: 0408 | S75: Camden City | T75: Camden | U75: Camden City, Camden County | V75: Camden | W75: Camden | X75: City | Y75: Council Members | Z75: Mayor-7 Council Members | AA75: 77344
Q76: 70 | R76: 0502 | S76: Cape May City | T76: Cape May | U76: Cape May City, Cape May County | V76: Cape May | W76: Cape May | X76: City | Y76: Council Members | Z76: 5 Council Members | AA76: 3607
Q77: 71 | R77: 0503 | S77: Cape May Point Borough | T77: Cape May | U77: Cape May Point Borough, Cape May County | V77: Cape May Point | W77: Cape May Point | X77: Borough | Y77: Commissioners | Z77: 3 Commissioners | AA77: 291
Q78: 72 | R78: 0205 | S78: Carlstadt Borough | T78: Bergen | U78: Carlstadt Borough, Bergen County | V78: Carlstadt | W78: Carlstadt | X78: Borough | Y78: Council Members | Z78: Mayor-6 Council Members | AA78: 6127
Q79: 73 | R79: 1713 | S79: Carneys Point Township | T79: Salem | U79: Carneys Point Township, Salem County | V79: Carneys Point Township | W79: Carneys Point | X79: Township | Y79: Committeepersons | Z79: 5 Committee Members | AA79: 8049
Q80: 74 | R80: 1201 | S80: Carteret Borough | T80: Middlesex | U80: Carteret Borough, Middlesex County | V80: Carteret | W80: Carteret | X80: Borough | Y80: Council Members | Z80: Mayor-6 Council Members | AA80: 22844
Q81: 75 | R81: 0704 | S81: Cedar Grove Township | T81: Essex | U81: Cedar Grove Township, Essex County | V81: Cedar Grove Township | W81: Cedar Grove | X81: Township | Y81: Council Members | Z81: 5 Council Members | AA81: 12411
Q82: 76 | R82: 1404 | S82: Chatham Borough | T82: Morris | U82: Chatham Borough, Morris County | V82: Chatham | W82: Chatham | X82: Borough | Y82: Council Members | Z82: Mayor-6 Council Members | AA82: 8962
Q83: 77 | R83: 1405 | S83: Chatham Township | T83: Morris | U83: Chatham Township, Morris County | V83: Chatham Township | W83: Chatham | X83: Township | Y83: Committeepersons | Z83: 5 Committee Members | AA83: 10452
Q84: 78 | R84: 0409 | S84: Cherry Hill Township | T84: Camden | U84: Cherry Hill Township, Camden County | V84: Cherry Hill Township | W84: Cherry Hill | X84: Township | Y84: Council Members | Z84: Mayor-7 Council Members | AA84: 71045
Q85: 79 | R85: 0410 | S85: Chesilhurst Borough | T85: Camden | U85: Chesilhurst Borough, Camden County | V85: Chesilhurst | W85: Chesilhurst | X85: Borough | Y85: Council Members | Z85: Mayor-6 Council Members | AA85: 1634
Q86: 80 | R86: 1406 | S86: Chester Borough | T86: Morris | U86: Chester Borough, Morris County | V86: Chester | W86: Chester | X86: Borough | Y86: Council Members | Z86: Mayor-6 Council Members | AA86: 1649
Q87: 81 | R87: 1407 | S87: Chester Township | T87: Morris | U87: Chester Township, Morris County | V87: Chester Township | W87: Chester | X87: Township | Y87: Council Members | Z87: Mayor-4 Council Members | AA87: 7838
Q88: 82 | R88: 0307 | S88: Chesterfield Township | T88: Burlington | U88: Chesterfield Township, Burlington County | V88: Chesterfield Township | W88: Chesterfield | X88: Township | Y88: Committeepersons | Z88: 3 Committee Members | AA88: 7699
Q89: 83 | R89: 0308 | S89: Cinnaminson Township | T89: Burlington | U89: Cinnaminson Township, Burlington County | V89: Cinnaminson Township | W89: Cinnaminson | X89: Township | Y89: Committeepersons | Z89: 5 Committee Members | AA89: 15569
Q90: 84 | R90: 2002 | S90: Clark Township | T90: Union | U90: Clark Township, Union County | V90: Clark Township | W90: Clark | X90: Township | Y90: Council Members | Z90: Mayor-6 Council Members | AA90: 14756
Q91: 85 | R91: 0801 | S91: Clayton Borough | T91: Gloucester | U91: Clayton Borough, Gloucester County | V91: Clayton | W91: Clayton | X91: Borough | Y91: Council Members | Z91: Mayor-6 Council Members | AA91: 8179
Q92: 86 | R92: 0411 | S92: Clementon Borough | T92: Camden | U92: Clementon Borough, Camden County | V92: Clementon | W92: Clementon | X92: Borough | Y92: Council Members | Z92: Mayor-6 Council Members | AA92: 5000
Q93: 87 | R93: 0206 | S93: Cliffside Park Borough | T93: Bergen | U93: Cliffside Park Borough, Bergen County | V93: Cliffside Park | W93: Cliffside Park | X93: Borough | Y93: Council Members | Z93: Mayor-6 Council Members | AA93: 23594
Q94: 88 | R94: 1602 | S94: Clifton City | T94: Passaic | U94: Clifton City, Passaic County | V94: Clifton | W94: Clifton | X94: City | Y94: Council Members | Z94: 7 Council Members | AA94: 84136
Q95: 89 | R95: 1005 | S95: Clinton Town | T95: Hunterdon | U95: Clinton Town, Hunterdon County | V95: Clinton | W95: Clinton | X95: Town | Y95: Council Members | Z95: Mayor-6 Council Members | AA95: 2719
Q96: 90 | R96: 1006 | S96: Clinton Township | T96: Hunterdon | U96: Clinton Township, Hunterdon County | V96: Clinton Township | W96: Clinton | X96: Township | Y96: Council Members | Z96: Mayor-4 Council Members | AA96: 13478
Q97: 91 | R97: 0207 | S97: Closter Borough | T97: Bergen | U97: Closter Borough, Bergen County | V97: Closter | W97: Closter | X97: Borough | Y97: Council Members | Z97: Mayor-6 Council Members | AA97: 8373
Q98: 92 | R98: 0412 | S98: Collingswood Borough | T98: Camden | U98: Collingswood Borough, Camden County | V98: Collingswood | W98: Collingswood | X98: Borough | Y98: Commissioners | Z98: 3 Commissioners | AA98: 13926
Q99: 93 | R99: 1309 | S99: Colts Neck Township | T99: Monmouth | U99: Colts Neck Township, Monmouth County | V99: Colts Neck Township | W99: Colts Neck | X99: Township | Y99: Committeepersons | Z99: 5 Committee Members | AA99: 10142
Q100: 94 | R100: 0602 | S100: Commercial Township | T100: Cumberland | U100: Commercial Township, Cumberland County | V100: Commercial Township | W100: Commercial | X100: Township | Y100: Committeepersons | Z100: 3 Committee Members | AA100: 5178
Q101: 95 | R101: 0106 | S101: Corbin City | T101: Atlantic | U101: Corbin City, Atlantic County | V101: Corbin City | W101: Corbin City | X101: City | Y101: Council Members | Z101: Mayor-3 Council Members | AA101: 492
Q102: 96 | R102: 1202 | S102: Cranbury Township | T102: Middlesex | U102: Cranbury Township, Middlesex County | V102: Cranbury Township | W102: Cranbury | X102: Township | Y102: Committeepersons | Z102: 5 Committee Members | AA102: 3857
Q103: 97 | R103: 2003 | S103: Cranford Township | T103: Union | U103: Cranford Township, Union County | V103: Cranford Township | W103: Cranford | X103: Township | Y103: Committeepersons | Z103: 5 Committee Members | AA103: 22625
Q104: 98 | R104: 0208 | S104: Cresskill Borough | T104: Bergen | U104: Cresskill Borough, Bergen County | V104: Cresskill | W104: Cresskill | X104: Borough | Y104: Council Members | Z104: Mayor-6 Council Members | AA104: 8573
Q105: 99 | R105: 1310 | S105: Deal Borough | T105: Monmouth | U105: Deal Borough, Monmouth County | V105: Deal | W105: Deal | X105: Borough | Y105: Commissioners | Z105: 3 Commissioners | AA105: 750
Q106: 100 | R106: 0603 | S106: Deerfield Township | T106: Cumberland | U106: Deerfield Township, Cumberland County | V106: Deerfield Township | W106: Deerfield | X106: Township | Y106: Committeepersons | Z106: 5 Committee Members | AA106: 3119
Q107: 101 | R107: 0309 | S107: Delanco Township | T107: Burlington | U107: Delanco Township, Burlington County | V107: Delanco Township | W107: Delanco | X107: Township | Y107: Committeepersons | Z107: 5 Committee Members | AA107: 4283
Q108: 102 | R108: 1007 | S108: Delaware Township | T108: Hunterdon | U108: Delaware Township, Hunterdon County | V108: Delaware Township | W108: Delaware | X108: Township | Y108: Committeepersons | Z108: 5 Committee Members | AA108: 4563
Q109: 103 | R109: 0310 | S109: Delran Township | T109: Burlington | U109: Delran Township, Burlington County | V109: Delran Township | W109: Delran | X109: Township | Y109: Council Members | Z109: Mayor-5 Council Members | AA109: 16896
Q110: 104 | R110: 0209 | S110: Demarest Borough | T110: Bergen | U110: Demarest Borough, Bergen County | V110: Demarest | W110: Demarest | X110: Borough | Y110: Council Members | Z110: Mayor-6 Council Members | AA110: 4881
Q111: 105 | R111: 0504 | S111: Dennis Township | T111: Cape May | U111: Dennis Township, Cape May County | V111: Dennis Township | W111: Dennis | X111: Township | Y111: Committeepersons | Z111: 5 Committee Members | AA111: 6467
Q112: 106 | R112: 1408 | S112: Denville Township | T112: Morris | U112: Denville Township, Morris County | V112: Denville Township | W112: Denville | X112: Township | Y112: Council Members | Z112: Mayor-7 Council Members | AA112: 16635
Q113: 107 | R113: 0802 | S113: Deptford Township | T113: Gloucester | U113: Deptford Township, Gloucester County | V113: Deptford Township | W113: Deptford | X113: Township | Y113: Council Members | Z113: 7 Council Members | AA113: 30561
Q114: 108 | R114: 1409 | S114: Dover Town | T114: Morris | U114: Dover Town, Morris County | V114: Dover | W114: Dover | X114: Town | Y114: Alderpersons | Z114: Mayor-8 Alder Persons | AA114: 18157
Q115: 109 | R115: 0604 | S115: Downe Township | T115: Cumberland | U115: Downe Township, Cumberland County | V115: Downe Township | W115: Downe | X115: Township | Y115: Committeepersons | Z115: 3 Committee Members | AA115: 1585
Q116: 110 | R116: 0210 | S116: Dumont Borough | T116: Bergen | U116: Dumont Borough, Bergen County | V116: Dumont | W116: Dumont | X116: Borough | Y116: Council Members | Z116: Mayor-6 Council Members | AA116: 17479
Q117: 111 | R117: 1203 | S117: Dunellen Borough | T117: Middlesex | U117: Dunellen Borough, Middlesex County | V117: Dunellen | W117: Dunellen | X117: Borough | Y117: Council Members | Z117: Mayor-6 Council Members | AA117: 7227
Q118: 112 | R118: 1508 | S118: Eagleswood Township | T118: Ocean | U118: Eagleswood Township, Ocean County | V118: Eagleswood Township | W118: Eagleswood | X118: Township | Y118: Committeepersons | Z118: 3 Committee Members | AA118: 1603
Q119: 113 | R119: 1008 | S119: East Amwell Township | T119: Hunterdon | U119: East Amwell Township, Hunterdon County | V119: East Amwell Township | W119: East Amwell | X119: Township | Y119: Committeepersons | Z119: 5 Committee Members | AA119: 4013
Q120: 114 | R120: 1204 | S120: East Brunswick Township | T120: Middlesex | U120: East Brunswick Township, Middlesex County | V120: East Brunswick Township | W120: East Brunswick | X120: Township | Y120: Council Members | Z120: Mayor-5 Council Members | AA120: 47512
Q121: 115 | R121: 0803 | S121: East Greenwich Township | T121: Gloucester | U121: East Greenwich Township, Gloucester County | V121: East Greenwich Township | W121: East Greenwich | X121: Township | Y121: Committeepersons | Z121: 5 Committee Members | AA121: 9555
Q122: 116 | R122: 1410 | S122: East Hanover Township | T122: Morris | U122: East Hanover Township, Morris County | V122: East Hanover Township | W122: East Hanover | X122: Township | Y122: Council Members | Z122: Mayor-4 Council Members | AA122: 11157
Q123: 117 | R123: 0902 | S123: East Newark Borough | T123: Hudson | U123: East Newark Borough, Hudson County | V123: East Newark | W123: East Newark | X123: Borough | Y123: Council Members | Z123: Mayor-6 Council Members | AA123: 2406
Q124: 118 | R124: 0705 | S124: East Orange City | T124: Essex | U124: East Orange City, Essex County | V124: East Orange | W124: East Orange | X124: City | Y124: Council Members | Z124: Mayor-10 Council Members | AA124: 64270
Q125: 119 | R125: 0212 | S125: East Rutherford Borough | T125: Bergen | U125: East Rutherford Borough, Bergen County | V125: East Rutherford | W125: East Rutherford | X125: Borough | Y125: Council Members | Z125: Mayor-6 Council Members | AA125: 8913
Q126: 120 | R126: 1101 | S126: East Windsor Township | T126: Mercer | U126: East Windsor Township, Mercer County | V126: East Windsor Township | W126: East Windsor | X126: Township | Y126: Council Members | Z126: 7 Council Members | AA126: 27190
Q127: 121 | R127: 0311 | S127: Eastampton Township | T127: Burlington | U127: Eastampton Township, Burlington County | V127: Eastampton Township | W127: Eastampton | X127: Township | Y127: Council Members | Z127: 5 Council Members | AA127: 6069
Q128: 122 | R128: 1311 | S128: Eatontown Borough | T128: Monmouth | U128: Eatontown Borough, Monmouth County | V128: Eatontown | W128: Eatontown | X128: Borough | Y128: Council Members | Z128: Mayor-6 Council Members | AA128: 12709
Q129: 123 | R129: 0213 | S129: Edgewater Borough | T129: Bergen | U129: Edgewater Borough, Bergen County | V129: Edgewater | W129: Edgewater | X129: Borough | Y129: Council Members | Z129: Mayor-6 Council Members | AA129: 11513
Q130: 124 | R130: 0312 | S130: Edgewater Park Township | T130: Burlington | U130: Edgewater Park Township, Burlington County | V130: Edgewater Park Township | W130: Edgewater Park | X130: Township | Y130: Committeepersons | Z130: 5 Committee Members | AA130: 8881
Q131: 125 | R131: 1205 | S131: Edison Township | T131: Middlesex | U131: Edison Township, Middlesex County | V131: Edison Township | W131: Edison | X131: Township | Y131: Council Members | Z131: Mayor-7 Council Members | AA131: 99967
Q132: 126 | R132: 0107 | S132: Egg Harbor City | T132: Atlantic | U132: Egg Harbor City, Atlantic County | V132: Egg Harbor City | W132: Egg Harbor City | X132: City | Y132: Council Members | Z132: Mayor-9 Council Members | AA132: 4243
Q133: 127 | R133: 0108 | S133: Egg Harbor Township | T133: Atlantic | U133: Egg Harbor Township, Atlantic County | V133: Egg Harbor Township | W133: Egg Harbor | X133: Township | Y133: Committeepersons | Z133: 5 Committee Members | AA133: 43323
Q134: 128 | R134: 2004 | S134: Elizabeth City | T134: Union | U134: Elizabeth City, Union County | V134: Elizabeth | W134: Elizabeth | X134: City | Y134: Council Members | Z134: Mayor-9 Council Members | AA134: 124969
Q135: 129 | R135: 0804 | S135: Elk Township | T135: Gloucester | U135: Elk Township, Gloucester County | V135: Elk Township | W135: Elk | X135: Township | Y135: Committeepersons | Z135: 5 Committee Members | AA135: 4216
Q136: 130 | R136: 1702 | S136: Elmer Borough | T136: Salem | U136: Elmer Borough, Salem County | V136: Elmer | W136: Elmer | X136: Borough | Y136: Council Members | Z136: Mayor-6 Council Members | AA136: 1395
Q137: =Q136+1 -> 131 | R137: 0211 | S137: Elmwood Park Borough | T137: Bergen | U137: Elmwood Park Borough, Bergen County | V137: Elmwood Park | W137: Elmwood Park | X137: Borough | Y137: Council Members | Z137: Mayor-6 Council Members | AA137: 19403
Q138: 132 | R138: 1703 | S138: Elsinboro Township | T138: Salem | U138: Elsinboro Township, Salem County | V138: Elsinboro Township | W138: Elsinboro | X138: Township | Y138: Committeepersons | Z138: 3 Committee Members | AA138: 1036
Q139: 133 | R139: 0214 | S139: Emerson Borough | T139: Bergen | U139: Emerson Borough, Bergen County | V139: Emerson | W139: Emerson | X139: Borough | Y139: Council Members | Z139: Mayor-6 Council Members | AA139: 7401
Q140: 134 | R140: 0215 | S140: Englewood City | T140: Bergen | U140: Englewood City, Bergen County | V140: Englewood | W140: Englewood | X140: City | Y140: Council Members | Z140: Mayor-5 Council Members | AA140: 27147
Q141: 135 | R141: 0216 | S141: Englewood Cliffs Borough | T141: Bergen | U141: Englewood Cliffs Borough, Bergen County | V141: Englewood Cliffs | W141: Englewood Cliffs | X141: Borough | Y141: Council Members | Z141: Mayor-6 Council Members | AA141: 5281
Q142: 136 | R142: 1312 | S142: Englishtown Borough | T142: Monmouth | U142: Englishtown Borough, Monmouth County | V142: Englishtown | W142: Englishtown | X142: Borough | Y142: Council Members | Z142: Mayor-6 Council Members | AA142: 1847
Q143: 137 | R143: 0706 | S143: Essex Fells Township | T143: Essex | U143: Essex Fells Township, Essex County | V143: Essex Fells Township | W143: Essex Fells | X143: Township | Y143: Council Members | Z143: Mayor-6 Council Members | AA143: 2113
Q144: 138 | R144: 0109 | S144: Estell Manor City | T144: Atlantic | U144: Estell Manor City, Atlantic County | V144: Estell Manor | W144: Estell Manor | X144: City | Y144: Council Members | Z144: 5 Council Members | AA144: 1735
Q145: 139 | R145: 0313 | S145: Evesham Township | T145: Burlington | U145: Evesham Township, Burlington County | V145: Evesham Township | W145: Evesham | X145: Township | Y145: Council Members | Z145: Mayor-4 Council Members | AA145: 45538
Q146: 140 | R146: 1102 | S146: Ewing Township | T146: Mercer | U146: Ewing Township, Mercer County | V146: Ewing Township | W146: Ewing | X146: Township | Y146: Council Members | Z146: Mayor-5 Council Members | AA146: 35790
Q147: 141 | R147: 1313 | S147: Fair Haven Borough | T147: Monmouth | U147: Fair Haven Borough, Monmouth County | V147: Fair Haven | W147: Fair Haven | X147: Borough | Y147: Council Members | Z147: Mayor-6 Council Members | AA147: 6121
Q148: 142 | R148: 0217 | S148: Fair Lawn Borough | T148: Bergen | U148: Fair Lawn Borough, Bergen County | V148: Fair Lawn | W148: Fair Lawn | X148: Borough | Y148: Council Members | Z148: 5 Council Members | AA148: 32457
Q149: 143 | R149: 0605 | S149: Fairfield Township | T149: Cumberland | U149: Fairfield Township, Cumberland County | V149: Fairfield Township | W149: Fairfield | X149: Township | Y149: Committeepersons | Z149: 5 Committee Members | AA149: 6295
Q150: 144 | R150: 0707 | S150: Fairfield Township | T150: Essex | U150: Fairfield Township, Essex County | V150: Fairfield Township | W150: Fairfield | X150: Township | Y150: Council Members | Z150: Mayor-4 Council Members | AA150: 7466
Q151: 145 | R151: 0218 | S151: Fairview Borough | T151: Bergen | U151: Fairview Borough, Bergen County | V151: Fairview | W151: Fairview | X151: Borough | Y151: Council Members | Z151: Mayor-6 Council Members | AA151: 13835
Q152: 146 | R152: 2005 | S152: Fanwood Borough | T152: Union | U152: Fanwood Borough, Union County | V152: Fanwood | W152: Fanwood | X152: Borough | Y152: Council Members | Z152: Mayor-6 Council Members | AA152: 7318
Q153: 147 | R153: 1807 | S153: Far Hills Borough | T153: Somerset | U153: Far Hills Borough, Somerset County | V153: Far Hills | W153: Far Hills | X153: Borough | Y153: Council Members | Z153: Mayor-6 Council Members | AA153: 919
Q154: 148 | R154: 1314 | S154: Farmingdale Borough | T154: Monmouth | U154: Farmingdale Borough, Monmouth County | V154: Farmingdale | W154: Farmingdale | X154: Borough | Y154: Council Members | Z154: Mayor-6 Council Members | AA154: 1329
Q155: 149 | R155: 0314 | S155: Fieldsboro Borough | T155: Burlington | U155: Fieldsboro Borough, Burlington County | V155: Fieldsboro | W155: Fieldsboro | X155: Borough | Y155: Council Members | Z155: Mayor-6 Council Members | AA155: 540
Q156: 150 | R156: 1009 | S156: Flemington Borough | T156: Hunterdon | U156: Flemington Borough, Hunterdon County | V156: Flemington | W156: Flemington | X156: Borough | Y156: Council Members | Z156: Mayor-6 Council Members | AA156: 4581
Q157: 151 | R157: 0315 | S157: Florence Township | T157: Burlington | U157: Florence Township, Burlington County | V157: Florence Township | W157: Florence | X157: Township | Y157: Council Members | Z157: Mayor-5 Council Members | AA157: 12109
Q158: 152 | R158: 1411 | S158: Florham Park Borough | T158: Morris | U158: Florham Park Borough, Morris County | V158: Florham Park | W158: Florham Park | X158: Borough | Y158: Council Members | Z158: Mayor-6 Council Members | AA158: 11696
Q159: 153 | R159: 0110 | S159: Folsom Borough | T159: Atlantic | U159: Folsom Borough, Atlantic County | V159: Folsom | W159: Folsom | X159: Borough | Y159: Council Members | Z159: Mayor-6 Council Members | AA159: 1885
Q160: 154 | R160: 0219 | S160: Fort Lee Borough | T160: Bergen | U160: Fort Lee Borough, Bergen County | V160: Fort Lee | W160: Fort Lee | X160: Borough | Y160: Council Members | Z160: Mayor-6 Council Members | AA160: 35345
Q161: 155 | R161: 1905 | S161: Frankford Township | T161: Sussex | U161: Frankford Township, Sussex County | V161: Frankford Township | W161: Frankford | X161: Township | Y161: Committeepersons | Z161: 3 Committee Members | AA161: 5565
Q162: 156 | R162: 1906 | S162: Franklin Borough | T162: Sussex | U162: Franklin Borough, Sussex County | V162: Franklin | W162: Franklin | X162: Borough | Y162: Council Members | Z162: Mayor-6 Council Members | AA162: 5045
Q163: 157 | R163: 0220 | S163: Franklin Lakes Borough | T163: Bergen | U163: Franklin Lakes Borough, Bergen County | V163: Franklin Lakes | W163: Franklin Lakes | X163: Borough | Y163: Council Members | Z163: Mayor-6 Council Members | AA163: 10590
Q164: 158 | R164: 0805 | S164: Franklin Township | T164: Gloucester | U164: Franklin Township, Gloucester County | V164: Franklin Township | W164: Franklin | X164: Township | Y164: Committeepersons | Z164: 5 Committee Members | AA164: 16820
Q165: 159 | R165: 1010 | S165: Franklin Township | T165: Hunterdon | U165: Franklin Township, Hunterdon County | V165: Franklin Township | W165: Franklin | X165: Township | Y165: Committeepersons | Z165: 5 Committee Members | AA165: 3195
Q166: 160 | R166: 1808 | S166: Franklin Township | T166: Somerset | U166: Franklin Township, Somerset County | V166: Franklin Township | W166: Franklin | X166: Township | Y166: Council Members | Z166: Mayor-8 Council Members | AA166: 62300
Q167: 161 | R167: 2105 | S167: Franklin Township | T167: Warren | U167: Franklin Township, Warren County | V167: Franklin Township | W167: Franklin | X167: Township | Y167: Committeepersons | Z167: 5 Committee Members | AA167: 3176
Q168: 162 | R168: 1907 | S168: Fredon Township | T168: Sussex | U168: Fredon Township, Sussex County | V168: Fredon Township | W168: Fredon | X168: Township | Y168: Committeepersons | Z168: 5 Committee Members | AA168: 3437
Q169: 163 | R169: 1315 | S169: Freehold Borough | T169: Monmouth | U169: Freehold Borough, Monmouth County | V169: Freehold | W169: Freehold | X169: Borough | Y169: Council Members | Z169: Mayor-6 Council Members | AA169: 12052
Q170: 164 | R170: 1316 | S170: Freehold Township | T170: Monmouth | U170: Freehold Township, Monmouth County | V170: Freehold Township | W170: Freehold | X170: Township | Y170: Committeepersons | Z170: 5 Committee Members | AA170: 36184
Q171: 165 | R171: 2106 | S171: Frelinghuysen Township | T171: Warren | U171: Frelinghuysen Township, Warren County | V171: Frelinghuysen Township | W171: Frelinghuysen | X171: Township | Y171: Committeepersons | Z171: 3 Committee Members | AA171: 2230
Q172: 166 | R172: 1011 | S172: Frenchtown Borough | T172: Hunterdon | U172: Frenchtown Borough, Hunterdon County | V172: Frenchtown | W172: Frenchtown | X172: Borough | Y172: Council Members | Z172: Mayor-6 Council Members | AA172: 1373
Q173: 167 | R173: 0111 | S173: Galloway Township | T173: Atlantic | U173: Galloway Township, Atlantic County | V173: Galloway Township | W173: Galloway | X173: Township | Y173: Council Members | Z173: 7 Council Members | AA173: 37349
Q174: 168 | R174: 0221 | S174: Garfield City | T174: Bergen | U174: Garfield City, Bergen County | V174: Garfield | W174: Garfield | X174: City | Y174: Council Members | Z174: 5 Council Members | AA174: 30487
Q175: 169 | R175: 2006 | S175: Garwood Borough | T175: Union | U175: Garwood Borough, Union County | V175: Garwood | W175: Garwood | X175: Borough | Y175: Council Members | Z175: Mayor-6 Council Members | AA175: 4226
Q176: 170 | R176: 0413 | S176: Gibbsboro Borough | T176: Camden | U176: Gibbsboro Borough, Camden County | V176: Gibbsboro | W176: Gibbsboro | X176: Borough | Y176: Council Members | Z176: Mayor-6 Council Members | AA176: 2274
Q177: 171 | R177: 0806 | S177: Glassboro Borough | T177: Gloucester | U177: Glassboro Borough, Gloucester County | V177: Glassboro | W177: Glassboro | X177: Borough | Y177: Council Members | Z177: Mayor-6 Council Members | AA177: 18579
Q178: 172 | R178: 1012 | S178: Glen Gardner Borough | T178: Hunterdon | U178: Glen Gardner Borough, Hunterdon County | V178: Glen Gardner | W178: Glen Gardner | X178: Borough | Y178: Council Members | Z178: Mayor-6 Council Members | AA178: 1704
Q179: 173 | R179: 0708 | S179: Glen Ridge Borough | T179: Essex | U179: Glen Ridge Borough, Essex County | V179: Glen Ridge | W179: Glen Ridge | X179: Borough | Y179: Council Members | Z179: Mayor-6 Council Members | AA179: 7527
Q180: 174 | R180: 0222 | S180: Glen Rock Borough | T180: Bergen | U180: Glen Rock Borough, Bergen County | V180: Glen Rock | W180: Glen Rock | X180: Borough | Y180: Council Members | Z180: Mayor-6 Council Members | AA180: 11601
Q181: 175 | R181: 0414 | S181: Gloucester City City | T181: Camden | U181: Gloucester City City, Camden County | V181: Gloucester City | W181: Gloucester City | X181: City | Y181: Council Members | Z181: Mayor-6 Council Members | AA181: 11456
Q182: 176 | R182: 0415 | S182: Gloucester Township | T182: Camden | U182: Gloucester Township, Camden County | V182: Gloucester Township | W182: Gloucester | X182: Township | Y182: Council Members | Z182: Mayor-7 Council Members | AA182: 64634
Q183: 177 | R183: 1809 | S183: Green Brook Township | T183: Somerset | U183: Green Brook Township, Somerset County | V183: Green Brook Township | W183: Green Brook | X183: Township | Y183: Committeepersons | Z183: 5 Committee Members | AA183: 7203
Q184: 178 | R184: 1908 | S184: Green Township | T184: Sussex | U184: Green Township, Sussex County | V184: Green Township | W184: Green | X184: Township | Y184: Committeepersons | Z184: 5 Committee Members | AA184: 3601
Q185: 179 | R185: 0606 | S185: Greenwich Township | T185: Cumberland | U185: Greenwich Township, Cumberland County | V185: Greenwich Township | W185: Greenwich | X185: Township | Y185: Committeepersons | Z185: 3 Committee Members | AA185: 804
Q186: 180 | R186: 0807 | S186: Greenwich Township | T186: Gloucester | U186: Greenwich Township, Gloucester County | V186: Greenwich Township | W186: Greenwich | X186: Township | Y186: Council Members | Z186: Mayor-4 Council Members | AA186: 4899
Q187: 181 | R187: 2107 | S187: Greenwich Township | T187: Warren | U187: Greenwich Township, Warren County | V187: Greenwich Township | W187: Greenwich | X187: Township | Y187: Committeepersons | Z187: 5 Committee Members | AA187: 5712
Q188: 182 | R188: 0903 | S188: Guttenberg Town | T188: Hudson | U188: Guttenberg Town, Hudson County | V188: Guttenberg | W188: Guttenberg | X188: Town | Y188: Council Members | Z188: Mayor-5 Council Members | AA188: 11176
Q189: 183 | R189: 0223 | S189: Hackensack City | T189: Bergen | U189: Hackensack City, Bergen County | V189: Hackensack | W189: Hackensack | X189: City | Y189: Council Members | Z189: 5 Council Members | AA189: 43010
Q190: 184 | R190: 2108 | S190: Hackettstown Town | T190: Warren | U190: Hackettstown Town, Warren County | V190: Hackettstown | W190: Hackettstown | X190: Town | Y190: Council Members | Z190: Mayor-6 Council Members | AA190: 9724
Q191: 185 | R191: 0418 | S191: Haddon Heights Borough | T191: Camden | U191: Haddon Heights Borough, Camden County | V191: Haddon Heights | W191: Haddon Heights | X191: Borough | Y191: Council Members | Z191: Mayor-6 Council Members | AA191: 7473
Q192: 186 | R192: 0416 | S192: Haddon Township | T192: Camden | U192: Haddon Township, Camden County | V192: Haddon Township | W192: Haddon | X192: Township | Y192: Commissioners | Z192: 3 Commissioners | AA192: 14707
Q193: 187 | R193: 0417 | S193: Haddonfield Borough | T193: Camden | U193: Haddonfield Borough, Camden County | V193: Haddonfield | W193: Haddonfield | X193: Borough | Y193: Commissioners | Z193: 3 Commissioners | AA193: 11593
Q194: 188 | R194: 0316 | S194: Hainesport Township | T194: Burlington | U194: Hainesport Township, Burlington County | V194: Hainesport Township | W194: Hainesport | X194: Township | Y194: Committeepersons | Z194: 5 Committee Members | AA194: 6110
Q195: 189 | R195: 1603 | S195: Haledon Borough | T195: Passaic | U195: Haledon Borough, Passaic County | V195: Haledon | W195: Haledon | X195: Borough | Y195: Council Members | Z195: Mayor-6 Council Members | AA195: 8318
Q196: 190 | R196: 1909 | S196: Hamburg Borough | T196: Sussex | U196: Hamburg Borough, Sussex County | V196: Hamburg | W196: Hamburg | X196: Borough | Y196: Council Members | Z196: Mayor-6 Council Members | AA196: 3277
Q197: 191 | R197: 0112 | S197: Hamilton Township | T197: Atlantic | U197: Hamilton Township, Atlantic County | V197: Hamilton Township | W197: Hamilton | X197: Township | Y197: Committeepersons | Z197: 5 Committee Members | AA197: 26503
Q198: 192 | R198: 1103 | S198: Hamilton Township | T198: Mercer | U198: Hamilton Township, Mercer County | V198: Hamilton Township | W198: Hamilton | X198: Township | Y198: Council Members | Z198: Mayor-5 Council Members | AA198: 88464
Q199: 193 | R199: 0113 | S199: Hammonton Township | T199: Atlantic | U199: Hammonton Township, Atlantic County | V199: Hammonton Township | W199: Hammonton | X199: Township | Y199: Council Members | Z199: Mayor-6 Council Members | AA199: 14791
Q200: 194 | R200: 1013 | S200: Hampton Borough | T200: Hunterdon | U200: Hampton Borough, Hunterdon County | V200: Hampton | W200: Hampton | X200: Borough | Y200: Council Members | Z200: Mayor-6 Council Members | AA200: 1401
Q201: =Q200+1 -> 195 | R201: 1910 | S201: Hampton Township | T201: Sussex | U201: Hampton Township, Sussex County | V201: Hampton Township | W201: Hampton | X201: Township | Y201: Committeepersons | Z201: 5 Committee Members | AA201: 5196
Q202: 196 | R202: 1412 | S202: Hanover Township | T202: Morris | U202: Hanover Township, Morris County | V202: Hanover Township | W202: Hanover | X202: Township | Y202: Committeepersons | Z202: 5 Committee Members | AA202: 13712
... 390 more rows

Sheet KEY METRICS (hidden)
B1: Municipality | C1: County | D1: Municode
B2: ='KEY INPUTS'!D9 -> BOROUGH OF EDGEWATER | C2: ='KEY INPUTS'!D10 -> BERGEN | D2: ='KEY INPUTS'!D39 -> 0213
A4: Balance Sheet
B5: Current Fund - Beginning Fund Balance | C5: ='21-Current Fund Surplus'!L7 -> 7027479.58
B7: Current Fund - Ending Fund Balance | C7: ='21-Current Fund Surplus'!K14 -> 6527242.71
B9: Current Fund - Result of Operation | C9: ='19-Results of Op-Cur Fnd'!H45 -> 3562930.73
B11: Current Fund - Cash | C11: ='21-Current Fund Surplus'!L23 -> 11191583.24
B13: Current Fund - Cash Surplus | C13: ='21-Current Fund Surplus'!L28 -> 4996449.34
B15: Current Fund - Investments | C15: ='21-Current Fund Surplus'!L24 -> 0
B17: Current Fund - Cash Liabilities | C17: ='21-Current Fund Surplus'!L27 -> 6195133.9
B19: Foreclosure Sales Starting Balance | C19: ='27-Foreclosed Property'!K6 -> 3844775
B21: Foreclosure Sales Ending Balance | C21: ='27-Foreclosed Property'!L20 -> 3844775
A23: Revenues
B24: Total General Budget Revenues | C24: ='17-Budget Revenues'!I22 -> 33837103.03
B26: Surplus Anticipated | C26: ='17-Budget Revenues'!I6 -> 3800000
B28: Surplus Anticipated with Consent of Dir. of Local Gov't Services | C28: ='17-Budget Revenues'!I8 -> 0
B30: Total Amount to be Raised by Taxation | C30: ='17-Budget Revenues'!I21 -> 24283223.93
B32: Total Miscellaneous Revenue Anticipated | C32: ='17-Budget Revenues'!I14 -> 4001060.57
B34: Receipts from Delinquent Taxes | C34: ='17-Budget Revenues'!I15 -> 1752818.53
B36: Levy Tax Collection Rate | C36: =IFERROR('22-CY Levy'!H38,"-") -> 0.9588
B38: Delinquent Taxes | C38: ='26-Delinquent Taxes and Liens'!M28 -> 2107293.38
A40: Appropriations
B41: Total Expenditures - General Budget Appropriation | C41: ='18-Budget Appropriations'!J17 -> 33033276.28
B43: Utility Operating Surplus Appropriated in Budget | C43: ='46-Utility1'!K23+'46-Utility1'!K24+'46-Utility2 '!K23+'46-Utility2 '!K24+'46-Utility3'!K23+'46-Utility3'!K24+'46-Utility4'!K23+'46-Utility4'!K24+'46-Utility5'!K23+'46-Utility5'!K24+'46-Utility6'!K23+'46-Utility6'!K24 -> 25000
B45: Deferred Charges | C45: ='28-Deferred Charges'!N25 -> 100000
A47: Outstanding Debt
B48: Outstanding General Bonded Debt | C48: ='31-Capital Bond Schedule'!G12+'31-Capital Bond Schedule'!G23+'32-Bond Schedule'!G11+'32-Bond Schedule'!G22 -> 38480000
B50: Outstanding General Loan Debt | C50: ='31A-Loan Schedule'!G12+'31A-Loan Schedule'!G23+'31A.1-Loan Schedule'!G12+'31A.1-Loan Schedule'!G23+'31A.2-Loan Schedule'!G12+'31A.2-Loan Schedule'!G23 -> 2308049.76
B52: Outstanding General Note Debt | C52: ='33 Totals-Note Debt Service'!G23+'34-Assmt Note Debt Service'!G23 -> 3660000
B54: Outstanding Capital Lease Obligations | C54: ='34a-Cap Lease Program Oblg'!G23 -> 62000
B56: Type 1 School District Bonded Debt | C56: ='32-Bond Schedule'!G11+'32-Bond Schedule'!G22 -> 0

Sheet 1- Cover
B2: ="ANNUAL FINANCIAL STATEMENT FOR THE YEAR "&TEXT('KEY INPUTS'!D34,"0") -> ANNUAL FINANCIAL STATEMENT FOR THE YEAR 2020
B3: (UNAUDITED)
J5: POPULATION LAST CENSUS | K5: ='KEY INPUTS'!D37 -> 11513
J6: ='KEY INPUTS'!C38 -> NET VALUATION TAXABLE 2020 | K6: ='KEY INPUTS'!D38 -> 2966012792
J7: MUNICODE | K7: ='KEY INPUTS'!D39 -> 0213
B8: FIVE DOLLARS PER DAY PENALTY IF NOT FILED BY:
B9: ='KEY INPUTS'!D42 -> COUNTIES - JANUARY 26, 2021
B10: ='KEY INPUTS'!D43 -> MUNICIPALITIES - FEBRUARY 10, 2021
B12: ANNUAL FINANCIAL STATEMENT REQUIRED TO BE FILED UNDER NEW JERSEY STATUTES
B13: ANNOTATED 40A:5-12, AS AMENDED, COMBINED WITH INFORMATION REQUIRED PRIOR TO
B14: CERTIFICATION OF BUDGETS BY THE DIRECTOR OF THE DIVISION OF LOCAL GOVERNMENT
B15: SERVICES.
B17: =+'KEY INPUTS'!D12 -> BOROUGH | G17: of | H17: =+'KEY INPUTS'!D11 -> EDGEWATER | L17: , County of | M17: =+'KEY INPUTS'!D10 -> BERGEN
B19: SEE BACK COVER FOR INDEX AND INSTRUCTIONS.
B20: DO NOT USE THESE SPACES
F22: Date | G22: Examined By:
E23: 1 | K23: Preliminary Check
E24: 2 | K24: Examined
B26: I hereby certify that the debt shown on Sheets 31 to 34, 49 to 51 and 63 to 65a are
B27: complete, were computed by me and can be supported upon demand by a register or
B28: other detailed analysis.
K29: Signature | L29: SDW@w-cpa.com
K30: Title | L30: Registered Municipal Accountant
B32: (This MUST be signed by Chief Financial Officer, Comptroller, Auditor or Registered Municipal Accountant.)
B35: REQUIRED CERTIFICATION BY THE CHIEF FINANCIAL OFFICER:
B38: ="I hereby certify that I am responsible for filing this verified Annual Financial Statement," -> I hereby certify that I am responsible for filing this verified Annual Financial Statement, | L38: =Y43 -> (which I have prepared) | N38: or
B39: =Y44 -> (which I have not prepared) | F39: =Y45 -> [eliminate one] | H39: =" and information required also included herein and that this Statement is an" -> and information required also included herein and that this Statement is an | R39: Need to be able to choose if completed or not.User needs to strike out "Which I have prepared " or "Which I have not prepared" Default to "NOT"
B40: exact copy of the original on file with the clerk of the governing body, that all calculations, extensions and additions
B41: are correct, that no transfers have been made to or from emergency appropriations and all statements contained herein | Q41: As the CFO, did you prepare this annual financial statement? Type Y/N in the grey box below.
B42: are in proof; I further certify that this statement is correct insofar as I can determine from all the books and records | Q42: NO
B43: kept and maintained in the Local Unit. | Y43: (which I have prepared)
Y44: (which I have not prepared)
B45: Further, I do hereby certify that I, | G45: =IF('KEY INPUTS'!D21=0,"NO ENTRY",'KEY INPUTS'!D21) -> Gregory Franz | M45: ,am the Chief Financial | Y45: [eliminate one]
B46: Officer, License # | E46: =IF('KEY INPUTS'!E21=0,"NO ENTRY",'KEY INPUTS'!E21) -> 935 | G46: , of the | H46: =+'KEY INPUTS'!D12 -> BOROUGH | N46: of
B47: =+'KEY INPUTS'!D11 -> EDGEWATER | G47: , County of | I47: =+'KEY INPUTS'!D10 -> BERGEN | N47: and that the
B48: statements annexed hereto and made a part hereof are true statements of the financial condition of the Local Unit as at
B49: ="December 31, "&TEXT('KEY INPUTS'!D34,"0")&", completely in compliance with N.J.S. 40A:5-12, as amended. I also give complete assurance as" -> December 31, 2020, completely in compliance with N.J.S. 40A:5-12, as amended. I also give complete assurance as
B50: to the veracity of required information included herein, needed prior to certification by the Director of Local Government
B51: ="Services, including the verification of cash balances as of December 31, "&TEXT('KEY INPUTS'!D34,"0")&"." -> Services, including the verification of cash balances as of December 31, 2020.
D53: Signature | F53: gfranz@edgewaternj.org
D54: Title | F54: Chief Financial Officer
D55: Address | F55: =IF('KEY INPUTS'!D16=0,"NO ENTRY",'KEY INPUTS'!D16) -> 55 River Road
D56: Phone Number | H56: =IF('KEY INPUTS'!D18=0,"NO ENTRY",'KEY INPUTS'!D18) -> 201-943-1700
D57: Fax Number | H57: =IF('KEY INPUTS'!D19=0,"NO ENTRY",'KEY INPUTS'!D19) -> 201-943-9242
D59: IT IS HEREBY INCUMBENT UPON THE CHIEF FINANCIAL OFFICER, WHEN NOT PREPARED
D60: BY SAID, AT A MINIMUM MUST REVIEW THE CONTENTS OF THIS ANNUAL FINANCIAL
D61: STATEMENT WITH THE PREPARER, SO AS TO BE FAMILIAR WITH THE REPRESENTATIONS
D62: AND ASSERTIONS MADE HEREIN.
B63: Sheet 1

Sheet 1a - RMA Certification
B3: THE REQUIRED CERTIFICATION BY AN RMA IS AS FOLLOWS:
B5: Preparation by Registered Municipal Account (Statement of Statutory Auditor Only)
B8: I have prepared the post-closing trial balances, related statement and analyses included in the
B9: accompanying Annual Financial Statement from the books of account and records made
B10: available to me by the | F10: =+'KEY INPUTS'!D12 -> BOROUGH | H10: of | I10: =+'KEY INPUTS'!D11 -> EDGEWATER
B11: as of December 31, | F11: ='KEY INPUTS'!D34 -> 2020 | G11: and have applied certain agreed-upon procedures thereon as
B12: promulgated by the Division of Local Government Services, solely to assist the Chief Financial
B13: Officer in connection with the filing of the Annual Financial Statement for the year then
B14: ended as required by N.J.S. 40A:5-12, as amended.
B17: Because the agreed-upon procedures do not constitute an examination of accounts made in
B18: accordance with generally accepted auditing standards, I do not express an opinion on any of
B19: the post-closing trial balances, related statements and analyses. In connection with the
B20: agreed-upon procedures, | G20: (except for circumstances as set forth below, no matters) | M20: or | Q20: Need to be able to choose if completed or not.User needs to strike out ""except for circumstances as set forth below, no matters" " or " No matters" Default to "no matters"
B21: (no matters) | E21: [eliminate one] | G21: came to my attention that caused me to believe that the Annual | P21: As the RMA, did you list any circumstances below that caused you to believe that this Annual Financial
B22: Financial Statement for the year ended | H22: ='KEY INPUTS'!D46 -> Dec. 31, 2020 | J22: is not in substantial compliance with the | P22: Statement is not in substantial compliance? Type Y/N in the grey box below. | Y22: (except for circumstances as set forth below, no matters)
B23: requirements of the State of New Jersey, Department of Community Affairs, Division of Local | P23: NO | Y23: (no matters)
B24: Government Services. Had I performed additional procedures or had I made an examination | Y24: [eliminate one]
B25: of the financial statements in accordance with generally accepted auditing standards, other
B26: matters might have come to my attention that would have been reported to the governing
B27: body and Division. This Annual Financial Statement relates only to the accounts and
B28: items prescribed by the Division and does not extend to the financial statements of the
B29: municipality/county taken as a whole.
B31: Listing of agreed-upon procedures not performed and/or matters coming to my attention of
B32: which the Director should be informed:
I50: =IF('KEY INPUTS'!D22=0,"NO ENTRY",'KEY INPUTS'!D22) -> Steven Wielkotz
I51: (Registered Municipal Accountant)
I53: Wielkotz & Company, LLC
I54: (Firm Name)
I56: 401 Wanaque Ave
I57: (Address)
B59: Certified by me | I59: Pompton Lakes, NJ 07442
I60: (Address)
B61: this | C61: 3 | D61: day of | E61: February | H61: =","&TEXT('KEY INPUTS'!D33,"0") -> ,2021
J62: 973-835-7900
I63: (Phone Number)
J65: 973-835-6631
I66: (Fax Number)
A70: Sheet 1a

Sheet 1b - Local Exam Qual Cert
C4: MUNICIPAL BUDGET LOCAL EXAMINATION QUALIFICATION CERTIFICATION
C5: BY
C6: CHIEF FINANCIAL OFFICER
D9: One of the following Certifications must be signed by the Chief Financial Officer if
D10: your municipality is eligible for local examination.
D13: CERTIFICATION OF QUALIFYING MUNICIPALITY
D15: 1. | F15: The outstanding indebtedness of the previous fiscal year is not in excess of 3.5%;
D17: 2. | F17: All emergencies approved for the previous fiscal year did not exceed 3% of total
F18: appropriations;
D20: 3. | F20: The tax collection rate exceeded 90%;
D22: 4. | F22: Total deferred charges did not equal or exceed 4% of the total tax levy;
D24: 5. | F24: There were no "procedural deficiencies" noted by the registered municipal
F25: accountant on Sheet 1a of the Annual Financial Statement; and
D27: 6. | F27: There was no operating deficit for the previous fiscal year.
D29: 7. | F29: The municipality did not conduct an accelerated tax sale for less than 3 consecutive
F30: years.
D32: 8. | F32: The municipality did not conduct a tax levy sale the previous fiscal year and does
F33: not plan to conduct one in the current year.
D35: 9. | F35: The current year budget does not contain a Levy or Appropriation "CAP" waiver.
D37: 10. | F37: ="The municipality has not applied for Transitional Aid for "&TEXT('KEY INPUTS'!D33,"0")&"." -> The municipality has not applied for Transitional Aid for 2021.
D39: 11. | F39: The municipality did not adopt a Special Emergency ordinance for COVID-related
F40: expenses or loss of revenue (N.J.S.A. 40A:4-53 (l) and (m)).
D42: The undersigned certifies that this municipality has complied in full in meeting ALL of the
D43: above criteria in determining its qualification for local examination of its Budget in accordance
D44: with N.J.A. C. 5:30-7.5.
D46: Municipality: | H46: ='KEY INPUTS'!D9 -> BOROUGH OF EDGEWATER
D47: Chief Financial Officer: | H47: Gregory S. Franz
D48: Signature: | H48: gfranz@edgewaternj.org
D49: Certificate #:
D50: Date: | H50: 2021-02-03
D54: CERTIFICATION OF NON-QUALIFYING MUNICIPALITY
D56: The undersigned certifies that this municipality does not meet item(s)
G57: of the criteria above and therefore does not qualify for local
D58: examination of its Budget in accordance with N.J.A.C. 5:30-7.5.
D61: Municipality: | H61: =+'KEY INPUTS'!D9 -> BOROUGH OF EDGEWATER
D62: Chief Financial Officer:
D63: Signature:
D64: Certificate #:
D65: Date:
C67: Sheet 1b

Sheet 1c - Fed & State Finan Asst.
B4: =IF('KEY INPUTS'!D13=0,"NO ENTRY",'KEY INPUTS'!D13) -> 226007776
B5: Fed I.D. #
B8: =+'KEY INPUTS'!D9 -> BOROUGH OF EDGEWATER
B9: Municipality
B12: =+'KEY INPUTS'!D10 -> BERGEN
B13: County
B16: Report of Federal and State Financial Assistance
B17: Expenditures of Awards
G20: Fiscal Year Ending: | I20: =+'KEY INPUTS'!D29 -> 2020-12-31
E23: (1) | G23: (2) | K23: (3)
E24: Federal programs
E25: Expended | G25: State | K25: Other Federal
E26: (administered by | G26: Programs | K26: Programs
E27: the state) | G27: Expended | K27: Expended
B29: TOTAL | D29: $ | F29: $ | G29: 21621.03 | J29: $ | K29: 84361.99 | P29: =+#REF!-G29 -> 
G32: Type of Audit required by Title 2 U.S. Code of Federal Regulations
G33: (CFR) (Uniform Requirements) and OMB 15-08.
H34: Single Audit
H35: Program Specific Audit
G36: x | H36: Financial Statement Audit Performed in Accordance
H37: With Government Auditing Standards (Yellow Book)
B40: Note: | D40: All local governments, who are recipients of federal and state awards (financial assistance), must
D41: report the total amount of federal and state funds expended during its fiscal year and the type of audit
D42: required to comply with Title 2 U.S. Code of Federal Regulations(CFR) OMB 15-08. (Uniform
D43: Guidance) and OMB 15-08. The single audit threshold has been been increased to $750,000
D44: beginning with Fiscal Year ending after 1/1/15. Expenditures are defined in Title 2 U.S. Code of
D45: Federal Regulations (CFR) (Uniform Guidance).
B47: (1) | D47: Report expenditures from federal pass-through programs received directly from state government.
D48: Federal pass-through funds can be identified by the Catalog of Federal Domestic Assistance
D49: (CFDA) number reported in the State's grant/contract agreements.
B51: (2) | D51: Report expenditures from state programs received directly from state government or indirectly from
D52: pass-through entities. Exclude state aid (I.e., CMPTRA, Energy Receipts tax, etc.) since there
D53: are no compliance requirements.
B55: (3) | D55: Report expenditures from federal programs received directly from the federal government or indirectly
D56: from entities other than state government.
C60: gfranz@edgewaternj.org | K60: 2021-02-03
C61: Signature of Chief Financial Officer | K61: Date
B71: Sheet 1c

Sheet 2 - No Utility Fund Cert
B2: IMPORTANT !
B4: READ INSTRUCTIONS
B7: INSTRUCTIONS
C9: The following certification is to be used ONLY in the event there is NO municipality
B10: operated utility.
C13: If there is a utility operated by the municipality of if a "utility fund" existed on the books of
B14: account, do not sign this statement and do not remove any of the UTILITY sheets from the
B15: document.
B17: CERTIFICATION
C19: I hereby certify that there was no "utility fund" on the books of account and there was no
B20: utility owned and operated by the | F20: =+'KEY INPUTS'!D12 -> BOROUGH | I20: of | J20: =+'KEY INPUTS'!D11 -> EDGEWATER | M20: ,
B21: County of | D21: =+'KEY INPUTS'!D10 -> BERGEN | F21: ="during the year "&TEXT('KEY INPUTS'!D34,"0")&" and that sheets 40 to 68 are unnecessary." -> during the year 2020 and that sheets 40 to 68 are unnecessary.
C23: I have therefore removed from this statement the sheets pertaining only to utilities.
H25: Name
H26: Title
C28: (This must be signed by the Chief Financial Office, Comptroller, Auditor or Registered
B29: Municipal Account.)
B32: NOTE:
C34: When removing the utility sheets, please be sure to refasten the "index" sheet (the last sheet
B35: in the statement) in order to provide a protective cover sheet to the back of the document.
B43: ="MUNICIPAL CERTIFICATION OF TAXABLE PROPERTY AS OF OCTOBER 1, "&TEXT('KEY INPUTS'!D34,"0") -> MUNICIPAL CERTIFICATION OF TAXABLE PROPERTY AS OF OCTOBER 1, 2020
D45: Certification is hereby made that the Net Valuation Taxable of property liable to taxation for
C46: ="the tax year "&TEXT('KEY INPUTS'!D33,"0")&" and filed with the County Board of Taxation on January 10, "&TEXT('KEY INPUTS'!D33,"0")&" in accordance" -> the tax year 2021 and filed with the County Board of Taxation on January 10, 2021 in accordance
C47: with the requirement of N.J.S.A. 54:4-35, was in the amount of $
I51: SIGNATURE OF TAX ASSESSOR
I53: =+'KEY INPUTS'!D9 -> BOROUGH OF EDGEWATER
I54: MUNICIPALITY
I56: =+'KEY INPUTS'!D10 -> BERGEN
I57: COUNTY
B59: Sheet 2

Sheet 3-Trial Bal-Current Fund
B2: NOTE THAT A TRIAL BALANCE IS REQUIRED AND NOT A BALANCE SHEET
B4: POST CLOSING
B5: TRIAL BALANCE - CURRENT FUND
B6: ='KEY INPUTS'!D44 -> AS AT DECEMBER 31, 2020
B8: Cash Liabilities Must Be Subtotaled and Subtotal Must Be Marked With "C" -- Taxes Receivable Must Be Subtotaled
B9: Title of Account | G9: Debit | H9: Credit
C11: CASH | G11: =+'9-Cash Reconciliation'!I6 -> 11191583.24
C12: INVESTMENTS
C13: DUE FROM/TO STATE - VETERANS AND SENIOR CITIZENS | G13: ='23-SCVet Deductions'!J21 -> 36218.37 | H13: ='23-SCVet Deductions'!I22 -> 0
B16: Receivables with Full Reserves:
C17: TAXES RECEIVABLE:
C18: PRIOR | F18: =+'26-Delinquent Taxes and Liens'!I29-'3-Trial Bal-Current Fund'!F19 -> 34477.88
C19: CURRENT | F19: =+'22-CY Levy'!N35 -> 1982224.11
D20: SUBTOTAL | G20: =+F19+F18 -> 2016701.99
C21: TAX TITLE LIENS RECEIVABLE | G21: =+'26-Delinquent Taxes and Liens'!I30 -> 90591.39
C22: PROPERTY ACQUIRED FOR TAXES | G22: =+'27-Foreclosed Property'!L20 -> 3844775
C23: CONTRACT SALES RECEIVABLE | G23: ='27-Foreclosed Property'!L30 -> 0
C24: MORTGAGE SALES RECEIVABLE | G24: ='27-Foreclosed Property'!L40 -> 0
C25: Revenue Accounts Receivable | G25: 164628.85
C26: Due From Escrow Trust | G26: 44.02
C27: Due From Other Trust | G27: 21717.42
C28: Due From Bergen County CDA Trust | G28: 3750
C37: DEFERRED CHARGES:
D38: EMERGENCY | G38: 100000
D39: SPECIAL EMERGENCY (40A:4-55) | G39: =+'29-Special Emergency'!L$24+'30-Special Emergency'!L24 -> 1394575
D40: DEFICIT | G40: ='19-Results of Op-Cur Fnd'!I43 -> 0
E46: page totals | G46: =SUM(G10:G45) -> 18864585.28 | H46: =SUM(H10:H45) -> 0
B47: (Do not crowd - add additional sheets)
B48: Sheet 3

Sheet 3a-Trial Bal-Current Fund
B2: NOTE THAT A TRIAL BALANCE IS REQUIRED AND NOT A BALANCE SHEET
B4: POST CLOSING
B5: TRIAL BALANCE - CURRENT FUND (CONT'D)
B6: ='KEY INPUTS'!D44 -> AS AT DECEMBER 31, 2020
B8: Cash Liabilities Must Be Subtotaled and Subtotal Must Be Marked With "C" -- Taxes Receivable Must Be Subtotaled
B9: Title of Account | G9: Debit | H9: Credit
B10: TOTALS FROM PAGE 3 | G10: =+'3-Trial Bal-Current Fund'!G46 -> 18864585.28 | H10: =+'3-Trial Bal-Current Fund'!H46 -> 0
B11: APPROPRIATION RESERVES | H11: ='18-Budget Appropriations'!I16 -> 1980433.51
B12: ENCUMBRANCES PAYABLE | H12: 778720.62
B13: CONTRACTS PAYABLE
B14: TAX OVERPAYMENTS | H14: 245487.6
B15: PREPAID TAXES | H15: 585183.69
B16: Accounts Payable | H16: 21936.91
B18: DUE TO STATE:
B19: MARRIAGE LICENCE | H19: 2859
B20: DCA TRAINING FEES
B22: LOCAL SCHOOL TAX PAYABLE | H22: =MAX(0,'13-Other Taxes'!G16) -> 70866.5
B23: REGIONAL SCHOOL TAX PAYABLE | H23: =MAX(0,'14-Other Taxes'!G17) -> 0
B24: REGIONAL H.S.TAX PAYABLE | H24: =MAX(0,'14-Other Taxes'!G38) -> 0
B25: COUNTY TAX PAYABLE | H25: =MAX(0,'15-Other Taxes'!I18) -> 0
B26: DUE COUNTY - ADDED & OMMITTED | H26: =MAX(0,'15-Other Taxes'!I19) -> 81700.12
B27: SPECIAL DISTRICT TAX PAYABLE | H27: =MAX(0,'15-Other Taxes'!I38) -> 0
B28: RESERVE FOR TAX APPEAL | H28: =MAX(0,'24-Reserves for Tax Appeals'!I17) -> 213725.73
B30: Due to Flexible Spending Trust | H30: 640
B31: Due to Federal and State Grant Fund | H31: 340040.74
B32: Due to Municipal Alliance Trust Fund | H32: 16.4
B33: Due to Bullet Proof Vest Trust Fund | H33: 33
B34: Due to POAA Trust Fund | H34: 52
B35: Due to General Capital Fund | H35: 338815.85
B38: Reserve for Various Reserves | H38: 1054322.23
B39: Reserve for Tax Sale Premiums | H39: 230300
B40: Special Emergency Note | H40: 250000
F44: PAGE TOTAL | G44: =SUM(G10:G43) -> 18864585.28 | H44: =SUM(H10:H43) -> 6195133.9
B47: (Do not crowd - add additional sheets)
B48: Sheet 3a

Sheet 3a.1-Trial Bal-Current Fund
B2: NOTE THAT A TRIAL BALANCE IS REQUIRED AND NOT A BALANCE SHEET
B4: POST CLOSING
B5: TRIAL BALANCE - CURRENT FUND (CONT'D)
B6: ='KEY INPUTS'!D44 -> AS AT DECEMBER 31, 2020
B8: Cash Liabilities Must Be Subtotaled and Subtotal Must Be Marked With "C" -- Taxes Receivable Must Be Subtotaled
B9: Title of Account | G9: Debit | H9: Credit
B10: TOTALS FROM PAGE 3a | G10: ='3a-Trial Bal-Current Fund'!G44 -> 18864585.28 | H10: ='3a-Trial Bal-Current Fund'!H44 -> 6195133.9
F25: SUBTOTAL | G25: =SUM(G10:G24) -> 18864585.28 | H25: =SUM(H10:H24) -> 6195133.9 | I25: "C"
C39: RESERVE FOR RECEIVABLES | H39: =SUM('3-Trial Bal-Current Fund'!G17:G35) -> 6142208.67
C40: DEFERRED SCHOOL TAX | G40: =+'13-Other Taxes'!G18+'14-Other Taxes'!G40+'14-Other Taxes'!G19 -> 0
C41: DEFERRED SCHOOL TAX PAYABLE | H41: =+G40 -> 0
C42: FUND BALANCE | H42: =+'21-Current Fund Surplus'!K14 -> 6527242.71
F44: TOTALS | G44: =SUM(G25:G43) -> 18864585.28 | H44: =SUM(H25:H42) -> 18864585.28
B47: (Do not crowd - add additional sheets)
B48: Sheet 3a.1

Sheet 4-Trial Bal-Pub Assist Fnd
B3: POST CLOSING
B4: TRIAL BALANCE - PUBLIC ASSISTANCE FUND
B5: ACCOUNTS #1 AND #2 *
B6: ='KEY INPUTS'!D44 -> AS AT DECEMBER 31, 2020
B8: Title of Account | G8: Debit | H8: Credit
B9: Cash | G9: 5.91
B11: Reserve for Public Assistance | H11: 5.91
D40: TOTALS | G40: =SUM(G9:G39) -> 5.91 | H40: =SUM(H9:H39) -> 5.91
B41: (Do not crowd - add additional sheets)
B42: *To be prepared in compliance with Department of Human Services Municipal Audit Guide,
C43: Public Welfare, General Assistance Program.
B46: Sheet 4

Sheet 5-Trial Bal-Grants
B3: POST CLOSING TRIAL BALANCE
B4: FEDERAL AND STATE GRANTS
B6: ='KEY INPUTS'!D44 -> AS AT DECEMBER 31, 2020
B8: Title of Account | G8: Debit | H8: Credit
C10: CASH | G10: =+'9-Cash Reconciliation'!I7 -> 0
C11: GRANTS RECEIVABLE | G11: ='10 Totals Grants Receivable'!K27 -> 81715.62
C21: DUE FROM/TO CURRENT FUND | G21: 340040.74
C24: ENCUMBRANCES PAYABLE
C33: APPROPRIATED RESERVES | H33: =+'11- Totals Grants Approp Rsrv'!L27 -> 343869.72
C34: UNAPPROPRIATED RESERVES | H34: =+'12 Total-Grants Unappropriated'!K27 -> 77886.64
D36: TOTALS | G36: =SUM(G9:G35) -> 421756.36 | H36: =SUM(H9:H35) -> 421756.36
B45: (Do not crowd - add additional sheets)
B48: Sheet 5

Sheet 6-Trial Bal-Trust Fnds
B3: POST CLOSING
B4: TRIAL BALANCE -- TRUST FUNDS
B5: (Assessment Section Must Be Separately Stated)
B6: ='KEY INPUTS'!D44 -> AS AT DECEMBER 31, 2020
B8: Title of Account | G8: Debit | H8: Credit
B10: ANIMAL CONTROL TRUST FUND
C11: CASH | G11: =+'9-Cash Reconciliation'!I8 -> 101
C12: DUE TO -
C13: DUE TO STATE OF NJ | H13: 4.8
C14: RESERVE FOR ANIMAL CONTROL TRUST FUND | H14: 96.2
C17: FUND TOTALS | G17: =SUM(G9:G16) -> 101 | H17: =SUM(H9:H16) -> 101
B19: ASSESSMENT TRUST FUND
C20: CASH | G20: =+'9-Cash Reconciliation'!I9 -> 0
C21: DUE TO -
C24: RESERVE FOR:
C28: FUND TOTALS | G28: =SUM(G20:G27) -> 0 | H28: =SUM(H20:H27) -> 0
B30: MUNICIPAL OPEN SPACE TRUST FUND
C31: CASH | G31: =+'9-Cash Reconciliation'!I10 -> 0
C38: FUND TOTALS | G38: =SUM(G31:G37) -> 0 | H38: =SUM(H31:H37) -> 0
B40: LOSAP TRUST FUND
C41: CASH | G41: =+'9-Cash Reconciliation'!I11 -> 0
C45: FUND TOTALS | G45: =SUM(G41:G44) -> 0 | H45: =SUM(H41:H44) -> 0
B46: (Do not crowd - add additional sheets)
B47: Sheet 6

Sheet 6.1-Trial Bal-Trust Fnds
B3: POST CLOSING
B4: TRIAL BALANCE -- TRUST FUNDS (CONT'D)
B5: (Assessment Section Must Be Separately Stated)
B6: ='KEY INPUTS'!D44 -> AS AT DECEMBER 31, 2020
B8: Title of Account | G8: Debit | H8: Credit
B10: CDBG TRUST FUND
C11: CASH | G11: =+'9-Cash Reconciliation'!I12 -> 0
C12: DUE TO -
C20: FUND TOTALS | G20: =SUM(G9:G19) -> 0 | H20: =SUM(H9:H19) -> 0
B22: ARTS AND CULTURAL TRUST FUND
C23: CASH | G23: ='9-Cash Reconciliation'!I14 -> 0
C30: FUND TOTALS | G30: =SUM(G23:G29) -> 0 | H30: =SUM(H23:H29) -> 0
B32: OTHER TRUST FUNDS
C33: CASH | G33: ='9-Cash Reconciliation'!I13 -> 997833.35
C35: Due from Current Fund - Bullet Proof Vest | G35: 33
C36: Due from Current Fund - POAA | G36: 52
C37: Due from Current Fund - Flexible Spending | G37: 640
C38: Due from Current Fund - Municipal Alliance | G38: 16.4
C39: Due to Current Fund - Escrow Trust | H39: 44.02
C40: Due to Current Fund - Other Trust | H40: 21717.42
C41: Due to Current Fund - Bergen County CDA | H41: 3750
C42: Due to Capital Fund - Bergen County CDA | H42: 32214
B44: OTHER TRUST FUNDS PAGE TOTAL | G44: =SUM(G33:G43) -> 998574.75 | H44: =SUM(H33:H43) -> 57725.44
B45: (Do not crowd - add additional sheets)
B48: Sheet 6.1

Sheet 6.2-Trial Bal-Trust Fnds
B3: POST CLOSING
B4: TRIAL BALANCE -- TRUST FUNDS (CONT'D)
B5: (Assessment Section Must Be Separately Stated)
B6: ='KEY INPUTS'!D44 -> AS AT DECEMBER 31, 2020
B8: Title of Account | G8: Debit | H8: Credit
B9: Previous Totals | G9: =+'6.1-Trial Bal-Trust Fnds'!G44 -> 998574.75 | H9: =+'6.1-Trial Bal-Trust Fnds'!H44 -> 57725.44
B10: OTHER TRUST FUNDS (continued)
B11: RESERVE FOR:
B12: CEMETERY BEQUEST | H12: 16939.74
B13: BULLET PROOF VEST | H13: 17061.51
B14: RECYCLING EXPENDITURES (Other Trust) | H14: 18999.83
B15: RECYCLING EXPENDITURES | H15: 20519.29
B16: DEDICATED FIRE PENALTIES | H16: 4035.67
B17: POAA | H17: 12997
B18: CULTURAL/HISTORICAL | H18: 1152.04
B19: FERRY PERFORMANCE SECURITY | H19: 195447.2
B20: POLICE CONFISCATED FUND | H20: 3109.31
B21: RCA | H21: 332196.82
B22: COAH | H22: 63073.43
B23: BERGEN COUNTY CDA TRUST | H23: 102.08
B24: MUNICIPAL ALLIANCE TRUST | H24: 8372.69
B25: FLEXIBLE SPENDING TRUST | H25: 36151.78
B26: SHADE TREE TRUST | H26: 7809.5
B27: ESCROW DEPOSITS | H27: 202881.42
B44: TOTALS | G44: =SUM(G9:G43) -> 998574.75 | H44: =SUM(H9:H43) -> 998574.75
B45: (Do not crowd - add additional sheets)
B48: Sheet 6.2

Sheet 6.3-Trial Bal-Trust Fnds (hidden)
B3: POST CLOSING
B4: TRIAL BALANCE -- TRUST FUNDS (CONT'D)
B5: (Assessment Section Must Be Separately Stated)
B6: ='KEY INPUTS'!D44 -> AS AT DECEMBER 31, 2020
B8: Title of Account | G8: Debit | H8: Credit
B9: Previous Totals | G9: =+'6.2-Trial Bal-Trust Fnds'!G44 -> 998574.75 | H9: =+'6.2-Trial Bal-Trust Fnds'!H44 -> 998574.75
B10: OTHER TRUST FUNDS (continued)
B44: TOTALS | G44: =SUM(G9:G43) -> 998574.75 | H44: =SUM(H9:H43) -> 998574.75
B45: (Do not crowd - add additional sheets)
B48: Sheet 6.3

Sheet 6.4-Trial Bal-Trust Fnds (hidden)
B3: POST CLOSING
B4: TRIAL BALANCE -- TRUST FUNDS (CONT'D)
B5: (Assessment Section Must Be Separately Stated)
B6: ='KEY INPUTS'!D44 -> AS AT DECEMBER 31, 2020
B8: Title of Account | G8: Debit | H8: Credit
B9: Previous Totals | G9: =+'6.3-Trial Bal-Trust Fnds'!G44 -> 998574.75 | H9: =+'6.3-Trial Bal-Trust Fnds'!H44 -> 998574.75
B10: OTHER TRUST FUNDS (continued)
B44: TOTALS | G44: =SUM(G9:G43) -> 998574.75 | H44: =SUM(H9:H43) -> 998574.75
B45: (Do not crowd - add additional sheets)
B48: Sheet 6.4

Sheet 6.TOTAL-Trial Bal-Trust Fnds
B3: POST CLOSING
B4: TRIAL BALANCE -- TRUST FUNDS (CONT'D)
B5: (Assessment Section Must Be Separately Stated)
B6: ='KEY INPUTS'!D44 -> AS AT DECEMBER 31, 2020
B8: Title of Account | G8: Debit | H8: Credit
B9: Previous Totals | G9: =+'6.4-Trial Bal-Trust Fnds'!G44 -> 998574.75 | H9: =+'6.4-Trial Bal-Trust Fnds'!H44 -> 998574.75
B10: OTHER TRUST FUNDS (continued)
B44: TOTALS | G44: =SUM(G9:G43) -> 998574.75 | H44: =SUM(H9:H43) -> 998574.75
B45: (Do not crowd - add additional sheets)
B48: Sheet 6. TOTALS
I55: =+G44-H44 -> 0

Sheet 6b-Trust Fund Reserves
B2: SCHEDULE OF TRUST FUND RESERVES
G5: Amount
G6: ='KEY INPUTS'!D45 -> Dec. 31, 2019 | M6: Balance
G7: per Audit | M7: as at
B8: Purpose | G8: Report | I8: Receipts | K8: Disbursements | M8: ='KEY INPUTS'!D46 -> Dec. 31, 2020
B10: Escrow | G10: 168400.03 | I10: 112394.94 | K10: 77913.55 | M10: =+G10+I10-K10 -> 202881.42
B11: Cementary Bequest | G11: 16937.25 | I11: 2.49 | K11: 0 | M11: 16939.74
B12: Bullet Proof Vests | G12: 13603.15 | I12: 3458.36 | K12: 0 | M12: 17061.51
B13: Recycling (Other Trust) | G13: 18999.83 | I13: 0 | K13: 0 | M13: 18999.83
B14: Recycling | G14: 16196.63 | I14: 9263.32 | K14: 4940.66 | M14: 20519.29
B15: Fire Prevention | G15: 2259.15 | I15: 1776.52 | K15: 0 | M15: 4035.67
B16: Cultural/Historical Society | G16: 1152.04 | I16: 0 | K16: 0 | M16: =+G16+I16-K16 -> 1152.04
B17: Ferry Performance Security | G17: 195447.2 | I17: 0 | K17: 0 | M17: 195447.2
B18: Police Confiscated Fund | G18: 3109.31 | I18: 0 | K18: 0 | M18: 3109.31
B19: RCA | G19: 332196.82 | I19: 0 | K19: 0 | M19: 332196.82
B20: COAH | G20: 69342.74 | I20: 153.69 | K20: 6423 | M20: 63073.43
B21: Bergen County CDA Trust | G21: 102.08 | I21: 0 | K21: 0 | M21: 102.08
B22: Municipal Alliance Trust | G22: 8291.19 | I22: 81.5 | K22: 0 | M22: 8372.69
B23: Flexible Spending Trust | G23: 23901.61 | I23: 28386.86 | K23: 16136.69 | M23: 36151.78
B24: Shade Tree Trust | G24: 4504.5 | I24: 3305 | K24: 0 | M24: 7809.5
B25: POAA | G25: 12835 | I25: 162 | K25: 0 | M25: 12997
M26: 0
M27: 0
M28: 0
M29: 0
M30: 0
M31: 0
M32: 0
M33: 0
M34: 0
M35: 0
M36: 0
M37: 0
M38: 0
M39: 0
M40: 0
M41: 0
M42: 0
M43: 0
M44: 0
M45: 0
M46: 0
M47: 0
D48: PAGE TOTAL | F48: $ | G48: =SUM(G10:G47) -> 887278.53 | H48: $ | I48: =SUM(I10:I47) -> 158984.68 | J48: $ | K48: =SUM(K10:K47) -> 105413.9 | L48: $ | M48: =SUM(M10:M47) -> 940849.31
B50: Sheet 6b

Sheet 6b.1-Trust Fund Reserves (hidden)
B2: SCHEDULE OF TRUST FUND RESERVES (CONT'D)
G5: Amount
G6: ='KEY INPUTS'!D45 -> Dec. 31, 2019 | M6: Balance
G7: per Audit | M7: as at
B8: Purpose | G8: Report | I8: Receipts | K8: Disbursements | M8: ='KEY INPUTS'!D46 -> Dec. 31, 2020
B10: PREVIOUS PAGE TOTAL | G10: =+'6b-Trust Fund Reserves'!G48 -> 887278.53 | I10: =+'6b-Trust Fund Reserves'!I48 -> 158984.68 | K10: =+'6b-Trust Fund Reserves'!K48 -> 105413.9 | M10: =+'6b-Trust Fund Reserves'!M48 -> 940849.31
M11: =+G11+I11-K11 -> 0
M12: 0
M13: 0
M14: 0
M15: 0
M16: 0
M17: 0
M18: 0
M19: 0
M20: 0
M21: 0
M22: 0
M23: 0
M24: 0
M25: 0
M26: 0
M27: 0
M28: 0
M29: 0
M30: 0
M31: 0
M32: 0
M33: 0
M34: 0
M35: 0
M36: 0
M37: 0
M38: 0
M39: 0
M40: 0
M41: 0
M42: 0
M43: 0
M44: 0
M45: 0
M46: 0
M47: 0
D48: PAGE TOTAL | F48: $ | G48: =SUM(G10:G47) -> 887278.53 | H48: $ | I48: =SUM(I10:I47) -> 158984.68 | J48: $ | K48: =SUM(K10:K47) -> 105413.9 | L48: $ | M48: =SUM(M10:M47) -> 940849.31
B50: Sheet 6b.1

Sheet 6b.2-Trust Fund Reserves (hidden)
B2: SCHEDULE OF TRUST FUND RESERVES (CONT'D)
G5: Amount
G6: ='KEY INPUTS'!D45 -> Dec. 31, 2019 | M6: Balance
G7: per Audit | M7: as at
B8: Purpose | G8: Report | I8: Receipts | K8: Disbursements | M8: ='KEY INPUTS'!D46 -> Dec. 31, 2020
B10: PREVIOUS PAGE TOTAL | G10: =+'6b.1-Trust Fund Reserves'!G48 -> 887278.53 | I10: =+'6b.1-Trust Fund Reserves'!I48 -> 158984.68 | K10: =+'6b.1-Trust Fund Reserves'!K48 -> 105413.9 | M10: =+'6b.1-Trust Fund Reserves'!M48 -> 940849.31
M11: =+G11+I11-K11 -> 0
M12: 0
M13: 0
M14: 0
M15: 0
M16: 0
M17: 0
M18: 0
M19: 0
M20: 0
M21: 0
M22: 0
M23: 0
M24: 0
M25: 0
M26: 0
M27: 0
M28: 0
M29: 0
M30: 0
M31: 0
M32: 0
M33: 0
M34: 0
M35: 0
M36: 0
M37: 0
M38: 0
M39: 0
M40: 0
M41: 0
M42: 0
M43: 0
M44: 0
M45: 0
M46: 0
M47: 0
D48: PAGE TOTAL | F48: $ | G48: =SUM(G10:G47) -> 887278.53 | H48: $ | I48: =SUM(I10:I47) -> 158984.68 | J48: $ | K48: =SUM(K10:K47) -> 105413.9 | L48: $ | M48: =SUM(M10:M47) -> 940849.31
B50: Sheet 6b.2

Sheet 6b.3-Trust Fund Reserves (hidden)
B2: SCHEDULE OF TRUST FUND RESERVES (CONT'D)
G5: Amount
G6: ='KEY INPUTS'!D45 -> Dec. 31, 2019 | M6: Balance
G7: per Audit | M7: as at
B8: Purpose | G8: Report | I8: Receipts | K8: Disbursements | M8: ='KEY INPUTS'!D46 -> Dec. 31, 2020
B10: PREVIOUS PAGE TOTAL | G10: =+'6b.2-Trust Fund Reserves'!G48 -> 887278.53 | I10: =+'6b.2-Trust Fund Reserves'!I48 -> 158984.68 | K10: =+'6b.2-Trust Fund Reserves'!K48 -> 105413.9 | M10: =+'6b.2-Trust Fund Reserves'!M48 -> 940849.31
M11: =+G11+I11-K11 -> 0
M12: 0
M13: 0
M14: 0
M15: 0
M16: 0
M17: 0
M18: 0
M19: 0
M20: 0
M21: 0
M22: 0
M23: 0
M24: 0
M25: 0
M26: 0
M27: 0
M28: 0
M29: 0
M30: 0
M31: 0
M32: 0
M33: 0
M34: 0
M35: 0
M36: 0
M37: 0
M38: 0
M39: 0
M40: 0
M41: 0
M42: 0
M43: 0
M44: 0
M45: 0
M46: 0
M47: 0
D48: PAGE TOTAL | F48: $ | G48: =SUM(G10:G47) -> 887278.53 | H48: $ | I48: =SUM(I10:I47) -> 158984.68 | J48: $ | K48: =SUM(K10:K47) -> 105413.9 | L48: $ | M48: =SUM(M10:M47) -> 940849.31
B50: Sheet 6b.3

Sheet 6b-Total Trust Fund Reserves
B2: SCHEDULE OF TRUST FUND RESERVES (CONT'D)
G5: Amount
G6: ='KEY INPUTS'!D45 -> Dec. 31, 2019 | M6: Balance
G7: per Audit | M7: as at
B8: Purpose | G8: Report | I8: Receipts | K8: Disbursements | M8: ='KEY INPUTS'!D46 -> Dec. 31, 2020
B10: PREVIOUS PAGE TOTAL | G10: =+'6b.3-Trust Fund Reserves'!G48 -> 887278.53 | I10: =+'6b.3-Trust Fund Reserves'!I48 -> 158984.68 | K10: =+'6b.3-Trust Fund Reserves'!K48 -> 105413.9 | M10: =+'6b.3-Trust Fund Reserves'!M48 -> 940849.31
M11: =+G11+I11-K11 -> 0
M12: 0
M13: 0
M14: 0
M15: 0
M16: 0
M17: 0
M18: 0
M19: 0
M20: 0
M21: 0
M22: 0
M23: 0
M24: 0
M25: 0
M26: 0
M27: 0
M28: 0
M29: 0
M30: 0
M31: 0
M32: 0
M33: 0
M34: 0
M35: 0
M36: 0
M37: 0
M38: 0
M39: 0
M40: 0
M41: 0
M42: 0
M43: 0
M44: 0
M45: 0
M46: 0
M47: 0
D48: PAGE TOTAL | F48: $ | G48: =SUM(G10:G47) -> 887278.53 | H48: $ | I48: =SUM(I10:I47) -> 158984.68 | J48: $ | K48: =SUM(K10:K47) -> 105413.9 | L48: $ | M48: =SUM(M10:M47) -> 940849.31
B50: Sheet 6b TOTAL

Sheet 7-Trust Asm Cash & Investments
B2: ANALYSIS OF TRUST ASSESSMENT CASH AND INVESTMENTS PLEDGED TO
B3: LIABILITIES AND SURPLUS
E4: Audit
C5: Title of Liability to which Cash | E5: Balance | F5: RECEIPTS | L5: Balance
C6: and Investments are Pledged | E6: ='KEY INPUTS'!D45 -> Dec. 31, 2019 | F6: Assessments | G6: Current | K6: Disbursements | L6: ='KEY INPUTS'!D46 -> Dec. 31, 2020
F7: and Liens | G7: Budget
B8: Assessment Serial Bond Issues: | E8: xxxxxxxxx | F8: xxxxxxxxx | G8: xxxxxxxxx | H8: xxxxxxxxx | I8: xxxxxxxxx | J8: xxxxxxxxx | K8: xxxxxxxxx | L8: xxxxxxxxx
L9: =+E9+F9+G9+H9+I9-J9-K9 -> 0
L10: =+E10+F10+G10+H10+I10-J10-K10 -> 0
L11: 0
L12: 0
L13: 0
B14: Assessment Bond Anticipation Note Issues: | E14: xxxxxxxxx | F14: xxxxxxxxx | G14: xxxxxxxxx | H14: xxxxxxxxx | I14: xxxxxxxxx | J14: xxxxxxxxx | K14: xxxxxxxxx | L14: xxxxxxxxx
A15: Sheet 7 | L15: =+E15+F15+G15+H15+I15-J15-K15 -> 0
L16: =+E16+F16+G16+H16+I16-J16-K16 -> 0
L17: 0
L18: 0
B19: Other Liabilities | L19: 0
B20: Trust Surplus | L20: 0
B21: *Less Assets "Unfinanced" | E21: xxxxxxxxx | F21: xxxxxxxxx | G21: xxxxxxxxx | H21: xxxxxxxxx | I21: xxxxxxxxx | J21: xxxxxxxxx | K21: xxxxxxxxx | L21: xxxxxxxxx
L22: 0
L23: 0
L24: 0
L25: 0
E26: =SUM(E9:E25) -> 0 | F26: =SUM(F9:F25) -> 0 | G26: 0 | H26: 0 | I26: 0 | J26: 0 | K26: 0 | L26: =SUM(L9:L25) -> 0
B27: *Show as red figure

Sheet 8-Trial Bal-Gen Cap Fund
B3: POST CLOSING
B4: TRIAL BALANCE -- GENERAL CAPITAL FUND
B6: ='KEY INPUTS'!D44 -> AS AT DECEMBER 31, 2020
B8: Title of Account | G8: Debit | H8: Credit
B9: Est. Proceeds Bonds and Notes Authorized | G9: =+H10 -> 682362.6 | H9: xxxxxxxxx
B10: Bonds and Notes Authorized but Not Issued | G10: xxxxxxxxx | H10: 682362.6
C12: CASH | G12: =+'9-Cash Reconciliation'!I15 -> 6960459.86
C14: DUE FROM - Current Fund | G14: 338815.85
C15: DUE FROM - Bergen County CDA Trust Fund | G15: 32214
C16: FEDERAL AND STATE GRANTS RECEIVABLE | G16: 426740.8
C17: DEFERRED CHARGES TO FUTURE TAXATION:
D18: FUNDED | G18: 40850049.76
D19: UNFUNDED | G19: 4342362.6
C21: DUE TO -
C23: Expenditures without Appropriations | G23: 2827
C44: PAGE TOTALS | G44: =SUM(G9:G43) -> 53635832.47 | H44: =SUM(H9:H43) -> 682362.6
B45: (Do not crowd - add additional sheets)
B48: Sheet 8

Sheet 8.1-Trial Bal-Gen Cap Fund
B3: POST CLOSING
B4: TRIAL BALANCE -- GENERAL CAPITAL FUND
B6: ='KEY INPUTS'!D44 -> AS AT DECEMBER 31, 2020
B8: Title of Account | G8: Debit | H8: Credit
B9: PREVIOUS PAGE TOTALS | G9: =+'8-Trial Bal-Gen Cap Fund'!G44 -> 53635832.47 | H9: =+'8-Trial Bal-Gen Cap Fund'!H44 -> 682362.6
C21: BOND ANTICIPATION NOTES PAYABLE | H21: =+'33 Totals-Note Debt Service'!G23 -> 3660000
C22: GENERAL SERIAL BONDS | H22: ='31-Capital Bond Schedule'!G12 -> 38480000
C23: TYPE 1 SCHOOL BONDS | H23: ='32-Bond Schedule'!G11+'32-Bond Schedule'!G22 -> 0
C24: LOANS PAYABLE | H24: =+'31A-Loan Schedule'!G12+'31A-Loan Schedule'!G23+'31A.1-Loan Schedule'!G12+'31A.1-Loan Schedule'!G23+'31A.2-Loan Schedule'!G12+'31A.2-Loan Schedule'!G23 -> 2308049.76
C25: CAPITAL LEASES PAYABLE | H25: ='34a-Cap Lease Program Oblg'!G23 -> 62000
C26: Due to Water Utility Operating Fund | H26: 31057.34
C27: Unappropriated State Grant | H27: 79408
C28: RESERVE FOR CAPITAL PROJECTS
C29: Reserve for Payment of Debt | H29: 1388910
C30: Reserve for Green Acres | H30: 17315.47
C31: Reserve for Grants Receivable | H31: 239012.04
C32: IMPROVEMENT AUTHORIZATIONS:
D33: FUNDED | H33: =+'35 Totals- Cap Fund Imprv Auth'!K28 -> 1407864.42
D34: UNFUNDED | H34: =+'35 Totals- Cap Fund Imprv Auth'!L28 -> 2552378.42
C36: ENCUMBRANCES PAYABLE
C38: RESERVE TO PAY BANS
C39: CAPITAL IMPROVEMENT FUND | H39: =+'36- Capital Improvement Fund'!I31 -> 1866965.55
C40: DOWN PAYMENTS ON IMPROVEMENTS | H40: ='37- Cap Fund Down Pymts'!I15 -> 0
C43: CAPITAL FUND BALANCE | H43: =+'38- Capital Surplus'!I17 -> 860508.87
G44: =SUM(G9:G43) -> 53635832.47 | H44: =SUM(H9:H43) -> 53635832.47
B45: (Do not crowd - add additional sheets)
B48: Sheet 8.1

Sheet 9-Cash Reconciliation
B3: ="CASH RECONCILIATION DECEMBER 31, "&TEXT('KEY INPUTS'!D34,"0") -> CASH RECONCILIATION DECEMBER 31, 2020
F4: Cash | H4: Less Checks | I4: Cash Book
F5: *On Hand | G5: On Deposit | H5: Outstanding | I5: Balance
B6: Current | F6: 450 | G6: 11862421.67 | H6: 671288.43 | I6: =+F6+G6-H6 -> 11191583.24
B7: Grant Fund | I7: =+F7+G7-H7 -> 0
B8: Trust - Animal Control | G8: 101 | I8: 101
B9: Trust - Assessment | I9: 0
B10: Trust - Municipal Open Space | I10: 0
B11: Trust - LOSAP | I11: 0
B12: Trust - CDBG | I12: 0
B13: Trust - Other | G13: 999058.35 | H13: 1225 | I13: 997833.35
B14: Trust - Arts and Cultural | I14: =+F14+G14-H14 -> 0
B15: General Capital | G15: 7006317.3 | H15: 45857.44 | I15: =+F15+G15-H15 -> 6960459.86
B16: Public Assistance | G16: 5.91 | I16: 5.91
B17: UTILITIES: | I17: 0 | K17: ADD YOUR UTILITIES AS NEEDED
B18: Marina Operating | G18: 760968.47 | H18: 10324.51 | I18: 750643.96
B19: Marina Capital | G19: 37372.27 | I19: 37372.27
I20: 0
I21: 0
I22: 0
I23: 0
I24: 0
I25: 0
I26: 0
I27: 0
I28: 0
I29: 0
I30: 0
I31: 0
I32: 0
I33: 0
I34: 0
E35: Total | F35: =SUM(F6:F34) -> 450 | G35: =SUM(G6:G34) -> 20666244.97 | H35: =SUM(H6:H34) -> 728695.38 | I35: =SUM(I6:I34) -> 19937999.59
B36: * Include Deposits In Transit
B37: ** Be sure to include a Public Assistance Account reconciliation and trial balance if the municipality maintains such a bank account.
B39: REQUIRED CERTIFICATION
C40: I hereby certify that all amounts shown in the "Cash on Deposit" column on Sheet 9 and 9(a) have been verified with the
B41: ="applicable bank statements, certificates, agreements or passbooks at December 31, "&TEXT('KEY INPUTS'!D34,"0")&"." -> applicable bank statements, certificates, agreements or passbooks at December 31, 2020.
C42: I also certify that all amounts, if any, shown for Investments in Savings and Loan Associations on any trial balance have
B43: ="been verified with the applicable passbook at December 31, "&TEXT('KEY INPUTS'!D34,"0")&"." -> been verified with the applicable passbook at December 31, 2020.
C44: All "Certificates of Deposits", Repurchase Agreements" and other investments must be reported as cash and included in
B45: this certification.
C46: (THIS MUST BE SIGNED BY THE REGISTERED MUNICIPAL ACCOUNTANT (STATUTORY AUDITOR) OR
B47: CHIEF FINANCIAL OFFICER) depending on who prepared this Annual Financial Statement as certified to on Sheet 1 or 1(a).
B50: Signature: | D50: SDW@w-cpa.com | G50: Title: | H50: Registered Municipal Accountant
B52: Sheet 9

Sheet 9a-Cash Reconciliation
B2: =" CASH RECONCILIATION DECEMBER 31, "&TEXT('KEY INPUTS'!D34,"0")&" (cont'd) " -> CASH RECONCILIATION DECEMBER 31, 2020 (cont'd)
B4: LIST BANKS AND AMOUNTS SUPPORTING "CASH ON DEPOSIT"
B6: BANK OF AMERICA
B7: CURRENT - A/C 10049 | F7: 5436281.59
B8: EDGEWATER CEMETERY - A/C 169501019 | F8: 16939.74
B9: BULLET PROOF VEST FUND - A/C 4703008948 | F9: 17028.51
B10: ESCROW TRUST - A/C 999020943 | F10: 202925.44
B11: PUBLIC ASSISTANCE TRUST FUND II - A/C 469000414 | F11: 2.04
B16: TD BANK
B17: BERGEN COUNTY CDA TRUST - A/C 425-2307991 | F17: 36066.08
B18: CURRENT - A/C 1023306 | F18: 6350909.24
B19: MARINA OPERATING - A/C 64-4000112 | F19: 760968.47
B20: MARINA CAPITAL - A/C 426-6010746 | F20: 37372.27
B21: FLEXIBLE SPENDING TRUST - A/C 426-6012172 | F21: 35511.78
B22: MUNICIPAL ALLIANCE TRUST - A/C 426-2350584 | F22: 8356.29
B23: SHADE TREE TRUST - A/C 428-7452638 | F23: 7809.5
B24: DOG LICENSE FUND - A/C 430-2448025 | F24: 101
B25: POAA TRUST FUND - A/C 430-8909310 | F25: 13260
B27: PNC BANK
B28: DEVELOPMENT FEES/COAH - A/C 80-4379-8151 | F28: 64298.43
B29: CAPITAL FUND - A/C 81-0024-8093 | F29: 2996451.26
B31: MARINERS BANK
B32: GREEN ACRES TRUST - A/C 4010189613 | F32: 1063544.68
B33: DEDICATED FIRE PENALTIES - A/C 1400003008 | F33: 4035.67
B34: PUBLIC ASSISTANCE TRUST FUND I - A/C 1400000756 | F34: 3.87
B35: OTHER TRUST FUND - A/C 4010172239 | F35: 572307.62
B36: RECYCLING TRUST FUND - A/C 4010235226 | F36: 20519.29
B37: GENERAL CAPITAL FUND - A/C 4010221580 | F37: 2946321.36
B39: ConnectOne Bank:
B40: Current Fund-A/C 0802001785 | F40: 75230.84
C43: PAGE TOTAL | F43: =SUM(F5:F42) -> 20666244.97
B45: Note: Sections N.J.S. 40A:4-61, 40A:4-62 and 40A:4-63 of the Local Budget Law require that
B46: separate bank accounts be maintained for each allocated fund.
B49: Sheet 9a

Sheet 9a.1-Cash Reconciliation (hidden)
B2: ='9a-Cash Reconciliation'!B2:F2 -> CASH RECONCILIATION DECEMBER 31, 2020 (cont'd)
B4: LIST BANKS AND AMOUNTS SUPPORTING "CASH ON DEPOSIT"
B5: PREVIOUS PAGE TOTAL | F5: =+'9a-Cash Reconciliation'!F43 -> 20666244.97
B43: PAGE TOTAL | F43: =SUM(F5:F42) -> 20666244.97
B45: Note: Sections N.J.S. 40A:4-61, 40A:4-62 and 40A:4-63 of the Local Budget Law require that
B46: separate bank accounts be maintained for each allocated fund.
B49: Sheet 9a.1

Sheet 9a.2-Cash Reconciliation (hidden)
B2: ='9a-Cash Reconciliation'!B2:F2 -> CASH RECONCILIATION DECEMBER 31, 2020 (cont'd)
B4: LIST BANKS AND AMOUNTS SUPPORTING "CASH ON DEPOSIT"
B5: PREVIOUS PAGE TOTAL | F5: =+'9a.1-Cash Reconciliation'!F43 -> 20666244.97
B43: PAGE TOTAL | F43: =SUM(F5:F42) -> 20666244.97
B45: Note: Sections N.J.S. 40A:4-61, 40A:4-62 and 40A:4-63 of the Local Budget Law require that
B46: separate bank accounts be maintained for each allocated fund.
B49: Sheet 9a.2

Sheet 9a.3-Cash Reconciliation (hidden)
B2: ='9a-Cash Reconciliation'!B2:F2 -> CASH RECONCILIATION DECEMBER 31, 2020 (cont'd)
B4: LIST BANKS AND AMOUNTS SUPPORTING "CASH ON DEPOSIT"
B5: PREVIOUS PAGE TOTAL | F5: =+'9a.2-Cash Reconciliation'!F43 -> 20666244.97
B43: PAGE TOTAL | F43: =SUM(F5:F42) -> 20666244.97
B45: Note: Sections N.J.S. 40A:4-61, 40A:4-62 and 40A:4-63 of the Local Budget Law require that
B46: separate bank accounts be maintained for each allocated fund.
B49: Sheet 9a.3

Sheet 9a TOTAL-Cash Reconciliation
B2: ='9a-Cash Reconciliation'!B2:F2 -> CASH RECONCILIATION DECEMBER 31, 2020 (cont'd)
B4: LIST BANKS AND AMOUNTS SUPPORTING "CASH ON DEPOSIT"
B5: PREVIOUS PAGE TOTAL | F5: =+'9a.3-Cash Reconciliation'!F43 -> 20666244.97
B43: TOTAL PAGE | F43: =SUM(F5:F42) -> 20666244.97
B45: Note: Sections N.J.S. 40A:4-61, 40A:4-62 and 40A:4-63 of the Local Budget Law require that
B46: separate bank accounts be maintained for each allocated fund.
B49: Sheet 9a TOTAL

Sheet 10-Grants Receivable
B2: MUNICIPALITIES AND COUNTIES
B3: FEDERAL AND STATE GRANTS RECEIVABLE
G4: ='KEY INPUTS'!D34 -> 2020
B5: Grant | F5: Balance | G5: Budget | H5: Received | I5: Other | J5: Cancelled | K5: Balance
F6: ='KEY INPUTS'!D47 -> Jan. 1, 2020 | G6: Revenue | K6: ='KEY INPUTS'!D46 -> Dec. 31, 2020
G7: Realized
B8: Municipal Alliance | F8: 19190 | G8: 9876 | K8: =+F8+G8-H8+I8-J8 -> 29066
B9: Alcohol Education and Rehabilitation | G9: 1285.99 | H9: 1285.99 | K9: =+F9+G9-H9+I9-J9 -> 0
B10: Clean Communities | G10: 22740.27 | H10: 22740.27 | K10: 0
B11: Port Security - 2016 | F11: 35649.62 | K11: 35649.62
B12: Community Development Block Grant | F12: 17000 | K12: 17000
B13: Recycling Tonnage | G13: 37390.11 | H13: 37390.11 | K13: 0
B14: Clean Communities | G14: 20506.87 | H14: 20506.87 | K14: 0
A15: Sheet 10 | B15: FEMA | G15: 27114.52 | H15: 27114.52 | K15: 0
B16: Bergen County Census | G16: 2810 | H16: 2810 | K16: 0
B17: CARES Act | G17: 57247.47 | H17: 57247.47 | K17: 0
K18: 0
K19: 0
K20: 0
K21: 0
K22: 0
K23: 0
K24: 0
K25: 0
K26: 0
C27: PAGE TOTALS | F27: =SUM(F8:F26) -> 71839.62 | G27: 178971.23 | H27: 169095.23 | I27: 0 | J27: 0 | K27: =SUM(K8:K26) -> 81715.62

Sheet 10.1-Grants Receivable
B2: MUNICIPALITIES AND COUNTIES
B3: FEDERAL AND STATE GRANTS RECEIVABLE (cont'd)
G4: ='KEY INPUTS'!D34 -> 2020
B5: Grant | F5: Balance | G5: Budget | H5: Received | I5: Other | J5: Cancelled | K5: Balance
F6: ='10-Grants Receivable'!F6 -> Jan. 1, 2020 | G6: Revenue | K6: ='10-Grants Receivable'!K6 -> Dec. 31, 2020
G7: Realized
B8: PREVIOUS PAGE TOTALS | F8: =+'10-Grants Receivable'!F27 -> 71839.62 | G8: =+'10-Grants Receivable'!G27 -> 178971.23 | H8: =+'10-Grants Receivable'!H27 -> 169095.23 | I8: =+'10-Grants Receivable'!I27 -> 0 | J8: =+'10-Grants Receivable'!J27 -> 0 | K8: =+'10-Grants Receivable'!K27 -> 81715.62
K9: =+F9+G9-H9+I9-J9 -> 0
K10: =+F10+G10-H10+I10-J10 -> 0
K11: 0
K12: 0
K13: 0
K14: 0
A15: Sheet 10.1 | K15: 0
K16: 0
K17: 0
K18: 0
K19: 0
K20: 0
K21: 0
K22: 0
K23: 0
K24: 0
K25: 0
K26: 0
C27: PAGE TOTALS | F27: =SUM(F8:F26) -> 71839.62 | G27: 178971.23 | H27: 169095.23 | I27: 0 | J27: 0 | K27: =SUM(K8:K26) -> 81715.62

Sheet 10.2-Grants Receivable (hidden)
B2: MUNICIPALITIES AND COUNTIES
B3: FEDERAL AND STATE GRANTS RECEIVABLE (cont'd)
G4: ='KEY INPUTS'!D34 -> 2020
B5: Grant | F5: Balance | G5: Budget | H5: Received | I5: Other | J5: Cancelled | K5: Balance
F6: ='10-Grants Receivable'!F6 -> Jan. 1, 2020 | G6: Revenue | K6: ='10-Grants Receivable'!K6 -> Dec. 31, 2020
G7: Realized
B8: PREVIOUS PAGE TOTALS | F8: =+'10.1-Grants Receivable'!F27 -> 71839.62 | G8: =+'10.1-Grants Receivable'!G27 -> 178971.23 | H8: =+'10.1-Grants Receivable'!H27 -> 169095.23 | I8: =+'10.1-Grants Receivable'!I27 -> 0 | J8: =+'10.1-Grants Receivable'!J27 -> 0 | K8: =+'10.1-Grants Receivable'!K27 -> 81715.62
K9: =+F9+G9-H9+I9-J9 -> 0
K10: =+F10+G10-H10+I10-J10 -> 0
K11: 0
K12: 0
K13: 0
K14: 0
A15: Sheet 10.2 | K15: 0
K16: 0
K17: 0
K18: 0
K19: 0
K20: 0
K21: 0
K22: 0
K23: 0
K24: 0
K25: 0
K26: 0
C27: PAGE TOTALS | F27: =SUM(F8:F26) -> 71839.62 | G27: 178971.23 | H27: 169095.23 | I27: 0 | J27: 0 | K27: 81715.62
K29: =F27+G27-H27+I27-K27-J27 -> -2.910383046e-11
K31: =+F27+G27-H27-I27-J27-K27 -> 0

Sheet 10.3-Grants Receivable (hidden)
B2: MUNICIPALITIES AND COUNTIES
B3: FEDERAL AND STATE GRANTS RECEIVABLE (cont'd)
G4: ='KEY INPUTS'!D34 -> 2020
B5: Grant | F5: Balance | G5: Budget | H5: Received | I5: Other | J5: Cancelled | K5: Balance
F6: ='10-Grants Receivable'!F6 -> Jan. 1, 2020 | G6: Revenue | K6: ='10-Grants Receivable'!K6 -> Dec. 31, 2020
G7: Realized
B8: PREVIOUS PAGE TOTALS | F8: =+'10.2-Grants Receivable'!F27 -> 71839.62 | G8: =+'10.2-Grants Receivable'!G27 -> 178971.23 | H8: =+'10.2-Grants Receivable'!H27 -> 169095.23 | I8: =+'10.2-Grants Receivable'!I27 -> 0 | J8: =+'10.2-Grants Receivable'!J27 -> 0 | K8: =+'10.2-Grants Receivable'!K27 -> 81715.62
K9: =+F9+G9-H9+I9-J9 -> 0
K10: =+F10+G10-H10+I10-J10 -> 0
K11: 0
K12: 0
K13: 0
K14: 0
A15: Sheet 10.3 | K15: 0
K16: 0
K17: 0
K18: 0
K19: 0
K20: 0
K21: 0
K22: 0
K23: 0
K24: 0
K25: 0
K26: 0
C27: PAGE TOTALS | F27: =SUM(F8:F26) -> 71839.62 | G27: 178971.23 | H27: 169095.23 | I27: 0 | J27: 0 | K27: 81715.62
K29: =F27+G27-H27+I27-K27-J27 -> -2.910383046e-11
K31: =+F27+G27-H27-I27-J27-K27 -> 0

Sheet 10.4-Grants Receivable (hidden)
B2: MUNICIPALITIES AND COUNTIES
B3: FEDERAL AND STATE GRANTS RECEIVABLE (cont'd)
G4: ='KEY INPUTS'!D34 -> 2020
B5: Grant | F5: Balance | G5: Budget | H5: Received | I5: Other | J5: Cancelled | K5: Balance
F6: ='10-Grants Receivable'!F6 -> Jan. 1, 2020 | G6: Revenue | K6: ='10-Grants Receivable'!K6 -> Dec. 31, 2020
G7: Realized
B8: PREVIOUS PAGE TOTALS | F8: =+'10.3-Grants Receivable'!F27 -> 71839.62 | G8: =+'10.3-Grants Receivable'!G27 -> 178971.23 | H8: =+'10.3-Grants Receivable'!H27 -> 169095.23 | I8: =+'10.3-Grants Receivable'!I27 -> 0 | J8: =+'10.3-Grants Receivable'!J27 -> 0 | K8: =+'10.3-Grants Receivable'!K27 -> 81715.62
K9: =+F9+G9-H9+I9-J9 -> 0
K10: =+F10+G10-H10+I10-J10 -> 0
K11: 0
K12: 0
K13: 0
K14: 0
A15: Sheet 10.4 | K15: 0
K16: 0
K17: 0
K18: 0
K19: 0
K20: 0
K21: 0
K22: 0
K23: 0
K24: 0
K25: 0
K26: 0
C27: PAGE TOTALS | F27: =SUM(F8:F26) -> 71839.62 | G27: 178971.23 | H27: 169095.23 | I27: 0 | J27: 0 | K27: 81715.62
K29: =F27+G27-H27+I27-K27-J27 -> -2.910383046e-11
K31: =+F27+G27-H27-I27-J27-K27 -> 0

Sheet 10.5-Grants Receivable (hidden)
B2: MUNICIPALITIES AND COUNTIES
B3: FEDERAL AND STATE GRANTS RECEIVABLE (cont'd)
G4: ='KEY INPUTS'!D34 -> 2020
B5: Grant | F5: Balance | G5: Budget | H5: Received | I5: Other | J5: Cancelled | K5: Balance
F6: ='10-Grants Receivable'!F6 -> Jan. 1, 2020 | G6: Revenue | K6: ='10-Grants Receivable'!K6 -> Dec. 31, 2020
G7: Realized
B8: PREVIOUS PAGE TOTALS | F8: =+'10.4-Grants Receivable'!F27 -> 71839.62 | G8: =+'10.4-Grants Receivable'!G27 -> 178971.23 | H8: =+'10.4-Grants Receivable'!H27 -> 169095.23 | I8: =+'10.4-Grants Receivable'!I27 -> 0 | J8: =+'10.4-Grants Receivable'!J27 -> 0 | K8: =+'10.4-Grants Receivable'!K27 -> 81715.62
K9: =+F9+G9-H9+I9-J9 -> 0
K10: =+F10+G10-H10+I10-J10 -> 0
K11: 0
K12: 0
K13: 0
K14: 0
A15: Sheet 10.5 | K15: 0
K16: 0
K17: 0
K18: 0
K19: 0
K20: 0
K21: 0
K22: 0
K23: 0
K24: 0
K25: 0
K26: 0
C27: PAGE TOTALS | F27: =SUM(F8:F26) -> 71839.62 | G27: 178971.23 | H27: 169095.23 | I27: 0 | J27: 0 | K27: 81715.62
K29: =F27+G27-H27+I27-K27-J27 -> -2.910383046e-11
K31: =+F27+G27-H27-I27-J27-K27 -> 0

Sheet 10.6-Grants Receivable (hidden)
B2: MUNICIPALITIES AND COUNTIES
B3: FEDERAL AND STATE GRANTS RECEIVABLE (cont'd)
G4: ='KEY INPUTS'!D34 -> 2020
B5: Grant | F5: Balance | G5: Budget | H5: Received | I5: Other | J5: Cancelled | K5: Balance
F6: ='10-Grants Receivable'!F6 -> Jan. 1, 2020 | G6: Revenue | K6: ='10-Grants Receivable'!K6 -> Dec. 31, 2020
G7: Realized
B8: PREVIOUS PAGE TOTALS | F8: =+'10.5-Grants Receivable'!F27 -> 71839.62 | G8: =+'10.5-Grants Receivable'!G27 -> 178971.23 | H8: =+'10.5-Grants Receivable'!H27 -> 169095.23 | I8: =+'10.5-Grants Receivable'!I27 -> 0 | J8: =+'10.5-Grants Receivable'!J27 -> 0 | K8: =+'10.5-Grants Receivable'!K27 -> 81715.62
K9: =+F9+G9-H9+I9-J9 -> 0
K10: =+F10+G10-H10+I10-J10 -> 0
K11: 0
K12: 0
K13: 0
K14: 0
A15: Sheet 10.6 | K15: 0
K16: 0
K17: 0
K18: 0
K19: 0
K20: 0
K21: 0
K22: 0
K23: 0
K24: 0
K25: 0
K26: 0
C27: PAGE TOTALS | F27: =SUM(F8:F26) -> 71839.62 | G27: 178971.23 | H27: 169095.23 | I27: 0 | J27: 0 | K27: 81715.62
K29: =F27+G27-H27+I27-K27-J27 -> -2.910383046e-11
K31: =+F27+G27-H27-I27-J27-K27 -> 0

Sheet 10.7-Grants Receivable (hidden)
B2: MUNICIPALITIES AND COUNTIES
B3: FEDERAL AND STATE GRANTS RECEIVABLE (cont'd)
G4: ='KEY INPUTS'!D34 -> 2020
B5: Grant | F5: Balance | G5: Budget | H5: Received | I5: Other | J5: Cancelled | K5: Balance
F6: ='10-Grants Receivable'!F6 -> Jan. 1, 2020 | G6: Revenue | K6: ='10-Grants Receivable'!K6 -> Dec. 31, 2020
G7: Realized
B8: PREVIOUS PAGE TOTALS | F8: =+'10.6-Grants Receivable'!F27 -> 71839.62 | G8: =+'10.6-Grants Receivable'!G27 -> 178971.23 | H8: =+'10.6-Grants Receivable'!H27 -> 169095.23 | I8: =+'10.6-Grants Receivable'!I27 -> 0 | J8: =+'10.6-Grants Receivable'!J27 -> 0 | K8: =+'10.6-Grants Receivable'!K27 -> 81715.62
K9: =+F9+G9-H9+I9-J9 -> 0
K10: =+F10+G10-H10+I10-J10 -> 0
K11: 0
K12: 0
K13: 0
K14: 0
A15: Sheet 10.7 | K15: 0
K16: 0
K17: 0
K18: 0
K19: 0
K20: 0
K21: 0
K22: 0
K23: 0
K24: 0
K25: 0
K26: 0
C27: PAGE TOTALS | F27: =SUM(F8:F26) -> 71839.62 | G27: 178971.23 | H27: 169095.23 | I27: 0 | J27: 0 | K27: 81715.62
K29: =F27+G27-H27+I27-K27-J27 -> -2.910383046e-11
K31: =+F27+G27-H27-I27-J27-K27 -> 0

Sheet 10.8-Grants Receivable (hidden)
B2: MUNICIPALITIES AND COUNTIES
B3: FEDERAL AND STATE GRANTS RECEIVABLE (cont'd)
G4: ='KEY INPUTS'!D34 -> 2020
B5: Grant | F5: Balance | G5: Budget | H5: Received | I5: Other | J5: Cancelled | K5: Balance
F6: ='10-Grants Receivable'!F6 -> Jan. 1, 2020 | G6: Revenue | K6: ='10-Grants Receivable'!K6 -> Dec. 31, 2020
G7: Realized
B8: PREVIOUS PAGE TOTALS | F8: =+'10.7-Grants Receivable'!F27 -> 71839.62 | G8: =+'10.7-Grants Receivable'!G27 -> 178971.23 | H8: =+'10.7-Grants Receivable'!H27 -> 169095.23 | I8: =+'10.7-Grants Receivable'!I27 -> 0 | J8: =+'10.7-Grants Receivable'!J27 -> 0 | K8: =+'10.7-Grants Receivable'!K27 -> 81715.62
K9: =+F9+G9-H9+I9-J9 -> 0
K10: =+F10+G10-H10+I10-J10 -> 0
K11: 0
K12: 0
K13: 0
K14: 0
A15: Sheet 10.8 | K15: 0
K16: 0
K17: 0
K18: 0
K19: 0
K20: 0
K21: 0
K22: 0
K23: 0
K24: 0
K25: 0
K26: 0
C27: PAGE TOTALS | F27: =SUM(F8:F26) -> 71839.62 | G27: 178971.23 | H27: 169095.23 | I27: 0 | J27: 0 | K27: 81715.62
K29: =F27+G27-H27+I27-K27-J27 -> -2.910383046e-11
K31: =+F27+G27-H27-I27-J27-K27 -> 0

Sheet 10.9-Grants Receivable (hidden)
B2: MUNICIPALITIES AND COUNTIES
B3: FEDERAL AND STATE GRANTS RECEIVABLE (cont'd)
G4: ='KEY INPUTS'!D34 -> 2020
B5: Grant | F5: Balance | G5: Budget | H5: Received | I5: Other | J5: Cancelled | K5: Balance
F6: ='10-Grants Receivable'!F6 -> Jan. 1, 2020 | G6: Revenue | K6: ='10-Grants Receivable'!K6 -> Dec. 31, 2020
G7: Realized
B8: PREVIOUS PAGE TOTALS | F8: =+'10.8-Grants Receivable'!F27 -> 71839.62 | G8: =+'10.8-Grants Receivable'!G27 -> 178971.23 | H8: =+'10.8-Grants Receivable'!H27 -> 169095.23 | I8: =+'10.8-Grants Receivable'!I27 -> 0 | J8: =+'10.8-Grants Receivable'!J27 -> 0 | K8: =+'10.8-Grants Receivable'!K27 -> 81715.62
K9: =+F9+G9-H9+I9-J9 -> 0
K10: 0
K11: 0
K12: 0
K13: 0
K14: 0
A15: Sheet 10.9 | K15: 0
K16: 0
K17: 0
K18: 0
K19: 0
K20: 0
K21: 0
K22: 0
K23: 0
K24: 0
K25: 0
K26: 0
C27: PAGE TOTALS | F27: =SUM(F8:F26) -> 71839.62 | G27: 178971.23 | H27: 169095.23 | I27: 0 | J27: 0 | K27: 81715.62
K29: =F27+G27-H27+I27-K27-J27 -> -2.910383046e-11
K31: =+F27+G27-H27-I27-J27-K27 -> 0

Sheet 10.10-Grants Receivable (hidden)
B2: MUNICIPALITIES AND COUNTIES
B3: FEDERAL AND STATE GRANTS RECEIVABLE (cont'd)
G4: ='KEY INPUTS'!D34 -> 2020
B5: Grant | F5: Balance | G5: Budget | H5: Received | I5: Other | J5: Cancelled | K5: Balance
F6: ='10-Grants Receivable'!F6 -> Jan. 1, 2020 | G6: Revenue | K6: ='10-Grants Receivable'!K6 -> Dec. 31, 2020
G7: Realized
B8: PREVIOUS PAGE TOTALS | F8: =+'10.9-Grants Receivable'!F27 -> 71839.62 | G8: =+'10.9-Grants Receivable'!G27 -> 178971.23 | H8: =+'10.9-Grants Receivable'!H27 -> 169095.23 | I8: =+'10.9-Grants Receivable'!I27 -> 0 | J8: =+'10.9-Grants Receivable'!J27 -> 0 | K8: =+'10.9-Grants Receivable'!K27 -> 81715.62
K9: =+F9+G9-H9+I9-J9 -> 0
K10: 0
K11: 0
K12: 0
K13: 0
K14: 0
A15: Sheet 10.10 | K15: 0
K16: 0
K17: 0
K18: 0
K19: 0
K20: 0
K21: 0
K22: 0
K23: 0
K24: 0
K25: 0
K26: 0
C27: PAGE TOTALS | F27: =SUM(F8:F26) -> 71839.62 | G27: 178971.23 | H27: 169095.23 | I27: 0 | J27: 0 | K27: 81715.62
K29: =F27+G27-H27+I27-K27-J27 -> -2.910383046e-11
K31: =+F27+G27-H27-I27-J27-K27 -> 0

Sheet 10.11-Grants Receivable (hidden)
B2: MUNICIPALITIES AND COUNTIES
B3: FEDERAL AND STATE GRANTS RECEIVABLE (cont'd)
G4: ='KEY INPUTS'!D34 -> 2020
B5: Grant | F5: Balance | G5: Budget | H5: Received | I5: Other | J5: Cancelled | K5: Balance
F6: ='10-Grants Receivable'!F6 -> Jan. 1, 2020 | G6: Revenue | K6: ='10-Grants Receivable'!K6 -> Dec. 31, 2020
G7: Realized
B8: PREVIOUS PAGE TOTALS | F8: =+'10.10-Grants Receivable'!F27 -> 71839.62 | G8: =+'10.10-Grants Receivable'!G27 -> 178971.23 | H8: =+'10.10-Grants Receivable'!H27 -> 169095.23 | I8: =+'10.10-Grants Receivable'!I27 -> 0 | J8: =+'10.10-Grants Receivable'!J27 -> 0 | K8: =+'10.10-Grants Receivable'!K27 -> 81715.62
K9: =+F9+G9-H9+I9-J9 -> 0
K10: 0
K11: 0
K12: 0
K13: 0
K14: 0
A15: Sheet 10.11 | K15: 0
K16: 0
K17: 0
K18: 0
K19: 0
K20: 0
K21: 0
K22: 0
K23: 0
K24: 0
K25: 0
K26: 0
C27: PAGE TOTALS | F27: =SUM(F8:F26) -> 71839.62 | G27: 178971.23 | H27: 169095.23 | I27: 0 | J27: 0 | K27: 81715.62
K29: =F27+G27-H27+I27-K27-J27 -> -2.910383046e-11
K31: =+F27+G27-H27-I27-J27-K27 -> 0

Sheet 10.12-Grants Receivable (hidden)
B2: MUNICIPALITIES AND COUNTIES
B3: FEDERAL AND STATE GRANTS RECEIVABLE (cont'd)
G4: ='KEY INPUTS'!D34 -> 2020
B5: Grant | F5: Balance | G5: Budget | H5: Received | I5: Other | J5: Cancelled | K5: Balance
F6: ='10-Grants Receivable'!F6 -> Jan. 1, 2020 | G6: Revenue | K6: ='10-Grants Receivable'!K6 -> Dec. 31, 2020
G7: Realized
B8: PREVIOUS PAGE TOTALS | F8: ='10.11-Grants Receivable'!F27 -> 71839.62 | G8: =+'10.11-Grants Receivable'!G27 -> 178971.23 | H8: =+'10.11-Grants Receivable'!H27 -> 169095.23 | I8: =+'10.11-Grants Receivable'!I27 -> 0 | J8: =+'10.11-Grants Receivable'!J27 -> 0 | K8: =+'10.11-Grants Receivable'!K27 -> 81715.62
K9: =+F9+G9-H9+I9-J9 -> 0
K10: 0
K11: 0
K12: 0
K13: 0
K14: 0
A15: Sheet 10.12 | K15: 0
K16: 0
K17: 0
K18: 0
K19: 0
K20: 0
K21: 0
K22: 0
K23: 0
K24: 0
K25: 0
K26: 0
C27: PAGE TOTALS | F27: =SUM(F8:F26) -> 71839.62 | G27: 178971.23 | H27: 169095.23 | I27: 0 | J27: 0 | K27: 81715.62
K29: =F27+G27-H27+I27-K27-J27 -> -2.910383046e-11
K31: =+F27+G27-H27-I27-J27-K27 -> 0

Sheet 10.13-Grants Receivable (hidden)
B2: MUNICIPALITIES AND COUNTIES
B3: FEDERAL AND STATE GRANTS RECEIVABLE (cont'd)
G4: ='KEY INPUTS'!D34 -> 2020
B5: Grant | F5: Balance | G5: Budget | H5: Received | I5: Other | J5: Cancelled | K5: Balance
F6: ='10-Grants Receivable'!F6 -> Jan. 1, 2020 | G6: Revenue | K6: ='10-Grants Receivable'!K6 -> Dec. 31, 2020
G7: Realized
B8: PREVIOUS PAGE TOTALS | F8: =+'10.12-Grants Receivable'!F27 -> 71839.62 | G8: =+'10.12-Grants Receivable'!G27 -> 178971.23 | H8: =+'10.12-Grants Receivable'!H27 -> 169095.23 | I8: =+'10.12-Grants Receivable'!I27 -> 0 | J8: =+'10.12-Grants Receivable'!J27 -> 0 | K8: =+'10.12-Grants Receivable'!K27 -> 81715.62
K9: =+F9+G9-H9+I9-J9 -> 0
K10: 0
K11: 0
K12: 0
K13: 0
K14: 0
A15: Sheet 10.13 | K15: 0
K16: 0
K17: 0
K18: 0
K19: 0
K20: 0
K21: 0
K22: 0
K23: 0
K24: 0
K25: 0
K26: 0
C27: PAGE TOTALS | F27: =SUM(F8:F26) -> 71839.62 | G27: 178971.23 | H27: 169095.23 | I27: 0 | J27: 0 | K27: 81715.62
K29: =F27+G27-H27+I27-K27-J27 -> -2.910383046e-11
K31: =+F27+G27-H27-I27-J27-K27 -> 0

Sheet 10.14-Grants Receivable (hidden)
B2: MUNICIPALITIES AND COUNTIES
B3: FEDERAL AND STATE GRANTS RECEIVABLE (cont'd)
G4: ='KEY INPUTS'!D34 -> 2020
B5: Grant | F5: Balance | G5: Budget | H5: Received | I5: Other | J5: Cancelled | K5: Balance
F6: ='10-Grants Receivable'!F6 -> Jan. 1, 2020 | G6: Revenue | K6: ='10-Grants Receivable'!K6 -> Dec. 31, 2020
G7: Realized
B8: PREVIOUS PAGE TOTALS | F8: =+'10.13-Grants Receivable'!F27 -> 71839.62 | G8: =+'10.13-Grants Receivable'!G27 -> 178971.23 | H8: =+'10.13-Grants Receivable'!H27 -> 169095.23 | I8: =+'10.13-Grants Receivable'!I27 -> 0 | J8: =+'10.13-Grants Receivable'!J27 -> 0 | K8: =+'10.13-Grants Receivable'!K27 -> 81715.62
K9: =+F9+G9-H9+I9-J9 -> 0
K10: 0
K11: 0
K12: 0
K13: 0
K14: 0
A15: Sheet 10.14 | K15: 0
K16: 0
K17: 0
K18: 0
K19: 0
K20: 0
K21: 0
K22: 0
K23: 0
K24: 0
K25: 0
K26: 0
C27: PAGE TOTALS | F27: =SUM(F8:F26) -> 71839.62 | G27: 178971.23 | H27: 169095.23 | I27: 0 | J27: 0 | K27: 81715.62
K29: =F27+G27-H27+I27-K27-J27 -> -2.910383046e-11
K31: =+F27+G27-H27-I27-J27-K27 -> 0

Sheet 10.15-Grants Receivable (hidden)
B2: MUNICIPALITIES AND COUNTIES
B3: FEDERAL AND STATE GRANTS RECEIVABLE (cont'd)
G4: ='KEY INPUTS'!D34 -> 2020
B5: Grant | F5: Balance | G5: Budget | H5: Received | I5: Other | J5: Cancelled | K5: Balance
F6: ='10-Grants Receivable'!F6 -> Jan. 1, 2020 | G6: Revenue | K6: ='10-Grants Receivable'!K6 -> Dec. 31, 2020
G7: Realized
B8: PREVIOUS PAGE TOTALS | F8: =+'10.14-Grants Receivable'!F27 -> 71839.62 | G8: =+'10.14-Grants Receivable'!G27 -> 178971.23 | H8: =+'10.14-Grants Receivable'!H27 -> 169095.23 | I8: =+'10.14-Grants Receivable'!I27 -> 0 | J8: =+'10.14-Grants Receivable'!J27 -> 0 | K8: =+'10.14-Grants Receivable'!K27 -> 81715.62
K9: =+F9+G9-H9+I9-J9 -> 0
K10: 0
K11: 0
K12: 0
K13: 0
K14: 0
A15: Sheet 10.15 | K15: 0
K16: 0
K17: 0
K18: 0
K19: 0
K20: 0
K21: 0
K22: 0
K23: 0
K24: 0
K25: 0
K26: 0
C27: PAGE TOTALS | F27: =SUM(F8:F26) -> 71839.62 | G27: 178971.23 | H27: 169095.23 | I27: 0 | J27: 0 | K27: 81715.62
K29: =F27+G27-H27+I27-K27-J27 -> -2.910383046e-11
K31: =+F27+G27-H27-I27-J27-K27 -> 0

Sheet 10.16-Grants Receivable (hidden)
B2: MUNICIPALITIES AND COUNTIES
B3: FEDERAL AND STATE GRANTS RECEIVABLE (cont'd)
G4: ='KEY INPUTS'!D34 -> 2020
B5: Grant | F5: Balance | G5: Budget | H5: Received | I5: Other | J5: Cancelled | K5: Balance
F6: ='10-Grants Receivable'!F6 -> Jan. 1, 2020 | G6: Revenue | K6: ='10-Grants Receivable'!K6 -> Dec. 31, 2020
G7: Realized
B8: PREVIOUS PAGE TOTALS | F8: =+'10.15-Grants Receivable'!F27 -> 71839.62 | G8: =+'10.15-Grants Receivable'!G27 -> 178971.23 | H8: =+'10.15-Grants Receivable'!H27 -> 169095.23 | I8: =+'10.15-Grants Receivable'!I27 -> 0 | J8: =+'10.15-Grants Receivable'!J27 -> 0 | K8: =+'10.15-Grants Receivable'!K27 -> 81715.62
K9: =+F9+G9-H9+I9-J9 -> 0
K10: 0
K11: 0
K12: 0
K13: 0
K14: 0
A15: Sheet 10.16 | K15: 0
K16: 0
K17: 0
K18: 0
K19: 0
K20: 0
K21: 0
K22: 0
K23: 0
K24: 0
K25: 0
K26: 0
C27: PAGE TOTALS | F27: =SUM(F8:F26) -> 71839.62 | G27: 178971.23 | H27: 169095.23 | I27: 0 | J27: 0 | K27: 81715.62
K29: =F27+G27-H27+I27-K27-J27 -> -2.910383046e-11
K31: =+F27+G27-H27-I27-J27-K27 -> 0

Sheet 10.17-Grants Receivable (hidden)
B2: MUNICIPALITIES AND COUNTIES
B3: FEDERAL AND STATE GRANTS RECEIVABLE (cont'd)
G4: ='KEY INPUTS'!D34 -> 2020
B5: Grant | F5: Balance | G5: Budget | H5: Received | I5: Other | J5: Cancelled | K5: Balance
F6: ='10-Grants Receivable'!F6 -> Jan. 1, 2020 | G6: Revenue | K6: ='10-Grants Receivable'!K6 -> Dec. 31, 2020
G7: Realized
B8: PREVIOUS PAGE TOTALS | F8: =+'10.16-Grants Receivable'!F27 -> 71839.62 | G8: =+'10.16-Grants Receivable'!G27 -> 178971.23 | H8: =+'10.16-Grants Receivable'!H27 -> 169095.23 | I8: =+'10.16-Grants Receivable'!I27 -> 0 | J8: =+'10.16-Grants Receivable'!J27 -> 0 | K8: =+'10.16-Grants Receivable'!K27 -> 81715.62
K9: =+F9+G9-H9+I9-J9 -> 0
K10: 0
K11: 0
K12: 0
K13: 0
K14: 0
A15: Sheet 10.17 | K15: 0
K16: 0
K17: 0
K18: 0
K19: 0
K20: 0
K21: 0
K22: 0
K23: 0
K24: 0
K25: 0
K26: 0
C27: PAGE TOTALS | F27: =SUM(F8:F26) -> 71839.62 | G27: 178971.23 | H27: 169095.23 | I27: 0 | J27: 0 | K27: 81715.62
K29: =F27+G27-H27+I27-K27-J27 -> -2.910383046e-11
K31: =+F27+G27-H27-I27-J27-K27 -> 0

Sheet 10.18-Grants Receivable (hidden)
B2: MUNICIPALITIES AND COUNTIES
B3: FEDERAL AND STATE GRANTS RECEIVABLE (cont'd)
G4: ='KEY INPUTS'!D34 -> 2020
B5: Grant | F5: Balance | G5: Budget | H5: Received | I5: Other | J5: Cancelled | K5: Balance
F6: ='10-Grants Receivable'!F6 -> Jan. 1, 2020 | G6: Revenue | K6: ='10-Grants Receivable'!K6 -> Dec. 31, 2020
G7: Realized
B8: PREVIOUS PAGE TOTALS | F8: =+'10.17-Grants Receivable'!F27 -> 71839.62 | G8: =+'10.17-Grants Receivable'!G27 -> 178971.23 | H8: =+'10.17-Grants Receivable'!H27 -> 169095.23 | I8: =+'10.17-Grants Receivable'!I27 -> 0 | J8: =+'10.17-Grants Receivable'!J27 -> 0 | K8: =+'10.17-Grants Receivable'!K27 -> 81715.62
K9: =+F9+G9-H9+I9-J9 -> 0
K10: 0
K11: 0
K12: 0
K13: 0
K14: 0
A15: Sheet 10.18 | K15: 0
K16: 0
K17: 0
K18: 0
K19: 0
K20: 0
K21: 0
K22: 0
K23: 0
K24: 0
K25: 0
K26: 0
C27: PAGE TOTALS | F27: =SUM(F8:F26) -> 71839.62 | G27: 178971.23 | H27: 169095.23 | I27: 0 | J27: 0 | K27: 81715.62
K29: =F27+G27-H27+I27-K27-J27 -> -2.910383046e-11
K31: =+F27+G27-H27-I27-J27-K27 -> 0

Sheet 10.19-Grants Receivable (hidden)
B2: MUNICIPALITIES AND COUNTIES
B3: FEDERAL AND STATE GRANTS RECEIVABLE (cont'd)
G4: ='KEY INPUTS'!D34 -> 2020
B5: Grant | F5: Balance | G5: Budget | H5: Received | I5: Other | J5: Cancelled | K5: Balance
F6: ='10-Grants Receivable'!F6 -> Jan. 1, 2020 | G6: Revenue | K6: ='10-Grants Receivable'!K6 -> Dec. 31, 2020
G7: Realized
B8: PREVIOUS PAGE TOTALS | F8: =+'10.18-Grants Receivable'!F27 -> 71839.62 | G8: =+'10.18-Grants Receivable'!G27 -> 178971.23 | H8: =+'10.18-Grants Receivable'!H27 -> 169095.23 | I8: =+'10.18-Grants Receivable'!I27 -> 0 | J8: =+'10.18-Grants Receivable'!J27 -> 0 | K8: =+'10.18-Grants Receivable'!K27 -> 81715.62
K9: =+F9+G9-H9+I9-J9 -> 0
K10: 0
K11: 0
K12: 0
K13: 0
K14: 0
A15: Sheet 10.19 | K15: 0
K16: 0
K17: 0
K18: 0
K19: 0
K20: 0
K21: 0
K22: 0
K23: 0
K24: 0
K25: 0
K26: 0
C27: PAGE TOTALS | F27: =SUM(F8:F26) -> 71839.62 | G27: 178971.23 | H27: 169095.23 | I27: 0 | J27: 0 | K27: 81715.62
K29: =F27+G27-H27+I27-K27-J27 -> -2.910383046e-11
K31: =+F27+G27-H27-I27-J27-K27 -> 0

Sheet 10.20-Grants Receivable (hidden)
B2: MUNICIPALITIES AND COUNTIES
B3: FEDERAL AND STATE GRANTS RECEIVABLE (cont'd)
G4: ='KEY INPUTS'!D34 -> 2020
B5: Grant | F5: Balance | G5: Budget | H5: Received | I5: Other | J5: Cancelled | K5: Balance
F6: ='10-Grants Receivable'!F6 -> Jan. 1, 2020 | G6: Revenue | K6: ='10-Grants Receivable'!K6 -> Dec. 31, 2020
G7: Realized
B8: PREVIOUS PAGE TOTALS | F8: =+'10.19-Grants Receivable'!F27 -> 71839.62 | G8: =+'10.19-Grants Receivable'!G27 -> 178971.23 | H8: =+'10.19-Grants Receivable'!H27 -> 169095.23 | I8: =+'10.19-Grants Receivable'!I27 -> 0 | J8: =+'10.19-Grants Receivable'!J27 -> 0 | K8: =+'10.19-Grants Receivable'!K27 -> 81715.62
K9: =+F9+G9-H9+I9-J9 -> 0
K10: 0
K11: 0
K12: 0
K13: 0
K14: 0
A15: Sheet 10.20 | K15: 0
K16: 0
K17: 0
K18: 0
K19: 0
K20: 0
K21: 0
K22: 0
K23: 0
K24: 0
K25: 0
K26: 0
C27: PAGE TOTALS | F27: =SUM(F8:F26) -> 71839.62 | G27: 178971.23 | H27: 169095.23 | I27: 0 | J27: 0 | K27: 81715.62
K29: =F27+G27-H27+I27-K27-J27 -> -2.910383046e-11
K31: =+F27+G27-H27-I27-J27-K27 -> 0

Sheet 10.21-Grants Receivable (hidden)
B2: MUNICIPALITIES AND COUNTIES
B3: FEDERAL AND STATE GRANTS RECEIVABLE (cont'd)
G4: ='KEY INPUTS'!D34 -> 2020
B5: Grant | F5: Balance | G5: Budget | H5: Received | I5: Other | J5: Cancelled | K5: Balance
F6: ='10-Grants Receivable'!F6 -> Jan. 1, 2020 | G6: Revenue | K6: ='10-Grants Receivable'!K6 -> Dec. 31, 2020
G7: Realized
B8: PREVIOUS PAGE TOTALS | F8: =+'10.20-Grants Receivable'!F27 -> 71839.62 | G8: =+'10.20-Grants Receivable'!G27 -> 178971.23 | H8: =+'10.20-Grants Receivable'!H27 -> 169095.23 | I8: =+'10.20-Grants Receivable'!I27 -> 0 | J8: =+'10.20-Grants Receivable'!J27 -> 0 | K8: =+'10.20-Grants Receivable'!K27 -> 81715.62
K9: =+F9+G9-H9+I9-J9 -> 0
K10: 0
K11: 0
K12: 0
K13: 0
K14: 0
A15: Sheet 10.21 | K15: 0
K16: 0
K17: 0
K18: 0
K19: 0
K20: 0
K21: 0
K22: 0
K23: 0
K24: 0
K25: 0
K26: 0
C27: PAGE TOTALS | F27: =SUM(F8:F26) -> 71839.62 | G27: 178971.23 | H27: 169095.23 | I27: 0 | J27: 0 | K27: 81715.62

Sheet 10.22-Grants Receivable (hidden)
B2: MUNICIPALITIES AND COUNTIES
B3: FEDERAL AND STATE GRANTS RECEIVABLE (cont'd)
G4: ='KEY INPUTS'!D34 -> 2020
B5: Grant | F5: Balance | G5: Budget | H5: Received | I5: Other | J5: Cancelled | K5: Balance
F6: ='10-Grants Receivable'!F6 -> Jan. 1, 2020 | G6: Revenue | K6: ='10-Grants Receivable'!K6 -> Dec. 31, 2020
G7: Realized
B8: PREVIOUS PAGE TOTALS | F8: =+'10.21-Grants Receivable'!F27 -> 71839.62 | G8: =+'10.21-Grants Receivable'!G27 -> 178971.23 | H8: =+'10.21-Grants Receivable'!H27 -> 169095.23 | I8: =+'10.21-Grants Receivable'!I27 -> 0 | J8: =+'10.21-Grants Receivable'!J27 -> 0 | K8: =+'10.21-Grants Receivable'!K27 -> 81715.62
K9: =+F9+G9-H9+I9-J9 -> 0
K10: 0
K11: 0
K12: 0
K13: 0
K14: 0
A15: Sheet 10.22 | K15: 0
K16: 0
K17: 0
K18: 0
K19: 0
K20: 0
K21: 0
K22: 0
K23: 0
K24: 0
K25: 0
K26: 0
C27: PAGE TOTALS | F27: =SUM(F8:F26) -> 71839.62 | G27: 178971.23 | H27: 169095.23 | I27: 0 | J27: 0 | K27: 81715.62

Sheet 10.23-Grants Receivable (hidden)
B2: MUNICIPALITIES AND COUNTIES
B3: FEDERAL AND STATE GRANTS RECEIVABLE (cont'd)
G4: ='KEY INPUTS'!D34 -> 2020
B5: Grant | F5: Balance | G5: Budget | H5: Received | I5: Other | J5: Cancelled | K5: Balance
F6: ='10-Grants Receivable'!F6 -> Jan. 1, 2020 | G6: Revenue | K6: ='10-Grants Receivable'!K6 -> Dec. 31, 2020
G7: Realized
B8: PREVIOUS PAGE TOTALS | F8: =+'10.22-Grants Receivable'!F27 -> 71839.62 | G8: =+'10.22-Grants Receivable'!G27 -> 178971.23 | H8: =+'10.22-Grants Receivable'!H27 -> 169095.23 | I8: =+'10.22-Grants Receivable'!I27 -> 0 | J8: =+'10.22-Grants Receivable'!J27 -> 0 | K8: =+'10.22-Grants Receivable'!K27 -> 81715.62
K9: =+F9+G9-H9+I9-J9 -> 0
K10: 0
K11: 0
K12: 0
K13: 0
K14: 0
A15: Sheet 10.23 | K15: 0
K16: 0
K17: 0
K18: 0
K19: 0
K20: 0
K21: 0
K22: 0
K23: 0
K24: 0
K25: 0
K26: 0
C27: PAGE TOTALS | F27: =SUM(F8:F26) -> 71839.62 | G27: 178971.23 | H27: 169095.23 | I27: 0 | J27: 0 | K27: 81715.62

Sheet 10.24-Grants Receivable (hidden)
B2: MUNICIPALITIES AND COUNTIES
B3: FEDERAL AND STATE GRANTS RECEIVABLE (cont'd)
G4: ='KEY INPUTS'!D34 -> 2020
B5: Grant | F5: Balance | G5: Budget | H5: Received | I5: Other | J5: Cancelled | K5: Balance
F6: ='10-Grants Receivable'!F6 -> Jan. 1, 2020 | G6: Revenue | K6: ='10-Grants Receivable'!K6 -> Dec. 31, 2020
G7: Realized
B8: PREVIOUS PAGE TOTALS | F8: =+'10.23-Grants Receivable'!F27 -> 71839.62 | G8: =+'10.23-Grants Receivable'!G27 -> 178971.23 | H8: =+'10.23-Grants Receivable'!H27 -> 169095.23 | I8: =+'10.23-Grants Receivable'!I27 -> 0 | J8: =+'10.23-Grants Receivable'!J27 -> 0 | K8: =+'10.23-Grants Receivable'!K27 -> 81715.62
K9: =+F9+G9-H9+I9-J9 -> 0
K10: 0
K11: 0
K12: 0
K13: 0
K14: 0
A15: Sheet 10.24 | K15: 0
K16: 0
K17: 0
K18: 0
K19: 0
K20: 0
K21: 0
K22: 0
K23: 0
K24: 0
K25: 0
K26: 0
C27: PAGE TOTALS | F27: =SUM(F8:F26) -> 71839.62 | G27: 178971.23 | H27: 169095.23 | I27: 0 | J27: 0 | K27: 81715.62

Sheet 10 Totals Grants Receivable
B2: MUNICIPALITIES AND COUNTIES
B3: FEDERAL AND STATE GRANTS RECEIVABLE (cont'd)
G4: ='KEY INPUTS'!D34 -> 2020
B5: Grant | F5: Balance | G5: Budget | H5: Received | I5: Other | J5: Cancelled | K5: Balance
F6: ='10-Grants Receivable'!F6 -> Jan. 1, 2020 | G6: Revenue | K6: ='10-Grants Receivable'!K6 -> Dec. 31, 2020
G7: Realized
B8: PREVIOUS PAGE TOTALS | F8: =+'10.24-Grants Receivable'!F27 -> 71839.62 | G8: =+'10.24-Grants Receivable'!G27 -> 178971.23 | H8: =+'10.24-Grants Receivable'!H27 -> 169095.23 | I8: =+'10.24-Grants Receivable'!I27 -> 0 | J8: =+'10.24-Grants Receivable'!J27 -> 0 | K8: =+'10.24-Grants Receivable'!K27 -> 81715.62
K9: =+F9+G9-H9+I9-J9 -> 0
K10: 0
K11: 0
K12: 0
K13: 0
K14: 0
A15: Sheet 10 Totals | K15: 0
K16: 0
K17: 0
K18: 0
K19: 0
K20: 0
K21: 0
K22: 0
K23: 0
K24: 0
K25: 0
K26: 0
C27: TOTALS | F27: =SUM(F8:F26) -> 71839.62 | G27: 178971.23 | H27: 169095.23 | I27: 0 | J27: 0 | K27: 81715.62

Sheet 11 Grants Approp Rsrv
B2: SCHEDULE OF APPROPRIATED RESERVES FOR
B3: FEDERAL AND STATE GRANTS
G4: ="Transferred from "&TEXT('KEY INPUTS'!D34,"0") -> Transferred from 2020
B5: Grant | F5: Balance | G5: Budget Appropriations | I5: Expended | J5: Other | K5: Cancelled | L5: Balance
F6: ='KEY INPUTS'!D47 -> Jan. 1, 2020 | G6: Budget | H6: Appropriation | L6: ='KEY INPUTS'!D46 -> Dec. 31, 2020
H7: By 40A:4-87
B8: Clean Communities | F8: 14625.89 | L8: =+F8+G8+H8-I8+J8-K8 -> 14625.89
B9: Municipal Alliance | F9: 714.52 | L9: =+F9+G9+H9-I9+J9-K9 -> 714.52
B10: Body Armor | F10: 6051.94 | L10: 6051.94
B11: Recycling Tonnage Grant | F11: 64480 | L11: 64480
B12: Clean Communities | F12: 2974.19 | L12: 2974.19
B13: Department of Justice - Police | F13: 1938.91 | L13: 1938.91
B14: Municipal Alliance | F14: 8414 | L14: 8414
A15: Sheet 11 | B15: Recycling Tonnage Grant | F15: 14095.46 | L15: 14095.46
B16: Body Armor | F16: 3696.62 | L16: 3696.62
B17: Recycling Tonnage Grant | F17: 13104.99 | L17: 13104.99
B18: Alcohol Education & Rehabiliation | F18: 1045.91 | L18: 1045.91
B19: Municipal Alliance | F19: 0.36 | G19: 12345 | L19: 12345.36
B20: Recycling Tonnage Grant | G20: 37390.11 | L20: 37390.11
B21: Clean Communities | G21: 22740.27 | I21: 16366.03 | L21: 6374.24
B22: FEMA | H22: 27114.52 | I22: 27114.52 | L22: 0
B23: Bergen County Census | H23: 2810 | I23: 2810 | L23: 0
B24: Alcohol Education & Rehabiliation | G24: 1285.99 | L24: 1285.99
B25: Clean Communities | H25: 20506.87 | L25: 20506.87
B26: CARES Act | H26: 57247.47 | I26: 57247.47 | L26: 0
C27: PAGE TOTALS | F27: =SUM(F8:F26) -> 131142.79 | G27: =SUM(G8:G26) -> 73761.37 | H27: 107678.86 | I27: 103538.02 | J27: 0 | K27: 0 | L27: =SUM(L8:L26) -> 209045

Sheet 11.1 Grants Approp Rsrv
B2: SCHEDULE OF APPROPRIATED RESERVES FOR
B3: FEDERAL AND STATE GRANTS
G4: ="Transferred from "&TEXT('KEY INPUTS'!D34,"0") -> Transferred from 2020
B5: Grant | F5: Balance | G5: Budget Appropriations | I5: Expended | J5: Other | K5: Cancelled | L5: Balance
F6: ='KEY INPUTS'!D47 -> Jan. 1, 2020 | G6: Budget | H6: Appropriation | L6: ='KEY INPUTS'!D46 -> Dec. 31, 2020
H7: By 40A:4-87
B8: PREVIOUS PAGE TOTALS | F8: =+'11 Grants Approp Rsrv'!F27 -> 131142.79 | G8: =+'11 Grants Approp Rsrv'!G27 -> 73761.37 | H8: =+'11 Grants Approp Rsrv'!H27 -> 107678.86 | I8: =+'11 Grants Approp Rsrv'!I27 -> 103538.02 | J8: =+'11 Grants Approp Rsrv'!J27 -> 0 | K8: =+'11 Grants Approp Rsrv'!K27 -> 0 | L8: =+'11 Grants Approp Rsrv'!L27 -> 209045
B9: Alcohol Education & Rehabiliation | F9: 2731.53 | L9: =+F9+G9+H9-I9+J9-K9 -> 2731.53
B10: Clean Communities | F10: 0.61 | L10: 0.61
B11: Body Armor | F11: 3025.82 | L11: 3025.82
B12: Port Security 2015 | F12: 7049.13 | L12: 7049.13
B13: Port Security 2016 | F13: 10806.81 | L13: 10806.81
B14: Post Sandy Planning | F14: 5075.12 | L14: 5075.12
A15: Sheet 11.1 | B15: Alcohol Education & Rehabiliation | F15: 597.03 | L15: 597.03
B16: Clean Communities | F16: 6926.68 | L16: 6926.68
B17: Body Armor | F17: 2905.96 | L17: 2905.96
B18: Recycling Tonnage Grant | F18: 33051.2 | L18: 33051.2
B19: Clean Communities | F19: 18786.98 | I19: 1125 | L19: 17661.98
B20: Alcohol Education & Rehabiliation | F20: 3493.56 | L20: 3493.56
B21: Community Development Block Grant | F21: 8441 | L21: 8441
B22: Firehouse Subs Grant | F22: 22279.37 | L22: 22279.37
B23: Drunk Driving Enforcement Fund | F23: 5500 | L23: 5500
B24: Municipal Alliance | F24: 6598.92 | I24: 1320 | L24: 5278.92
L25: 0
L26: 0
C27: PAGE TOTALS | F27: =SUM(F8:F26) -> 268412.51 | G27: =SUM(G8:G26) -> 73761.37 | H27: 107678.86 | I27: 105983.02 | J27: 0 | K27: 0 | L27: =SUM(L8:L26) -> 343869.72

Sheet 11.2 Grants Approp Rsrv
B2: SCHEDULE OF APPROPRIATED RESERVES FOR
B3: FEDERAL AND STATE GRANTS
G4: ="Transferred from "&TEXT('KEY INPUTS'!D34,"0") -> Transferred from 2020
B5: Grant | F5: Balance | G5: Budget Appropriations | I5: Expended | J5: Other | K5: Cancelled | L5: Balance
F6: ='KEY INPUTS'!D47 -> Jan. 1, 2020 | G6: Budget | H6: Appropriation | L6: ='KEY INPUTS'!D46 -> Dec. 31, 2020
H7: By 40A:4-87
B8: PREVIOUS PAGE TOTALS | F8: =+'11.1 Grants Approp Rsrv'!F27 -> 268412.51 | G8: =+'11.1 Grants Approp Rsrv'!G27 -> 73761.37 | H8: =+'11.1 Grants Approp Rsrv'!H27 -> 107678.86 | I8: =+'11.1 Grants Approp Rsrv'!I27 -> 105983.02 | J8: =+'11.1 Grants Approp Rsrv'!J27 -> 0 | K8: =+'11.1 Grants Approp Rsrv'!K27 -> 0 | L8: =+'11.1 Grants Approp Rsrv'!L27 -> 343869.72
L9: =+F9+G9+H9-I9+J9-K9 -> 0
L10: 0
L11: 0
L12: 0
L13: 0
L14: 0
A15: Sheet 11.2 | L15: 0
L16: 0
L17: 0
L18: 0
L19: 0
L20: 0
L21: 0
L22: 0
L23: 0
L24: 0
L25: 0
L26: 0
C27: PAGE TOTALS | F27: =SUM(F8:F26) -> 268412.51 | G27: =SUM(G8:G26) -> 73761.37 | H27: 107678.86 | I27: 105983.02 | J27: 0 | K27: 0 | L27: =SUM(L8:L26) -> 343869.72

Sheet 11.3 Grants Approp Rsrv (hidden)
B2: SCHEDULE OF APPROPRIATED RESERVES FOR
B3: FEDERAL AND STATE GRANTS
G4: ="Transferred from "&TEXT('KEY INPUTS'!D34,"0") -> Transferred from 2020
B5: Grant | F5: Balance | G5: Budget Appropriations | I5: Expended | J5: Other | K5: Cancelled | L5: Balance
F6: ='KEY INPUTS'!D47 -> Jan. 1, 2020 | G6: Budget | H6: Appropriation | L6: ='KEY INPUTS'!D46 -> Dec. 31, 2020
H7: By 40A:4-87
B8: PREVIOUS PAGE TOTALS | F8: =+'11.2 Grants Approp Rsrv'!F27 -> 268412.51 | G8: =+'11.2 Grants Approp Rsrv'!G27 -> 73761.37 | H8: =+'11.2 Grants Approp Rsrv'!H27 -> 107678.86 | I8: =+'11.2 Grants Approp Rsrv'!I27 -> 105983.02 | J8: =+'11.2 Grants Approp Rsrv'!J27 -> 0 | K8: =+'11.2 Grants Approp Rsrv'!K27 -> 0 | L8: =+'11.2 Grants Approp Rsrv'!L27 -> 343869.72
L9: =+F9+G9+H9-I9+J9-K9 -> 0
L10: 0
L11: 0
L12: 0
L13: 0
L14: 0
A15: Sheet 11.3 | L15: 0
L16: 0
L17: 0
L18: 0
L19: 0
L20: 0
L21: 0
L22: 0
L23: 0
L24: 0
L25: 0
L26: 0
C27: PAGE TOTALS | F27: =SUM(F8:F26) -> 268412.51 | G27: =SUM(G8:G26) -> 73761.37 | H27: 107678.86 | I27: 105983.02 | J27: 0 | K27: 0 | L27: =SUM(L8:L26) -> 343869.72

Sheet 11.4 Grants Approp Rsrv (hidden)
B2: SCHEDULE OF APPROPRIATED RESERVES FOR
B3: FEDERAL AND STATE GRANTS
G4: ="Transferred from "&TEXT('KEY INPUTS'!D34,"0") -> Transferred from 2020
B5: Grant | F5: Balance | G5: Budget Appropriations | I5: Expended | J5: Other | K5: Cancelled | L5: Balance
F6: ='KEY INPUTS'!D47 -> Jan. 1, 2020 | G6: Budget | H6: Appropriation | L6: ='KEY INPUTS'!D46 -> Dec. 31, 2020
H7: By 40A:4-87
B8: PREVIOUS PAGE TOTALS | F8: =+'11.3 Grants Approp Rsrv'!F27 -> 268412.51 | G8: =+'11.3 Grants Approp Rsrv'!G27 -> 73761.37 | H8: =+'11.3 Grants Approp Rsrv'!H27 -> 107678.86 | I8: =+'11.3 Grants Approp Rsrv'!I27 -> 105983.02 | J8: =+'11.3 Grants Approp Rsrv'!J27 -> 0 | K8: =+'11.3 Grants Approp Rsrv'!K27 -> 0 | L8: =+'11.3 Grants Approp Rsrv'!L27 -> 343869.72
L9: =+F9+G9+H9-I9+J9-K9 -> 0
L10: 0
L11: 0
L12: 0
L13: 0
L14: 0
A15: Sheet 11.4 | L15: 0
L16: 0
L17: 0
L18: 0
L19: 0
L20: 0
L21: 0
L22: 0
L23: 0
L24: 0
L25: 0
L26: 0
C27: PAGE TOTALS | F27: =SUM(F8:F26) -> 268412.51 | G27: =SUM(G8:G26) -> 73761.37 | H27: 107678.86 | I27: 105983.02 | J27: 0 | K27: 0 | L27: =SUM(L8:L26) -> 343869.72

Sheet 11.5 Grants Approp Rsrv (hidden)
B2: SCHEDULE OF APPROPRIATED RESERVES FOR
B3: FEDERAL AND STATE GRANTS
G4: ="Transferred from "&TEXT('KEY INPUTS'!D34,"0") -> Transferred from 2020
B5: Grant | F5: Balance | G5: Budget Appropriations | I5: Expended | J5: Other | K5: Cancelled | L5: Balance
F6: ='KEY INPUTS'!D47 -> Jan. 1, 2020 | G6: Budget | H6: Appropriation | L6: ='KEY INPUTS'!D46 -> Dec. 31, 2020
H7: By 40A:4-87
B8: PREVIOUS PAGE TOTALS | F8: =+'11.4 Grants Approp Rsrv'!F27 -> 268412.51 | G8: =+'11.4 Grants Approp Rsrv'!G27 -> 73761.37 | H8: =+'11.4 Grants Approp Rsrv'!H27 -> 107678.86 | I8: =+'11.4 Grants Approp Rsrv'!I27 -> 105983.02 | J8: =+'11.4 Grants Approp Rsrv'!J27 -> 0 | K8: =+'11.4 Grants Approp Rsrv'!K27 -> 0 | L8: =+'11.4 Grants Approp Rsrv'!L27 -> 343869.72
L9: =+F9+G9+H9-I9+J9-K9 -> 0
L10: 0
L11: 0
L12: 0
L13: 0
L14: 0
A15: Sheet 11.5 | L15: 0
L16: 0
L17: 0
L18: 0
L19: 0
L20: 0
L21: 0
L22: 0
L23: 0
L24: 0
L25: 0
L26: 0
C27: PAGE TOTALS | F27: =SUM(F8:F26) -> 268412.51 | G27: =SUM(G8:G26) -> 73761.37 | H27: 107678.86 | I27: 105983.02 | J27: 0 | K27: 0 | L27: =SUM(L8:L26) -> 343869.72

Sheet 11.6 Grants Approp Rsrv (hidden)
B2: SCHEDULE OF APPROPRIATED RESERVES FOR
B3: FEDERAL AND STATE GRANTS
G4: ="Transferred from "&TEXT('KEY INPUTS'!D34,"0") -> Transferred from 2020
B5: Grant | F5: Balance | G5: Budget Appropriations | I5: Expended | J5: Other | K5: Cancelled | L5: Balance
F6: ='KEY INPUTS'!D47 -> Jan. 1, 2020 | G6: Budget | H6: Appropriation | L6: ='KEY INPUTS'!D46 -> Dec. 31, 2020
H7: By 40A:4-87
B8: PREVIOUS PAGE TOTALS | F8: =+'11.5 Grants Approp Rsrv'!F27 -> 268412.51 | G8: =+'11.5 Grants Approp Rsrv'!G27 -> 73761.37 | H8: =+'11.5 Grants Approp Rsrv'!H27 -> 107678.86 | I8: =+'11.5 Grants Approp Rsrv'!I27 -> 105983.02 | J8: =+'11.5 Grants Approp Rsrv'!J27 -> 0 | K8: =+'11.5 Grants Approp Rsrv'!K27 -> 0 | L8: =+'11.5 Grants Approp Rsrv'!L27 -> 343869.72
L9: =+F9+G9+H9-I9+J9-K9 -> 0
L10: 0
L11: 0
L12: 0
L13: 0
L14: 0
A15: Sheet 11.6 | L15: 0
L16: 0
L17: 0
L18: 0
L19: 0
L20: 0
L21: 0
L22: 0
L23: 0
L24: 0
L25: 0
L26: 0
C27: PAGE TOTALS | F27: =SUM(F8:F26) -> 268412.51 | G27: =SUM(G8:G26) -> 73761.37 | H27: 107678.86 | I27: 105983.02 | J27: 0 | K27: 0 | L27: =SUM(L8:L26) -> 343869.72

Sheet 11.7 Grants Approp Rsrv (hidden)
B2: SCHEDULE OF APPROPRIATED RESERVES FOR
B3: FEDERAL AND STATE GRANTS
G4: ="Transferred from "&TEXT('KEY INPUTS'!D34,"0") -> Transferred from 2020
B5: Grant | F5: Balance | G5: Budget Appropriations | I5: Expended | J5: Other | K5: Cancelled | L5: Balance
F6: ='KEY INPUTS'!D47 -> Jan. 1, 2020 | G6: Budget | H6: Appropriation | L6: ='KEY INPUTS'!D46 -> Dec. 31, 2020
H7: By 40A:4-87
B8: PREVIOUS PAGE TOTALS | F8: =+'11.6 Grants Approp Rsrv'!F27 -> 268412.51 | G8: =+'11.6 Grants Approp Rsrv'!G27 -> 73761.37 | H8: =+'11.6 Grants Approp Rsrv'!H27 -> 107678.86 | I8: =+'11.6 Grants Approp Rsrv'!I27 -> 105983.02 | J8: =+'11.6 Grants Approp Rsrv'!J27 -> 0 | K8: =+'11.6 Grants Approp Rsrv'!K27 -> 0 | L8: =+'11.6 Grants Approp Rsrv'!L27 -> 343869.72
L9: =+F9+G9+H9-I9+J9-K9 -> 0
L10: 0
L11: 0
L12: 0
L13: 0
L14: 0
A15: Sheet 11.7 | L15: 0
L16: 0
L17: 0
L18: 0
L19: 0
L20: 0
L21: 0
L22: 0
L23: 0
L24: 0
L25: 0
L26: 0
C27: PAGE TOTALS | F27: =SUM(F8:F26) -> 268412.51 | G27: =SUM(G8:G26) -> 73761.37 | H27: 107678.86 | I27: 105983.02 | J27: 0 | K27: 0 | L27: =SUM(L8:L26) -> 343869.72

Sheet 11.8 Grants Approp Rsrv (hidden)
B2: SCHEDULE OF APPROPRIATED RESERVES FOR
B3: FEDERAL AND STATE GRANTS
G4: ="Transferred from "&TEXT('KEY INPUTS'!D34,"0") -> Transferred from 2020
B5: Grant | F5: Balance | G5: Budget Appropriations | I5: Expended | J5: Other | K5: Cancelled | L5: Balance
F6: ='KEY INPUTS'!D47 -> Jan. 1, 2020 | G6: Budget | H6: Appropriation | L6: ='KEY INPUTS'!D46 -> Dec. 31, 2020
H7: By 40A:4-87
B8: PREVIOUS PAGE TOTALS | F8: =+'11.7 Grants Approp Rsrv'!F27 -> 268412.51 | G8: =+'11.7 Grants Approp Rsrv'!G27 -> 73761.37 | H8: =+'11.7 Grants Approp Rsrv'!H27 -> 107678.86 | I8: =+'11.7 Grants Approp Rsrv'!I27 -> 105983.02 | J8: =+'11.7 Grants Approp Rsrv'!J27 -> 0 | K8: =+'11.7 Grants Approp Rsrv'!K27 -> 0 | L8: =+'11.7 Grants Approp Rsrv'!L27 -> 343869.72
L9: =+F9+G9+H9-I9+J9-K9 -> 0
L10: 0
L11: 0
L12: 0
L13: 0
L14: 0
A15: Sheet 11.8 | L15: 0
L16: 0
L17: 0
L18: 0
L19: 0
L20: 0
L21: 0
L22: 0
L23: 0
L24: 0
L25: 0
L26: 0
C27: PAGE TOTALS | F27: =SUM(F8:F26) -> 268412.51 | G27: =SUM(G8:G26) -> 73761.37 | H27: 107678.86 | I27: 105983.02 | J27: 0 | K27: 0 | L27: =SUM(L8:L26) -> 343869.72

Sheet 11.9 Grants Approp Rsrv (hidden)
B2: SCHEDULE OF APPROPRIATED RESERVES FOR
B3: FEDERAL AND STATE GRANTS
G4: ="Transferred from "&TEXT('KEY INPUTS'!D34,"0") -> Transferred from 2020
B5: Grant | F5: Balance | G5: Budget Appropriations | I5: Expended | J5: Other | K5: Cancelled | L5: Balance
F6: ='KEY INPUTS'!D47 -> Jan. 1, 2020 | G6: Budget | H6: Appropriation | L6: ='KEY INPUTS'!D46 -> Dec. 31, 2020
H7: By 40A:4-87
B8: PREVIOUS PAGE TOTALS | F8: =+'11.8 Grants Approp Rsrv'!F27 -> 268412.51 | G8: =+'11.8 Grants Approp Rsrv'!G27 -> 73761.37 | H8: =+'11.8 Grants Approp Rsrv'!H27 -> 107678.86 | I8: =+'11.8 Grants Approp Rsrv'!I27 -> 105983.02 | J8: =+'11.8 Grants Approp Rsrv'!J27 -> 0 | K8: =+'11.8 Grants Approp Rsrv'!K27 -> 0 | L8: =+'11.8 Grants Approp Rsrv'!L27 -> 343869.72
L9: =+F9+G9+H9-I9+J9-K9 -> 0
L10: 0
L11: 0
L12: 0
L13: 0
L14: 0
A15: Sheet 11.9 | L15: 0
L16: 0
L17: 0
L18: 0
L19: 0
L20: 0
L21: 0
L22: 0
L23: 0
L24: 0
L25: 0
L26: 0
C27: PAGE TOTALS | F27: =SUM(F8:F26) -> 268412.51 | G27: =SUM(G8:G26) -> 73761.37 | H27: 107678.86 | I27: 105983.02 | J27: 0 | K27: 0 | L27: =SUM(L8:L26) -> 343869.72

Sheet 11.10 Grants Approp Rsrv (hidden)
B2: SCHEDULE OF APPROPRIATED RESERVES FOR
B3: FEDERAL AND STATE GRANTS
G4: ="Transferred from "&TEXT('KEY INPUTS'!D34,"0") -> Transferred from 2020
B5: Grant | F5: Balance | G5: Budget Appropriations | I5: Expended | J5: Other | K5: Cancelled | L5: Balance
F6: ='KEY INPUTS'!D47 -> Jan. 1, 2020 | G6: Budget | H6: Appropriation | L6: ='KEY INPUTS'!D46 -> Dec. 31, 2020
H7: By 40A:4-87
B8: PREVIOUS PAGE TOTALS | F8: =+'11.9 Grants Approp Rsrv'!F27 -> 268412.51 | G8: =+'11.9 Grants Approp Rsrv'!G27 -> 73761.37 | H8: =+'11.9 Grants Approp Rsrv'!H27 -> 107678.86 | I8: =+'11.9 Grants Approp Rsrv'!I27 -> 105983.02 | J8: =+'11.9 Grants Approp Rsrv'!J27 -> 0 | K8: =+'11.9 Grants Approp Rsrv'!K27 -> 0 | L8: =+'11.9 Grants Approp Rsrv'!L27 -> 343869.72
L9: =+F9+G9+H9-I9+J9-K9 -> 0
L10: 0
L11: 0
L12: 0
L13: 0
L14: 0
A15: Sheet 11.10 | L15: 0
L16: 0
L17: 0
L18: 0
L19: 0
L20: 0
L21: 0
L22: 0
L23: 0
L24: 0
L25: 0
L26: 0
C27: PAGE TOTALS | F27: =SUM(F8:F26) -> 268412.51 | G27: =SUM(G8:G26) -> 73761.37 | H27: 107678.86 | I27: 105983.02 | J27: 0 | K27: 0 | L27: =SUM(L8:L26) -> 343869.72

Sheet 11.11 Grants Approp Rsrv (hidden)
B2: SCHEDULE OF APPROPRIATED RESERVES FOR
B3: FEDERAL AND STATE GRANTS
G4: ="Transferred from "&TEXT('KEY INPUTS'!D34,"0") -> Transferred from 2020
B5: Grant | F5: Balance | G5: Budget Appropriations | I5: Expended | J5: Other | K5: Cancelled | L5: Balance
F6: ='KEY INPUTS'!D47 -> Jan. 1, 2020 | G6: Budget | H6: Appropriation | L6: ='KEY INPUTS'!D46 -> Dec. 31, 2020
H7: By 40A:4-87
B8: PREVIOUS PAGE TOTALS | F8: =+'11.10 Grants Approp Rsrv'!F27 -> 268412.51 | G8: =+'11.10 Grants Approp Rsrv'!G27 -> 73761.37 | H8: =+'11.10 Grants Approp Rsrv'!H27 -> 107678.86 | I8: =+'11.10 Grants Approp Rsrv'!I27 -> 105983.02 | J8: =+'11.10 Grants Approp Rsrv'!J27 -> 0 | K8: =+'11.10 Grants Approp Rsrv'!K27 -> 0 | L8: =+'11.10 Grants Approp Rsrv'!L27 -> 343869.72
L9: =+F9+G9+H9-I9+J9-K9 -> 0
L10: 0
L11: 0
L12: 0
L13: 0
L14: 0
A15: Sheet 11.11 | L15: 0
L16: 0
L17: 0
L18: 0
L19: 0
L20: 0
L21: 0
L22: 0
L23: 0
L24: 0
L25: 0
L26: 0
C27: PAGE TOTALS | F27: =SUM(F8:F26) -> 268412.51 | G27: =SUM(G8:G26) -> 73761.37 | H27: 107678.86 | I27: 105983.02 | J27: 0 | K27: 0 | L27: =SUM(L8:L26) -> 343869.72

Sheet 11.12 Grants Approp Rsrv (hidden)
B2: SCHEDULE OF APPROPRIATED RESERVES FOR
B3: FEDERAL AND STATE GRANTS
G4: ="Transferred from "&TEXT('KEY INPUTS'!D34,"0") -> Transferred from 2020
B5: Grant | F5: Balance | G5: Budget Appropriations | I5: Expended | J5: Other | K5: Cancelled | L5: Balance
F6: ='KEY INPUTS'!D47 -> Jan. 1, 2020 | G6: Budget | H6: Appropriation | L6: ='KEY INPUTS'!D46 -> Dec. 31, 2020
H7: By 40A:4-87
B8: PREVIOUS PAGE TOTALS | F8: =+'11.11 Grants Approp Rsrv'!F27 -> 268412.51 | G8: =+'11.11 Grants Approp Rsrv'!G27 -> 73761.37 | H8: =+'11.11 Grants Approp Rsrv'!H27 -> 107678.86 | I8: =+'11.11 Grants Approp Rsrv'!I27 -> 105983.02 | J8: =+'11.11 Grants Approp Rsrv'!J27 -> 0 | K8: =+'11.11 Grants Approp Rsrv'!K27 -> 0 | L8: =+'11.11 Grants Approp Rsrv'!L27 -> 343869.72
L9: =+F9+G9+H9-I9+J9-K9 -> 0
L10: 0
L11: 0
L12: 0
L13: 0
L14: 0
A15: Sheet 11.12 | L15: 0
L16: 0
L17: 0
L18: 0
L19: 0
L20: 0
L21: 0
L22: 0
L23: 0
L24: 0
L25: 0
L26: 0
C27: PAGE TOTALS | F27: =SUM(F8:F26) -> 268412.51 | G27: =SUM(G8:G26) -> 73761.37 | H27: 107678.86 | I27: 105983.02 | J27: 0 | K27: 0 | L27: =SUM(L8:L26) -> 343869.72

Sheet 11.13 Grants Approp Rsrv (hidden)
B2: SCHEDULE OF APPROPRIATED RESERVES FOR
B3: FEDERAL AND STATE GRANTS
G4: ="Transferred from "&TEXT('KEY INPUTS'!D34,"0") -> Transferred from 2020
B5: Grant | F5: Balance | G5: Budget Appropriations | I5: Expended | J5: Other | K5: Cancelled | L5: Balance
F6: ='KEY INPUTS'!D47 -> Jan. 1, 2020 | G6: Budget | H6: Appropriation | L6: ='KEY INPUTS'!D46 -> Dec. 31, 2020
H7: By 40A:4-87
B8: PREVIOUS PAGE TOTALS | F8: =+'11.12 Grants Approp Rsrv'!F27 -> 268412.51 | G8: =+'11.12 Grants Approp Rsrv'!G27 -> 73761.37 | H8: =+'11.12 Grants Approp Rsrv'!H27 -> 107678.86 | I8: =+'11.12 Grants Approp Rsrv'!I27 -> 105983.02 | J8: =+'11.12 Grants Approp Rsrv'!J27 -> 0 | K8: =+'11.12 Grants Approp Rsrv'!K27 -> 0 | L8: =+'11.12 Grants Approp Rsrv'!L27 -> 343869.72
L9: =+F9+G9+H9-I9+J9-K9 -> 0
L10: 0
L11: 0
L12: 0
L13: 0
L14: 0
A15: Sheet 11.13 | L15: 0
L16: 0
L17: 0
L18: 0
L19: 0
L20: 0
L21: 0
L22: 0
L23: 0
L24: 0
L25: 0
L26: 0
C27: PAGE TOTALS | F27: =SUM(F8:F26) -> 268412.51 | G27: =SUM(G8:G26) -> 73761.37 | H27: 107678.86 | I27: 105983.02 | J27: 0 | K27: 0 | L27: =SUM(L8:L26) -> 343869.72

Sheet 11.14 Grants Approp Rsrv (hidden)
B2: SCHEDULE OF APPROPRIATED RESERVES FOR
B3: FEDERAL AND STATE GRANTS
G4: ="Transferred from "&TEXT('KEY INPUTS'!D34,"0") -> Transferred from 2020
B5: Grant | F5: Balance | G5: Budget Appropriations | I5: Expended | J5: Other | K5: Cancelled | L5: Balance
F6: ='KEY INPUTS'!D47 -> Jan. 1, 2020 | G6: Budget | H6: Appropriation | L6: ='KEY INPUTS'!D46 -> Dec. 31, 2020
H7: By 40A:4-87
B8: PREVIOUS PAGE TOTALS | F8: =+'11.13 Grants Approp Rsrv'!F27 -> 268412.51 | G8: =+'11.13 Grants Approp Rsrv'!G27 -> 73761.37 | H8: =+'11.13 Grants Approp Rsrv'!H27 -> 107678.86 | I8: =+'11.13 Grants Approp Rsrv'!I27 -> 105983.02 | J8: =+'11.13 Grants Approp Rsrv'!J27 -> 0 | K8: =+'11.13 Grants Approp Rsrv'!K27 -> 0 | L8: =+'11.13 Grants Approp Rsrv'!L27 -> 343869.72
L9: =+F9+G9+H9-I9+J9-K9 -> 0
L10: 0
L11: 0
L12: 0
L13: 0
L14: 0
A15: Sheet 11.14 | L15: 0
L16: 0
L17: 0
L18: 0
L19: 0
L20: 0
L21: 0
L22: 0
L23: 0
L24: 0
L25: 0
L26: 0
C27: PAGE TOTALS | F27: =SUM(F8:F26) -> 268412.51 | G27: =SUM(G8:G26) -> 73761.37 | H27: 107678.86 | I27: 105983.02 | J27: 0 | K27: 0 | L27: =SUM(L8:L26) -> 343869.72

Sheet 11.15 Grants Approp Rsrv (hidden)
B2: SCHEDULE OF APPROPRIATED RESERVES FOR
B3: FEDERAL AND STATE GRANTS
G4: ="Transferred from "&TEXT('KEY INPUTS'!D34,"0") -> Transferred from 2020
B5: Grant | F5: Balance | G5: Budget Appropriations | I5: Expended | J5: Other | K5: Cancelled | L5: Balance
F6: ='KEY INPUTS'!D47 -> Jan. 1, 2020 | G6: Budget | H6: Appropriation | L6: ='KEY INPUTS'!D46 -> Dec. 31, 2020
H7: By 40A:4-87
B8: PREVIOUS PAGE TOTALS | F8: =+'11.14 Grants Approp Rsrv'!F27 -> 268412.51 | G8: =+'11.14 Grants Approp Rsrv'!G27 -> 73761.37 | H8: =+'11.14 Grants Approp Rsrv'!H27 -> 107678.86 | I8: =+'11.14 Grants Approp Rsrv'!I27 -> 105983.02 | J8: =+'11.14 Grants Approp Rsrv'!J27 -> 0 | K8: =+'11.14 Grants Approp Rsrv'!K27 -> 0 | L8: =+'11.14 Grants Approp Rsrv'!L27 -> 343869.72
L9: =+F9+G9+H9-I9+J9-K9 -> 0
L10: 0
L11: 0
L12: 0
L13: 0
L14: 0
A15: Sheet 11.15 | L15: 0
L16: 0
L17: 0
L18: 0
L19: 0
L20: 0
L21: 0
L22: 0
L23: 0
L24: 0
L25: 0
L26: 0
C27: PAGE TOTALS | F27: =SUM(F8:F26) -> 268412.51 | G27: =SUM(G8:G26) -> 73761.37 | H27: 107678.86 | I27: 105983.02 | J27: 0 | K27: 0 | L27: =SUM(L8:L26) -> 343869.72

Sheet 11.16 Grants Approp Rsrv (hidden)
B2: SCHEDULE OF APPROPRIATED RESERVES FOR
B3: FEDERAL AND STATE GRANTS
G4: ="Transferred from "&TEXT('KEY INPUTS'!D34,"0") -> Transferred from 2020
B5: Grant | F5: Balance | G5: Budget Appropriations | I5: Expended | J5: Other | K5: Cancelled | L5: Balance
F6: ='KEY INPUTS'!D47 -> Jan. 1, 2020 | G6: Budget | H6: Appropriation | L6: ='KEY INPUTS'!D46 -> Dec. 31, 2020
H7: By 40A:4-87
B8: PREVIOUS PAGE TOTALS | F8: =+'11.15 Grants Approp Rsrv'!F27 -> 268412.51 | G8: =+'11.15 Grants Approp Rsrv'!G27 -> 73761.37 | H8: =+'11.15 Grants Approp Rsrv'!H27 -> 107678.86 | I8: =+'11.15 Grants Approp Rsrv'!I27 -> 105983.02 | J8: =+'11.15 Grants Approp Rsrv'!J27 -> 0 | K8: =+'11.15 Grants Approp Rsrv'!K27 -> 0 | L8: =+'11.15 Grants Approp Rsrv'!L27 -> 343869.72
L9: =+F9+G9+H9-I9+J9-K9 -> 0
L10: 0
L11: 0
L12: 0
L13: 0
L14: 0
A15: Sheet 11.16 | L15: 0
L16: 0
L17: 0
L18: 0
L19: 0
L20: 0
L21: 0
L22: 0
L23: 0
L24: 0
L25: 0
L26: 0
C27: PAGE TOTALS | F27: =SUM(F8:F26) -> 268412.51 | G27: =SUM(G8:G26) -> 73761.37 | H27: 107678.86 | I27: 105983.02 | J27: 0 | K27: 0 | L27: =SUM(L8:L26) -> 343869.72

Sheet 11.17 Grants Approp Rsrv (hidden)
B2: SCHEDULE OF APPROPRIATED RESERVES FOR
B3: FEDERAL AND STATE GRANTS
G4: ="Transferred from "&TEXT('KEY INPUTS'!D34,"0") -> Transferred from 2020
B5: Grant | F5: Balance | G5: Budget Appropriations | I5: Expended | J5: Other | K5: Cancelled | L5: Balance
F6: ='KEY INPUTS'!D47 -> Jan. 1, 2020 | G6: Budget | H6: Appropriation | L6: ='KEY INPUTS'!D46 -> Dec. 31, 2020
H7: By 40A:4-87
B8: PREVIOUS PAGE TOTALS | F8: =+'11.16 Grants Approp Rsrv'!F27 -> 268412.51 | G8: =+'11.16 Grants Approp Rsrv'!G27 -> 73761.37 | H8: =+'11.16 Grants Approp Rsrv'!H27 -> 107678.86 | I8: =+'11.16 Grants Approp Rsrv'!I27 -> 105983.02 | J8: =+'11.16 Grants Approp Rsrv'!J27 -> 0 | K8: =+'11.16 Grants Approp Rsrv'!K27 -> 0 | L8: =+'11.16 Grants Approp Rsrv'!L27 -> 343869.72
L9: =+F9+G9+H9-I9+J9-K9 -> 0
L10: 0
L11: 0
L12: 0
L13: 0
L14: 0
A15: Sheet 11.17 | L15: 0
L16: 0
L17: 0
L18: 0
L19: 0
L20: 0
L21: 0
L22: 0
L23: 0
L24: 0
L25: 0
L26: 0
C27: PAGE TOTALS | F27: =SUM(F8:F26) -> 268412.51 | G27: =SUM(G8:G26) -> 73761.37 | H27: 107678.86 | I27: 105983.02 | J27: 0 | K27: 0 | L27: =SUM(L8:L26) -> 343869.72

Sheet 11.18 Grants Approp Rsrv (hidden)
B2: SCHEDULE OF APPROPRIATED RESERVES FOR
B3: FEDERAL AND STATE GRANTS
G4: ="Transferred from "&TEXT('KEY INPUTS'!D34,"0") -> Transferred from 2020
B5: Grant | F5: Balance | G5: Budget Appropriations | I5: Expended | J5: Other | K5: Cancelled | L5: Balance
F6: ='KEY INPUTS'!D47 -> Jan. 1, 2020 | G6: Budget | H6: Appropriation | L6: ='KEY INPUTS'!D46 -> Dec. 31, 2020
H7: By 40A:4-87
B8: PREVIOUS PAGE TOTALS | F8: =+'11.17 Grants Approp Rsrv'!F27 -> 268412.51 | G8: =+'11.17 Grants Approp Rsrv'!G27 -> 73761.37 | H8: =+'11.17 Grants Approp Rsrv'!H27 -> 107678.86 | I8: =+'11.17 Grants Approp Rsrv'!I27 -> 105983.02 | J8: =+'11.17 Grants Approp Rsrv'!J27 -> 0 | K8: =+'11.17 Grants Approp Rsrv'!K27 -> 0 | L8: =+'11.17 Grants Approp Rsrv'!L27 -> 343869.72
L9: =+F9+G9+H9-I9+J9-K9 -> 0
L10: 0
L11: 0
L12: 0
L13: 0
L14: 0
A15: Sheet 11.18 | L15: 0
L16: 0
L17: 0
L18: 0
L19: 0
L20: 0
L21: 0
L22: 0
L23: 0
L24: 0
L25: 0
L26: 0
C27: PAGE TOTALS | F27: =SUM(F8:F26) -> 268412.51 | G27: =SUM(G8:G26) -> 73761.37 | H27: 107678.86 | I27: 105983.02 | J27: 0 | K27: 0 | L27: =SUM(L8:L26) -> 343869.72

Sheet 11.19 Grants Approp Rsrv (hidden)
B2: SCHEDULE OF APPROPRIATED RESERVES FOR
B3: FEDERAL AND STATE GRANTS
G4: ="Transferred from "&TEXT('KEY INPUTS'!D34,"0") -> Transferred from 2020
B5: Grant | F5: Balance | G5: Budget Appropriations | I5: Expended | J5: Other | K5: Cancelled | L5: Balance
F6: ='KEY INPUTS'!D47 -> Jan. 1, 2020 | G6: Budget | H6: Appropriation | L6: ='KEY INPUTS'!D46 -> Dec. 31, 2020
H7: By 40A:4-87
B8: PREVIOUS PAGE TOTALS | F8: =+'11.18 Grants Approp Rsrv'!F27 -> 268412.51 | G8: =+'11.18 Grants Approp Rsrv'!G27 -> 73761.37 | H8: =+'11.18 Grants Approp Rsrv'!H27 -> 107678.86 | I8: =+'11.18 Grants Approp Rsrv'!I27 -> 105983.02 | J8: =+'11.18 Grants Approp Rsrv'!J27 -> 0 | K8: =+'11.18 Grants Approp Rsrv'!K27 -> 0 | L8: =+'11.18 Grants Approp Rsrv'!L27 -> 343869.72
L9: =+F9+G9+H9-I9+J9-K9 -> 0
L10: 0
L11: 0
L12: 0
L13: 0
L14: 0
A15: Sheet 11.19 | L15: 0
L16: 0
L17: 0
L18: 0
L19: 0
L20: 0
L21: 0
L22: 0
L23: 0
L24: 0
L25: 0
L26: 0
C27: PAGE TOTALS | F27: =SUM(F8:F26) -> 268412.51 | G27: =SUM(G8:G26) -> 73761.37 | H27: 107678.86 | I27: 105983.02 | J27: 0 | K27: 0 | L27: =SUM(L8:L26) -> 343869.72

Sheet 11.20 Grants Approp Rsrv (hidden)
B2: SCHEDULE OF APPROPRIATED RESERVES FOR
B3: FEDERAL AND STATE GRANTS
G4: ="Transferred from "&TEXT('KEY INPUTS'!D34,"0") -> Transferred from 2020
B5: Grant | F5: Balance | G5: Budget Appropriations | I5: Expended | J5: Other | K5: Cancelled | L5: Balance
F6: ='KEY INPUTS'!D47 -> Jan. 1, 2020 | G6: Budget | H6: Appropriation | L6: ='KEY INPUTS'!D46 -> Dec. 31, 2020
H7: By 40A:4-87
B8: PREVIOUS PAGE TOTALS | F8: =+'11.19 Grants Approp Rsrv'!F27 -> 268412.51 | G8: =+'11.19 Grants Approp Rsrv'!G27 -> 73761.37 | H8: =+'11.19 Grants Approp Rsrv'!H27 -> 107678.86 | I8: =+'11.19 Grants Approp Rsrv'!I27 -> 105983.02 | J8: =+'11.19 Grants Approp Rsrv'!J27 -> 0 | K8: =+'11.19 Grants Approp Rsrv'!K27 -> 0 | L8: =+'11.19 Grants Approp Rsrv'!L27 -> 343869.72
L9: =+F9+G9+H9-I9+J9-K9 -> 0
L10: 0
L11: 0
L12: 0
L13: 0
L14: 0
A15: Sheet 11.20 | L15: 0
L16: 0
L17: 0
L18: 0
L19: 0
L20: 0
L21: 0
L22: 0
L23: 0
L24: 0
L25: 0
L26: 0
C27: PAGE TOTALS | F27: =SUM(F8:F26) -> 268412.51 | G27: =SUM(G8:G26) -> 73761.37 | H27: 107678.86 | I27: 105983.02 | J27: 0 | K27: 0 | L27: =SUM(L8:L26) -> 343869.72

Sheet 11.21 Grants Approp Rsrv (hidden)
B2: SCHEDULE OF APPROPRIATED RESERVES FOR
B3: FEDERAL AND STATE GRANTS
G4: ="Transferred from "&TEXT('KEY INPUTS'!D34,"0") -> Transferred from 2020
B5: Grant | F5: Balance | G5: Budget Appropriations | I5: Expended | J5: Other | K5: Cancelled | L5: Balance
F6: ='KEY INPUTS'!D47 -> Jan. 1, 2020 | G6: Budget | H6: Appropriation | L6: ='KEY INPUTS'!D46 -> Dec. 31, 2020
H7: By 40A:4-87
B8: PREVIOUS PAGE TOTALS | F8: =+'11.20 Grants Approp Rsrv'!F27 -> 268412.51 | G8: =+'11.20 Grants Approp Rsrv'!G27 -> 73761.37 | H8: =+'11.20 Grants Approp Rsrv'!H27 -> 107678.86 | I8: =+'11.20 Grants Approp Rsrv'!I27 -> 105983.02 | J8: =+'11.20 Grants Approp Rsrv'!J27 -> 0 | K8: =+'11.20 Grants Approp Rsrv'!K27 -> 0 | L8: =+'11.20 Grants Approp Rsrv'!L27 -> 343869.72
L9: =+F9+G9+H9-I9+J9-K9 -> 0
L10: 0
L11: 0
L12: 0
L13: 0
L14: 0
A15: Sheet 11.21 | L15: 0
L16: 0
L17: 0
L18: 0
L19: 0
L20: 0
L21: 0
L22: 0
L23: 0
L24: 0
L25: 0
L26: 0
C27: PAGE TOTALS | F27: =SUM(F8:F26) -> 268412.51 | G27: =SUM(G8:G26) -> 73761.37 | H27: 107678.86 | I27: 105983.02 | J27: 0 | K27: 0 | L27: =SUM(L8:L26) -> 343869.72

Sheet 11.22 Grants Approp Rsrv (hidden)
B2: SCHEDULE OF APPROPRIATED RESERVES FOR
B3: FEDERAL AND STATE GRANTS
G4: ="Transferred from "&TEXT('KEY INPUTS'!D34,"0") -> Transferred from 2020
B5: Grant | F5: Balance | G5: Budget Appropriations | I5: Expended | J5: Other | K5: Cancelled | L5: Balance
F6: ='KEY INPUTS'!D47 -> Jan. 1, 2020 | G6: Budget | H6: Appropriation | L6: ='KEY INPUTS'!D46 -> Dec. 31, 2020
H7: By 40A:4-87
B8: PREVIOUS PAGE TOTALS | F8: =+'11.21 Grants Approp Rsrv'!F27 -> 268412.51 | G8: =+'11.21 Grants Approp Rsrv'!G27 -> 73761.37 | H8: =+'11.21 Grants Approp Rsrv'!H27 -> 107678.86 | I8: =+'11.21 Grants Approp Rsrv'!I27 -> 105983.02 | J8: =+'11.21 Grants Approp Rsrv'!J27 -> 0 | K8: =+'11.21 Grants Approp Rsrv'!K27 -> 0 | L8: =+'11.21 Grants Approp Rsrv'!L27 -> 343869.72
L9: =+F9+G9+H9-I9+J9-K9 -> 0
L10: 0
L11: 0
L12: 0
L13: 0
L14: 0
A15: Sheet 11.22 | L15: 0
L16: 0
L17: 0
L18: 0
L19: 0
L20: 0
L21: 0
L22: 0
L23: 0
L24: 0
L25: 0
L26: 0
C27: PAGE TOTALS | F27: =SUM(F8:F26) -> 268412.51 | G27: =SUM(G8:G26) -> 73761.37 | H27: 107678.86 | I27: 105983.02 | J27: 0 | K27: 0 | L27: =SUM(L8:L26) -> 343869.72

Sheet 11.23 Grants Approp Rsrv (hidden)
B2: SCHEDULE OF APPROPRIATED RESERVES FOR
B3: FEDERAL AND STATE GRANTS
G4: ="Transferred from "&TEXT('KEY INPUTS'!D34,"0") -> Transferred from 2020
B5: Grant | F5: Balance | G5: Budget Appropriations | I5: Expended | J5: Other | K5: Cancelled | L5: Balance
F6: ='KEY INPUTS'!D47 -> Jan. 1, 2020 | G6: Budget | H6: Appropriation | L6: ='KEY INPUTS'!D46 -> Dec. 31, 2020
H7: By 40A:4-87
B8: PREVIOUS PAGE TOTALS | F8: =+'11.22 Grants Approp Rsrv'!F27 -> 268412.51 | G8: =+'11.22 Grants Approp Rsrv'!G27 -> 73761.37 | H8: =+'11.22 Grants Approp Rsrv'!H27 -> 107678.86 | I8: =+'11.22 Grants Approp Rsrv'!I27 -> 105983.02 | J8: =+'11.22 Grants Approp Rsrv'!J27 -> 0 | K8: =+'11.22 Grants Approp Rsrv'!K27 -> 0 | L8: =+'11.22 Grants Approp Rsrv'!L27 -> 343869.72
L9: =+F9+G9+H9-I9+J9-K9 -> 0
L10: 0
L11: 0
L12: 0
L13: 0
L14: 0
A15: Sheet 11.23 | L15: 0
L16: 0
L17: 0
L18: 0
L19: 0
L20: 0
L21: 0
L22: 0
L23: 0
L24: 0
L25: 0
L26: 0
C27: PAGE TOTALS | F27: =SUM(F8:F26) -> 268412.51 | G27: =SUM(G8:G26) -> 73761.37 | H27: 107678.86 | I27: 105983.02 | J27: 0 | K27: 0 | L27: =SUM(L8:L26) -> 343869.72

Sheet 11.24 Grants Approp Rsrv (hidden)
B2: SCHEDULE OF APPROPRIATED RESERVES FOR
B3: FEDERAL AND STATE GRANTS
G4: ="Transferred from "&TEXT('KEY INPUTS'!D34,"0") -> Transferred from 2020
B5: Grant | F5: Balance | G5: Budget Appropriations | I5: Expended | J5: Other | K5: Cancelled | L5: Balance
F6: ='KEY INPUTS'!D47 -> Jan. 1, 2020 | G6: Budget | H6: Appropriation | L6: ='KEY INPUTS'!D46 -> Dec. 31, 2020
H7: By 40A:4-87
B8: PREVIOUS PAGE TOTALS | F8: =+'11.23 Grants Approp Rsrv'!F27 -> 268412.51 | G8: =+'11.23 Grants Approp Rsrv'!G27 -> 73761.37 | H8: =+'11.23 Grants Approp Rsrv'!H27 -> 107678.86 | I8: =+'11.23 Grants Approp Rsrv'!I27 -> 105983.02 | J8: =+'11.23 Grants Approp Rsrv'!J27 -> 0 | K8: =+'11.23 Grants Approp Rsrv'!K27 -> 0 | L8: =+'11.23 Grants Approp Rsrv'!L27 -> 343869.72
L9: =+F9+G9+H9-I9+J9-K9 -> 0
L10: 0
L11: 0
L12: 0
L13: 0
L14: 0
A15: Sheet 11.24 | L15: 0
L16: 0
L17: 0
L18: 0
L19: 0
L20: 0
L21: 0
L22: 0
L23: 0
L24: 0
L25: 0
L26: 0
C27: PAGE TOTALS | F27: =SUM(F8:F26) -> 268412.51 | G27: =SUM(G8:G26) -> 73761.37 | H27: 107678.86 | I27: 105983.02 | J27: 0 | K27: 0 | L27: =SUM(L8:L26) -> 343869.72

Sheet 11.25 Grants Approp Rsrv (hidden)
B2: SCHEDULE OF APPROPRIATED RESERVES FOR
B3: FEDERAL AND STATE GRANTS
G4: ="Transferred from "&TEXT('KEY INPUTS'!D34,"0") -> Transferred from 2020
B5: Grant | F5: Balance | G5: Budget Appropriations | I5: Expended | J5: Other | K5: Cancelled | L5: Balance
F6: ='KEY INPUTS'!D47 -> Jan. 1, 2020 | G6: Budget | H6: Appropriation | L6: ='KEY INPUTS'!D46 -> Dec. 31, 2020
H7: By 40A:4-87
B8: PREVIOUS PAGE TOTALS | F8: =+'11.24 Grants Approp Rsrv'!F27 -> 268412.51 | G8: =+'11.24 Grants Approp Rsrv'!G27 -> 73761.37 | H8: =+'11.24 Grants Approp Rsrv'!H27 -> 107678.86 | I8: =+'11.24 Grants Approp Rsrv'!I27 -> 105983.02 | J8: =+'11.24 Grants Approp Rsrv'!J27 -> 0 | K8: =+'11.24 Grants Approp Rsrv'!K27 -> 0 | L8: =+'11.24 Grants Approp Rsrv'!L27 -> 343869.72
L9: =+F9+G9+H9-I9+J9-K9 -> 0
L10: 0
L11: 0
L12: 0
L13: 0
L14: 0
A15: Sheet 11.25 | L15: 0
L16: 0
L17: 0
L18: 0
L19: 0
L20: 0
L21: 0
L22: 0
L23: 0
L24: 0
L25: 0
L26: 0
C27: PAGE TOTALS | F27: =SUM(F8:F26) -> 268412.51 | G27: =SUM(G8:G26) -> 73761.37 | H27: 107678.86 | I27: 105983.02 | J27: 0 | K27: 0 | L27: =SUM(L8:L26) -> 343869.72

Sheet 11.26 Grants Approp Rsrv (hidden)
B2: SCHEDULE OF APPROPRIATED RESERVES FOR
B3: FEDERAL AND STATE GRANTS
G4: ="Transferred from "&TEXT('KEY INPUTS'!D34,"0") -> Transferred from 2020
B5: Grant | F5: Balance | G5: Budget Appropriations | I5: Expended | J5: Other | K5: Cancelled | L5: Balance
F6: ='KEY INPUTS'!D47 -> Jan. 1, 2020 | G6: Budget | H6: Appropriation | L6: ='KEY INPUTS'!D46 -> Dec. 31, 2020
H7: By 40A:4-87
B8: PREVIOUS PAGE TOTALS | F8: =+'11.25 Grants Approp Rsrv'!F27 -> 268412.51 | G8: =+'11.25 Grants Approp Rsrv'!G27 -> 73761.37 | H8: =+'11.25 Grants Approp Rsrv'!H27 -> 107678.86 | I8: =+'11.25 Grants Approp Rsrv'!I27 -> 105983.02 | J8: =+'11.25 Grants Approp Rsrv'!J27 -> 0 | K8: =+'11.25 Grants Approp Rsrv'!K27 -> 0 | L8: =+'11.25 Grants Approp Rsrv'!L27 -> 343869.72
L9: =+F9+G9+H9-I9+J9-K9 -> 0
L10: 0
L11: 0
L12: 0
L13: 0
L14: 0
A15: Sheet 11.26 | L15: 0
L16: 0
L17: 0
L18: 0
L19: 0
L20: 0
L21: 0
L22: 0
L23: 0
L24: 0
L25: 0
L26: 0
C27: PAGE TOTALS | F27: =SUM(F8:F26) -> 268412.51 | G27: =SUM(G8:G26) -> 73761.37 | H27: 107678.86 | I27: 105983.02 | J27: 0 | K27: 0 | L27: =SUM(L8:L26) -> 343869.72

Sheet 11.27 Grants Approp Rsrv (hidden)
B2: SCHEDULE OF APPROPRIATED RESERVES FOR
B3: FEDERAL AND STATE GRANTS
G4: ="Transferred from "&TEXT('KEY INPUTS'!D34,"0") -> Transferred from 2020
B5: Grant | F5: Balance | G5: Budget Appropriations | I5: Expended | J5: Other | K5: Cancelled | L5: Balance
F6: ='KEY INPUTS'!D47 -> Jan. 1, 2020 | G6: Budget | H6: Appropriation | L6: ='KEY INPUTS'!D46 -> Dec. 31, 2020
H7: By 40A:4-87
B8: PREVIOUS PAGE TOTALS | F8: =+'11.26 Grants Approp Rsrv'!F27 -> 268412.51 | G8: =+'11.26 Grants Approp Rsrv'!G27 -> 73761.37 | H8: =+'11.26 Grants Approp Rsrv'!H27 -> 107678.86 | I8: =+'11.26 Grants Approp Rsrv'!I27 -> 105983.02 | J8: =+'11.26 Grants Approp Rsrv'!J27 -> 0 | K8: =+'11.26 Grants Approp Rsrv'!K27 -> 0 | L8: =+'11.26 Grants Approp Rsrv'!L27 -> 343869.72
L9: =+F9+G9+H9-I9+J9-K9 -> 0
L10: 0
L11: 0
L12: 0
L13: 0
L14: 0
A15: Sheet 11.27 | L15: 0
L16: 0
L17: 0
L18: 0
L19: 0
L20: 0
L21: 0
L22: 0
L23: 0
L24: 0
L25: 0
L26: 0
C27: PAGE TOTALS | F27: =SUM(F8:F26) -> 268412.51 | G27: =SUM(G8:G26) -> 73761.37 | H27: 107678.86 | I27: 105983.02 | J27: 0 | K27: 0 | L27: =SUM(L8:L26) -> 343869.72

Sheet 11.28 Grants Approp Rsrv (hidden)
B2: SCHEDULE OF APPROPRIATED RESERVES FOR
B3: FEDERAL AND STATE GRANTS
G4: ="Transferred from "&TEXT('KEY INPUTS'!D34,"0") -> Transferred from 2020
B5: Grant | F5: Balance | G5: Budget Appropriations | I5: Expended | J5: Other | K5: Cancelled | L5: Balance
F6: ='KEY INPUTS'!D47 -> Jan. 1, 2020 | G6: Budget | H6: Appropriation | L6: ='KEY INPUTS'!D46 -> Dec. 31, 2020
H7: By 40A:4-87
B8: PREVIOUS PAGE TOTALS | F8: =+'11.27 Grants Approp Rsrv'!F27 -> 268412.51 | G8: =+'11.27 Grants Approp Rsrv'!G27 -> 73761.37 | H8: =+'11.27 Grants Approp Rsrv'!H27 -> 107678.86 | I8: =+'11.27 Grants Approp Rsrv'!I27 -> 105983.02 | J8: =+'11.27 Grants Approp Rsrv'!J27 -> 0 | K8: =+'11.27 Grants Approp Rsrv'!K27 -> 0 | L8: =+'11.27 Grants Approp Rsrv'!L27 -> 343869.72
L9: =+F9+G9+H9-I9+J9-K9 -> 0
L10: 0
L11: 0
L12: 0
L13: 0
L14: 0
A15: Sheet 11.28 | L15: 0
L16: 0
L17: 0
L18: 0
L19: 0
L20: 0
L21: 0
L22: 0
L23: 0
L24: 0
L25: 0
L26: 0
C27: PAGE TOTALS | F27: =SUM(F8:F26) -> 268412.51 | G27: =SUM(G8:G26) -> 73761.37 | H27: 107678.86 | I27: 105983.02 | J27: 0 | K27: 0 | L27: =SUM(L8:L26) -> 343869.72

Sheet 11.29 Grants Approp Rsrv (hidden)
B2: SCHEDULE OF APPROPRIATED RESERVES FOR
B3: FEDERAL AND STATE GRANTS
G4: ="Transferred from "&TEXT('KEY INPUTS'!D34,"0") -> Transferred from 2020
B5: Grant | F5: Balance | G5: Budget Appropriations | I5: Expended | J5: Other | K5: Cancelled | L5: Balance
F6: ='KEY INPUTS'!D47 -> Jan. 1, 2020 | G6: Budget | H6: Appropriation | L6: ='KEY INPUTS'!D46 -> Dec. 31, 2020
H7: By 40A:4-87
B8: PREVIOUS PAGE TOTALS | F8: =+'11.28 Grants Approp Rsrv'!F27 -> 268412.51 | G8: =+'11.28 Grants Approp Rsrv'!G27 -> 73761.37 | H8: =+'11.28 Grants Approp Rsrv'!H27 -> 107678.86 | I8: =+'11.28 Grants Approp Rsrv'!I27 -> 105983.02 | J8: =+'11.28 Grants Approp Rsrv'!J27 -> 0 | K8: =+'11.28 Grants Approp Rsrv'!K27 -> 0 | L8: =+'11.28 Grants Approp Rsrv'!L27 -> 343869.72
L9: =+F9+G9+H9-I9+J9-K9 -> 0
L10: 0
L11: 0
L12: 0
L13: 0
L14: 0
A15: Sheet 11.29 | L15: 0
L16: 0
L17: 0
L18: 0
L19: 0
L20: 0
L21: 0
L22: 0
L23: 0
L24: 0
L25: 0
L26: 0
C27: PAGE TOTALS | F27: =SUM(F8:F26) -> 268412.51 | G27: =SUM(G8:G26) -> 73761.37 | H27: 107678.86 | I27: 105983.02 | J27: 0 | K27: 0 | L27: =SUM(L8:L26) -> 343869.72

Sheet 11.30 Grants Approp Rsrv (hidden)
B2: SCHEDULE OF APPROPRIATED RESERVES FOR
B3: FEDERAL AND STATE GRANTS
G4: ="Transferred from "&TEXT('KEY INPUTS'!D34,"0") -> Transferred from 2020
B5: Grant | F5: Balance | G5: Budget Appropriations | I5: Expended | J5: Other | K5: Cancelled | L5: Balance
F6: ='KEY INPUTS'!D47 -> Jan. 1, 2020 | G6: Budget | H6: Appropriation | L6: ='KEY INPUTS'!D46 -> Dec. 31, 2020
H7: By 40A:4-87
B8: PREVIOUS PAGE TOTALS | F8: =+'11.29 Grants Approp Rsrv'!F27 -> 268412.51 | G8: =+'11.29 Grants Approp Rsrv'!G27 -> 73761.37 | H8: =+'11.29 Grants Approp Rsrv'!H27 -> 107678.86 | I8: =+'11.29 Grants Approp Rsrv'!I27 -> 105983.02 | J8: =+'11.29 Grants Approp Rsrv'!J27 -> 0 | K8: =+'11.29 Grants Approp Rsrv'!K27 -> 0 | L8: =+'11.29 Grants Approp Rsrv'!L27 -> 343869.72
L9: =+F9+G9+H9-I9+J9-K9 -> 0
L10: 0
L11: 0
L12: 0
L13: 0
L14: 0
A15: Sheet 11.30 | L15: 0
L16: 0
L17: 0
L18: 0
L19: 0
L20: 0
L21: 0
L22: 0
L23: 0
L24: 0
L25: 0
L26: 0
C27: PAGE TOTALS | F27: =SUM(F8:F26) -> 268412.51 | G27: =SUM(G8:G26) -> 73761.37 | H27: 107678.86 | I27: 105983.02 | J27: 0 | K27: 0 | L27: =SUM(L8:L26) -> 343869.72

Sheet 11.31 Grants Approp Rsrv (hidden)
B2: SCHEDULE OF APPROPRIATED RESERVES FOR
B3: FEDERAL AND STATE GRANTS
G4: ="Transferred from "&TEXT('KEY INPUTS'!D34,"0") -> Transferred from 2020
B5: Grant | F5: Balance | G5: Budget Appropriations | I5: Expended | J5: Other | K5: Cancelled | L5: Balance
F6: ='KEY INPUTS'!D47 -> Jan. 1, 2020 | G6: Budget | H6: Appropriation | L6: ='KEY INPUTS'!D46 -> Dec. 31, 2020
H7: By 40A:4-87
B8: PREVIOUS PAGE TOTALS | F8: =+'11.30 Grants Approp Rsrv'!F27 -> 268412.51 | G8: =+'11.30 Grants Approp Rsrv'!G27 -> 73761.37 | H8: =+'11.30 Grants Approp Rsrv'!H27 -> 107678.86 | I8: =+'11.30 Grants Approp Rsrv'!I27 -> 105983.02 | J8: =+'11.30 Grants Approp Rsrv'!J27 -> 0 | K8: =+'11.30 Grants Approp Rsrv'!K27 -> 0 | L8: =+'11.30 Grants Approp Rsrv'!L27 -> 343869.72
L9: =+F9+G9+H9-I9+J9-K9 -> 0
L10: 0
L11: 0
L12: 0
L13: 0
L14: 0
A15: Sheet 11.31 | L15: 0
L16: 0
L17: 0
L18: 0
L19: 0
L20: 0
L21: 0
L22: 0
L23: 0
L24: 0
L25: 0
L26: 0
C27: PAGE TOTALS | F27: =SUM(F8:F26) -> 268412.51 | G27: =SUM(G8:G26) -> 73761.37 | H27: 107678.86 | I27: 105983.02 | J27: 0 | K27: 0 | L27: =SUM(L8:L26) -> 343869.72

Sheet 11.32 Grants Approp Rsrv (hidden)
B2: SCHEDULE OF APPROPRIATED RESERVES FOR
B3: FEDERAL AND STATE GRANTS
G4: ="Transferred from "&TEXT('KEY INPUTS'!D34,"0") -> Transferred from 2020
B5: Grant | F5: Balance | G5: Budget Appropriations | I5: Expended | J5: Other | K5: Cancelled | L5: Balance
F6: ='KEY INPUTS'!D47 -> Jan. 1, 2020 | G6: Budget | H6: Appropriation | L6: ='KEY INPUTS'!D46 -> Dec. 31, 2020
H7: By 40A:4-87
B8: PREVIOUS PAGE TOTALS | F8: =+'11.31 Grants Approp Rsrv'!F27 -> 268412.51 | G8: =+'11.31 Grants Approp Rsrv'!G27 -> 73761.37 | H8: =+'11.31 Grants Approp Rsrv'!H27 -> 107678.86 | I8: =+'11.31 Grants Approp Rsrv'!I27 -> 105983.02 | J8: =+'11.31 Grants Approp Rsrv'!J27 -> 0 | K8: =+'11.31 Grants Approp Rsrv'!K27 -> 0 | L8: =+'11.31 Grants Approp Rsrv'!L27 -> 343869.72
L9: =+F9+G9+H9-I9+J9-K9 -> 0
L10: 0
L11: 0
L12: 0
L13: 0
L14: 0
A15: Sheet 11.32 | L15: 0
L16: 0
L17: 0
L18: 0
L19: 0
L20: 0
L21: 0
L22: 0
L23: 0
L24: 0
L25: 0
L26: 0
C27: PAGE TOTALS | F27: =SUM(F8:F26) -> 268412.51 | G27: =SUM(G8:G26) -> 73761.37 | H27: 107678.86 | I27: 105983.02 | J27: 0 | K27: 0 | L27: =SUM(L8:L26) -> 343869.72

Sheet 11.33 Grants Approp Rsrv (hidden)
B2: SCHEDULE OF APPROPRIATED RESERVES FOR
B3: FEDERAL AND STATE GRANTS
G4: ="Transferred from "&TEXT('KEY INPUTS'!D34,"0") -> Transferred from 2020
B5: Grant | F5: Balance | G5: Budget Appropriations | I5: Expended | J5: Other | K5: Cancelled | L5: Balance
F6: ='KEY INPUTS'!D47 -> Jan. 1, 2020 | G6: Budget | H6: Appropriation | L6: ='KEY INPUTS'!D46 -> Dec. 31, 2020
H7: By 40A:4-87
B8: PREVIOUS PAGE TOTALS | F8: =+'11.32 Grants Approp Rsrv'!F27 -> 268412.51 | G8: =+'11.32 Grants Approp Rsrv'!G27 -> 73761.37 | H8: =+'11.32 Grants Approp Rsrv'!H27 -> 107678.86 | I8: =+'11.32 Grants Approp Rsrv'!I27 -> 105983.02 | J8: =+'11.32 Grants Approp Rsrv'!J27 -> 0 | K8: =+'11.32 Grants Approp Rsrv'!K27 -> 0 | L8: =+'11.32 Grants Approp Rsrv'!L27 -> 343869.72
L9: =+F9+G9+H9-I9+J9-K9 -> 0
L10: 0
L11: 0
L12: 0
L13: 0
L14: 0
A15: Sheet 11.33 | L15: 0
L16: 0
L17: 0
L18: 0
L19: 0
L20: 0
L21: 0
L22: 0
L23: 0
L24: 0
L25: 0
L26: 0
C27: PAGE TOTALS | F27: =SUM(F8:F26) -> 268412.51 | G27: =SUM(G8:G26) -> 73761.37 | H27: 107678.86 | I27: 105983.02 | J27: 0 | K27: 0 | L27: =SUM(L8:L26) -> 343869.72

Sheet 11.34 Grants Approp Rsrv (hidden)
B2: SCHEDULE OF APPROPRIATED RESERVES FOR
B3: FEDERAL AND STATE GRANTS
G4: ="Transferred from "&TEXT('KEY INPUTS'!D34,"0") -> Transferred from 2020
B5: Grant | F5: Balance | G5: Budget Appropriations | I5: Expended | J5: Other | K5: Cancelled | L5: Balance
F6: ='KEY INPUTS'!D47 -> Jan. 1, 2020 | G6: Budget | H6: Appropriation | L6: ='KEY INPUTS'!D46 -> Dec. 31, 2020
H7: By 40A:4-87
B8: PREVIOUS PAGE TOTALS | F8: =+'11.33 Grants Approp Rsrv'!F27 -> 268412.51 | G8: =+'11.33 Grants Approp Rsrv'!G27 -> 73761.37 | H8: =+'11.33 Grants Approp Rsrv'!H27 -> 107678.86 | I8: =+'11.33 Grants Approp Rsrv'!I27 -> 105983.02 | J8: =+'11.33 Grants Approp Rsrv'!J27 -> 0 | K8: =+'11.33 Grants Approp Rsrv'!K27 -> 0 | L8: =+'11.33 Grants Approp Rsrv'!L27 -> 343869.72
L9: =+F9+G9+H9-I9+J9-K9 -> 0
L10: 0
L11: 0
L12: 0
L13: 0
L14: 0
A15: Sheet 11.34 | L15: 0
L16: 0
L17: 0
L18: 0
L19: 0
L20: 0
L21: 0
L22: 0
L23: 0
L24: 0
L25: 0
L26: 0
C27: PAGE TOTALS | F27: =SUM(F8:F26) -> 268412.51 | G27: =SUM(G8:G26) -> 73761.37 | H27: 107678.86 | I27: 105983.02 | J27: 0 | K27: 0 | L27: =SUM(L8:L26) -> 343869.72

Sheet 11.35 Grants Approp Rsrv (hidden)
B2: SCHEDULE OF APPROPRIATED RESERVES FOR
B3: FEDERAL AND STATE GRANTS
G4: ="Transferred from "&TEXT('KEY INPUTS'!D34,"0") -> Transferred from 2020
B5: Grant | F5: Balance | G5: Budget Appropriations | I5: Expended | J5: Other | K5: Cancelled | L5: Balance
F6: ='KEY INPUTS'!D47 -> Jan. 1, 2020 | G6: Budget | H6: Appropriation | L6: ='KEY INPUTS'!D46 -> Dec. 31, 2020
H7: By 40A:4-87
B8: PREVIOUS PAGE TOTALS | F8: =+'11.34 Grants Approp Rsrv'!F27 -> 268412.51 | G8: =+'11.34 Grants Approp Rsrv'!G27 -> 73761.37 | H8: =+'11.34 Grants Approp Rsrv'!H27 -> 107678.86 | I8: =+'11.34 Grants Approp Rsrv'!I27 -> 105983.02 | J8: =+'11.34 Grants Approp Rsrv'!J27 -> 0 | K8: =+'11.34 Grants Approp Rsrv'!K27 -> 0 | L8: =+'11.34 Grants Approp Rsrv'!L27 -> 343869.72
L9: =+F9+G9+H9-I9+J9-K9 -> 0
L10: 0
L11: 0
L12: 0
L13: 0
L14: 0
A15: Sheet 11.35 | L15: 0
L16: 0
L17: 0
L18: 0
L19: 0
L20: 0
L21: 0
L22: 0
L23: 0
L24: 0
L25: 0
L26: 0
C27: PAGE TOTALS | F27: =SUM(F8:F26) -> 268412.51 | G27: =SUM(G8:G26) -> 73761.37 | H27: 107678.86 | I27: 105983.02 | J27: 0 | K27: 0 | L27: =SUM(L8:L26) -> 343869.72

Sheet 11.36 Grants Approp Rsrv (hidden)
B2: SCHEDULE OF APPROPRIATED RESERVES FOR
B3: FEDERAL AND STATE GRANTS
G4: ="Transferred from "&TEXT('KEY INPUTS'!D34,"0") -> Transferred from 2020
B5: Grant | F5: Balance | G5: Budget Appropriations | I5: Expended | J5: Other | K5: Cancelled | L5: Balance
F6: ='KEY INPUTS'!D47 -> Jan. 1, 2020 | G6: Budget | H6: Appropriation | L6: ='KEY INPUTS'!D46 -> Dec. 31, 2020
H7: By 40A:4-87
B8: PREVIOUS PAGE TOTALS | F8: =+'11.35 Grants Approp Rsrv'!F27 -> 268412.51 | G8: =+'11.35 Grants Approp Rsrv'!G27 -> 73761.37 | H8: =+'11.35 Grants Approp Rsrv'!H27 -> 107678.86 | I8: =+'11.35 Grants Approp Rsrv'!I27 -> 105983.02 | J8: =+'11.35 Grants Approp Rsrv'!J27 -> 0 | K8: =+'11.35 Grants Approp Rsrv'!K27 -> 0 | L8: =+'11.35 Grants Approp Rsrv'!L27 -> 343869.72
L9: =+F9+G9+H9-I9+J9-K9 -> 0
L10: 0
L11: 0
L12: 0
L13: 0
L14: 0
A15: Sheet 11.36 | L15: 0
L16: 0
L17: 0
L18: 0
L19: 0
L20: 0
L21: 0
L22: 0
L23: 0
L24: 0
L25: 0
L26: 0
C27: PAGE TOTALS | F27: =SUM(F8:F26) -> 268412.51 | G27: =SUM(G8:G26) -> 73761.37 | H27: 107678.86 | I27: 105983.02 | J27: 0 | K27: 0 | L27: =SUM(L8:L26) -> 343869.72

Sheet 11.37 Grants Approp Rsrv (hidden)
B2: SCHEDULE OF APPROPRIATED RESERVES FOR
B3: FEDERAL AND STATE GRANTS
G4: ="Transferred from "&TEXT('KEY INPUTS'!D34,"0") -> Transferred from 2020
B5: Grant | F5: Balance | G5: Budget Appropriations | I5: Expended | J5: Other | K5: Cancelled | L5: Balance
F6: ='KEY INPUTS'!D47 -> Jan. 1, 2020 | G6: Budget | H6: Appropriation | L6: ='KEY INPUTS'!D46 -> Dec. 31, 2020
H7: By 40A:4-87
B8: PREVIOUS PAGE TOTALS | F8: =+'11.36 Grants Approp Rsrv'!F27 -> 268412.51 | G8: =+'11.36 Grants Approp Rsrv'!G27 -> 73761.37 | H8: =+'11.36 Grants Approp Rsrv'!H27 -> 107678.86 | I8: =+'11.36 Grants Approp Rsrv'!I27 -> 105983.02 | J8: =+'11.36 Grants Approp Rsrv'!J27 -> 0 | K8: =+'11.36 Grants Approp Rsrv'!K27 -> 0 | L8: =+'11.36 Grants Approp Rsrv'!L27 -> 343869.72
L9: =+F9+G9+H9-I9+J9-K9 -> 0
L10: 0
L11: 0
L12: 0
L13: 0
L14: 0
A15: Sheet 11.37 | L15: 0
L16: 0
L17: 0
L18: 0
L19: 0
L20: 0
L21: 0
L22: 0
L23: 0
L24: 0
L25: 0
L26: 0
C27: PAGE TOTALS | F27: =SUM(F8:F26) -> 268412.51 | G27: =SUM(G8:G26) -> 73761.37 | H27: 107678.86 | I27: 105983.02 | J27: 0 | K27: 0 | L27: =SUM(L8:L26) -> 343869.72

Sheet 11.38 Grants Approp Rsrv (hidden)
B2: SCHEDULE OF APPROPRIATED RESERVES FOR
B3: FEDERAL AND STATE GRANTS
G4: ="Transferred from "&TEXT('KEY INPUTS'!D34,"0") -> Transferred from 2020
B5: Grant | F5: Balance | G5: Budget Appropriations | I5: Expended | J5: Other | K5: Cancelled | L5: Balance
F6: ='KEY INPUTS'!D47 -> Jan. 1, 2020 | G6: Budget | H6: Appropriation | L6: ='KEY INPUTS'!D46 -> Dec. 31, 2020
H7: By 40A:4-87
B8: PREVIOUS PAGE TOTALS | F8: =+'11.37 Grants Approp Rsrv'!F27 -> 268412.51 | G8: =+'11.37 Grants Approp Rsrv'!G27 -> 73761.37 | H8: =+'11.37 Grants Approp Rsrv'!H27 -> 107678.86 | I8: =+'11.37 Grants Approp Rsrv'!I27 -> 105983.02 | J8: =+'11.37 Grants Approp Rsrv'!J27 -> 0 | K8: =+'11.37 Grants Approp Rsrv'!K27 -> 0 | L8: =+'11.37 Grants Approp Rsrv'!L27 -> 343869.72
L9: =+F9+G9+H9-I9+J9-K9 -> 0
L10: 0
L11: 0
L12: 0
L13: 0
L14: 0
A15: Sheet 11.38 | L15: 0
L16: 0
L17: 0
L18: 0
L19: 0
L20: 0
L21: 0
L22: 0
L23: 0
L24: 0
L25: 0
L26: 0
C27: PAGE TOTALS | F27: =SUM(F8:F26) -> 268412.51 | G27: =SUM(G8:G26) -> 73761.37 | H27: 107678.86 | I27: 105983.02 | J27: 0 | K27: 0 | L27: =SUM(L8:L26) -> 343869.72

Sheet 11.39 Grants Approp Rsrv (hidden)
B2: SCHEDULE OF APPROPRIATED RESERVES FOR
B3: FEDERAL AND STATE GRANTS
G4: ="Transferred from "&TEXT('KEY INPUTS'!D34,"0") -> Transferred from 2020
B5: Grant | F5: Balance | G5: Budget Appropriations | I5: Expended | J5: Other | K5: Cancelled | L5: Balance
F6: ='KEY INPUTS'!D47 -> Jan. 1, 2020 | G6: Budget | H6: Appropriation | L6: ='KEY INPUTS'!D46 -> Dec. 31, 2020
H7: By 40A:4-87
B8: PREVIOUS PAGE TOTALS | F8: =+'11.38 Grants Approp Rsrv'!F27 -> 268412.51 | G8: =+'11.38 Grants Approp Rsrv'!G27 -> 73761.37 | H8: =+'11.38 Grants Approp Rsrv'!H27 -> 107678.86 | I8: =+'11.38 Grants Approp Rsrv'!I27 -> 105983.02 | J8: =+'11.38 Grants Approp Rsrv'!J27 -> 0 | K8: =+'11.38 Grants Approp Rsrv'!K27 -> 0 | L8: =+'11.38 Grants Approp Rsrv'!L27 -> 343869.72
L9: =+F9+G9+H9-I9+J9-K9 -> 0
L10: 0
L11: 0
L12: 0
L13: 0
L14: 0
A15: Sheet 11.39 | L15: 0
L16: 0
L17: 0
L18: 0
L19: 0
L20: 0
L21: 0
L22: 0
L23: 0
L24: 0
L25: 0
L26: 0
C27: PAGE TOTALS | F27: =SUM(F8:F26) -> 268412.51 | G27: =SUM(G8:G26) -> 73761.37 | H27: 107678.86 | I27: 105983.02 | J27: 0 | K27: 0 | L27: =SUM(L8:L26) -> 343869.72

Sheet 11- Totals Grants Approp Rsrv
B2: SCHEDULE OF APPROPRIATED RESERVES FOR
B3: FEDERAL AND STATE GRANTS
G4: ="Transferred from "&TEXT('KEY INPUTS'!D34,"0") -> Transferred from 2020
B5: Grant | F5: Balance | G5: Budget Appropriations | I5: Expended | J5: Other | K5: Cancelled | L5: Balance
F6: ='KEY INPUTS'!D47 -> Jan. 1, 2020 | G6: Budget | H6: Appropriation | L6: ='KEY INPUTS'!D46 -> Dec. 31, 2020
H7: By 40A:4-87
B8: PREVIOUS PAGE TOTALS | F8: =+'11.39 Grants Approp Rsrv'!F27 -> 268412.51 | G8: =+'11.39 Grants Approp Rsrv'!G27 -> 73761.37 | H8: =+'11.39 Grants Approp Rsrv'!H27 -> 107678.86 | I8: =+'11.39 Grants Approp Rsrv'!I27 -> 105983.02 | J8: =+'11.39 Grants Approp Rsrv'!J27 -> 0 | K8: =+'11.39 Grants Approp Rsrv'!K27 -> 0 | L8: =+'11.39 Grants Approp Rsrv'!L27 -> 343869.72
L9: =+F9+G9+H9-I9+J9-K9 -> 0
L10: 0
L11: 0
L12: 0
L13: 0
L14: 0
A15: Sheet 11 Totals | L15: 0
L16: 0
L17: 0
L18: 0
L19: 0
L20: 0
L21: 0
L22: 0
L23: 0
L24: 0
L25: 0
L26: 0
C27: TOTALS | F27: =SUM(F8:F26) -> 268412.51 | G27: =SUM(G8:G26) -> 73761.37 | H27: 107678.86 | I27: 105983.02 | J27: 0 | K27: 0 | L27: =SUM(L8:L26) -> 343869.72

Sheet 12-Grants Unappropriated (hidden)
B2: SCHEDULE OF UNAPPROPRIATED RESERVES FOR
B3: FEDERAL AND STATE GRANTS
G4: ="Transferred from "&TEXT('KEY INPUTS'!D34,"0") -> Transferred from 2020
B5: Grant | F5: Balance | G5: Budget Appropriations | I5: Received | J5: Other | K5: Balance
F6: ='KEY INPUTS'!D47 -> Jan. 1, 2020 | G6: Budget | H6: Appropriation | K6: ='KEY INPUTS'!D46 -> Dec. 31, 2020
H7: By 40A:4-87
K8: =F8-G8-H8+I8+J8 -> 0
K9: =F9-G9-H9+I9+J9 -> 0
K10: 0
K11: 0
K12: 0
K13: 0
K14: 0
A15: Sheet 12 | K15: 0
K16: 0
K17: 0
K18: 0
K19: 0
K20: 0
K21: 0
K22: 0
K23: 0
K24: 0
K25: 0
K26: 0
C27: PAGE TOTALS | F27: =SUM(F8:F26) -> 0 | G27: =SUM(G8:G26) -> 0 | H27: 0 | I27: =SUM(I8:I26) -> 0 | J27: 0 | K27: 0

Sheet 12.1-Grants Unappropriated (hidden)
B2: SCHEDULE OF UNAPPROPRIATED RESERVES FOR
B3: FEDERAL AND STATE GRANTS
G4: ="Transferred from "&TEXT('KEY INPUTS'!D34,"0") -> Transferred from 2020
B5: Grant | F5: Balance | G5: Budget Appropriations | I5: Received | J5: Other | K5: Balance
F6: ='KEY INPUTS'!D47 -> Jan. 1, 2020 | G6: Budget | H6: Appropriation | K6: ='KEY INPUTS'!D46 -> Dec. 31, 2020
H7: By 40A:4-87
C8: PREVIOUS PAGE TOTALS | F8: =+'12-Grants Unappropriated'!F27 -> 0 | G8: =+'12-Grants Unappropriated'!G27 -> 0 | H8: =+'12-Grants Unappropriated'!H27 -> 0 | I8: =+'12-Grants Unappropriated'!I27 -> 0 | J8: =+'12-Grants Unappropriated'!J27 -> 0 | K8: =+'12-Grants Unappropriated'!K27 -> 0
K9: =F9-G9-H9+I9+J9 -> 0
K10: 0
K11: 0
K12: 0
K13: 0
K14: 0
A15: Sheet 12.1 | K15: 0
K16: 0
K17: 0
K18: 0
K19: 0
K20: 0
K21: 0
K22: 0
K23: 0
K24: 0
K25: 0
K26: 0
C27: PAGE TOTALS | F27: =SUM(F8:F26) -> 0 | G27: =SUM(G8:G26) -> 0 | H27: 0 | I27: =SUM(I8:I26) -> 0 | J27: 0 | K27: 0

Sheet 12.2-Grants Unappropriated (hidden)
B2: SCHEDULE OF UNAPPROPRIATED RESERVES FOR
B3: FEDERAL AND STATE GRANTS
G4: ="Transferred from "&TEXT('KEY INPUTS'!D34,"0") -> Transferred from 2020
B5: Grant | F5: Balance | G5: Budget Appropriations | I5: Received | J5: Other | K5: Balance
F6: ='KEY INPUTS'!D47 -> Jan. 1, 2020 | G6: Budget | H6: Appropriation | K6: ='KEY INPUTS'!D46 -> Dec. 31, 2020
H7: By 40A:4-87
C8: PREVIOUS PAGE TOTALS | F8: =+'12.1-Grants Unappropriated'!F27 -> 0 | G8: =+'12.1-Grants Unappropriated'!G27 -> 0 | H8: =+'12.1-Grants Unappropriated'!H27 -> 0 | I8: =+'12.1-Grants Unappropriated'!I27 -> 0 | J8: =+'12.1-Grants Unappropriated'!J27 -> 0 | K8: =+'12.1-Grants Unappropriated'!K27 -> 0
K9: =F9-G9-H9+I9+J9 -> 0
K10: 0
K11: 0
K12: 0
K13: 0
K14: 0
A15: Sheet 12.2 | K15: 0
K16: 0
K17: 0
K18: 0
K19: 0
K20: 0
K21: 0
K22: 0
K23: 0
K24: 0
K25: 0
K26: 0
C27: PAGE TOTALS | F27: =SUM(F8:F26) -> 0 | G27: =SUM(G8:G26) -> 0 | H27: 0 | I27: =SUM(I8:I26) -> 0 | J27: 0 | K27: 0

Sheet 12 Total-Grants Unappropriated
B2: SCHEDULE OF UNAPPROPRIATED RESERVES FOR
B3: FEDERAL AND STATE GRANTS
G4: ="Transferred from "&TEXT('KEY INPUTS'!D34,"0") -> Transferred from 2020
B5: Grant | F5: Balance | G5: Budget Appropriations | I5: Received | J5: Other | K5: Balance
F6: ='KEY INPUTS'!D47 -> Jan. 1, 2020 | G6: Budget | H6: Appropriation | K6: ='KEY INPUTS'!D46 -> Dec. 31, 2020
H7: By 40A:4-87
C8: PREVIOUS PAGE TOTALS | F8: =+'12.2-Grants Unappropriated'!F27 -> 0 | G8: =+'12.2-Grants Unappropriated'!G27 -> 0 | H8: =+'12.2-Grants Unappropriated'!H27 -> 0 | I8: =+'12.2-Grants Unappropriated'!I27 -> 0 | J8: =+'12.2-Grants Unappropriated'!J27 -> 0 | K8: =+'12.2-Grants Unappropriated'!K27 -> 0
B9: Impaired Driving Countermeasure | F9: 4400 | K9: =F9-G9-H9+I9+J9 -> 4400
B10: Distracted Driving Incentive | F10: 5500 | K10: 5500
B11: Alcohol Education & Rehabilitation | F11: 1285.99 | G11: 1285.99 | I11: 833.54 | K11: 833.54
B12: Municipal Alliance | F12: 5646.84 | K12: 5646.84
B13: Municipal Alliance 2015 | F13: 7381.78 | K13: 7381.78
B14: Post Sandy Planning | F14: 51106.44 | K14: 51106.44
A15: Sheet 12 Totals | B15: Body Armor | I15: 3018.04 | K15: 3018.04
B16: Recycling Tonnage Grant | F16: 37390.11 | G16: 37390.11 | K16: 0
B17: Clean Communities | F17: 22740.27 | G17: 22740.27 | K17: 0
K18: 0
K19: 0
K20: 0
K21: 0
K22: 0
K23: 0
K24: 0
K25: 0
K26: 0
C27: TOTALS | F27: =SUM(F8:F26) -> 135451.43 | G27: =SUM(G8:G26) -> 61416.37 | H27: 0 | I27: =SUM(I8:I26) -> 3851.58 | J27: 0 | K27: 77886.64

Sheet 13-Other Taxes
B5: *LOCAL DISTRICT SCHOOL TAX
G7: Debit | H7: Credit
B8: ='KEY INPUTS'!D25 -> Balance - January 1, 2020 | G8: xxxxxxxxxxx | H8: xxxxxxxxxx
C9: School Tax Payable # | G9: xxxxxxxxxxx | H9: -2983.5
C10: School Tax Deferred
C11: ="(Not in excess of 50% of Levy - "&TEXT('KEY INPUTS'!D35,"0")&" - "&TEXT('KEY INPUTS'!D34,"0")&")" -> (Not in excess of 50% of Levy - 2019 - 2020) | G11: xxxxxxxxxxx
B12: ="Levy School Year July 1, "&TEXT('KEY INPUTS'!D34,"0")&" - June 30, "&TEXT('KEY INPUTS'!D33,"0") -> Levy School Year July 1, 2020 - June 30, 2021 | G12: xxxxxxxxxxx | L12: MUST PICK BETWEEN SCHOOL YEAR AND CALENDAR YEAR
B13: ="Levy Calendar Year "&TEXT('KEY INPUTS'!D34,"0") -> Levy Calendar Year 2020 | G13: xxxxxxxxxxx | H13: 23385226
B14: Paid | G14: 23311376 | H14: xxxxxxxxxx
B15: ='KEY INPUTS'!D26 -> Balance - December 31, 2020 | G15: xxxxxxxxxxx | H15: xxxxxxxxxx
C16: School Tax Payable # | G16: =+H9+H11+H12+H13-G14-G18 -> 70866.5 | H16: xxxxxxxxxx
C17: School Tax Deferred
C18: ="(Not in excess of 50% of Levy - "&TEXT('KEY INPUTS'!D34,"0")&" - "&TEXT('KEY INPUTS'!D33,"0")&")" -> (Not in excess of 50% of Levy - 2020 - 2021) | H18: xxxxxxxxxx
B19: * Not including Type 1 school debt service, emergency authorizations-schools, transfer to | G19: =SUM(G14:G18) -> 23382242.5 | H19: =SUM(H8:H13) -> 23382242.5
C20: Board of Education for use of local schools.
B21: # Must include unpaid requisitions.
B26: MUNICIPAL OPEN SPACE TAX
G28: Debit | H28: Credit
B29: =B8 -> Balance - January 1, 2020 | G29: xxxxxxxxxxx
B31: =TEXT('KEY INPUTS'!D34,"0")&" Levy" -> 2020 Levy | G31: xxxxxxxxxxx
B33: Interest Earned | G33: xxxxxxxxxxx
B35: Expenditures | H35: xxxxxxxxxx
B37: =B15 -> Balance - December 31, 2020 | H37: xxxxxxxxxx
B38: # Must include unpaid requisitions. | G38: =SUM(G30:G37) -> 0 | H38: =SUM(H29:H36) -> 0
B51: Sheet 13

Sheet 14-Other Taxes
B5: REGIONAL SCHOOL TAX
B6: (Provide a separate statement for each Regional District involved)
G8: Debit | H8: Credit
B9: ='13-Other Taxes'!B8 -> Balance - January 1, 2020 | G9: xxxxxxxxxxx | H9: xxxxxxxxxx
C10: School Tax Payable # | G10: xxxxxxxxxxx
C11: School Tax Deferred
C12: ='13-Other Taxes'!C11 -> (Not in excess of 50% of Levy - 2019 - 2020) | G12: xxxxxxxxxxx
B13: ='13-Other Taxes'!B12 -> Levy School Year July 1, 2020 - June 30, 2021 | G13: xxxxxxxxxxx
B14: ='13-Other Taxes'!B13 -> Levy Calendar Year 2020 | G14: xxxxxxxxxxx | L14: MUST PICK BETWEEN SCHOOL YEAR AND CALENDAR YEAR
B15: Paid | H15: xxxxxxxxxx
B16: ='13-Other Taxes'!B15 -> Balance - December 31, 2020 | G16: xxxxxxxxxxx | H16: xxxxxxxxxx
C17: School Tax Payable # | G17: =+H10+H12+H13+H14-G15-G19 -> 0 | H17: xxxxxxxxxx
C18: School Tax Deferred
C19: ='13-Other Taxes'!C18 -> (Not in excess of 50% of Levy - 2020 - 2021) | H19: xxxxxxxxxx
B20: # Must include unpaid requisitions. | G20: =SUM(G15:G19) -> 0 | H20: =SUM(H9:H19) -> 0
B27: REGIONAL HIGH SCHOOL TAX
G29: Debit | H29: Credit
B30: =B9 -> Balance - January 1, 2020 | G30: xxxxxxxxxxx | H30: xxxxxxxxxx
C31: School Tax Payable # | G31: xxxxxxxxxxx
C32: School Tax Deferred
C33: =C12 -> (Not in excess of 50% of Levy - 2019 - 2020) | G33: xxxxxxxxxxx
B34: =B13 -> Levy School Year July 1, 2020 - June 30, 2021 | G34: xxxxxxxxxxx
B35: =B14 -> Levy Calendar Year 2020 | G35: xxxxxxxxxxx | L35: MUST PICK BETWEEN SCHOOL YEAR AND CALENDAR YEAR
B36: Paid | H36: xxxxxxxxxx
B37: =B16 -> Balance - December 31, 2020 | G37: xxxxxxxxxxx | H37: xxxxxxxxxx
C38: School Tax Payable # | G38: =+H31+H33+H34+H35-G36-G40 -> 0 | H38: xxxxxxxxxx
C39: School Tax Deferred
C40: =C19 -> (Not in excess of 50% of Levy - 2020 - 2021) | H40: xxxxxxxxxx
B41: # Must include unpaid requisitions. | G41: =SUM(G34:G40) -> 0 | H41: =SUM(H30:H40) -> 0
B52: Sheet 14

Sheet 15-Other Taxes
B3: COUNTY TAXES PAYABLE
I5: Debit | J5: Credit
B6: ='KEY INPUTS'!D25 -> Balance - January 1, 2020 | I6: xxxxxxxxxxx | J6: xxxxxxxxxx
C7: County Taxes | I7: xxxxxxxxxxx
C8: Due County for Added and Omitted Taxes | I8: xxxxxxxxxxx | J8: 13616.93
B10: ='13-Other Taxes'!B31 -> 2020 Levy | D10: : | I10: xxxxxxxxxxx | J10: xxxxxxxxxx
C11: General County | I11: xxxxxxxxxxx | J11: 9666186.95
C12: County Library | I12: xxxxxxxxxxx
C13: County Health | I13: xxxxxxxxxxx
C14: County Open Space Preservation | I14: xxxxxxxxxxx | J14: 408052.44
C15: Due County for Added and Omitted Taxes | I15: xxxxxxxxxxx | J15: 81700.12
B16: Paid | I16: 10087856.32 | J16: xxxxxxxxxx
B17: ='KEY INPUTS'!D26 -> Balance - December 31, 2020 | I17: xxxxxxxxxxx | J17: xxxxxxxxxx
C18: County Taxes | J18: xxxxxxxxxx
C19: Due County for Added and Omitted Taxes | I19: =+J7+J8+J11+J12+J13+J14+J15-I16-I18 -> 81700.12 | J19: xxxxxxxxxx
I20: =SUM(I6:I19) -> 10169556.44 | J20: =SUM(J6:J19) -> 10169556.44
B24: SPECIAL DISTRICT TAXES
I26: Debit | J26: Credit
B27: =B6 -> Balance - January 1, 2020 | I27: xxxxxxxxxxx
B28: =TEXT('KEY INPUTS'!D34,"0")&" Levy: (List Each Type of District Tax Separately - see Footnote)" -> 2020 Levy: (List Each Type of District Tax Separately - see Footnote) | I28: xxxxxxxxxxx | J28: xxxxxxxxxx
C29: Fire - | I29: xxxxxxxxxxx | J29: xxxxxxxxxx
C30: Sewer - | I30: xxxxxxxxxxx | J30: xxxxxxxxxx
C31: Water - | I31: xxxxxxxxxxx | J31: xxxxxxxxxx
C32: Garbage - | I32: xxxxxxxxxxx | J32: xxxxxxxxxx
I33: xxxxxxxxxxx | J33: xxxxxxxxxx
I34: xxxxxxxxxxx | J34: xxxxxxxxxx
I35: xxxxxxxxxxx | J35: xxxxxxxxxx
B36: ="Total "&TEXT('KEY INPUTS'!D34,"0")&" Levy" -> Total 2020 Levy | I36: xxxxxxxxxxx | J36: =SUM(H29:H35) -> 0
B37: Paid | J37: xxxxxxxxxx
B38: =B17 -> Balance - December 31, 2020 | I38: =+J27+J36-I37 -> 0 | J38: xxxxxxxxxx
I39: =SUM(I36:I38) -> 0 | J39: =SUM(J27:J38) -> 0
B41: Footnote: Please state the number of districts in each instance.
B47: Sheet 15

Sheet 17-Budget Revenues
B2: ="STATEMENT OF GENERAL BUDGET REVENUES "&TEXT('KEY INPUTS'!D34,"0") -> STATEMENT OF GENERAL BUDGET REVENUES 2020
B4: Source | H4: Budget | I4: Realized | J4: Excess or Deficit*
H5: -01 | I5: -02 | J5: -03
B6: Surplus Anticipated | H6: 3800000 | I6: =+H6 -> 3800000 | J6: =+I6-H6 -> 0
B7: Surplus Anticipated with Prior Written Consent of
B8: Director of Local Government | J8: =+I8-H8 -> 0
B9: Miscellaneous Revenue Anticipated: | H9: xxxxxxxxx | I9: xxxxxxxxx | J9: xxxxxxxxx
D10: Adopted Budget | H10: 3667023.37 | I10: 3893381.71 | J10: =+I10-H10 -> 226358.34
D11: Added by N.J.S. 40A:4-87 (List on 17a) | H11: =+'17a Totals-Budget Revenues'!H43 -> 107678.86 | I11: =+H11 -> 107678.86 | J11: =+I11-H11 -> 0
J12: =+I12-H12 -> 0
J13: 0
B14: Total Miscellaneous Revenue Anticipated | H14: =SUM(H10:H13) -> 3774702.23 | I14: =SUM(I10:I13) -> 4001060.57 | J14: =SUM(J10:J13) -> 226358.34
B15: Receipts from Delinquent Taxes | H15: 1720000 | I15: =+'26-Delinquent Taxes and Liens'!M22 -> 1752818.53 | J15: =+I15-H15 -> 32818.53
B17: Amount to be Raised by Taxation: | H17: xxxxxxxxx | I17: xxxxxxxxx | J17: xxxxxxxxx
C18: (a) Local Tax for Municipal Purposes | H18: 22842929 | I18: xxxxxxxxx | J18: xxxxxxxxx
C19: (b) Addition to Local District School Tax | I19: xxxxxxxxx | J19: xxxxxxxxx
C20: (c) Minimum Library Tax | H20: 1335291 | I20: xxxxxxxxx | J20: xxxxxxxxx
D21: Total Amount to be Raised by Taxation | H21: =+H19+H18+H20 -> 24178220 | I21: =+I40 -> 24283223.93 | J21: =+I21-H21 -> 105003.93
H22: =+H21+H15+H14+H8+H6 -> 33472922.23 | I22: =+I21+I15+I14+I8+I6 -> 33837103.03 | J22: =+J21+J15+J14+J8+J6 -> 364180.8
B26: ALLOCATION OF CURRENT TAX COLLECTIONS
I28: Debit | J28: Credit
B29: Current Taxes Realized in Cash (Total of Item 10 or 14 on Sheet 22) | I29: xxxxxxxxx | J29: =+'22-CY Levy'!L48 -> 55724389.44
B30: Amount to be Raised by Taxation | I30: xxxxxxxxx | J30: xxxxxxxxx
D31: Local District School Tax | I31: =+'13-Other Taxes'!H12+'13-Other Taxes'!H13 -> 23385226 | J31: xxxxxxxxx
D32: Regional School Tax | I32: =+'14-Other Taxes'!H13+'14-Other Taxes'!H14 -> 0 | J32: xxxxxxxxx
D33: Regional High School Tax | I33: =+'14-Other Taxes'!H34+'14-Other Taxes'!H35 -> 0 | J33: xxxxxxxxx
D34: County Taxes | I34: =+'15-Other Taxes'!J11+'15-Other Taxes'!J12+'15-Other Taxes'!J13+'15-Other Taxes'!J14 -> 10074239.39 | J34: xxxxxxxxx
D35: Due County for Added and Omitted Taxes | I35: =+'15-Other Taxes'!J15 -> 81700.12 | J35: xxxxxxxxx
D36: Special District Taxes | I36: =+'15-Other Taxes'!J36 -> 0 | J36: xxxxxxxxx
D37: Municipal Open Space Tax | I37: ='13-Other Taxes'!H31 -> 0 | J37: xxxxxxxxx
B38: Reserve for Uncollected Taxes | I38: xxxxxxxxx | J38: =+'18-Budget Appropriations'!I15 -> 2100000
B39: Deficit in Required Collection of Current Taxes (or) | I39: xxxxxxxxx | J39: =IF(I51<0,-I51,0) -> 0
B40: Balance for Support of Municipal Budget (or) | I40: =+J29+J38-I31-I32-I33-I34-I35-I36-I37 -> 24283223.93 | J40: xxxxxxxxx
B41: *Excess Non-Budget Revenue (see footnote) | J41: xxxxxxxxx
B42: *Deficit Non-Budget Revenue (see footnote) | I42: xxxxxxxxx
B43: *These items are applicable only when there is no "Amount to be Raised by Taxation" in the "Budget" column of the statement at the top of this sheet. In such instances, any excess or deficit in the above allocation would apply to "Non-Budget Revenue" only. | I43: =SUM(I29:I42) -> 57824389.44 | J43: =SUM(J29:J42) -> 57824389.44
B48: Sheet 17
G51: Posting Calculation do not | I51: =+J29-SUM(I31:I37)+J38 -> 24283223.93
G52: Remove

Sheet 17a-Budget Revenues
B4: ='17-Budget Revenues'!B2:J2 -> STATEMENT OF GENERAL BUDGET REVENUES 2020
B5: (Continued)
B7: Miscellaneous Revenues Anticipated: Added By N.J.S. 40A:4-87
B9: Source | H9: Budget | I9: Realized | J9: Excess or Deficit
B11: FEMA | H11: 27114.52 | I11: =H11 -> 27114.52 | J11: =H11-I11 -> 0 | L11: Column I formula will be overridden if revenue is not realized
B12: Bergen County Census | H12: 2810 | I12: =+H12 -> 2810 | J12: 0
B13: Clean Communities | H13: 20506.87 | I13: =+H13 -> 20506.87 | J13: =H13-I13 -> 0
B14: CARES Act | H14: 57247.47 | I14: 57247.47 | J14: 0
I15: 0 | J15: 0
I16: 0 | J16: 0
I17: 0 | J17: 0
I18: 0 | J18: 0
I19: 0 | J19: 0
I20: 0 | J20: 0
I21: 0 | J21: 0
I22: 0 | J22: 0
I23: 0 | J23: 0
I24: 0 | J24: 0
I25: 0 | J25: 0
I26: 0 | J26: 0
I27: 0 | J27: 0
I28: 0 | J28: 0
I29: 0 | J29: 0
I30: 0 | J30: 0
I31: 0 | J31: 0
I32: 0 | J32: 0
I33: 0 | J33: 0
I34: 0 | J34: 0
I35: 0 | J35: 0
I36: 0 | J36: 0
I37: 0 | J37: 0
I38: 0 | J38: 0
I39: 0 | J39: 0
I40: 0 | J40: 0
I41: 0 | J41: 0
I42: 0 | J42: 0
C43: PAGE TOTALS | H43: =SUM(H10:H42) -> 107678.86 | I43: =SUM(I10:I42) -> 107678.86 | J43: =SUM(J10:J42) -> 0
B44: I hereby certify that the above list of Chapter 159 insertions of revenue have been realized in cash or I have received
B45: written notification of the award of public or private revenue. These insertions meet the statutory requirements of
B46: N.J.S.A. 40A:4-87 and matching funds have been provided if applicable.
B48: CFO Signature: | E48: gfranz@edgewaternj.org
B49: Sheet 17a

Sheet 17a.1-Budget Revenues
B4: ='17-Budget Revenues'!B2:J2 -> STATEMENT OF GENERAL BUDGET REVENUES 2020
B5: (Continued)
B7: Miscellaneous Revenues Anticipated: Added By N.J.S. 40A:4-87
B9: Source | H9: Budget | I9: Realized | J9: Excess or Deficit
B10: PREVIOUS PAGE TOTALS | H10: =+'17a-Budget Revenues'!H43 -> 107678.86 | I10: =+'17a-Budget Revenues'!I43 -> 107678.86 | J10: =+'17a-Budget Revenues'!J43 -> 0
I11: =+H11 -> 0 | J11: =H11-I11 -> 0 | L11: Column I formula will be overridden if revenue is not realized
I12: 0 | J12: 0
I13: 0 | J13: 0
I14: 0 | J14: 0
I15: 0 | J15: 0
I16: 0 | J16: 0
I17: 0 | J17: 0
I18: 0 | J18: 0
I19: 0 | J19: 0
I20: 0 | J20: 0
I21: 0 | J21: 0
I22: 0 | J22: 0
I23: 0 | J23: 0
I24: 0 | J24: 0
I25: 0 | J25: 0
I26: 0 | J26: 0
I27: 0 | J27: 0
I28: 0 | J28: 0
I29: 0 | J29: 0
I30: 0 | J30: 0
I31: 0 | J31: 0
I32: 0 | J32: 0
I33: 0 | J33: 0
I34: 0 | J34: 0
I35: 0 | J35: 0
I36: 0 | J36: 0
I37: 0 | J37: 0
I38: 0 | J38: 0
I39: 0 | J39: 0
I40: 0 | J40: 0
I41: 0 | J41: 0
I42: 0 | J42: 0
C43: PAGE TOTALS | H43: =SUM(H10:H42) -> 107678.86 | I43: =SUM(I10:I42) -> 107678.86 | J43: =SUM(J10:J42) -> 0
B44: I hereby certify that the above list of Chapter 159 insertions of revenue have been realized in cash or I have received
B45: written notification of the award of public or private revenue. These insertions meet the statutory requirements of
B46: N.J.S.A. 40A:4-87 and matching funds have been provided if applicable.
B48: CFO Signature:
B49: Sheet 17a.1

Sheet 17a.2-Budget Revenues
B4: ='17-Budget Revenues'!B2:J2 -> STATEMENT OF GENERAL BUDGET REVENUES 2020
B5: (Continued)
B7: Miscellaneous Revenues Anticipated: Added By N.J.S. 40A:4-87
B9: Source | H9: Budget | I9: Realized | J9: Excess or Deficit
B10: PREVIOUS PAGE TOTALS | H10: =+'17a.1-Budget Revenues '!H43 -> 107678.86 | I10: =+'17a.1-Budget Revenues '!I43 -> 107678.86 | J10: =+'17a.1-Budget Revenues '!J43 -> 0
I11: =+H11 -> 0 | J11: =H11-I11 -> 0 | L11: Column I formula will be overridden if revenue is not realized
I12: 0 | J12: 0
I13: 0 | J13: 0
I14: 0 | J14: 0
I15: 0 | J15: 0
I16: 0 | J16: 0
I17: 0 | J17: 0
I18: 0 | J18: 0
I19: 0 | J19: 0
I20: 0 | J20: 0
I21: 0 | J21: 0
I22: 0 | J22: 0
I23: 0 | J23: 0
I24: 0 | J24: 0
I25: 0 | J25: 0
I26: 0 | J26: 0
I27: 0 | J27: 0
I28: 0 | J28: 0
I29: 0 | J29: 0
I30: 0 | J30: 0
I31: 0 | J31: 0
I32: 0 | J32: 0
I33: 0 | J33: 0
I34: 0 | J34: 0
I35: 0 | J35: 0
I36: 0 | J36: 0
I37: 0 | J37: 0
I38: 0 | J38: 0
I39: 0 | J39: 0
I40: 0 | J40: 0
I41: 0 | J41: 0
I42: 0 | J42: 0
C43: PAGE TOTALS | H43: =SUM(H10:H42) -> 107678.86 | I43: =SUM(I10:I42) -> 107678.86 | J43: =SUM(J10:J42) -> 0
B44: I hereby certify that the above list of Chapter 159 insertions of revenue have been realized in cash or I have received
B45: written notification of the award of public or private revenue. These insertions meet the statutory requirements of
B46: N.J.S.A. 40A:4-87 and matching funds have been provided if applicable.
B48: CFO Signature:
B49: Sheet 17a.2

Sheet 17a.3-Budget Revenues
B4: ='17-Budget Revenues'!B2:J2 -> STATEMENT OF GENERAL BUDGET REVENUES 2020
B5: (Continued)
B7: Miscellaneous Revenues Anticipated: Added By N.J.S. 40A:4-87
B9: Source | H9: Budget | I9: Realized | J9: Excess or Deficit
B10: PREVIOUS PAGE TOTALS | H10: =+'17a.2-Budget Revenues'!H43 -> 107678.86 | I10: =+'17a.2-Budget Revenues'!I43 -> 107678.86 | J10: =+'17a.2-Budget Revenues'!J43 -> 0
I11: =+H11 -> 0 | J11: =H11-I11 -> 0 | L11: Column I formula will be overridden if revenue is not realized
I12: 0 | J12: 0
I13: 0 | J13: 0
I14: 0 | J14: 0
I15: 0 | J15: 0
I16: 0 | J16: 0
I17: 0 | J17: 0
I18: 0 | J18: 0
I19: 0 | J19: 0
I20: 0 | J20: 0
I21: 0 | J21: 0
I22: 0 | J22: 0
I23: 0 | J23: 0
I24: 0 | J24: 0
I25: 0 | J25: 0
I26: 0 | J26: 0
I27: 0 | J27: 0
I28: 0 | J28: 0
I29: 0 | J29: 0
I30: 0 | J30: 0
I31: 0 | J31: 0
I32: 0 | J32: 0
I33: 0 | J33: 0
I34: 0 | J34: 0
I35: 0 | J35: 0
I36: 0 | J36: 0
I37: 0 | J37: 0
I38: 0 | J38: 0
I39: 0 | J39: 0
I40: 0 | J40: 0
I41: 0 | J41: 0
I42: 0 | J42: 0
C43: PAGE TOTALS | H43: =SUM(H10:H42) -> 107678.86 | I43: =SUM(I10:I42) -> 107678.86 | J43: =SUM(J10:J42) -> 0
B44: I hereby certify that the above list of Chapter 159 insertions of revenue have been realized in cash or I have received
B45: written notification of the award of public or private revenue. These insertions meet the statutory requirements of
B46: N.J.S.A. 40A:4-87 and matching funds have been provided if applicable.
B48: CFO Signature:
B49: Sheet 17a.3

Sheet 17a Totals-Budget Revenues
B4: ='17-Budget Revenues'!B2:J2 -> STATEMENT OF GENERAL BUDGET REVENUES 2020
B5: (Continued)
B7: Miscellaneous Revenues Anticipated: Added By N.J.S. 40A:4-87
B9: Source | H9: Budget | I9: Realized | J9: Excess or Deficit
B10: PREVIOUS PAGE TOTALS | H10: =+'17a.3-Budget Revenues'!H43 -> 107678.86 | I10: =+'17a.3-Budget Revenues'!I43 -> 107678.86 | J10: =+'17a.3-Budget Revenues'!J43 -> 0
I11: =+H11 -> 0 | J11: =H11-I11 -> 0 | L11: Column I formula will be overridden if revenue is not realized
I12: 0 | J12: 0
I13: 0 | J13: 0
I14: 0 | J14: 0
I15: 0 | J15: 0
I16: 0 | J16: 0
I17: 0 | J17: 0
I18: 0 | J18: 0
I19: 0 | J19: 0
I20: 0 | J20: 0
I21: 0 | J21: 0
I22: 0 | J22: 0
I23: 0 | J23: 0
I24: 0 | J24: 0
I25: 0 | J25: 0
I26: 0 | J26: 0
I27: 0 | J27: 0
I28: 0 | J28: 0
I29: 0 | J29: 0
I30: 0 | J30: 0
I31: 0 | J31: 0
I32: 0 | J32: 0
I33: 0 | J33: 0
I34: 0 | J34: 0
I35: 0 | J35: 0
I36: 0 | J36: 0
I37: 0 | J37: 0
I38: 0 | J38: 0
I39: 0 | J39: 0
I40: 0 | J40: 0
I41: 0 | J41: 0
I42: 0 | J42: 0
C43: TOTALS | H43: =SUM(H10:H42) -> 107678.86 | I43: =SUM(I10:I42) -> 107678.86 | J43: =SUM(J10:J42) -> 0
B44: I hereby certify that the above list of Chapter 159 insertions of revenue have been realized in cash or I have received
B45: written notification of the award of public or private revenue. These insertions meet the statutory requirements of
B46: N.J.S.A. 40A:4-87 and matching funds have been provided if applicable.
B48: CFO Signature:
B49: Sheet 17a Totals

Sheet 18-Budget Appropriations
B4: ="STATEMENT OF GENERAL BUDGET APPROPRIATIONS "&TEXT('KEY INPUTS'!D34,"0") -> STATEMENT OF GENERAL BUDGET APPROPRIATIONS 2020
B6: =TEXT('KEY INPUTS'!D34,"0")&" Budget as Adopted" -> 2020 Budget as Adopted | J6: =+'17-Budget Revenues'!H22-J7 -> 33365243.37
B7: =TEXT('KEY INPUTS'!D34,"0")&" Budget - Added by N.J.S. 40A:4-87" -> 2020 Budget - Added by N.J.S. 40A:4-87 | J7: =+'17a Totals-Budget Revenues'!H43 -> 107678.86
B8: ="Appropriated for "&TEXT('KEY INPUTS'!D34,"0")&" (Budget Statement Item 9)" -> Appropriated for 2020 (Budget Statement Item 9) | J8: =+J7+J6 -> 33472922.23
B9: ="Appropriated for "&TEXT('KEY INPUTS'!D34,"0")&" by Emergency Appropriation (Budget Statement Item 9)" -> Appropriated for 2020 by Emergency Appropriation (Budget Statement Item 9) | J9: 350000
B10: Total General Appropriations (Budget Statement Item 9) | J10: =+J9+J8 -> 33822922.23
B11: Add: Overexpenditures (see footnote)
C12: Total Appropriations and Overexpenditures | J12: =+J10+J11 -> 33822922.23
B13: Deduct Expenditures:
C14: Paid or Charged [Budget Statement Item (L)] | I14: 28952842.77
C15: Paid or Charged - Reserve for Uncollected Taxes | I15: 2100000
C16: Reserved | I16: 1980433.51
D17: Total Expenditures | J17: =SUM(I14:I16) -> 33033276.28
B18: Unexpended Balances Canceled (see footnote) | J18: =+J12-J17 -> 789645.95
B20: FOOTNOTES - RE: OVEREXPENDITURES
C21: Every appropriation overexpended in the budget document must be marked with an * and must agree in the aggregate with this item.
C22: RE: UNEXPENDED BALANCES CANCELED
C23: Are not to be shown as "Paid or Charged" in the budget document. In all instances "Total Appropriations" and "Overexpenditures"
D24: must equal the sum of "Total Expenditures" and "Unexpended Balances Canceled".
B32: SCHEDULE OF EMERGENCY APPROPRIATIONS FOR LOCAL
B33: DISTRICT SCHOOL PURPOSES
B35: (EXCEPT FOR TYPE I SCHOOL DEBT SERVICE)
B37: =TEXT('KEY INPUTS'!D34,"0")&" Authorizations" -> 2020 Authorizations
C38: N.J.S. 40A:4-46 (After adoption of Budget)
C39: N.J.S. 40A:4-20 (Prior to adoption of Budget)
D40: Total Authorizations | J40: =SUM(I38:I39) -> 0
B41: Deduct Expenditures:
C42: Paid or Charged
C43: Reserved
D44: Total Expenditures | J44: =SUM(I42:I43) -> 0
B54: Sheet 18

Sheet 19-Results of Op-Cur Fnd
B3: =" RESULTS OF "&TEXT('KEY INPUTS'!D34,"0")&" OPERATION" -> RESULTS OF 2020 OPERATION
B6: CURRENT FUND
H9: Debit | I9: Credit
B10: Excess of Anticipated Revenues: | H10: xxxxxxxxx | I10: xxxxxxxxx
C11: Miscellaneous Revenues anticipated | H11: xxxxxxxxx | I11: =IF(+'17-Budget Revenues'!J14>0, +'17-Budget Revenues'!J14," ") -> 226358.34
C12: Delinquent Tax Collections | H12: xxxxxxxxx | I12: =IF(+'17-Budget Revenues'!J15>0, +'17-Budget Revenues'!J15,0) -> 32818.53
H13: xxxxxxxxx
C14: Required Collection of Current Taxes | H14: xxxxxxxxx | I14: =IF(+'17-Budget Revenues'!J21>0, +'17-Budget Revenues'!J21,0) -> 105003.93
B15: ="Unexpended Balances of "&TEXT('KEY INPUTS'!D34,"0")&" Budget Appropriations" -> Unexpended Balances of 2020 Budget Appropriations | H15: xxxxxxxxx | I15: =+'18-Budget Appropriations'!J18 -> 789645.95
B16: Miscellaneous Revenue Not Anticipated | H16: xxxxxxxxx | I16: ='20 Total-Misc Rev Not Ant'!H41 -> 652654.77
B17: Miscellaneous Revenue Not Anticipated: | H17: xxxxxxxxx | I17: =+'27-Foreclosed Property'!L15 -> 0
C18: Proceeds of Sale of Foreclosed Property (Sheet 27)
C19: Payments in Lieu of Taxes on Real Property | H19: xxxxxxxxx
B20: Sale of Municipal Assets | H20: xxxxxxxxx
B21: ="Unexpended Balances of "&TEXT('KEY INPUTS'!D35,"0")&" Appropriation Reserves" -> Unexpended Balances of 2019 Appropriation Reserves | H21: xxxxxxxxx | I21: 610615.71
B22: ="Prior Years Interfunds Returned in "&TEXT('KEY INPUTS'!D34,"0") -> Prior Years Interfunds Returned in 2020 | H22: xxxxxxxxx | I22: 1258.5
B23: COVID-10 Special Emergency | H23: xxxxxxxxx | I23: 1144575
H25: xxxxxxxxx
H26: xxxxxxxxx
B27: Deferred School Tax Revenue: (See School Taxes, Sheets 13 & 14) | H27: xxxxxxxxx | I27: xxxxxxxxx
C28: ='KEY INPUTS'!D25 -> Balance - January 1, 2020 | H28: =+'13-Other Taxes'!H11+'14-Other Taxes'!H12+'14-Other Taxes'!H33 -> 0 | I28: xxxxxxxxx
C29: ='KEY INPUTS'!D26 -> Balance - December 31, 2020 | H29: xxxxxxxxx | I29: ='13-Other Taxes'!G18+'14-Other Taxes'!G40+'14-Other Taxes'!G19 -> 0
B30: Deficit in Anticipated Revenues: | H30: xxxxxxxxx | I30: xxxxxxxxx
C31: Miscellaneous Revenues Anticipated | H31: =IF(+'17-Budget Revenues'!J14<0, -'17-Budget Revenues'!J14,0) -> 0 | I31: xxxxxxxxx
C32: Delinquent Tax Collections | H32: =IF(+'17-Budget Revenues'!J15<0, -'17-Budget Revenues'!J15,0) -> 0 | I32: xxxxxxxxx
I33: xxxxxxxxx
C34: Required Collection on Current Taxes | H34: =IF(+'17-Budget Revenues'!J21<0, -'17-Budget Revenues'!J21,0) -> 0 | I34: xxxxxxxxx
B35: ="Interfund Advances Originating in "&TEXT('KEY INPUTS'!D34,"0") -> Interfund Advances Originating in 2020 | I35: xxxxxxxxx
I36: xxxxxxxxx
B37: Refunds | H37: 263167.6 | I37: xxxxxxxxx
I41: xxxxxxxxx
I42: xxxxxxxxx
B43: Deficit Balance - To Trial Balance (Sheet 3) | H43: xxxxxxxxx | I43: =IF(+J44>0,0,J44*-1) -> 0
B44: Surplus Balance - To Surplus (Sheet 21) | H44: =+IF(+J44>0,J44,0) -> 3299763.13 | I44: xxxxxxxxx | J44: =SUM(I10:I42)-SUM(H10:H42) -> 3299763.13 | K44: DO NOT REMOVE formula in K40 to calculate H40 &I39 - hide formula from user
H45: =SUM(H10:H44) -> 3562930.73 | I45: =SUM(I10:I44) -> 3562930.73
B48: Sheet 19

Sheet 20-Misc Rev Not Ant
B3: SCHEDULE OF MISCELLANEOUS REVENUES
B4: NOT ANTICIPATED
B7: Source | H7: Amount Realized
B8: Police Fees | H8: 9037.66
B9: PILOT's | H9: 6605
B10: Miscellaneous | H10: 9295.97
B11: Parking Permits | H11: 6373.22
B12: Advertising Fees | H12: 32070.16
B13: Polling Place | H13: 40
B14: Credit Card Fees | H14: 9202.52
B15: Parking Meters | H15: 15933.34
B16: On-Line Sale | H16: 74852.43
B17: Ambulance Fees | H17: 176294.1
B18: Sale of Assets | H18: 12677.66
B19: JIF | H19: 171759
B20: CARES Act | H20: 126459
B21: Electric Car Meters | H21: 2054.71
B41: Total Amount of Miscellaneous Revenues Not Anticipated (Sheet 19) | H41: =SUM(H8:H40) -> 652654.77
B47: Sheet 20

Sheet 20.1-Misc Rev Not Ant
B3: SCHEDULE OF MISCELLANEOUS REVENUES
B4: NOT ANTICIPATED
B7: Source | H7: Amount Realized
C8: PREVIOUS PAGE TOTALS | H8: =+'20-Misc Rev Not Ant'!H41 -> 652654.77
B41: Page Total Amount of Miscellaneous Revenues Not Anticipated (Sheet 19) | H41: =SUM(H8:H40) -> 652654.77
B47: Sheet 20.1

Sheet 20 Total-Misc Rev Not Ant
B3: SCHEDULE OF MISCELLANEOUS REVENUES
B4: NOT ANTICIPATED
B7: Source | H7: Amount Realized
C8: PREVIOUS PAGE TOTALS | H8: =+'20.1-Misc Rev Not Ant'!H41 -> 652654.77
B41: Total Amount of Miscellaneous Revenues Not Anticipated (Sheet 19) | H41: =SUM(H8:H40) -> 652654.77
B47: Sheet 20 Totals

Sheet 21-Current Fund Surplus
B3: SURPLUS - CURRENT FUND
B4: ='KEY INPUTS'!D49 -> YEAR - 2020
K6: Debit | L6: Credit
B7: 1. | C7: ='KEY INPUTS'!D25 -> Balance - January 1, 2020 | K7: xxxxxxxxx | L7: 7027479.58
B8: 2. | K8: xxxxxxxxx
B9: 3. | C9: ="Excess Resulting from "&TEXT('KEY INPUTS'!D34,"0")&" Operations" -> Excess Resulting from 2020 Operations | K9: xxxxxxxxx | L9: =+'19-Results of Op-Cur Fnd'!H44 -> 3299763.13
B10: 4. | C10: ="Amount Appropriated in the "&TEXT('KEY INPUTS'!D34,"0")&" Budget - Cash" -> Amount Appropriated in the 2020 Budget - Cash | K10: =+'17-Budget Revenues'!H6 -> 3800000 | L10: xxxxxxxxx
B11: 5. | C11: ="Amount Appropriated in "&TEXT('KEY INPUTS'!D34,"0")&" Budget - with Prior Written-" -> Amount Appropriated in 2020 Budget - with Prior Written-
C12: Consent of Director of Local Government Services | K12: =+'17-Budget Revenues'!H8 -> 0 | L12: xxxxxxxxx
B13: 6. | L13: xxxxxxxxx
B14: 7. | C14: ='KEY INPUTS'!D26 -> Balance - December 31, 2020 | K14: =+L7+L8+L9-K10-K12-K13 -> 6527242.71 | L14: xxxxxxxxx
K15: =SUM(K10:K14) -> 10327242.71 | L15: =SUM(L7:L14) -> 10327242.71
B19: ="ANALYSIS OF BALANCE DECEMBER 31, "&TEXT('KEY INPUTS'!D34,"0") -> ANALYSIS OF BALANCE DECEMBER 31, 2020
B20: (FROM CURRENT FUND - TRIAL BALANCE)
B23: Cash | L23: =+'3-Trial Bal-Current Fund'!G11 -> 11191583.24
B24: Investments
B26: Sub Total | L26: =+L23+L24+L25 -> 11191583.24
B27: Deduct Cash Liabilities Marked with "C" on Trial Balance | L27: =+'3a.1-Trial Bal-Current Fund'!H25 -> 6195133.9
B28: Cash Surplus | L28: =+L26-L27 -> 4996449.34
B29: Deficit in Cash Surplus
B30: Other Assets Pledged to Surplus:*
C31: (1) Due from State of N.J. Senior Citizens and Veterans Deduction | K31: =+'3-Trial Bal-Current Fund'!G13 -> 36218.37
C32: Deferred Charges # | K32: 1494575
C33: Cash Deficit #
D38: Total Other Assets | L38: =SUM(K31:K37) -> 1530793.37
B39: * IN THE CASE OF A "DEFICIT IN CASH SURPLUS", "OTHER ASSETS" | L39: =+L28+L38 -> 6527242.71
C40: WOULD ALSO BE PLEDGED TO CASH LIABILITIES.
B41: ="# MAY NOT BE ANTICIPATED AS NON-CASH SURPLUS IN "&TEXT('KEY INPUTS'!D33,"0")&" BUDGET." -> # MAY NOT BE ANTICIPATED AS NON-CASH SURPLUS IN 2021 BUDGET.
B42: (1) MAY BE ALLOWED UNDER CERTAIN CONDITIONS.
B44: NOTE: Deferred charges for authorizations under N.J.S. 40A:4-55 (Tax Map, etc.), N.J.S. 40A:4-55 (Flood Damage, etc.), N.J.S.
B45: 40A:4-55.1 (Roads and Bridges, etc.) and N.J.S. 40A:4-55.13 (Public Exigencies, etc.) to the extent of emergency notes issued
B46: and outstanding for such purposes, together with such emergency notes, may be omitted from this analysis.
B50: Sheet 21

Sheet 22-CY Levy
B2: (FOR MUNICIPALITIES ONLY)
B3: ="CURRENT TAXES - "&TEXT('KEY INPUTS'!D34,"0")& " LEVY" -> CURRENT TAXES - 2020 LEVY
B5: 1. | C5: Amount of Levy as per Duplicate (Analysis) # | M5: $ | N5: 57650058.62
G6: or
F7: (Abstract of Ratables) | M7: $
B9: 2. | C9: Amount of Levy Special District Taxes | M9: $
B11: 3. | C11: Amount Levied for Omitted Taxes under
C12: N.J.S.A. 54:4-63.12 et seq. | M12: $
B14: 4. | C14: Amount Levied for Added Taxes under
C15: N.J.S.A. 54:4-63.1 et seq. | M15: $ | N15: 466601.3
B17: 5a. | C17: ="Subtotal "&TEXT('KEY INPUTS'!D34,"0")&" Levy" -> Subtotal 2020 Levy | I17: $ | J17: =SUM(N5:N15) -> 58116659.92
B18: 5b. | C18: Reductions due to tax appeals ** | I18: $
B19: 5c. | C19: ="Total "&TEXT('KEY INPUTS'!D34,"0") & " Tax Levy" -> Total 2020 Tax Levy | M19: $ | N19: =+J17-J18 -> 58116659.92
B21: 6. | C21: Transferred to Tax Title Liens | M21: $ | N21: 6379.51
B22: 7. | C22: Transferred to Foreclosed Property | M22: $
B23: 8. | C23: Remitted, Abated or Canceled | M23: $ | N23: 403666.86
B24: 9. | C24: Discount Allowed | M24: $
B25: 10. | C25: ="Collected in Cash: In "&TEXT('KEY INPUTS'!D35,"0") -> Collected in Cash: In 2019 | K25: $ | L25: 421543.77
F26: ="In "&TEXT('KEY INPUTS'!D34,"0")&" *" -> In 2020 * | K26: $ | L26: 55289595.67
C27: Homestead Benefit Credit | K27: $
C29: ="State's Share of "&TEXT('KEY INPUTS'!D34,"0")&" Senior Citizens" -> State's Share of 2020 Senior Citizens
C30: and Veterans Deductions Allowed | K30: $ | L30: =+'23-SCVet Deductions'!G37 -> 13250
C32: Total To Line 14 | K32: $ | L32: =SUM(L25:L30) -> 55724389.44
B34: 11. | C34: Total Credits | M34: $ | N34: =+SUM(N21:N24)+L32 -> 56134435.81
B35: 12. | C35: ="Amount Outstanding December 31, "&TEXT('KEY INPUTS'!D34,"0") -> Amount Outstanding December 31, 2020 | M35: $ | N35: =+N19-N34 -> 1982224.11
B37: 13. | C37: ="Percentage of Cash Collections to Total "&TEXT('KEY INPUTS'!D34,"0")&" Levy," -> Percentage of Cash Collections to Total 2020 Levy,
C38: (Item 10 divided by Item 5c) is | H38: =TRUNC(+L32/N19, 4) -> 0.9588
B41: Note: If municipality conducted Accelerated Tax Sale or Tax Levy Sale check here ____ and complete sheet 22a.
B43: 14. | C43: Calculation of Current Taxes Realized in Cash:
C45: Total of Line 10 | K45: $ | L45: =+L32 -> 55724389.44
C46: Less: | D46: Reserve for Tax Appeals Pending
D47: State Division of Tax Appeals | K47: $
C48: To Current Taxes Realized in Cash (Sheet 17) | K48: $ | L48: =+L45-L47 -> 55724389.44
B50: Note A: | C50: In showing the above percentage the following should be noted:
C51: Where Item 5 shows $1,500,000.00, and Item 10 shows $1,049,977.50,
C52: the percentage represented by the cash collections would be
C53: $1,049,977.50 divided by $1,500,000, or .699985. The correct percentage to
C54: be shown as Item 13 is 69.99% and not 70.00%, nor 69.999%.
B56: # Note: | C56: On Item 1 if Duplicate (Analysis) Figure is used; be sure to include
C57: Senior Citizens and Veterans Deductions.
B60: ="* Include overpayments applied as part of "&TEXT('KEY INPUTS'!D34,"0")&" collections." -> * Include overpayments applied as part of 2020 collections.
B61: ** Tax appeals pursuant to R.S. 54:3-21 et seq and/or R.S. 54:48-1 et seq approved by resolution of the governing
D62: body prior to introduction of municipal budget
B63: Sheet 22

Sheet 22a-Tax Levy Sale
B4: ACCELERATED TAX SALE / TAX LEVY SALE - CHAPTER 99
B6: ="To Calculate Underlying Tax Collection Rate for "&TEXT('KEY INPUTS'!D34,"0") -> To Calculate Underlying Tax Collection Rate for 2020
B8: Utilize this sheet only if you conducted an Accelerated Tax Sale or Tax Levy Sale pursuant to
B9: Chapter 99, P.L. 1997.
B13: (1) Utilizing Accelerated Tax Sale
B16: Total of Line 10 Collected in Cash (sheet 22) | J16: $ | K16: =+'22-CY Levy'!L32 -> 55724389.44
B17: LESS: Proceeds from Accelerated Tax Sale
D18: Net Cash Collected | J18: $ | K18: =K16-K17 -> 55724389.44
B19: ="Line 5c (sheet 22) Total "&TEXT('KEY INPUTS'!D34,"0")&" Tax Levy" -> Line 5c (sheet 22) Total 2020 Tax Levy | J19: $ | K19: =+'22-CY Levy'!N19 -> 58116659.92
B21: Percentage of Collection Excluding Accelerated Tax Sale Proceeds
B22: (Net Cash Collected divided by Item 5c) is | K22: =+K18/K19 -> 0.9588367521
B34: (2) Utilizing Tax Levy Sale
B37: Total of Line 10 Collected in Cash (sheet 22) | J37: $ | K37: =+'22-CY Levy'!L32 -> 55724389.44
B38: LESS: Proceeds from Tax Levy Sale (excluding premium)
D39: Net Cash Collected | J39: $ | K39: =K37-K38 -> 55724389.44
B40: =B19 -> Line 5c (sheet 22) Total 2020 Tax Levy | J40: $ | K40: =+'22-CY Levy'!N19 -> 58116659.92
B42: Percentage of Collection Excluding Tax Levy Sale Proceeds
B43: (Net Cash Collected divided by Item 5c) is | K43: =IFERROR(K39/K40,"NO ENTRY") -> 0.9588367521
B61: Sheet 22a

Sheet 23-SCVet Deductions
B3: SCHEDULE OF DUE FROM / TO STATE OF NEW JERSEY
B4: FOR SENIOR CITIZENS AND VETERANS DEDUCTIONS
I6: Debit | J6: Credit
B7: 1. | C7: ='KEY INPUTS'!D25 -> Balance - January 1, 2020 | I7: xxxxxxxxx | J7: xxxxxxxxx
D8: Due From State of New Jersey | I8: 34698.37 | J8: xxxxxxxxx
D9: Due To State of New Jersey | I9: xxxxxxxxx
B10: 2. | C10: Sr. Citizens Deductions Per Tax Billings | I10: 3500 | J10: xxxxxxxxx
B11: 3. | C11: Veterans Deductions Per Tax Billings | I11: 9750 | J11: xxxxxxxxx
B12: 4. | C12: Deductions Allowed By Tax Collector | J12: xxxxxxxxx
B13: 5. | C13: ="Deductions Allowed By Tax Collector "&TEXT('KEY INPUTS'!D35,"0")&" Taxes" -> Deductions Allowed By Tax Collector 2019 Taxes
B14: 6.
B15: 7. | C15: Deductions Disallowed By Tax Collector | I15: xxxxxxxxx
B16: 8. | C16: Deductions Disallowed By Tax Collector Prior Taxes | I16: xxxxxxxxx
B17: 9. | C17: Received in Cash from State | I17: xxxxxxxxx | J17: 11730
B18: 10.
B19: 11.
B20: 12. | C20: ='KEY INPUTS'!D26 -> Balance - December 31, 2020 | I20: xxxxxxxxx | J20: xxxxxxxxx | K20: =SUM(I7:I20)-SUM(J7:J20) -> 36218.37 | L20: DO NOT REMOVE THIS FORMULA
D21: Due From State of New Jersey | I21: xxxxxxxxx | J21: =IF(K20>0,K20,0) -> 36218.37
D22: Due To State of New Jersey | I22: =IF(K20>0,0,K20)*-1 -> 0 | J22: xxxxxxxxx
I23: =SUM(I7:I22) -> 47948.37 | J23: =SUM(J7:J22) -> 47948.37
B29: Calculation of Amount to be included on Sheet 22, Item 10 -
B30: =TEXT('KEY INPUTS'!D34,"0")&" Senior Citizens and Veterans Deductions Allowed" -> 2020 Senior Citizens and Veterans Deductions Allowed
B32: Line 2 | G32: =+I10 -> 3500
B33: Line 3 | G33: =+I11 -> 9750
B34: Line 4 | G34: =+I12 -> 0
B35: Sub - Total | G35: =SUM(G32:G34) -> 13250
B36: Less: Line 7 | G36: =+J15 -> 0
B37: To Item 10, Sheet 22 | G37: =+G35-G36 -> 13250
B54: Sheet 23

Sheet 24-Reserves for Tax Appeals
B3: SCHEDULE OF RESERVE FOR TAX APPEALS PENDING -
B4: N.J. DIVISION OF TAXATION APPEALS (N.J.S.A. 54:3-27)
I6: Debit | J6: Credit
B7: ='KEY INPUTS'!D25 -> Balance - January 1, 2020 | I7: xxxxxxxxxx | J7: =H8+H9 -> 88240.27
C8: Taxes Pending Appeals | H8: 88240.27 | I8: xxxxxxxxxx | J8: xxxxxxxxx
C9: Interest Earned on Taxes Pending Appeals | I9: xxxxxxxxxx | J9: xxxxxxxxx
B10: ="Contested Amount of "&TEXT('KEY INPUTS'!D34,"0")&" Taxes Collected which are Pending State Appeal (Item 14, Sheet 22)" -> Contested Amount of 2020 Taxes Collected which are Pending State Appeal (Item 14, Sheet 22) | I10: xxxxxxxxxx
B11: Interest Earned on Taxes Pending State Appeals | I11: xxxxxxxxxx
B12: Budget Appropriation | J12: 200000
B13: Cash Paid to Appellants (Including 5% Interest from Date of Payment) | I13: 74514.54 | J13: xxxxxxxxx
B14: Closed to Results of Operation
B15: (Portion of Appeal won by Municipality, including Interest) | J15: xxxxxxxxx
B17: ='KEY INPUTS'!D26 -> Balance - December 31, 2020 | I17: =H18+H19 -> 213725.73 | J17: xxxxxxxxx
C18: Taxes Pending Appeals* | H18: 213725.73 | I18: xxxxxxxxx | J18: xxxxxxxxx
C19: Interest Earned on Taxes Pending Appeals | I19: xxxxxxxxx | J19: xxxxxxxxx
B20: * Includes State Tax Court and County Board of Taxation | I20: =SUM(I7:I19) -> 288240.27 | J20: =SUM(J7:J19) -> 288240.27
B21: =" Appeals Not Adjusted by December 31, "&TEXT('KEY INPUTS'!D34,"0") -> Appeals Not Adjusted by December 31, 2020
C25: jiannaconi@edgewaternj.org
C26: Signature of Tax Collector
C29: T0897 | G29: 2021-02-03
C30: License # | G30: Date
B60: Sheet 24

Sheet 26-Delinquent Taxes and Liens
B2: SCHEDULE OF DELINQUENT TAXES AND TAX TITLE LIENS
J4: Debit | L4: Credit
B5: 1. | C5: ='KEY INPUTS'!D25 -> Balance - January 1, 2020 | K5: =I6+I7 -> 1806905.64 | M5: xxxxxxxxx
D6: A. | E6: Taxes | I6: 1722693.76 | K6: xxxxxxxxx | M6: xxxxxxxxx
D7: B. | E7: Tax Title Liens | I7: 84211.88 | K7: xxxxxxxxx | M7: xxxxxxxxx
B8: 2. | C8: Canceled: | K8: xxxxxxxxx | M8: xxxxxxxxx
D9: A. | E9: Taxes | K9: xxxxxxxxx
D10: B. | E10: Tax Title Liens | K10: xxxxxxxxx
B11: 3. | C11: Transferred to Foreclosed Tax Title Liens: | K11: xxxxxxxxx | M11: xxxxxxxxx
D12: A. | E12: Taxes | K12: xxxxxxxxx
D13: B. | E13: Tax Title Liens | K13: xxxxxxxxx
B14: 4. | C14: Added Taxes | K14: 64602.65 | M14: xxxxxxxxx
B15: 5. | C15: Added Tax Title Liens | M15: xxxxxxxxx
B16: 6. | C16: Adjustment between Taxes (Other than current year) and Tax Title Liens; | K16: xxxxxxxxx
D17: A. | E17: Taxes - Transfers to Tax Title Liens | K17: xxxxxxxxx | L17: (1)
D18: B. | E18: Tax Title Liens - Transfers from Taxes | J18: (1) | K18: =+M17 -> 0 | M18: xxxxxxxxx
B19: 7. | C19: Balance Before Cash Payments | K19: xxxxxxxxx | M19: =+K5+K14+K15+K18-M17-M16-M13-M12-M10-M9 -> 1871508.29
B20: 8. | D20: Totals | K20: =SUM(K5:K19) -> 1871508.29 | M20: =SUM(M5:M19) -> 1871508.29
B21: 9. | C21: Balance Brought Down | K21: =+M19 -> 1871508.29 | M21: xxxxxxxxx
B22: 10. | C22: Collected: | K22: xxxxxxxxx | M22: =+I23+I24 -> 1752818.53
D23: A. | E23: Taxes | I23: 1752818.53 | K23: xxxxxxxxx | M23: xxxxxxxxx
D24: B. | E24: Tax Title Liens | K24: xxxxxxxxx | M24: xxxxxxxxx
B25: 11. | C25: ="Interest and Costs - "&TEXT('KEY INPUTS'!D34,"0")&" Tax Sale" -> Interest and Costs - 2020 Tax Sale | M25: xxxxxxxxx
B26: 12. | C26: =TEXT('KEY INPUTS'!D34,"0")&" Taxes Transferred to Liens" -> 2020 Taxes Transferred to Liens | K26: 6379.51 | M26: xxxxxxxxx
B27: 13. | C27: =TEXT('KEY INPUTS'!D34,"0")&" Taxes" -> 2020 Taxes | K27: =+'22-CY Levy'!N35+'22-CY Levy'!N22 -> 1982224.11 | M27: xxxxxxxxx
B28: 14. | C28: ='KEY INPUTS'!D26 -> Balance - December 31, 2020 | K28: xxxxxxxxx | M28: =+I29+I30 -> 2107293.38
D29: A. | E29: Taxes | I29: =+I6-M9-M12+K14-M17-I23+K27 -> 2016701.99 | K29: xxxxxxxxx | M29: xxxxxxxxx
D30: B. | E30: Tax Title Liens | I30: =+I7-M10-M13+K15+K18-I24+K25+K26 -> 90591.39 | K30: xxxxxxxxx | M30: xxxxxxxxx
B31: 15. | E31: Totals | K31: =SUM(K21:K30) -> 3860111.91 | M31: =SUM(M21:M30) -> 3860111.91
B34: 16. | C34: Percentage of Cash Collections to Adjusted Amount Outstanding
C35: (Item No. 10 divided by Item No. 9) is | H35: =IFERROR(ROUND(M22/K21,4),"NO ENTRY") -> 0.9366
B37: 17. | C37: Item No.14 multiplied by percentage shown above is | I37: =IFERROR(H35*M28,"NO ENTRY") -> 1973690.98 | J37: and represents the
C38: ="maximum amount that may be anticipated in "&'KEY INPUTS'!D33&"." -> maximum amount that may be anticipated in 2021.
B40: (See Note A on Sheet 22 - Current Taxes)
B42: (1) These amounts will always be the same.
B49: Sheet 26

Sheet 27-Foreclosed Property
B2: SCHEDULE OF FORECLOSED PROPERTY
B3: (PROPERTY ACQUIRED BY TAX TITLE LIEN LIQUIDATION)
K5: Debit | L5: Credit
B6: 1. | C6: ='KEY INPUTS'!D25 -> Balance - January 1, 2020 | K6: 3844775 | L6: xxxxxxxxx
B7: 2. | C7: ="Foreclosed or Deeded in "&TEXT('KEY INPUTS'!D34,"0") -> Foreclosed or Deeded in 2020 | K7: xxxxxxxxx | L7: xxxxxxxxx
B8: 3. | D8: Tax Title Liens | K8: =+'26-Delinquent Taxes and Liens'!M13 -> 0 | L8: xxxxxxxxx
B9: 4. | D9: Taxes Receivable | K9: =+'26-Delinquent Taxes and Liens'!M12 -> 0 | L9: xxxxxxxxx
B10: 5A. | L10: xxxxxxxxx
B11: 5B. | K11: xxxxxxxxx
B12: 6. | D12: Adjustment to Assessed Valuation | L12: xxxxxxxxx
B13: 7. | D13: Adjustment to Assessed Valuation | K13: xxxxxxxxx
B14: 8. | C14: Sales | K14: xxxxxxxxx | L14: xxxxxxxxx
B15: 9. | D15: Cash * | K15: xxxxxxxxx
B16: 10. | D16: Contract | K16: xxxxxxxxx
B17: 11. | D17: Mortgage | K17: xxxxxxxxx
B18: 12. | D18: Loss on Sales | K18: xxxxxxxxx
B19: 13. | D19: Gain on Sales | L19: xxxxxxxxx
B20: 14. | C20: ='KEY INPUTS'!D26 -> Balance - December 31, 2020 | K20: xxxxxxxxx | L20: =K6+SUM(K8:K10)-L11+K12-L13-SUM(L15:L18)+K19 -> 3844775
K21: =SUM(K6:K20) -> 3844775 | L21: =SUM(L6:L20) -> 3844775
B23: CONTRACT SALES
K25: Debit | L25: Credit
B26: 15. | C26: =C6 -> Balance - January 1, 2020 | L26: xxxxxxxxx
B27: 16. | C27: =TEXT('KEY INPUTS'!D34,"0")& " Sales from Foreclosed Property" -> 2020 Sales from Foreclosed Property | L27: xxxxxxxxx
B28: 17. | C28: Collected* | K28: xxxxxxxxx
B29: 18. | K29: xxxxxxxxx
B30: 19. | C30: =C20 -> Balance - December 31, 2020 | K30: xxxxxxxxx | L30: =SUM(K26:K27)-SUM(L28:L29) -> 0
K31: =SUM(K26:K30) -> 0 | L31: =SUM(L26:L30) -> 0
B33: MORTGAGE SALES
K35: Debit | L35: Credit
B36: 20. | C36: =C26 -> Balance - January 1, 2020 | L36: xxxxxxxxx
B37: 21. | C37: =C27 -> 2020 Sales from Foreclosed Property | L37: xxxxxxxxx
B38: 22. | C38: Collected* | K38: xxxxxxxxx
B39: 23. | K39: xxxxxxxxx
B40: 24. | C40: =C30 -> Balance - December 31, 2020 | K40: xxxxxxxxx | L40: =SUM(K36:K37)-SUM(L38:L39) -> 0
K41: =SUM(K36:K40) -> 0 | L41: =SUM(L36:L40) -> 0
B42: Analysis of Sale of Property: | H42: $ | I42: =+L15+L28+L38 -> 0
B43: ="* Total Cash Collected in "&TEXT('KEY INPUTS'!D34,"0") -> * Total Cash Collected in 2020
B45: ="Realized in "&TEXT('KEY INPUTS'!D34,"0")& " Budget" -> Realized in 2020 Budget
B47: To Results of Operation (Sheet 19) | I47: =+I42-I45 -> 0
B50: Sheet 27

Sheet 28-Deferred Charges
B3: DEFERRED CHARGES
B4: - MANDATORY CHARGES ONLY -
B5: CURRENT, TRUST, AND GENERAL CAPITAL FUNDS
B6: (Do not include the emergency authorizations pursuant to N.J.S.A.40A:4-55,
B7: N.J.S.A. 40A:4-55.1 or N.J.S.A. 40A:4-55.13 listed on Sheets 29 and 30.)
H9: Amount
C10: Caused By | H10: ='KEY INPUTS'!D45 -> Dec. 31, 2019 | J10: Amount in | L10: Amount | N10: Balance
H11: per Audit | J11: ='KEY INPUTS'!D34 -> 2020 | L11: Resulting | N11: as at
H12: Report | J12: Budget | L12: ="from "&TEXT('KEY INPUTS'!D34,"0") -> from 2020 | N12: ='KEY INPUTS'!D46 -> Dec. 31, 2020
C13: Emergency Authorization -
D14: Municipal* | G14: $ | H14: 400000 | I14: $ | J14: 400000 | K14: $ | L14: 100000 | M14: $ | N14: =+H14-J14+L14 -> 100000
C16: Emergency Authorization -
D17: Schools | G17: $ | I17: $ | K17: $ | M17: $ | N17: =+H17-J17+L17 -> 0
C18: Overexpenditure of Appropriations | G18: $ | I18: $ | K18: $ | M18: $ | N18: =+H18-J18+L18 -> 0
G19: $ | I19: $ | K19: $ | M19: $ | N19: =+H19-J19+L19 -> 0
G20: $ | I20: $ | K20: $ | M20: $ | N20: 0
G21: $ | I21: $ | K21: $ | M21: $ | N21: 0
G22: $ | I22: $ | K22: $ | M22: $ | N22: 0
G23: $ | I23: $ | K23: $ | M23: $ | N23: 0
G24: $ | I24: $ | K24: $ | M24: $ | N24: 0
C25: TOTAL DEFERRED CHARGES | G25: $ | H25: =SUM(H14:H24) -> 400000 | I25: $ | J25: =SUM(J14:J24) -> 400000 | K25: $ | L25: =SUM(L14:L24) -> 100000 | M25: $ | N25: =SUM(N14:N24) -> 100000
C27: *Do not include items funded or refunded as listed below.
B30: EMERGENCY AUTHORIZATIONS UNDER N.J.S.A. 40A:4-47 WHICH HAVE BEEN
B31: FUNDED OR REFUNDED UNDER N.J.S.A. 40A:2-3 OR N.J.S.A. 40A:2-51
D33: Date | G33: Purpose | N33: Amount
C34: 1. | M34: $
C35: 2. | M35: $
C36: 3. | M36: $
C37: 4. | M37: $
C38: 5. | M38: $
B42: JUDGMENTS ENTERED AGAINST MUNICIPALITY AND NOT SATISFIED
N44: Appropriated for
N45: in Budget of
D46: In Favor of | H46: On Account of | J46: Date Entered | L46: Amount | N46: ="Year "&TEXT('KEY INPUTS'!D33,"0") -> Year 2021
C48: 1. | K48: $
C49: 2. | K49: $
C50: 3. | K50: $
C51: 4. | K51: $
B58: Sheet 28

Sheet 29-Special Emergency
C2: N.J.S.A. 40A:4-53 SPECIAL EMERGENCY - | F2: TAX MAP; REVALUATION; MASTER PLAN; REVISION AND CODIFICATION OF ORDINANCES; DRAINAGE MAPS
F3: FOR FLOOD CONTROL; PRELIMINARY ENGINEERING STUDIES, ETC. FOR SANITARY SEWER SYSTEM; MUNICIPAL
F4: CONSOLIDATION ACT; FLOOD OR HURRICANE DAMAGE.
B7: Date | E7: Purpose | G7: Amount | H7: Not Less Than | I7: Balance | J7: ="REDUCED IN "&TEXT('KEY INPUTS'!D34,"0") -> REDUCED IN 2020 | L7: Balance
G8: Authorized | H8: 1/5 of Amount | I8: ='KEY INPUTS'!D45 -> Dec. 31, 2019 | J8: ="By "&TEXT('KEY INPUTS'!D34,"0") -> By 2020 | K8: Canceled | L8: ='KEY INPUTS'!D46 -> Dec. 31, 2020
H9: Authorized* | J9: Budget | K9: By Resolution
B10: 2021-04-20 | E10: Reassessment of Real Property | G10: 250000 | H10: 50000 | L10: =G10+I10-J10-K10 -> 250000
B11: 2021-11-20 | E11: COVID-19 | G11: 1144575 | H11: 228915 | L11: =G11+I11-J11-K11 -> 1144575
L12: =+I12-J12-K12 -> 0
L13: 0
L14: 0
L15: 0
A16: Sheet 29 | L16: 0
L17: 0
L18: 0
L19: 0
L20: 0
L21: 0
L22: 0
L23: 0
F24: Totals | G24: =SUM(G10:G23) -> 1394575 | H24: 278915 | I24: 0 | J24: 0 | K24: 0 | L24: 1394575
B26: It is hereby certified that all outstanding "Special Emergency" appropriations have been adopted by the governing body in full compliance with N.J.S.A. 40A:4-53 et seq. and
B27: are recorded on this page
J28: gfranz@edgewaternj.org
J29: Chief Financial Officer
B30: ="* Not less than one-fifth (1/5) of amount authorized but not more than the amount in the column 'Balance Dec. 31, "&TEXT('KEY INPUTS'!D34,"0")&"' must be entered here and then raised in the "&TEXT('KEY INPUTS'!D33,"0")&" budget." -> * Not less than one-fifth (1/5) of amount authorized but not more than the amount in the column 'Balance Dec. 31, 2020' must be entered here and then raised in the 2021 budget.
L35: =+I24-J24-L24 -> -1394575

Sheet 30-Special Emergency
C2: N.J.S.A. 40A:4-55.1, ET SEQ., SPECIAL EMERGENCY - DAMAGE CAUSED TO ROADS OR BRIDGES BY SNOW, ICE, FROST OR FLOODS
C3: N.J.S.A. 40A:4-55.13, ET SEQ., SPECIAL EMERGENCY - PUBLIC EXIGENCIES CAUSED BY CIVIL DISTURBANCES
B7: Date | E7: Purpose | G7: Amount | H7: Not Less Than | I7: Balance | J7: ='29-Special Emergency'!J7:K7 -> REDUCED IN 2020 | L7: Balance
G8: Authorized | H8: 1/3 of Amount | I8: ='29-Special Emergency'!I8 -> Dec. 31, 2019 | J8: ='29-Special Emergency'!J8 -> By 2020 | K8: Canceled | L8: ='29-Special Emergency'!L8 -> Dec. 31, 2020
H9: Authorized* | J9: Budget | K9: By Resolution
L10: =+I10-J10-K10 -> 0
L11: =+I11-J11-K11 -> 0
L12: =+I12-J12-K12 -> 0
L13: 0
L14: 0
L15: 0
A16: Sheet 30 | L16: 0
L17: 0
L18: 0
L19: 0
L20: 0
L21: 0
L22: 0
L23: 0
F24: Totals | G24: =SUM(G10:G23) -> 0 | H24: 0 | I24: 0 | J24: 0 | K24: 0 | L24: 0
B26: It is hereby certified that all outstanding "Special Emergency" appropriations have been adopted by the governing body in full compliance with N.J.S.A. 40A:4-55.1 et seq. and
B27: N.J.S. 40A:4-55.13 et seq. and are recorded on this page
J29: Chief Financial Officer
B30: ="* Not less than one-third (1/3) of amount authorized but not more than the amount in the column 'Balance Dec. 31, "&TEXT('KEY INPUTS'!D34,"0")&"' must be entered here and then raised in the "&TEXT('KEY INPUTS'!D33,"0")&" budget." -> * Not less than one-third (1/3) of amount authorized but not more than the amount in the column 'Balance Dec. 31, 2020' must be entered here and then raised in the 2021 budget.

Sheet 31-Capital Bond Schedule
B2: SCHEDULE OF BONDS ISSUED AND OUTSTANDING
B3: =" AND "&TEXT('KEY INPUTS'!D33,"0")&" DEBT SERVICE FOR BONDS" -> AND 2021 DEBT SERVICE FOR BONDS
B4: GENERAL CAPITAL BONDS
G6: Debit | H6: Credit | J6: =TEXT('KEY INPUTS'!D33,"0")&" Debt Service" -> 2021 Debt Service
B7: ='KEY INPUTS'!D27 -> Outstanding - January 1, 2020 | G7: xxxxxxxxx | H7: 41515000
B8: Issued | G8: xxxxxxxxx
B9: Paid | G9: 3035000 | H9: xxxxxxxxx
B12: ='KEY INPUTS'!D28 -> Outstanding - December 31, 2020 | G12: =+H7+H8-G9-G10-G11+H10+H11 -> 38480000 | H12: xxxxxxxxx
G13: =SUM(G7:G12) -> 41515000 | H13: =SUM(H7:I12) -> 41515000
B14: =TEXT('KEY INPUTS'!D33,"0")&" Bond Maturities - General Capital Bonds" -> 2021 Bond Maturities - General Capital Bonds | J14: $ | K14: 3070000
B15: =TEXT('KEY INPUTS'!D33,"0")&" Interest on Bonds*" -> 2021 Interest on Bonds* | H15: $ | I15: 1220112.5
B17: ASSESSMENT SERIAL BONDS
B18: =B7 -> Outstanding - January 1, 2020 | G18: xxxxxxxxx
B19: Issued | G19: xxxxxxxxx
B20: Paid | H20: xxxxxxxxx
B23: =B12 -> Outstanding - December 31, 2020 | G23: =+H18+H19-G20-G21-G22+H21+H22 -> 0 | H23: xxxxxxxxx
G24: =SUM(G18:G23) -> 0 | H24: =SUM(H18:I23) -> 0
B25: =TEXT('KEY INPUTS'!D33,"0")&" Bond Maturities - Assessment Bonds" -> 2021 Bond Maturities - Assessment Bonds | J25: $
B26: =B15 -> 2021 Interest on Bonds* | H26: $
B27: Total "Interest on Bonds - Debt Service" (*Items) | J27: $ | K27: =+I26+I15 -> 1220112.5
B29: ="LIST OF BONDS ISSUED DURING "&TEXT('KEY INPUTS'!D34,"0") -> LIST OF BONDS ISSUED DURING 2020
B30: Purpose | G30: =TEXT('KEY INPUTS'!D33,"0")&" Maturity" -> 2021 Maturity | H30: Amount Issued | J30: Date of Issue | L30: Interest Rate
F39: Total | G39: =SUM(G31:G38) -> 0 | H39: =SUM(H31:I38) -> 0
B47: Sheet 31

Sheet 31A-Loan Schedule
B2: SCHEDULE OF LOANS ISSUED AND OUTSTANDING
B3: =" AND "&TEXT('KEY INPUTS'!D33,"0")&" DEBT SERVICE FOR LOANS" -> AND 2021 DEBT SERVICE FOR LOANS
B4: INFRASTRUCTURE TRUST LOAN
G6: Debit | H6: Credit | J6: ='31-Capital Bond Schedule'!J6:L6 -> 2021 Debt Service
B7: ='31-Capital Bond Schedule'!B7 -> Outstanding - January 1, 2020 | G7: xxxxxxxxx | H7: 1463041.97
B8: Issued | G8: xxxxxxxxx
B9: Paid | G9: 283334.46 | H9: xxxxxxxxx
B10: Refunded
B12: ='31-Capital Bond Schedule'!B12 -> Outstanding - December 31, 2020 | G12: =+H7+H8-G9-G10-G11+H10+H11 -> 1179707.51 | H12: xxxxxxxxx
G13: =SUM(G7:G12) -> 1463041.97 | H13: =SUM(H7:I12) -> 1463041.97
B14: =TEXT('KEY INPUTS'!D33,"0")&" Loan Maturities" -> 2021 Loan Maturities | J14: $ | K14: 164288.9
B15: =TEXT('KEY INPUTS'!D33,"0")&" Interest on Loans " -> 2021 Interest on Loans | J15: $ | K15: 20458.1
B16: ="Total "&TEXT('KEY INPUTS'!D33,"0")&" Debt Service for" -> Total 2021 Debt Service for | G16: Loan | J16: $ | K16: =+K14+K15 -> 184747
B17: __________________________________ LOAN
B18: =B7 -> Outstanding - January 1, 2020 | G18: xxxxxxxxx
B19: Issued | G19: xxxxxxxxx
B20: Paid | H20: xxxxxxxxx
B23: =B12 -> Outstanding - December 31, 2020 | G23: =+H18+H19-G20-G21-G22+H21+H22 -> 0 | H23: xxxxxxxxx
G24: =SUM(G18:G23) -> 0 | H24: =SUM(H18:I23) -> 0
B25: =B14 -> 2021 Loan Maturities | J25: $
B26: =B15 -> 2021 Interest on Loans | J26: $
B27: ="Total "&TEXT('KEY INPUTS'!D33,"0")&" Debt Service for" -> Total 2021 Debt Service for | G27: LOAN | J27: $ | K27: =+K25+K26 -> 0
B29: ="LIST OF LOANS ISSUED DURING "&TEXT('KEY INPUTS'!D34,"0") -> LIST OF LOANS ISSUED DURING 2020
B30: Purpose | G30: ='31-Capital Bond Schedule'!G30 -> 2021 Maturity | H30: Amount Issued | J30: Date of Issue | L30: Interest Rate
F39: Total | G39: =SUM(G31:G38) -> 0 | H39: =SUM(H31:I38) -> 0
B47: Sheet 31a

Sheet 31A.1-Loan Schedule
B2: SCHEDULE OF LOANS ISSUED AND OUTSTANDING
B3: =" AND "&TEXT('KEY INPUTS'!D33,"0")&" DEBT SERVICE FOR LOANS" -> AND 2021 DEBT SERVICE FOR LOANS
B4: GREEN TRUST LOAN
G6: Debit | H6: Credit | J6: ='31-Capital Bond Schedule'!J6:L6 -> 2021 Debt Service
B7: ='31-Capital Bond Schedule'!B7 -> Outstanding - January 1, 2020 | G7: xxxxxxxxx | H7: 1195378.74
B8: Issued | G8: xxxxxxxxx
B9: Paid | G9: 67036.49 | H9: xxxxxxxxx
B10: Refunded
B12: ='31-Capital Bond Schedule'!B12 -> Outstanding - December 31, 2020 | G12: =+H7+H8-G9-G10-G11+H10+H11 -> 1128342.25 | H12: xxxxxxxxx
G13: =SUM(G7:G12) -> 1195378.74 | H13: =SUM(H7:I12) -> 1195378.74
B14: =TEXT('KEY INPUTS'!D33,"0")&" Loan Maturities" -> 2021 Loan Maturities | J14: $ | K14: 68383.91
B15: =TEXT('KEY INPUTS'!D33,"0")&" Interest on Loans " -> 2021 Interest on Loans | J15: $ | K15: 22087.44
B16: ="Total "&TEXT('KEY INPUTS'!D33,"0")&" Debt Service for"&"___________________"&" Loan" -> Total 2021 Debt Service for___________________ Loan | J16: $ | K16: =+K14+K15 -> 90471.35
B17: __________________________________ LOAN
B18: =B7 -> Outstanding - January 1, 2020 | G18: xxxxxxxxx
B19: Issued | G19: xxxxxxxxx
B20: Paid | H20: xxxxxxxxx
B23: =B12 -> Outstanding - December 31, 2020 | G23: =+H18+H19-G20-G21-G22+H21+H22 -> 0 | H23: xxxxxxxxx
G24: =SUM(G18:G23) -> 0 | H24: =SUM(H18:I23) -> 0
B25: =B14 -> 2021 Loan Maturities | J25: $
B26: =B15 -> 2021 Interest on Loans | J26: $
B27: ="Total "&TEXT('KEY INPUTS'!D33,"0")&" Debt Service for __________________________ Loan" -> Total 2021 Debt Service for __________________________ Loan | J27: $ | K27: =+K25+K26 -> 0
B29: ="LIST OF LOANS ISSUED DURING "&TEXT('KEY INPUTS'!D34,"0") -> LIST OF LOANS ISSUED DURING 2020
B30: Purpose | G30: ='31-Capital Bond Schedule'!G30 -> 2021 Maturity | H30: Amount Issued | J30: Date of Issue | L30: Interest Rate
F39: Total | G39: =SUM(G31:G38) -> 0 | H39: =SUM(H31:I38) -> 0
B47: Sheet 31a.1

Sheet 31A.2-Loan Schedule
B2: SCHEDULE OF LOANS ISSUED AND OUTSTANDING
B3: =" AND "&TEXT('KEY INPUTS'!D33,"0")&" DEBT SERVICE FOR LOANS" -> AND 2021 DEBT SERVICE FOR LOANS
B4: ________________ LOAN
G6: Debit | H6: Credit | J6: ='31-Capital Bond Schedule'!J6:L6 -> 2021 Debt Service
B7: ='31-Capital Bond Schedule'!B7 -> Outstanding - January 1, 2020 | G7: xxxxxxxxx
B8: Issued | G8: xxxxxxxxx
B9: Paid | H9: xxxxxxxxx
B10: Refunded
B12: ='31-Capital Bond Schedule'!B12 -> Outstanding - December 31, 2020 | G12: =+H7+H8-G9-G10-G11+H10+H11 -> 0 | H12: xxxxxxxxx
G13: =SUM(G7:G12) -> 0 | H13: =SUM(H7:I12) -> 0
B14: =TEXT('KEY INPUTS'!D33,"0")&" Loan Maturities" -> 2021 Loan Maturities | J14: $
B15: =TEXT('KEY INPUTS'!D33,"0")&" Interest on Loans " -> 2021 Interest on Loans | J15: $
B16: ="Total "&TEXT('KEY INPUTS'!D33,"0")&" Debt Service for"&"___________________"&" Loan" -> Total 2021 Debt Service for___________________ Loan | J16: $ | K16: =+K14+K15 -> 0
B17: __________________________________ LOAN
B18: =B7 -> Outstanding - January 1, 2020 | G18: xxxxxxxxx
B19: Issued | G19: xxxxxxxxx
B20: Paid | H20: xxxxxxxxx
B23: =B12 -> Outstanding - December 31, 2020 | G23: =+H18+H19-G20-G21-G22+H21+H22 -> 0 | H23: xxxxxxxxx
G24: =SUM(G18:G23) -> 0 | H24: =SUM(H18:I23) -> 0
B25: =B14 -> 2021 Loan Maturities | J25: $
B26: =B15 -> 2021 Interest on Loans | J26: $
B27: ="Total "&TEXT('KEY INPUTS'!D33,"0")&" Debt Service for __________________________ Loan" -> Total 2021 Debt Service for __________________________ Loan | J27: $ | K27: =+K25+K26 -> 0
B29: ="LIST OF LOANS ISSUED DURING "&TEXT('KEY INPUTS'!D34,"0") -> LIST OF LOANS ISSUED DURING 2020
B30: Purpose | G30: ='31-Capital Bond Schedule'!G30 -> 2021 Maturity | H30: Amount Issued | J30: Date of Issue | L30: Interest Rate
F39: Total | G39: =SUM(G31:G38) -> 0 | H39: =SUM(H31:I38) -> 0
B47: Sheet 31a.2

Sheet 32-Bond Schedule
B2: SCHEDULE OF BONDS ISSUED AND OUTSTANDING
B3: ="AND "&TEXT('KEY INPUTS'!D33,"0")&" DEBT SERVICE FOR BONDS" -> AND 2021 DEBT SERVICE FOR BONDS
B4: TYPE I SCHOOL TERM BONDS
G6: Debit | H6: Credit | J6: ='31A-Loan Schedule'!J6:L6 -> 2021 Debt Service
B7: ='KEY INPUTS'!D27 -> Outstanding - January 1, 2020 | G7: xxxxxxxxx
B8: Paid | H8: xxxxxxxxx
B11: ='KEY INPUTS'!D28 -> Outstanding - December 31, 2020 | G11: =+H7-G8-G9-G10+H9+H10 -> 0 | H11: xxxxxxxxx
G12: =SUM(G7:G11) -> 0 | H12: =SUM(H7:I11) -> 0
B13: =TEXT('KEY INPUTS'!D33,"0")&" Bond Maturities - Term Bonds" -> 2021 Bond Maturities - Term Bonds | H13: $
B14: =TEXT('KEY INPUTS'!D33,"0")&" Interest on Bonds" -> 2021 Interest on Bonds | H14: $
B16: TYPE I SCHOOL SERIAL BONDS
B17: =B7 -> Outstanding - January 1, 2020 | G17: xxxxxxxxx
B18: Issued | G18: xxxxxxxxx
B19: Paid | H19: xxxxxxxxx
B22: =B11 -> Outstanding - December 31, 2020 | G22: =+H17+H18-G19-G20-G21+H20+H21 -> 0 | H22: xxxxxxxxx
G23: =SUM(G17:G22) -> 0 | H23: =SUM(H17:I22) -> 0
B24: =TEXT('KEY INPUTS'!D33,"0")&" Interest on Bonds*" -> 2021 Interest on Bonds* | H24: $
B25: =TEXT('KEY INPUTS'!D33,"0")&" Bond Maturities - Serial Bonds" -> 2021 Bond Maturities - Serial Bonds | J25: $
B26: Total "Interest on Bonds - Type I School Debt Service" (*Items) | J26: $ | K26: =+I24+I14 -> 0
B28: ="LIST OF BONDS ISSUED DURING "&TEXT('KEY INPUTS'!D34,"0") -> LIST OF BONDS ISSUED DURING 2020
B29: Purpose | G29: =TEXT('KEY INPUTS'!D33,"0")&" Maturity -01" -> 2021 Maturity -01 | H29: Amount Issued -02 | J29: Date of Issue | L29: Interest Rate
E33: Total | G33: =SUM(G30:G32) -> 0 | H33: =SUM(H30:I32) -> 0
B36: =TEXT('KEY INPUTS'!D33,"0")&" INTEREST REQUIREMENT - CURRENT FUND DEBT ONLY" -> 2021 INTEREST REQUIREMENT - CURRENT FUND DEBT ONLY
I37: Outstanding | K37: =TEXT('KEY INPUTS'!D33,"0")&" Interest" -> 2021 Interest
I38: ='KEY INPUTS'!D46 -> Dec. 31, 2020 | K38: Requirement
C40: 1. | D40: Emergency Notes | H40: $ | J40: $
C41: 2. | D41: Special Emergency Notes | H41: $ | J41: $
C42: 3. | D42: Tax Anticipation Notes | H42: $ | J42: $
C43: 4. | D43: Interest on Unpaid State & County Taxes | H43: $ | J43: $
C44: 5. | H44: $ | J44: $
C45: 6. | H45: $ | J45: $
B48: Sheet 32

Sheet 33-Note Debt Service
B2: DEBT SERVICE FOR NOTES (OTHER THAN ASSESSMENT NOTES)
E5: Original | F5: Original | G5: Amount | H5: Date | I5: Rate | J5: =TEXT('KEY INPUTS'!D33,"0")&" Budget Requirements" -> 2021 Budget Requirements | L5: Interest
C6: Title or Purpose of Issue | E6: Amount | F6: Date of | G6: of Note | H6: of | I6: of | L6: Computed to
E7: Issued | F7: Issue* | G7: Outstanding | H7: Maturity | I7: Interest | J7: For Principal | K7: For Interest | L7: (Insert Date)
G8: ='KEY INPUTS'!D46 -> Dec. 31, 2020 | K8: **
B9: 1561: Supplemental to 1538 - Historic Borough
B10: Hall Improvements, Phase 3 | E10: 95000 | F10: 2019-07-18 | G10: 95000 | H10: 2021-07-16 | I10: 0.015 | K10: 1425 | L10: 2021-07-16
B11: 2018-3: Supplemental to 1550 - Various Improv.
B12: and Acquisitions | E12: 1257900 | F12: 2019-07-18 | G12: 1257900 | H12: 2021-07-16 | I12: 0.015 | K12: 18868.5 | L12: 2021-07-16
B13: 2018-14: Supplemental to 1538/1561 - Historic
B14: Borough Hall Improvements, Phase 3 | E14: 152000 | F14: 2019-07-18 | G14: 152000 | H14: 2021-07-16 | I14: 0.015 | K14: 2280 | L14: 2021-07-16
A15: Sheet 33 | B15: 2018-15: Various Acquisitions & Improvements | E15: 820100 | F15: 2019-07-18 | G15: 820100 | H15: 2021-07-16 | I15: 0.015 | K15: 12301.5 | L15: 2021-07-16
B16: 2019-10: Supplemental to 2018-15 | E16: 133000 | F16: 2020-07-16 | G16: 133000 | H16: 2021-07-16 | I16: 0.015 | K16: 1995 | L16: 2021-07-16
B17: 2019-11: Acquisition of Property | E17: 190000 | F17: 2020-07-16 | G17: 190000 | H17: 2021-07-16 | I17: 0.015 | K17: 2850 | L17: 2021-07-16
B18: 2019-12: Historic Borough Hall Improvements,
B19: Phase IV | E19: 950000 | F19: 2020-07-16 | G19: 950000 | H19: 2021-07-16 | I19: 0.015 | K19: 14250 | L19: 2021-07-16
B20: 1460: Improvements to DPW & Community
B21: Center Parking Lots | E21: 62000 | F21: 2020-07-16 | G21: 62000 | H21: 2021-07-16 | I21: 0.015 | K21: 930 | L21: 2021-07-16
D23: Page Totals | E23: =SUM(E9:E22) -> 3660000 | G23: =SUM(G9:G22) -> 3660000 | J23: =SUM(J9:J22) -> 0 | K23: =SUM(K9:K22) -> 54900
B24: Memo: Designate all "Capital Notes" issued under N.J.S. 40A:2-8(b) with "C". Such notes must be retired at the rate of 20% of the original amount issued annually.
B25: Memo: Type 1 School Notes should be separately listed and totaled.
B26: * "Original Date of Issue" refers to the date when the first money was borrowed for a particular improvement, not the renewal date of subsequent notes which were issued.
D27: ="All notes with an original date of issue of "&TEXT('KEY INPUTS'!D33-3,"0")&" or prior require one legally payable installment to be budgeted if it is contemplated that such notes will be renewed in "&TEXT('KEY INPUTS'!D33,"0")& " or" -> All notes with an original date of issue of 2018 or prior require one legally payable installment to be budgeted if it is contemplated that such notes will be renewed in 2021 or
D28: written intent of permanent financing submitted with statement. | J28: (Do not crowd - add additional sheets)
B29: ** If interest on notes is financed by ordinance, designate same, otherwise an amount must be included in this column.

Sheet 33.1-Note Debt Service
B2: DEBT SERVICE FOR NOTES (OTHER THAN ASSESSMENT NOTES)
E5: Original | F5: Original | G5: Amount | H5: Date | I5: Rate | J5: =TEXT('KEY INPUTS'!D33,"0")&" Budget Requirements" -> 2021 Budget Requirements | L5: Interest
C6: Title or Purpose of Issue | E6: Amount | F6: Date of | G6: of Note | H6: of | I6: of | L6: Computed to
E7: Issued | F7: Issue* | G7: Outstanding | H7: Maturity | I7: Interest | J7: For Principal | K7: For Interest | L7: (Insert Date)
G8: ='KEY INPUTS'!D46 -> Dec. 31, 2020 | K8: **
C9: PREVIOUS PAGE TOTALS | E9: =+'33-Note Debt Service'!E23 -> 3660000 | G9: =+'33-Note Debt Service'!G23 -> 3660000 | J9: =+'33-Note Debt Service'!J23 -> 0 | K9: =+'33-Note Debt Service'!K23 -> 54900
A15: Sheet 33.1
D23: PAGE TOTALS | E23: =SUM(E9:E22) -> 3660000 | G23: =SUM(G9:G22) -> 3660000 | J23: =SUM(J9:J22) -> 0 | K23: =SUM(K9:K22) -> 54900
B24: Memo: Designate all "Capital Notes" issued under N.J.S. 40A:2-8(b) with "C". Such notes must be retired at the rate of 20% of the original amount issued annually.
B25: Memo: Type 1 School Notes should be separately listed and totaled.
B26: * "Original Date of Issue" refers to the date when the first money was borrowed for a particular improvement, not the renewal date of subsequent notes which were issued.
D27: ="All notes with an original date of issue of "&TEXT('KEY INPUTS'!D33-3,"0")&" or prior require one legally payable installment to be budgeted if it is contemplated that such notes will be renewed in "&TEXT('KEY INPUTS'!D33,"0")& " or" -> All notes with an original date of issue of 2018 or prior require one legally payable installment to be budgeted if it is contemplated that such notes will be renewed in 2021 or
D28: written intent of permanent financing submitted with statement. | J28: (Do not crowd - add additional sheets)
B29: ** If interest on notes is financed by ordinance, designate same, otherwise an amount must be included in this column.

Sheet 33 Totals-Note Debt Service
B2: DEBT SERVICE FOR NOTES (OTHER THAN ASSESSMENT NOTES)
E5: Original | F5: Original | G5: Amount | H5: Date | I5: Rate | J5: =TEXT('KEY INPUTS'!D33,"0")&" Budget Requirements" -> 2021 Budget Requirements | L5: Interest
C6: Title or Purpose of Issue | E6: Amount | F6: Date of | G6: of Note | H6: of | I6: of | L6: Computed to
E7: Issued | F7: Issue* | G7: Outstanding | H7: Maturity | I7: Interest | J7: For Principal | K7: For Interest | L7: (Insert Date)
G8: ='KEY INPUTS'!D46 -> Dec. 31, 2020 | K8: **
C9: PREVIOUS PAGE TOTALS | E9: =+'33.1-Note Debt Service'!E23 -> 3660000 | G9: =+'33.1-Note Debt Service'!G23 -> 3660000 | J9: =+'33.1-Note Debt Service'!J23 -> 0 | K9: =+'33.1-Note Debt Service'!K23 -> 54900
A15: Sheet 33 Totals
D23: PAGE TOTALS | E23: =SUM(E9:E22) -> 3660000 | G23: =SUM(G9:G22) -> 3660000 | J23: =SUM(J9:J22) -> 0 | K23: =SUM(K9:K22) -> 54900
B24: Memo: Designate all "Capital Notes" issued under N.J.S. 40A:2-8(b) with "C". Such notes must be retired at the rate of 20% of the original amount issued annually.
B25: Memo: Type 1 School Notes should be separately listed and totaled.
B26: * "Original Date of Issue" refers to the date when the first money was borrowed for a particular improvement, not the renewal date of subsequent notes which were issued.
D27: ="All notes with an original date of issue of "&TEXT('KEY INPUTS'!D33-3,"0")&" or prior require one legally payable installment to be budgeted if it is contemplated that such notes will be renewed in "&TEXT('KEY INPUTS'!D33,"0")& " or" -> All notes with an original date of issue of 2018 or prior require one legally payable installment to be budgeted if it is contemplated that such notes will be renewed in 2021 or
D28: written intent of permanent financing submitted with statement. | J28: (Do not crowd - add additional sheets)
B29: ** If interest on notes is financed by ordinance, designate same, otherwise an amount must be included in this column.

Sheet 34-Assmt Note Debt Service
B2: DEBT SERVICE SCHEDULE FOR ASSESSMENT NOTES
E5: Original | F5: Original | G5: Amount | H5: Date | I5: Rate | J5: ='33-Note Debt Service'!J5:K6 -> 2021 Budget Requirements | L5: Interest
C6: Title or Purpose of Issue | E6: Amount | F6: Date of | G6: of Note | H6: of | I6: of | L6: Computed to
E7: Issued | F7: Issue* | G7: Outstanding | H7: Maturity | I7: Interest | J7: For Principal | K7: For Interest | L7: (Insert Date)
G8: ='KEY INPUTS'!D46 -> Dec. 31, 2020 | K8: **
B9: 1.
B10: 2.
B11: 3.
B12: 4.
B13: 5.
B14: 6.
A15: Sheet 34 | B15: 7.
B16: 8.
B17: 9.
B18: 10.
B19: 11.
B20: 12.
B21: 13.
B22: 14.
D23: Total | G23: =SUM(G9:G22) -> 0 | H23: =SUM(H9:H22) -> 0 | J23: =SUM(J9:J22) -> 0 | K23: =SUM(K9:K22) -> 0
B24: MEMO:* See Sheet 33 for clarification of "Original Date of Issue"
C25: ="Assessment Notes with an original date of issue of "&TEXT('KEY INPUTS'!D33-3,"0")&" or prior must be appropriated in full in the "&TEXT('KEY INPUTS'!D33,"0")&" Dedicated Assessment Budget or written intent of permanent financing" -> Assessment Notes with an original date of issue of 2018 or prior must be appropriated in full in the 2021 Dedicated Assessment Budget or written intent of permanent financing
D26: submitted with statement.
C27: ** Interest on Assessment Notes must be included in the Current Fund Budget appropriation "Interest on Notes".
J28: (Do not crowd - add additional sheets)

Sheet 34a-Cap Lease Program Oblg
B2: SCHEDULE OF CAPITAL LEASE PROGRAM OBLIGATIONS
G5: Amount | H5: ='34-Assmt Note Debt Service'!J5 -> 2021 Budget Requirements
C6: Purpose | G6: Lease Obligation Outstanding
G7: ='KEY INPUTS'!D46 -> Dec. 31, 2020 | H7: For Principal | I7: For Interest/Fees
B9: 1.
B10: 2. | C10: 2012 Refunding of 2003 Issuance | G10: 62000 | H10: 62000 | I10: 917
B11: 3.
B12: 4.
B13: 5.
B14: 6.
A15: Sheet 34a | B15: 7.
B16: 8.
B17: 9.
B18: 10.
B19: 11.
B20: 12.
B21: 13.
B22: 14.
D23: Total | G23: =SUM(G9:G22) -> 62000 | H23: =SUM(H9:H22) -> 62000 | I23: =SUM(I9:I22) -> 917
H26: (Do not crowd - add additional sheets)

Sheet 35- Cap Fund Imprv Auth
B2: SCHEDULE OF IMPROVEMENT AUTHORIZATIONS (GENERAL CAPITAL FUND)
E4: ='KEY INPUTS'!D25 -> Balance - January 1, 2020 | K4: ='KEY INPUTS'!D26 -> Balance - December 31, 2020
B5: IMPROVEMENTS
B6: Specify each authorization by purpose. Do | G6: ='KEY INPUTS'!D34 -> 2020 | H6: Other | I6: Expended | J6: Authorizations
B7: not merely designate by a code number. | E7: Funded | F7: Unfunded | G7: Authorizations | J7: Canceled | K7: Funded | L7: Unfunded
B9: 1460: Improvements to the DPW and Community
B10: Center Parking Lots | F10: 113626.4 | L10: 113626.4
B11: 1474/1514/1519/1534: Improvements to Veterans Field | E11: 1432150.52 | F11: 3236 | I11: 308661.74 | K11: 1123488.78 | L11: 3236
B12: 1517: Improvements to Undercliff Avenue | E12: 24841.2 | K12: 24841.2
B13: 1525: Acquisition of a Fire Truck | E13: 2801.17 | K13: 2801.17
B14: 1538/2018-14: Historic Borough Hall Impr., Phase 3 | F14: 150074.25 | I14: 44132.38 | L14: 105941.87
B15: 1544: Improvements to Old River Road, Phase III | E15: 7233.27 | K15: 7233.27
B16: 1547: Acquisition of Property - 615 River Road | E16: 1248869.55 | F16: 23750000 | J16: 24998869.55
A17: Sheet 35 | B17: 1550/2018-3: Various Acquisitions and Improvements | F17: 770731.56 | I17: 106954.13 | L17: 663777.43
B18: 2018-15/2019-10/2020-09: Various Acquistions and
B19: Improvements | F19: 364214.59 | G19: 125000 | I19: 158449.01 | L19: 330765.58
B20: 2019-11: Acquisition of Property | E20: 10000 | F20: 90000 | I20: 196372.12 | L20: 3627.88
B21: 2019-12: Historic Borough Hall Improvements, Phase 4 | E21: 50000 | F21: 950000 | I21: 91326.34 | L21: 908673.66
B22: 2020-07: 911 System | G22: 250000 | I22: 500 | K22: 249500
B23: 2020-08: 2020 Road Restoration Project | G23: 425000 | I23: 2270.4 | L23: 422729.6
D28: Page Total | E28: =SUM(E9:E27) -> 2775895.71 | F28: =SUM(F9:F27) -> 26191882.8 | G28: 800000 | H28: 0 | I28: 908666.12 | J28: 24998869.55 | K28: 1407864.42 | L28: 2552378.42
C29: Place an * before each item of "Improvement" which represents a funding or refunding of an emergency authorization.

Sheet 35.1- Cap Fund Imprv Auth
B2: SCHEDULE OF IMPROVEMENT AUTHORIZATIONS (GENERAL CAPITAL FUND) (cont.)
E4: ='35- Cap Fund Imprv Auth'!E4:F6 -> Balance - January 1, 2020 | K4: ='35- Cap Fund Imprv Auth'!K4:L6 -> Balance - December 31, 2020
B5: IMPROVEMENTS
B6: Specify each authorization by purpose. Do | G6: ='KEY INPUTS'!D34 -> 2020 | H6: Other | I6: Expended | J6: Authorizations
B7: not merely designate by a code number. | E7: Funded | F7: Unfunded | G7: Authorizations | J7: Canceled | K7: Funded | L7: Unfunded
B9: PREVIOUS PAGE TOTALS | E9: ='35- Cap Fund Imprv Auth'!E28 -> 2775895.71 | F9: ='35- Cap Fund Imprv Auth'!F28 -> 26191882.8 | G9: =+'35- Cap Fund Imprv Auth'!G28 -> 800000 | H9: =+'35- Cap Fund Imprv Auth'!H28 -> 0 | I9: =+'35- Cap Fund Imprv Auth'!I28 -> 908666.12 | J9: =+'35- Cap Fund Imprv Auth'!J28 -> 24998869.55 | K9: =+'35- Cap Fund Imprv Auth'!K28 -> 1407864.42 | L9: =+'35- Cap Fund Imprv Auth'!L28 -> 2552378.42
A12: Sheet 35.1
D28: PAGE TOTALS | E28: =SUM(E9:E27) -> 2775895.71 | F28: =SUM(F9:F27) -> 26191882.8 | G28: =SUM(G9:G27) -> 800000 | H28: 0 | I28: 908666.12 | J28: 24998869.55 | K28: 1407864.42 | L28: =SUM(L9:L27) -> 2552378.42
C29: Place an * before each item of "Improvement" which represents a funding or refunding of an emergency authorization.

Sheet 35.2- Cap Fund Imprv Auth
B2: SCHEDULE OF IMPROVEMENT AUTHORIZATIONS (GENERAL CAPITAL FUND) (cont.)
E4: ='35- Cap Fund Imprv Auth'!E4:F6 -> Balance - January 1, 2020 | K4: ='35- Cap Fund Imprv Auth'!K4:L6 -> Balance - December 31, 2020
B5: IMPROVEMENTS
B6: Specify each authorization by purpose. Do | G6: ='KEY INPUTS'!D34 -> 2020 | H6: Other | I6: Expended | J6: Authorizations
B7: not merely designate by a code number. | E7: Funded | F7: Unfunded | G7: Authorizations | J7: Canceled | K7: Funded | L7: Unfunded
B9: PREVIOUS PAGE TOTALS | E9: =+'35.1- Cap Fund Imprv Auth '!E28 -> 2775895.71 | F9: =+'35.1- Cap Fund Imprv Auth '!F28 -> 26191882.8 | G9: =+'35.1- Cap Fund Imprv Auth '!G28 -> 800000 | H9: =+'35.1- Cap Fund Imprv Auth '!H28 -> 0 | I9: =+'35.1- Cap Fund Imprv Auth '!I28 -> 908666.12 | J9: =+'35.1- Cap Fund Imprv Auth '!J28 -> 24998869.55 | K9: =+'35.1- Cap Fund Imprv Auth '!K28 -> 1407864.42 | L9: =+'35.1- Cap Fund Imprv Auth '!L28 -> 2552378.42
A12: Sheet 35.2
D28: PAGE TOTALS | E28: =SUM(E9:E27) -> 2775895.71 | F28: =SUM(F9:F27) -> 26191882.8 | G28: 800000 | H28: 0 | I28: 908666.12 | J28: 24998869.55 | K28: 1407864.42 | L28: =SUM(L9:L27) -> 2552378.42
C29: Place an * before each item of "Improvement" which represents a funding or refunding of an emergency authorization.

Sheet 35.3- Cap Fund Imprv Auth (hidden)
B2: SCHEDULE OF IMPROVEMENT AUTHORIZATIONS (GENERAL CAPITAL FUND) (cont.)
E4: ='35- Cap Fund Imprv Auth'!E4:F6 -> Balance - January 1, 2020 | K4: ='35- Cap Fund Imprv Auth'!K4:L6 -> Balance - December 31, 2020
B5: IMPROVEMENTS
B6: Specify each authorization by purpose. Do | G6: ='KEY INPUTS'!D34 -> 2020 | H6: Other | I6: Expended | J6: Authorizations
B7: not merely designate by a code number. | E7: Funded | F7: Unfunded | G7: Authorizations | J7: Canceled | K7: Funded | L7: Unfunded
B9: PREVIOUS PAGE TOTALS | E9: =+'35.2- Cap Fund Imprv Auth'!E28 -> 2775895.71 | F9: =+'35.2- Cap Fund Imprv Auth'!F28 -> 26191882.8 | G9: =+'35.2- Cap Fund Imprv Auth'!G28 -> 800000 | H9: =+'35.2- Cap Fund Imprv Auth'!H28 -> 0 | I9: =+'35.2- Cap Fund Imprv Auth'!I28 -> 908666.12 | J9: =+'35.2- Cap Fund Imprv Auth'!J28 -> 24998869.55 | K9: =+'35.2- Cap Fund Imprv Auth'!K28 -> 1407864.42 | L9: =+'35.2- Cap Fund Imprv Auth'!L28 -> 2552378.42
A12: Sheet 35.3
D28: PAGE TOTALS | E28: =SUM(E9:E27) -> 2775895.71 | F28: =SUM(F9:F27) -> 26191882.8 | G28: 800000 | H28: 0 | I28: 908666.12 | J28: 24998869.55 | K28: 1407864.42 | L28: =SUM(L9:L27) -> 2552378.42
C29: Place an * before each item of "Improvement" which represents a funding or refunding of an emergency authorization.

Sheet 35.4- Cap Fund Imprv Auth (hidden)
B2: SCHEDULE OF IMPROVEMENT AUTHORIZATIONS (GENERAL CAPITAL FUND) (cont.)
E4: ='35- Cap Fund Imprv Auth'!E4:F6 -> Balance - January 1, 2020 | K4: ='35- Cap Fund Imprv Auth'!K4:L6 -> Balance - December 31, 2020
B5: IMPROVEMENTS
B6: Specify each authorization by purpose. Do | G6: ='KEY INPUTS'!D34 -> 2020 | H6: Other | I6: Expended | J6: Authorizations
B7: not merely designate by a code number. | E7: Funded | F7: Unfunded | G7: Authorizations | J7: Canceled | K7: Funded | L7: Unfunded
B9: PREVIOUS PAGE TOTALS | E9: =+'35.3- Cap Fund Imprv Auth'!E28 -> 2775895.71 | F9: =+'35.3- Cap Fund Imprv Auth'!F28 -> 26191882.8 | G9: =+'35.3- Cap Fund Imprv Auth'!G28 -> 800000 | H9: =+'35.3- Cap Fund Imprv Auth'!H28 -> 0 | I9: =+'35.3- Cap Fund Imprv Auth'!I28 -> 908666.12 | J9: =+'35.3- Cap Fund Imprv Auth'!J28 -> 24998869.55 | K9: =+'35.3- Cap Fund Imprv Auth'!K28 -> 1407864.42 | L9: =+'35.3- Cap Fund Imprv Auth'!L28 -> 2552378.42
A12: Sheet 35.4
D28: PAGE TOTALS | E28: =SUM(E9:E27) -> 2775895.71 | F28: =SUM(F9:F27) -> 26191882.8 | G28: 800000 | H28: 0 | I28: 908666.12 | J28: 24998869.55 | K28: 1407864.42 | L28: =SUM(L9:L27) -> 2552378.42
C29: Place an * before each item of "Improvement" which represents a funding or refunding of an emergency authorization.

Sheet 35.5- Cap Fund Imprv Auth (hidden)
B2: SCHEDULE OF IMPROVEMENT AUTHORIZATIONS (GENERAL CAPITAL FUND) (cont.)
E4: ='35- Cap Fund Imprv Auth'!E4:F6 -> Balance - January 1, 2020 | K4: ='35- Cap Fund Imprv Auth'!K4:L6 -> Balance - December 31, 2020
B5: IMPROVEMENTS
B6: Specify each authorization by purpose. Do | G6: ='KEY INPUTS'!D34 -> 2020 | H6: Other | I6: Expended | J6: Authorizations
B7: not merely designate by a code number. | E7: Funded | F7: Unfunded | G7: Authorizations | J7: Canceled | K7: Funded | L7: Unfunded
B9: PREVIOUS PAGE TOTALS | E9: =+'35.4- Cap Fund Imprv Auth'!E28 -> 2775895.71 | F9: =+'35.4- Cap Fund Imprv Auth'!F28 -> 26191882.8 | G9: =+'35.4- Cap Fund Imprv Auth'!G28 -> 800000 | H9: =+'35.4- Cap Fund Imprv Auth'!H28 -> 0 | I9: =+'35.4- Cap Fund Imprv Auth'!I28 -> 908666.12 | J9: =+'35.4- Cap Fund Imprv Auth'!J28 -> 24998869.55 | K9: =+'35.4- Cap Fund Imprv Auth'!K28 -> 1407864.42 | L9: =+'35.4- Cap Fund Imprv Auth'!L28 -> 2552378.42
A12: Sheet 35.5
D28: PAGE TOTALS | E28: =SUM(E9:E27) -> 2775895.71 | F28: =SUM(F9:F27) -> 26191882.8 | G28: 800000 | H28: 0 | I28: 908666.12 | J28: 24998869.55 | K28: 1407864.42 | L28: =SUM(L9:L27) -> 2552378.42
C29: Place an * before each item of "Improvement" which represents a funding or refunding of an emergency authorization.

Sheet 35.6- Cap Fund Imprv Auth (hidden)
B2: SCHEDULE OF IMPROVEMENT AUTHORIZATIONS (GENERAL CAPITAL FUND) (cont.)
E4: ='35- Cap Fund Imprv Auth'!E4:F6 -> Balance - January 1, 2020 | K4: ='35- Cap Fund Imprv Auth'!K4:L6 -> Balance - December 31, 2020
B5: IMPROVEMENTS
B6: Specify each authorization by purpose. Do | G6: ='KEY INPUTS'!D34 -> 2020 | H6: Other | I6: Expended | J6: Authorizations
B7: not merely designate by a code number. | E7: Funded | F7: Unfunded | G7: Authorizations | J7: Canceled | K7: Funded | L7: Unfunded
B9: PREVIOUS PAGE TOTALS | E9: =+'35.5- Cap Fund Imprv Auth'!E28 -> 2775895.71 | F9: =+'35.5- Cap Fund Imprv Auth'!F28 -> 26191882.8 | G9: =+'35.5- Cap Fund Imprv Auth'!G28 -> 800000 | H9: =+'35.5- Cap Fund Imprv Auth'!H28 -> 0 | I9: =+'35.5- Cap Fund Imprv Auth'!I28 -> 908666.12 | J9: =+'35.5- Cap Fund Imprv Auth'!J28 -> 24998869.55 | K9: =+'35.5- Cap Fund Imprv Auth'!K28 -> 1407864.42 | L9: =+'35.5- Cap Fund Imprv Auth'!L28 -> 2552378.42
A12: Sheet 35.6
D28: PAGE TOTALS | E28: =SUM(E9:E27) -> 2775895.71 | F28: =SUM(F9:F27) -> 26191882.8 | G28: 800000 | H28: 0 | I28: 908666.12 | J28: 24998869.55 | K28: 1407864.42 | L28: =SUM(L9:L27) -> 2552378.42
C29: Place an * before each item of "Improvement" which represents a funding or refunding of an emergency authorization.

Sheet 35.7- Cap Fund Imprv Auth (hidden)
B2: SCHEDULE OF IMPROVEMENT AUTHORIZATIONS (GENERAL CAPITAL FUND) (cont.)
E4: ='35- Cap Fund Imprv Auth'!E4:F6 -> Balance - January 1, 2020 | K4: ='35- Cap Fund Imprv Auth'!K4:L6 -> Balance - December 31, 2020
B5: IMPROVEMENTS
B6: Specify each authorization by purpose. Do | G6: ='KEY INPUTS'!D34 -> 2020 | H6: Other | I6: Expended | J6: Authorizations
B7: not merely designate by a code number. | E7: Funded | F7: Unfunded | G7: Authorizations | J7: Canceled | K7: Funded | L7: Unfunded
B9: PREVIOUS PAGE TOTALS | E9: =+'35.6- Cap Fund Imprv Auth'!E28 -> 2775895.71 | F9: =+'35.6- Cap Fund Imprv Auth'!F28 -> 26191882.8 | G9: =+'35.6- Cap Fund Imprv Auth'!G28 -> 800000 | H9: =+'35.6- Cap Fund Imprv Auth'!H28 -> 0 | I9: =+'35.6- Cap Fund Imprv Auth'!I28 -> 908666.12 | J9: =+'35.6- Cap Fund Imprv Auth'!J28 -> 24998869.55 | K9: =+'35.6- Cap Fund Imprv Auth'!K28 -> 1407864.42 | L9: =+'35.6- Cap Fund Imprv Auth'!L28 -> 2552378.42
A12: Sheet 35.7
D28: PAGE TOTALS | E28: =SUM(E9:E27) -> 2775895.71 | F28: =SUM(F9:F27) -> 26191882.8 | G28: 800000 | H28: 0 | I28: 908666.12 | J28: 24998869.55 | K28: 1407864.42 | L28: =SUM(L9:L27) -> 2552378.42
C29: Place an * before each item of "Improvement" which represents a funding or refunding of an emergency authorization.

Sheet 35.8- Cap Fund Imprv Auth (hidden)
B2: SCHEDULE OF IMPROVEMENT AUTHORIZATIONS (GENERAL CAPITAL FUND) (cont.)
E4: ='35- Cap Fund Imprv Auth'!E4:F6 -> Balance - January 1, 2020 | K4: ='35- Cap Fund Imprv Auth'!K4:L6 -> Balance - December 31, 2020
B5: IMPROVEMENTS
B6: Specify each authorization by purpose. Do | G6: ='KEY INPUTS'!D34 -> 2020 | H6: Other | I6: Expended | J6: Authorizations
B7: not merely designate by a code number. | E7: Funded | F7: Unfunded | G7: Authorizations | J7: Canceled | K7: Funded | L7: Unfunded
B9: PREVIOUS PAGE TOTALS | E9: =+'35.7- Cap Fund Imprv Auth'!E28 -> 2775895.71 | F9: =+'35.7- Cap Fund Imprv Auth'!F28 -> 26191882.8 | G9: =+'35.7- Cap Fund Imprv Auth'!G28 -> 800000 | H9: =+'35.7- Cap Fund Imprv Auth'!H28 -> 0 | I9: =+'35.7- Cap Fund Imprv Auth'!I28 -> 908666.12 | J9: =+'35.7- Cap Fund Imprv Auth'!J28 -> 24998869.55 | K9: =+'35.7- Cap Fund Imprv Auth'!K28 -> 1407864.42 | L9: =+'35.7- Cap Fund Imprv Auth'!L28 -> 2552378.42
A12: Sheet 35.8
D28: PAGE TOTALS | E28: =SUM(E9:E27) -> 2775895.71 | F28: =SUM(F9:F27) -> 26191882.8 | G28: 800000 | H28: 0 | I28: 908666.12 | J28: 24998869.55 | K28: 1407864.42 | L28: =SUM(L9:L27) -> 2552378.42
C29: Place an * before each item of "Improvement" which represents a funding or refunding of an emergency authorization.

Sheet 35.9- Cap Fund Imprv Auth (hidden)
B2: SCHEDULE OF IMPROVEMENT AUTHORIZATIONS (GENERAL CAPITAL FUND) (cont.)
E4: ='35- Cap Fund Imprv Auth'!E4:F6 -> Balance - January 1, 2020 | K4: ='35- Cap Fund Imprv Auth'!K4:L6 -> Balance - December 31, 2020
B5: IMPROVEMENTS
B6: Specify each authorization by purpose. Do | G6: ='KEY INPUTS'!D34 -> 2020 | H6: Other | I6: Expended | J6: Authorizations
B7: not merely designate by a code number. | E7: Funded | F7: Unfunded | G7: Authorizations | J7: Canceled | K7: Funded | L7: Unfunded
B9: PREVIOUS PAGE TOTALS | E9: =+'35.8- Cap Fund Imprv Auth'!E28 -> 2775895.71 | F9: =+'35.8- Cap Fund Imprv Auth'!F28 -> 26191882.8 | G9: =+'35.8- Cap Fund Imprv Auth'!G28 -> 800000 | H9: =+'35.8- Cap Fund Imprv Auth'!H28 -> 0 | I9: =+'35.8- Cap Fund Imprv Auth'!I28 -> 908666.12 | J9: =+'35.8- Cap Fund Imprv Auth'!J28 -> 24998869.55 | K9: =+'35.8- Cap Fund Imprv Auth'!K28 -> 1407864.42 | L9: =+'35.8- Cap Fund Imprv Auth'!L28 -> 2552378.42
A12: Sheet 35.9
D28: PAGE TOTALS | E28: =SUM(E9:E27) -> 2775895.71 | F28: =SUM(F9:F27) -> 26191882.8 | G28: 800000 | H28: 0 | I28: 908666.12 | J28: 24998869.55 | K28: 1407864.42 | L28: =SUM(L9:L27) -> 2552378.42
C29: Place an * before each item of "Improvement" which represents a funding or refunding of an emergency authorization.

Sheet 35 Totals- Cap Fund Imprv Auth
B2: SCHEDULE OF IMPROVEMENT AUTHORIZATIONS (GENERAL CAPITAL FUND) (cont.)
E4: ='35- Cap Fund Imprv Auth'!E4:F6 -> Balance - January 1, 2020 | K4: ='35- Cap Fund Imprv Auth'!K4:L6 -> Balance - December 31, 2020
B5: IMPROVEMENTS
B6: Specify each authorization by purpose. Do | G6: ='KEY INPUTS'!D34 -> 2020 | H6: Other | I6: Expended | J6: Authorizations
B7: not merely designate by a code number. | E7: Funded | F7: Unfunded | G7: Authorizations | J7: Canceled | K7: Funded | L7: Unfunded
B9: PREVIOUS PAGE TOTALS | E9: =+'35.9- Cap Fund Imprv Auth'!E28 -> 2775895.71 | F9: =+'35.9- Cap Fund Imprv Auth'!F28 -> 26191882.8 | G9: =+'35.9- Cap Fund Imprv Auth'!G28 -> 800000 | H9: =+'35.9- Cap Fund Imprv Auth'!H28 -> 0 | I9: =+'35.9- Cap Fund Imprv Auth'!I28 -> 908666.12 | J9: =+'35.9- Cap Fund Imprv Auth'!J28 -> 24998869.55 | K9: =+'35.9- Cap Fund Imprv Auth'!K28 -> 1407864.42 | L9: =+'35.9- Cap Fund Imprv Auth'!L28 -> 2552378.42
A12: Sheet 35 Totals
D28: GRAND TOTALS | E28: =SUM(E9:E27) -> 2775895.71 | F28: =SUM(F9:F27) -> 26191882.8 | G28: 800000 | H28: 0 | I28: 908666.12 | J28: 24998869.55 | K28: 1407864.42 | L28: =SUM(L9:L27) -> 2552378.42
C29: Place an * before each item of "Improvement" which represents a funding or refunding of an emergency authorization.

Sheet 36- Capital Improvement Fund
B3: GENERAL CAPITAL FUND
B5: SCHEDULE OF CAPITAL IMPROVEMENT FUND
I7: Debit | J7: Credit
B8: ='KEY INPUTS'!D25 -> Balance - January 1, 2020 | I8: xxxxxxxxx | J8: 674346
B9: ="Received from "&TEXT('KEY INPUTS'!D34,"0")&" Budget Appropriation *" -> Received from 2020 Budget Appropriation * | I9: xxxxxxxxx | J9: 200000
B10: Improvement Authorizations Canceled | I10: xxxxxxxxx | J10: 1248869.55
B11: Improvement Authorizations Canceled | I11: xxxxxxxxx
C12: (financed in whole by the Capital Improvement Fund)
B14: List by Improvements - Direct Charges Made for Preliminary Costs: | I14: xxxxxxxxx | J14: xxxxxxxxx
J15: xxxxxxxxx
J16: xxxxxxxxx
J17: xxxxxxxxx
J18: xxxxxxxxx
J19: xxxxxxxxx
J20: xxxxxxxxx
J21: xxxxxxxxx
J22: xxxxxxxxx
J23: xxxxxxxxx
J24: xxxxxxxxx
J25: xxxxxxxxx
J26: xxxxxxxxx
J27: xxxxxxxxx
J28: xxxxxxxxx
B29: Appropriated to Finance Improvement Authorizations | I29: 256250 | J29: xxxxxxxxx
J30: xxxxxxxxx
B31: ='KEY INPUTS'!D26 -> Balance - December 31, 2020 | I31: =+SUM(J8:J13)-SUM(I13:I30) -> 1866965.55 | J31: xxxxxxxxx
I32: =SUM(I8:I31) -> 2123215.55 | J32: =SUM(J8:J31) -> 2123215.55
B37: ="*The full amount of the "&TEXT('KEY INPUTS'!D34,"0")&" budget appropriation should be transferred to this account unless the balance of the" -> *The full amount of the 2020 budget appropriation should be transferred to this account unless the balance of the
B38: appropriation is to be permitted to lapse.
B54: Sheet 36

Sheet 37- Cap Fund Down Pymts
B3: GENERAL CAPITAL FUND
B5: SCHEDULE OF DOWN PAYMENTS ON IMPROVEMENTS
I7: Debit | J7: Credit
B8: ='KEY INPUTS'!D25 -> Balance - January 1, 2020 | I8: xxxxxxxxx
B9: ="Received from "&TEXT('KEY INPUTS'!D34,"0")&" Budget Appropriation *" -> Received from 2020 Budget Appropriation * | I9: xxxxxxxxx
B10: ="Received from "&TEXT('KEY INPUTS'!D34,"0")&" Emergency Appropriation *" -> Received from 2020 Emergency Appropriation * | I10: xxxxxxxxx
J12: xxxxxxxxx
B13: Appropriated to Finance Improvement Authorizations | J13: xxxxxxxxx
J14: xxxxxxxxx
B15: ='KEY INPUTS'!D26 -> Balance - December 31, 2020 | I15: =+SUM(J8:J11)-SUM(I11:I14) -> 0 | J15: xxxxxxxxx
I16: =SUM(I8:I15) -> 0 | J16: =SUM(J8:J15) -> 0
C19: ="*The full amount of the "&TEXT('KEY INPUTS'!D34,"0")&" budget appropriation should be transferred to this account unless the balance of the" -> *The full amount of the 2020 budget appropriation should be transferred to this account unless the balance of the
D20: appropriation is to be permitted to lapse.
B27: ="CAPITAL IMPROVEMENTS AUTHORIZED IN "&TEXT('KEY INPUTS'!D34,"0") -> CAPITAL IMPROVEMENTS AUTHORIZED IN 2020
B28: AND DOWN PAYMENTS (N.J.S. 40A:2-11)
J30: Amount of Down
C31: Purpose | G31: Amount | H31: Total | I31: Down Payment | J31: Payment in Budget
G32: Appropriated | H32: Obligations | I32: Provided by | J32: ="of "&TEXT('KEY INPUTS'!D34,"0")&" or Prior" -> of 2020 or Prior
H33: Authorized | I33: Ordinance | J33: Years
B34: 2020-07: 911 System | G34: =+H34+I34+J34 -> 250000 | J34: 250000
B35: 2020-08: 2020 Road Restoration Project | G35: =+H35+I35+J35 -> 425000 | H35: 425000
B36: 2020-09: Supplemental to 2018-15 & 2019-10 | G36: 125000 | H36: 118750 | J36: 6250
G37: 0
G38: 0
G39: 0
G40: 0
G41: 0
G42: 0
G43: 0
E44: Total | G44: =SUM(G34:G43) -> 800000 | H44: =SUM(H34:H43) -> 543750 | I44: =SUM(I34:I43) -> 0 | J44: =SUM(J34:J43) -> 256250
C46: NOTE - | D46: Where amount in column "Down Payment Provided by Ordinance" is LESS than 5% of amount in
D47: column "Total Obligations Authorized", explanation must be made part of or attached to this sheet.
B54: Sheet 37

Sheet 38- Capital Surplus
B3: GENERAL CAPITAL FUND
B5: STATEMENT OF CAPITAL SURPLUS
B6: ='KEY INPUTS'!D49 -> YEAR - 2020
I8: Debit | J8: Credit
B9: ='KEY INPUTS'!D25 -> Balance - January 1, 2020 | I9: xxxxxxxxx | J9: 1323323.27
B10: Premium on Sale of Bonds | I10: xxxxxxxxx
B11: Funded Improvement Authorizations Canceled | I11: xxxxxxxxx
B12: Premium on Sale of Notes | J12: 37185.6
B15: Appropriated to Finance Improvement Authorizations | J15: xxxxxxxxx
B16: ="Appropriated to "&TEXT('KEY INPUTS'!D34,"0")&" Budget Revenue" -> Appropriated to 2020 Budget Revenue | I16: 500000 | J16: xxxxxxxxx
B17: ='KEY INPUTS'!D26 -> Balance - December 31, 2020 | I17: =SUM(J9:J14)-SUM(I12:I16) -> 860508.87 | J17: xxxxxxxxx
I18: =SUM(I9:I17) -> 1360508.87 | J18: =SUM(J9:J17) -> 1360508.87
B62: Sheet 38

Sheet 39- Req. Information
B2: MUNICIPALITIES ONLY
B4: IMPORTANT !!
B6: This Sheet Must Be Completely Filled in or the Statement Will Be Considered Incomplete
B8: (N.J.S.A. 52:27BB-55 as Amended by Chap. 211, P.L. 1981)
B11: A.
C12: 1. | D12: ="Total Tax Levy for the Year "&TEXT('KEY INPUTS'!D34,"0")&" was" -> Total Tax Levy for the Year 2020 was | M12: $ | N12: =+'22-CY Levy'!J17 -> 58116659.92
C13: 2. | D13: ="Amount of Item 1 Collected in "&TEXT('KEY INPUTS'!D34,"0")&" (*)" -> Amount of Item 1 Collected in 2020 (*) | K13: $ | L13: =+'22-CY Levy'!L32 -> 55724389.44
C14: 3. | D14: Seventy (70) percent of Item 1 | M14: $ | N14: =+N12*0.7 -> 40681661.94
C15: (*) Including prepayments and overpayments applied.
B19: B.
C20: 1. | D20: ="Did any maturities of bonded obligations or notes fall due during the year "&TEXT('KEY INPUTS'!D34,"0")&"?" -> Did any maturities of bonded obligations or notes fall due during the year 2020?
D22: Answer YES or NO | G22: Yes
C24: 2. | D24: Have payments been made for all bonded obligations or notes due on or before
E25: ="December 31, "&TEXT('KEY INPUTS'!D34,"0")&"?" -> December 31, 2020?
D27: Answer YES or NO | G27: Yes | H27: If answer is "NO" give details
D30: NOTE: If answer to Item B1 is YES, then Item B2 must be answered
B33: C. | C33: ="Does the appropriation required to be included in the "&TEXT('KEY INPUTS'!D33,"0")&" budget for the liquidation of all bonded" -> Does the appropriation required to be included in the 2021 budget for the liquidation of all bonded
B34: obligations or notes exceed 25% of the total appropriations for operating purpose in the budget for the year
B35: just ended?
E36: Answer YES or NO | H36: No
B39: D.
C40: 1. | D40: ="Cash Deficit "&TEXT('KEY INPUTS'!D35,"0") -> Cash Deficit 2019 | O40: $
C42: 2. | D42: ="4% of "&TEXT('KEY INPUTS'!D35,"0")&" Tax Levy for all purposes:" -> 4% of 2019 Tax Levy for all purposes:
H43: Levy -- | I43: $ | N43: = | O43: $
C45: 3. | D45: ="Cash Deficit "&TEXT('KEY INPUTS'!D34,"0") -> Cash Deficit 2020 | O45: $
C47: 4. | D47: ="4% of "&TEXT('KEY INPUTS'!D34,"0")&" Tax Levy for all purposes:" -> 4% of 2020 Tax Levy for all purposes:
H48: Levy -- | I48: $ | N48: = | O48: $
B52: E. | D52: Unpaid | H52: ='KEY INPUTS'!D35 -> 2019 | L52: ='KEY INPUTS'!D34 -> 2020 | O52: Total
C54: 1. | D54: State Taxes | G54: $ | K54: $ | O54: $ | P54: =+L54+H54 -> 0
C55: 2. | D55: County Taxes | G55: $ | K55: $ | L55: =+'15-Other Taxes'!I19+'15-Other Taxes'!I18 -> 81700.12 | O55: $ | P55: =+L55+H55 -> 81700.12
C56: 3. | D56: Amounts due Special Districts
G57: $ | K57: $ | L57: ='15-Other Taxes'!I38 -> 0 | O57: $ | P57: =+L57+H57 -> 0
C58: 4. | D58: Amount due School Districts for School Tax
G59: $ | K59: $ | L59: =+'13-Other Taxes'!G18+'13-Other Taxes'!G16+'14-Other Taxes'!G38+'14-Other Taxes'!G17+'14-Other Taxes'!G19+'14-Other Taxes'!G40 -> 70866.5 | O59: $ | P59: =+L59+H59 -> 70866.5
B62: Sheet 39

Sheet 40
B22: UTILITIES ONLY
C40: Note:
D41: If no "utility fund" existed on the books of account and if no utility was
C42: ="owned and operated by the municipality during the year "&TEXT('KEY INPUTS'!D34,"0")&", please observe" -> owned and operated by the municipality during the year 2020, please observe
C43: instructions of Sheet 2.
B68: Sheet 40

Sheet 41-Utility1
B2: Bonds and Notes Authorized but Not Issued must be disclosed in this Utility Capital
B3: Section in the same manner as set forth in General Capital Fund on Sheet 8
B5: POST CLOSING
B6: ="TRIAL BALANCE - "&UPPER('KEY INPUTS'!D52)&" UTILITY FUND" -> TRIAL BALANCE - MARINA UTILITY UTILITY FUND
B7: ='KEY INPUTS'!D44 -> AS AT DECEMBER 31, 2020
B8: Operating and Capital Sections
B9: (Separately Stated)
B10: Cash Liabilities Must Be Subtotaled and Subtotal Must Be Marked With "C"
B11: Title of Account | G11: Debit | H11: Credit
B13: Cash | G13: 750643.96
B14: Investments
B15: Grants Receivable | G15: 55129.13
B16: Due from - General Capital Fund | G16: 31057.34
B17: Due from - Marina Utility Capital Fund | G17: 357.84
B18: Deficit in Operations | G18: 21352.11
B19: Receivables Offset with Reserves:
B20: Consumer Accounts Receivable | G20: ='47-Utility1'!L24 -> 0
B21: Liens Receivable | G21: ='47-Utility1'!L54 -> 0
B26: Deferred Charges (Sheet 48)
B30: Cash Liabilities:
B31: Appropriation Reserves | H31: =+'44-Utility1'!I37 -> 34364.09
B32: Encumbrances Payable | H32: 5067.06
B33: Accrued Interest on Bonds and Notes | H33: =+'49-Utility1'!I29+'49a-Utility1'!I29+'50.1-Utility1'!M24+'49a.1-Utility1'!I29 -> 13807.32
B34: Due to -
C39: Subtotal - Cash Liabilities | H39: =SUM(H30:H38) -> 53238.47 | I39: "C"
B40: Reserve for Consumer Accounts and Lien Receivable
B42: Fund Balance | H42: =+'46-Utility1'!K27 -> 805301.91
B44: Total | G44: =SUM(G12:G43) -> 858540.38 | H44: =SUM(H39:H43) -> 858540.38 | J44: =G44-H44 -> 0
B45: (Do not crowd - add additional sheets)
B50: Sheet 41
H57: =+H44-G44 -> 0

Sheet 41a-Utility1
B2: Bonds and Notes Authorized but Not Issued must be disclosed in this Utility Capital
B3: Section in the same manner as set forth in General Capital Fund on Sheet 8
B5: POST CLOSING
B6: ="TRIAL BALANCE - "&UPPER('KEY INPUTS'!D52)&" UTILITY FUND (cont'd)" -> TRIAL BALANCE - MARINA UTILITY UTILITY FUND (cont'd)
B7: ='KEY INPUTS'!D44 -> AS AT DECEMBER 31, 2020
B8: Operating and Capital Sections
B9: (Separately Stated)
B10: Cash Liabilities Must Be Subtotaled and Subtotal Must Be Marked With "C"
B11: Title of Account | G11: Debit | H11: Credit
B13: CAPITAL SECTION:
B15: Est. Proceeds Bonds and Notes Authorized | H15: xxxxxxxxx
B16: Bonds and Notes Authorized but Not Issued | G16: xxxxxxxxx | H16: =+G15 -> 0
C18: CASH | G18: 37372.27
C20: DUE FROM CURRENT FUND
C21: FIXED CAPITAL:
D22: COMPLETED | G22: 1892996.5
D23: AUTHORIZED AND UNCOMPLETED | G23: 247943.57
C44: PAGE TOTALS | G44: =SUM(G15:G42) -> 2178312.34 | H44: =SUM(H15:H43) -> 0
B45: (Do not crowd - add additional sheets)
B50: Sheet 41a

Sheet 41a.1-Utility1
B2: Bonds and Notes Authorized but Not Issued must be disclosed in this Utility Capital
B3: Section in the same manner as set forth in General Capital Fund on Sheet 8
B5: POST CLOSING
B6: ="TRIAL BALANCE - "&UPPER('KEY INPUTS'!D52)&" UTILITY FUND (cont'd)" -> TRIAL BALANCE - MARINA UTILITY UTILITY FUND (cont'd)
B7: ='KEY INPUTS'!D44 -> AS AT DECEMBER 31, 2020
B8: Operating and Capital Sections
B9: (Separately Stated)
B10: Cash Liabilities Must Be Subtotaled and Subtotal Must Be Marked With "C"
B11: Title of Account | G11: Debit | H11: Credit
C12: PREVIOUS PAGE TOTALS | G12: ='41a-Utility1'!G44 -> 2178312.34 | H12: ='41a-Utility1'!H44 -> 0
C14: Due to Marina Operating Fund | H14: 357.84
C17: BONDS PAYABLE | H17: =+'49-Utility1'!G22 -> 940000
C18: LOANS PAYABLE | H18: =+'49a-Utility1'!G11+'49a-Utility1'!G22+'49a.1-Utility1'!G11+'49a.1-Utility1'!G22 -> 0
C19: CAPITAL LEASES PAYABLE | H19: =+'51a-Utility1'!G23 -> 0
C20: BOND ANTICIPATION NOTES | H20: =+'50.1-Utility1'!G18 -> 0
C21: IMPROVEMENT AUTHORIZATIONS:
D22: FUNDED | H22: =+'52-Totals-Utility 1'!K27 -> 202504.84
D23: UNFUNDED | H23: =+'52-Totals-Utility 1'!L27 -> 50321
C24: CONTRACTS PAYABLE
C25: ENCUMBRANCES
C26: ="DUE TO "&UPPER('KEY INPUTS'!D52)&" OPERATING" -> DUE TO MARINA UTILITY OPERATING
C27: RESERVE FOR AMORTIZATION | H27: 209000
C28: RESERVE FOR DEFERRED AMORTIZATION | H28: 742996.5
C29: RESERVE FOR DEBT SERVICE
C40: DOWN PAYMENTS ON IMPROVEMENTS | H40: =+'53-Utility1'!I41 -> 0
C41: CAPITAL IMPROVEMENT FUND | H41: =+'53-Utility1'!I24 -> 0
C42: CAPITAL FUND BALANCE | H42: =+'54-Utility1'!I42 -> 33132.16
C44: TOTALS | G44: =SUM(G12:G42) -> 2178312.34 | H44: =SUM(H12:H43) -> 2178312.34
B45: (Do not crowd - add additional sheets)
B50: Sheet 41a.1

Sheet 42-Utility1
B3: POST CLOSING TRIAL BALANCE -
B4: UTILITY ASSESSMENT TRUST FUNDS
B6: IF MORE THAN ONE UTILITY
B7: EACH ASSESSMENT SECTION MUST BE SEPARATELY STATED
B9: ='KEY INPUTS'!D44 -> AS AT DECEMBER 31, 2020
B10: Title of Account | G10: Debit | H10: Credit
B11: CASH
B38: ASSESSMENT NOTES | H38: =+'51-Utility1'!G23 -> 0
B39: ASSESSMENT SERIAL BONDS | H39: =+'49-Utility1'!G11 -> 0
B40: FUND BALANCE | H40: ='43-Utility1'!L20 -> 0
B43: TOTALS | G43: =SUM(G11:G42) -> 0 | H43: =SUM(H11:H42) -> 0
B44: (Do not crowd - add additional sheets)
B49: Sheet 42

Sheet 43-Utility1
B2: ="ANALYSIS OF "&UPPER('KEY INPUTS'!D52)&" UTILITY ASSESSMENT TRUST CASH AND INVESTMENTS" -> ANALYSIS OF MARINA UTILITY UTILITY ASSESSMENT TRUST CASH AND INVESTMENTS
B3: PLEDGED TO LIABILITIES AND SURPLUS
E4: Audit
C5: Title of Liability to which Cash | E5: Balance | F5: RECEIPTS | L5: Balance
C6: and Investments are Pledged | E6: ='KEY INPUTS'!D45 -> Dec. 31, 2019 | F6: Assessments | G6: Operating | K6: Disbursements | L6: ='KEY INPUTS'!D46 -> Dec. 31, 2020
F7: and Liens | G7: Budget
B8: Assessment Serial Bond Issues: | E8: xxxxxxxxx | F8: xxxxxxxxx | G8: xxxxxxxxx | H8: xxxxxxxxx | I8: xxxxxxxxx | J8: xxxxxxxxx | K8: xxxxxxxxx | L8: xxxxxxxxx
L9: =+E9+F9+G9+H9+I9+J9-K9 -> 0
L10: =+E10+F10+G10+H10+I10+J10-K10 -> 0
L11: 0
L12: 0
L13: 0
B14: Assessment Bond Anticipation Note Issues: | E14: xxxxxxxxx | F14: xxxxxxxxx | G14: xxxxxxxxx | H14: xxxxxxxxx | I14: xxxxxxxxx | J14: xxxxxxxxx | K14: xxxxxxxxx | L14: xxxxxxxxx
A15: Sheet 43 | L15: 0
L16: 0
L17: 0
L18: 0
B19: Other Liabilities | L19: 0
B20: Trust Surplus | L20: 0
B21: Less Assets "Unfinanced"* | E21: xxxxxxxxx | F21: xxxxxxxxx | G21: xxxxxxxxx | H21: xxxxxxxxx | I21: xxxxxxxxx | J21: xxxxxxxxx | K21: xxxxxxxxx | L21: xxxxxxxxx
L22: 0
L23: 0
L24: 0
L25: 0
E26: =SUM(E9:E25) -> 0 | F26: 0 | G26: 0 | H26: 0 | I26: 0 | J26: 0 | K26: 0 | L26: =SUM(L9:L25) -> 0
B27: *Show as red figure

Sheet 44-Utility1
B2: ="SCHEDULE OF "&UPPER('KEY INPUTS'!D52)&" UTILITY BUDGET - "&TEXT('KEY INPUTS'!D34,"0")&"" -> SCHEDULE OF MARINA UTILITY UTILITY BUDGET - 2020
B4: BUDGET REVENUES
B5: Source | H5: Budget | I5: Received | J5: Excess or
I6: in Cash | J6: Deficit*
B7: Operating Surplus Anticipated | H7: 25000 | I7: =H7 -> 25000 | J7: =+I7-H7 -> 0
B8: Operating Surplus Anticipated with Consent of
B9: Director of Local Government | J9: =+I9-H9 -> 0
B10: Operating Revenue | H10: 450000 | I10: 338866.87 | J10: -111133.13
J11: 0
J12: 0
J13: 0
J14: 0
B15: Reserve for Debt Service | J15: 0
B16: Capital Fund Balance
B17: Added by N.J.S. 40A:4-87:(List) | H17: xxxxxxxxx | I17: xxxxxxxxx | J17: xxxxxxxxx
B18: Port Security Grant | H18: 28050 | I18: 28050 | J18: =+I18-H18 -> 0
J19: 0
D20: Subtotal | H20: =SUM(H7:H19) -> 503050 | I20: =SUM(I7:I19) -> 391916.87 | J20: =SUM(J7:J19) -> -111133.13
B21: Deficit (General Budget) ** | J21: =I21-H21 -> 0
H22: =+H20+H21 -> 503050 | I22: =+I20+I21 -> 391916.87 | J22: =+J20+J21 -> -111133.13
B23: ** Amount in "Received in Cash" column for "Deficit (General Budget)" and amount expended for "Surplus (General Budget)" must
B24: agree with amounts shown for such items on Sheet 45.
B27: STATEMENT OF BUDGET APPROPRIATIONS
B28: Appropriations: | J28: xxxxxxxxx
C29: Adopted Budget | J29: 475000
C30: Added by N.J.S. 40A:4-87 | J30: 28050
C31: Emergency
B32: Total Appropriations | J32: =SUM(J29:J31) -> 503050
B33: Add: Overexpenditures (See Footnote)
B34: Total Appropriations and Overexpenditures | J34: =+J32+J33 -> 503050
B35: Deduct Expenditures:
C36: Paid or Charged | I36: 442188.91
C37: Reserved | I37: 34364.09
B38: Surplus (General Budget)**
B39: Total Expenditures | J39: =SUM(I36:I38) -> 476553
B40: Unexpended Balance Canceled (See Footnote) | J40: =+J34-J39 -> 26497
B42: FOOTNOTES: - RE: OVEREXPENDITURES:
C43: Every appropriation overexpended in the budget document must be marked with an * and must agree in aggregate with
D44: this item.
C45: RE: UNEXPENDED BALANCES CANCELED:
C46: Are not to be shown as "Paid or Charged" in the budget document. In all instances "Total Appropriations" and
D47: "Overexpenditures" must equal the sum of "Total Expenditures" and "Unexpended Balances Canceled"
B55: Sheet 44

Sheet 45-Utility1
B3: ="STATEMENT OF "&TEXT('KEY INPUTS'!D34,"0")&" OPERATION" -> STATEMENT OF 2020 OPERATION
B5: =UPPER('KEY INPUTS'!D52)&" UTILITY" -> MARINA UTILITY UTILITY
B8: NOTE: | C8: ="Section 1 of this sheet is required to be filled out ONLY IF the "&TEXT('KEY INPUTS'!D34,"0")&" "&PROPER('KEY INPUTS'!D52)&" Utility Budget contained" -> Section 1 of this sheet is required to be filled out ONLY IF the 2020 Marina Utility Utility Budget contained
C9: either an item of revenue "Deficit (General Budget)" or an item of appropriation "Surplus (General
C10: Budget)"
C11: Section 2 should be filled out in every case.
B13: SECTION 1:
B15: Revenue Realized: | J15: xxxxxxxxx
C16: Budget Revenue (Not Including "Deficit (General Budget)") | J16: =+'44-Utility1'!I20 -> 391916.87
C17: Miscellaneous Revenue Not Anticipated | J17: 7231.2
C18: =TEXT('KEY INPUTS'!D35,"0")&" Appropriation Reserves Canceled in "&TEXT('KEY INPUTS'!D34,0) -> 2019 Appropriation Reserves Canceled in 2020
C21: Total Revenue Realized | K21: =SUM(J16:J20) -> 399148.07
B22: Expenditures: | J22: xxxxxxxxx
C23: Appropriations (Not Including "Surplus (General Budget)") | J23: xxxxxxxxx
D24: Paid or Charged | J24: =+'44-Utility1'!I36 -> 442188.91
D25: Reserved | J25: =+'44-Utility1'!I37 -> 34364.09
C26: Expended Without Appropriation
C27: Cash Refund of Prior Year's Revenue
F29: Total Expenditures | J29: =SUM(J24:J28) -> 476553
F30: Less: | G30: Deferred Charges Included in
G31: Above "Total Expenditures"
D32: Total Expenditures - As Adjusted | K32: =+J29-J31 -> 476553
B33: Excess | K33: =IF(M33>0,M33,0) -> 0 | M33: =+K21-K32 -> -77404.93 | N33: Do Not Remove this formula
B34: Budget Appropriation - Surplus (General Budget)**
B35: Remainder = | E35: ="Balance of Results of "&TEXT('KEY INPUTS'!D34,"0")&" Operation" -> Balance of Results of 2020 Operation
E36: ("Excess in Operations" - Sheet 46) | J36: =+K33-J34 -> 0
B38: Deficit | K38: =IF(+M33>0,0,+M33*-1) -> 77404.93
B39: Anticipated Revenue - Deficit (General Budget)** | J39: =+'44-Utility1'!I21 -> 0
B40: Remainder = | E40: ="Balance of Results of "&TEXT('KEY INPUTS'!D34,"0")&" Operation" -> Balance of Results of 2020 Operation
E41: ("Operating Deficit - to Trial Balance" - Sheet 46) | J41: =+K38-J39 -> 77404.93
B43: SECTION 2:
B44: ="The following Item of '"&TEXT('KEY INPUTS'!D35,"0")&" Appropriation Reserves Canceled in "&TEXT('KEY INPUTS'!D34,"0")&"' is Due to the Current Fund TO THE" -> The following Item of '2019 Appropriation Reserves Canceled in 2020' is Due to the Current Fund TO THE
B45: ="EXTENT OF the amount received and Due from the General Budget of "&TEXT('KEY INPUTS'!D35,"0")&" for an Anticipated Deficit in the" -> EXTENT OF the amount received and Due from the General Budget of 2019 for an Anticipated Deficit in the
B46: =PROPER('KEY INPUTS'!D52)&" Utility for "&TEXT('KEY INPUTS'!D35,"0")&"" -> Marina Utility Utility for 2019
B48: =TEXT('KEY INPUTS'!D35,"0")&" Appropriation Reserves Canceled in "&TEXT('KEY INPUTS'!D34,0) -> 2019 Appropriation Reserves Canceled in 2020 | J48: 60352.82
C49: Less: | E49: ="Anticipated Deficit in "&TEXT('KEY INPUTS'!D35,"0")&" Budget - Amount Received and Due from Current Fund - If none, enter 'None '""" -> Anticipated Deficit in 2019 Budget - Amount Received and Due from Current Fund - If none, enter 'None '"
B50: * Excess (Revenue Realized) | K50: =+MAX(0,J48-J49) -> 60352.82
B52: ** Items must be shown in same amounts on Sheet 44.
B57: Sheet 45

Sheet 46-Utility1
B2: ="RESULTS OF "&TEXT('KEY INPUTS'!D34,"0")&" OPERATIONS - "&UPPER('KEY INPUTS'!D52)&" UTILITY" -> RESULTS OF 2020 OPERATIONS - MARINA UTILITY UTILITY
K4: Debit | L4: Credit
B5: Excess in Anticipated Revenues | K5: xxxxxxxxx | L5: =IF(+'44-Utility1'!J22>0,+'44-Utility1'!J22,0) -> 0
B6: Unexpended Balances of Appropriations | K6: xxxxxxxxx | L6: =+'44-Utility1'!J40 -> 26497
B7: Miscellaneous Revenues Not Anticipated | K7: xxxxxxxxx | L7: ='45-Utility1'!J17 -> 7231.2
B8: ="Unexpended Balances of "&TEXT('KEY INPUTS'!D35,"0")&" Appropriations*" -> Unexpended Balances of 2019 Appropriations* | K8: xxxxxxxxx | L8: =+'45-Utility1'!K50 -> 60352.82
B10: Deficit in Anticipated Revenues | K10: =IF(+'44-Utility1'!J22<0,-'44-Utility1'!J22,0) -> 111133.13 | L10: xxxxxxxxx | M10: =+L9+L8+L7+L6+L5-K11-K10-K9 -> -21352.11 | N10: Do Not Remove This Formula
B11: Refunds | K11: 4300 | L11: xxxxxxxxx
B12: Operating Deficit - to Trial Balance | K12: xxxxxxxxx | L12: =IF(M10>0,0,M10*-1) -> 21352.11
B13: Excess in Operations - to Operating Surplus | K13: =IF(M10>0,M10,0) -> 0 | L13: xxxxxxxxx
B14: * See restriction in amount on Sheet 45, SECTION 2 | K14: =SUM(K5:K13) -> 115433.13 | L14: =SUM(L5:L13) -> 115433.13 | M14: =L14-K14 -> 0
B17: ="OPERATING SURPLUS - "&UPPER('KEY INPUTS'!D52)&" UTILITY" -> OPERATING SURPLUS - MARINA UTILITY UTILITY
K19: Debit | L19: Credit
B20: ='KEY INPUTS'!D25 -> Balance - January 1, 2020 | K20: xxxxxxxxx | L20: 830301.91
B22: ="Excess in Results of "&TEXT('KEY INPUTS'!D34,"0")&" Operations" -> Excess in Results of 2020 Operations | K22: xxxxxxxxx | L22: =+K13 -> 0
B23: ="Amount Appropriated in the "&TEXT('KEY INPUTS'!D34,"0")&" Budget - Cash" -> Amount Appropriated in the 2020 Budget - Cash | K23: ='44-Utility1'!I7 -> 25000 | L23: xxxxxxxxx
B24: ="Amount Appropriated in "&TEXT('KEY INPUTS'!D34,"0")&" Budget with Prior Written" -> Amount Appropriated in 2020 Budget with Prior Written | L24: xxxxxxxxx
B25: Consent of Director of Local Government Services
B27: ='KEY INPUTS'!D26 -> Balance - December 31, 2020 | K27: =+SUM(L20:L26)-SUM(K21:K26) -> 805301.91 | L27: xxxxxxxxx | N27: MUST AGREE
K28: =SUM(K21:K27) -> 830301.91 | L28: =SUM(L20:L27) -> 830301.91
B32: ="ANALYSIS OF BALANCE DECEMBER 31, "&TEXT('KEY INPUTS'!D34,"0")&"" -> ANALYSIS OF BALANCE DECEMBER 31, 2020
B33: ="(FROM "&UPPER('KEY INPUTS'!D52)&" UTILITY - TRIAL BALANCE)" -> (FROM MARINA UTILITY UTILITY - TRIAL BALANCE)
B35: Cash | L35: =+'41-Utility1 '!G13 -> 750643.96
B36: Investments
B37: Interfund Accounts Receivable | L37: 86544.31
D38: Subtotal | L38: =SUM(L35:L37) -> 837188.27
B39: Deduct Cash Liabilities Marked with "C" on Trial Balance | L39: =+'41-Utility1 '!H39 -> 53238.47
D40: Operating Surplus Cash or (Deficit in Operating Surplus Cash) | L40: =+L38-L39 -> 783949.8
B41: Other Assets Pledged to Surplus:*
C42: Deferred Charges #
C43: Operating Deficit # | K43: 21352.11
D44: Total Other Assets | L44: =SUM(K42:K43) -> 21352.11
B45: ="# MAY NOT BE ANTICIPATED AS NON-CASH SURPLUS IN "&TEXT('KEY INPUTS'!D34,"0")&" BUDGET." -> # MAY NOT BE ANTICIPATED AS NON-CASH SURPLUS IN 2020 BUDGET. | L45: =+L40+L44 -> 805301.91 | N45: MUST AGREE
B46: *In the case of a "Deficit in Operating Surplus Cash",
C47: "other Assets" would be also pledged to cash liabilities.
B52: Sheet 46

Sheet 47-Utility1
B3: ="SCHEDULE OF "&UPPER('KEY INPUTS'!D52&" UTILITY ACCOUNTS RECEIVABLE") -> SCHEDULE OF MARINA UTILITY UTILITY ACCOUNTS RECEIVABLE
B6: ="Balance December 31, "&'KEY INPUTS'!D35 -> Balance December 31, 2019 | K6: $
B10: Increased by:
D11: Rents Levied | K11: $
B15: Decreased by:
D16: Collections | I16: $
D17: Overpayments applied | I17: $
D18: Transfer to Liens | I18: $
D19: Other | I19: $
K21: $ | L21: =SUM(J16:J19) -> 0
B24: ="Balance December 31, "&'KEY INPUTS'!D34 -> Balance December 31, 2020 | K24: $ | L24: =+L6+L11-L21 -> 0
B33: ="SCHEDULE OF "&UPPER('KEY INPUTS'!D52)&" UTILITY LIENS" -> SCHEDULE OF MARINA UTILITY UTILITY LIENS
B36: ="Balance December 31, "&'KEY INPUTS'!D35 -> Balance December 31, 2019 | K36: $
B40: Increased by:
D41: Transfers from Accounts Receivable | I41: $
D42: Penalties and Costs | I42: $
D43: Other | I43: $
K45: $ | L45: =SUM(J41:J43) -> 0
B47: Decreased by:
D48: Collections | I48: $
D49: Other | I49: $
K51: $ | L51: =+J49+J48 -> 0
B54: ="Balance December 31, "&'KEY INPUTS'!D34 -> Balance December 31, 2020 | K54: $ | L54: =+L36+L45-L51 -> 0
B69: Sheet 47

Sheet 48-Utility1
B3: DEFERRED CHARGES
B4: - MANDATORY CHARGES ONLY -
B5: =UPPER('KEY INPUTS'!D52)&" UTILITY FUND" -> MARINA UTILITY UTILITY FUND
B6: (Do not include the emergency authorizations pursuant to N.J.S. 40A:4-55, listed on Sheet 29)
H8: Amount
C9: Caused By | H9: ='KEY INPUTS'!D45 -> Dec. 31, 2019 | J9: Amount in | L9: Amount | N9: Balance
H10: per Audit | J10: ='KEY INPUTS'!D34 -> 2020 | L10: Resulting | N10: as at
H11: Report | J11: Budget | L11: ='KEY INPUTS'!D34 -> 2020 | N11: ='KEY INPUTS'!D46 -> Dec. 31, 2020
B12: 1. | C12: Emergency Authorization -
D13: Municipal* | G13: $ | I13: $ | K13: $ | M13: $ | N13: =+H13-J13+L13 -> 0
B15: 2. | G15: $ | I15: $ | K15: $ | M15: $ | N15: =+H15-J15+L15 -> 0
B16: 3. | G16: $ | I16: $ | K16: $ | M16: $ | N16: =+H16-J16+L16 -> 0
B17: 4. | G17: $ | I17: $ | K17: $ | M17: $ | N17: =+H17-J17+L17 -> 0
B18: 5. | G18: $ | I18: $ | K18: $ | M18: $ | N18: 0
C19: Deficit in Operations | G19: $ | I19: $ | K19: $ | L19: 21352.11 | M19: $ | N19: 21352.11
C20: Total Operating | G20: $ | H20: =H13+H15+H16+H17+H18+H19 -> 0 | I20: $ | J20: =J13+J15+J16+J17+J18+J19 -> 0 | K20: $ | L20: =L13+L15+L16+L17+L18+L19 -> 21352.11 | M20: $ | N20: =N13+N15+N16+N17+N18+N19 -> 21352.11
B21: 6. | G21: $ | I21: $ | K21: $ | M21: $ | N21: 0
B22: 7. | G22: $ | I22: $ | K22: $ | M22: $ | N22: 0
C23: Total Capital | G23: $ | H23: =H21+H22 -> 0 | I23: $ | J23: =J21+J22 -> 0 | K23: $ | L23: =L21+L22 -> 0 | M23: $ | N23: 0
C25: *Do not include items funded or refunded as listed below.
B28: EMERGENCY AUTHORIZATIONS UNDER N.J.S. 40A:4-47 WHICH HAVE BEEN
B29: FUNDED OR REFUNDED UNDER N.J.S. 40A:2-3 OR N.J.S. 40A:2-51
D31: Date | G31: Purpose | N31: Amount
C32: 1. | M32: $
C33: 2. | M33: $
C34: 3. | M34: $
C35: 4. | M35: $
C36: 5. | M36: $
B40: JUDGMENTS ENTERED AGAINST MUNICIPALITY AND NOT SATISFIED
N42: Appropriated for
N43: in Budget of
D44: In Favor of | H44: On Account of | J44: Date Entered | L44: Amount | N44: ="Year "&TEXT('KEY INPUTS'!D33,"0")&"" -> Year 2021
C46: 1. | K46: $
C47: 2. | K47: $
C48: 3. | K48: $
C49: 4. | K49: $
B61: Sheet 48

Sheet 48a-Utility1
B2: UTILITY SPECIAL EMERGENCY
B7: Date | E7: Purpose | G7: Amount | H7: Not Less Than | I7: Balance | J7: ="REDUCED IN "&TEXT('KEY INPUTS'!D34,"0") -> REDUCED IN 2020 | L7: Balance
G8: Authorized | H8: 1/5 of Amount | I8: ='KEY INPUTS'!D45 -> Dec. 31, 2019 | J8: ="By "&TEXT('KEY INPUTS'!D34,"0") -> By 2020 | K8: Canceled | L8: ='KEY INPUTS'!D46 -> Dec. 31, 2020
H9: Authorized* | J9: Budget | K9: By Resolution
L10: =+I10-J10-K10 -> 0
L11: =+I11-J11-K11 -> 0
L12: =+I12-J12-K12 -> 0
L13: 0
L14: 0
L15: 0
A16: Sheet 48a | L16: 0
L17: 0
L18: 0
L19: 0
L20: 0
L21: 0
L22: 0
L23: 0
F24: Totals | G24: =SUM(G10:G23) -> 0 | H24: 0 | I24: 0 | J24: 0 | K24: 0 | L24: 0
B26: It is hereby certified that all outstanding "Special Emergency" appropriations have been adopted by the governing body in full compliance with N.J.S.A. 40A:4-53 et seq. and
B27: are recorded on this page
J29: Chief Financial Officer
L35: =+I24-J24-L24 -> 0

Sheet 49-Utility1
B2: SCHEDULE OF BONDS ISSUED AND OUTSTANDING
B3: ="AND "&TEXT('KEY INPUTS'!D34+1,"0")&" DEBT SERVICE FOR BONDS" -> AND 2021 DEBT SERVICE FOR BONDS
B4: =UPPER('KEY INPUTS'!D52)&" UTILITY ASSESSMENT BONDS" -> MARINA UTILITY UTILITY ASSESSMENT BONDS
G6: Debit | H6: Credit | J6: ='KEY INPUTS'!D33&" Debt Service" -> 2021 Debt Service
B7: ='KEY INPUTS'!D27 -> Outstanding - January 1, 2020 | G7: xxxxxxxxx
B8: Issued | G8: xxxxxxxxx
B10: Paid | H10: xxxxxxxxx
B11: ='KEY INPUTS'!D28 -> Outstanding - December 31, 2020 | G11: =+H7+H8-G10 -> 0 | H11: xxxxxxxxx
G12: =SUM(G7:G11) -> 0 | H12: =SUM(H7:I11) -> 0
B13: =TEXT('KEY INPUTS'!D34+1,"0")&" Bond Maturities - Assessment Bonds" -> 2021 Bond Maturities - Assessment Bonds | J13: $
B14: =TEXT('KEY INPUTS'!D34+1,"0")&" Interest on Bonds" -> 2021 Interest on Bonds | H14: $
B16: =UPPER('KEY INPUTS'!D52) &" UTILITY CAPITAL BONDS" -> MARINA UTILITY UTILITY CAPITAL BONDS
B17: ='KEY INPUTS'!D27 -> Outstanding - January 1, 2020 | G17: xxxxxxxxx
B18: Issued | G18: xxxxxxxxx | H18: 1005000
B19: Paid | G19: 65000 | H19: xxxxxxxxx
B22: ='KEY INPUTS'!D28 -> Outstanding - December 31, 2020 | G22: =+H17+H18-G19-G20-G21+H20+H21 -> 940000 | H22: xxxxxxxxx
G23: =SUM(G17:G22) -> 1005000 | H23: =SUM(H17:I22) -> 1005000
B24: =TEXT('KEY INPUTS'!D34+1,"0")&" Bond Maturities - Capital Bonds" -> 2021 Bond Maturities - Capital Bonds | J24: $ | K24: 70000
B25: =TEXT('KEY INPUTS'!D34+1,"0")&" Interest on Bonds" -> 2021 Interest on Bonds | H25: $ | I25: 35000
B27: ="INTEREST ON BONDS - "&UPPER('KEY INPUTS'!D52)&" UTILITY BUDGET" -> INTEREST ON BONDS - MARINA UTILITY UTILITY BUDGET
B28: =TEXT('KEY INPUTS'!D34+1,"0")&" Interest on Bonds (*Items)" -> 2021 Interest on Bonds (*Items) | H28: $ | I28: =+I14+I25 -> 35000
B29: ="Less: Interest Accrued to "&TEXT('KEY INPUTS'!D29,"mm/dd/yyy")&" (Trial Balance)" -> Less: Interest Accrued to 12/31/2020 (Trial Balance) | H29: $ | I29: 13807.32
C30: Subtotal | H30: $ | I30: =+I28-I29 -> 21192.68
B31: ="Add: Interest to be Accrued as of "&TEXT('KEY INPUTS'!D30,"mm/dd/yyyy")&"" -> Add: Interest to be Accrued as of 12/31/2021 | H31: $ | I31: 16334
B32: ="Required Appropriation "&TEXT('KEY INPUTS'!D34+1,"0") -> Required Appropriation 2021 | J32: $ | K32: =+I30+I31 -> 37526.68
B35: ="LIST OF BONDS ISSUED DURING "&TEXT('KEY INPUTS'!D34,"0")&"" -> LIST OF BONDS ISSUED DURING 2020
B36: Purpose | G36: =TEXT('KEY INPUTS'!D33,"0")&" Maturity" -> 2021 Maturity | H36: Amount Issued | J36: Date of Issue | L36: Interest Rate
G41: =SUM(G37:G40) -> 0 | H41: =SUM(H37:I40) -> 0
B50: Sheet 49

Sheet 49a-Utility1
B2: SCHEDULE OF LOANS ISSUED AND OUTSTANDING
B3: ="AND "&TEXT('KEY INPUTS'!D34+1,"0")&" DEBT SERVICE FOR LOANS" -> AND 2021 DEBT SERVICE FOR LOANS
B4: =UPPER('KEY INPUTS'!D$52)&" UTILITY"&" ________________ LOAN" -> MARINA UTILITY UTILITY ________________ LOAN
G6: Debit | H6: Credit | J6: ='KEY INPUTS'!D33&" Debt Service" -> 2021 Debt Service
B7: ='KEY INPUTS'!D27 -> Outstanding - January 1, 2020 | G7: xxxxxxxxx
B8: Issued | G8: xxxxxxxxx
B10: Paid | H10: xxxxxxxxx
B11: ='KEY INPUTS'!D28 -> Outstanding - December 31, 2020 | G11: =+H7+H8-G10+H9-G9 -> 0 | H11: xxxxxxxxx
G12: =SUM(G7:G11) -> 0 | H12: =SUM(H7:I11) -> 0
B13: =TEXT('KEY INPUTS'!D34+1,"0")&" Loan Maturities" -> 2021 Loan Maturities | J13: $
B14: =TEXT('KEY INPUTS'!D34+1,"0")&" Interest on Loans" -> 2021 Interest on Loans | H14: $
B16: =UPPER('KEY INPUTS'!D$52)&" UTILITY"&" ________________ LOAN" -> MARINA UTILITY UTILITY ________________ LOAN
B17: ='KEY INPUTS'!D27 -> Outstanding - January 1, 2020 | G17: xxxxxxxxx
B18: Issued | G18: xxxxxxxxx
B19: Paid | H19: xxxxxxxxx
B22: ='KEY INPUTS'!D28 -> Outstanding - December 31, 2020 | G22: =+H17+H18-G19-G20-G21+H20+H21 -> 0 | H22: xxxxxxxxx
G23: =SUM(G17:G22) -> 0 | H23: =SUM(H17:I22) -> 0
B24: =TEXT('KEY INPUTS'!D34+1,"0")&" Loan Maturities" -> 2021 Loan Maturities | J24: $
B25: =TEXT('KEY INPUTS'!D34+1,"0")&" Interest on Loans" -> 2021 Interest on Loans | H25: $
B27: ="INTEREST ON LOANS - "&UPPER('KEY INPUTS'!D52)&" UTILITY BUDGET" -> INTEREST ON LOANS - MARINA UTILITY UTILITY BUDGET
B28: =TEXT('KEY INPUTS'!D34+1,"0")&" Interest on Loans (*Items)" -> 2021 Interest on Loans (*Items) | H28: $ | I28: =+I25+I14 -> 0
B29: ="Less: Interest Accrued to "&TEXT('KEY INPUTS'!D29,"mm/dd/yyy")&" (Trial Balance)" -> Less: Interest Accrued to 12/31/2020 (Trial Balance) | H29: $
C30: Subtotal | H30: $ | I30: =+I28-I29 -> 0
B31: ="Add: Interest to be Accrued as of "&TEXT('KEY INPUTS'!D30,"mm/dd/yyyy")&"" -> Add: Interest to be Accrued as of 12/31/2021 | H31: $
B32: ="Required Appropriation "&TEXT('KEY INPUTS'!D34+1,"0") -> Required Appropriation 2021 | J32: $ | K32: =+I30+I31 -> 0
B35: ="LIST OF LOANS ISSUED DURING "&TEXT('KEY INPUTS'!D34,"0")&"" -> LIST OF LOANS ISSUED DURING 2020
B36: Purpose | G36: =TEXT('KEY INPUTS'!D33,"0")&" Maturity" -> 2021 Maturity | H36: Amount Issued | J36: Date of Issue | L36: Interest Rate
G41: =SUM(G37:G40) -> 0 | H41: =SUM(H37:I40) -> 0
B51: Sheet 49a

Sheet 49a.1-Utility1
B2: SCHEDULE OF LOANS ISSUED AND OUTSTANDING
B3: ="AND "&TEXT('KEY INPUTS'!D34+1,"0")&" DEBT SERVICE FOR LOANS" -> AND 2021 DEBT SERVICE FOR LOANS
B4: =UPPER('KEY INPUTS'!D$52)&" UTILITY"&" ________________ LOAN" -> MARINA UTILITY UTILITY ________________ LOAN
G6: Debit | H6: Credit | J6: ='KEY INPUTS'!D33&" Debt Service" -> 2021 Debt Service
B7: ='KEY INPUTS'!D27 -> Outstanding - January 1, 2020 | G7: xxxxxxxxx
B8: Issued | G8: xxxxxxxxx
B10: Paid | H10: xxxxxxxxx
B11: ='KEY INPUTS'!D28 -> Outstanding - December 31, 2020 | G11: =+H7+H8-G10 -> 0 | H11: xxxxxxxxx
G12: =SUM(G7:G11) -> 0 | H12: =SUM(H7:I11) -> 0
B13: =TEXT('KEY INPUTS'!D34+1,"0")&" Loan Maturities" -> 2021 Loan Maturities | J13: $
B14: =TEXT('KEY INPUTS'!D34+1,"0")&" Interest on Loans" -> 2021 Interest on Loans | H14: $
B16: =UPPER('KEY INPUTS'!D$52)&" UTILITY"&" ________________ LOAN" -> MARINA UTILITY UTILITY ________________ LOAN
B17: ='KEY INPUTS'!D27 -> Outstanding - January 1, 2020 | G17: xxxxxxxxx
B18: Issued | G18: xxxxxxxxx
B19: Paid | H19: xxxxxxxxx
B22: ='KEY INPUTS'!D28 -> Outstanding - December 31, 2020 | G22: =+H17+H18-G19-G20-G21+H20+H21 -> 0 | H22: xxxxxxxxx
G23: =SUM(G17:G22) -> 0 | H23: =SUM(H17:I22) -> 0
B24: =TEXT('KEY INPUTS'!D34+1,"0")&" Loan Maturities" -> 2021 Loan Maturities | J24: $
B25: =TEXT('KEY INPUTS'!D34+1,"0")&" Interest on Loans" -> 2021 Interest on Loans | H25: $
B27: ="INTEREST ON LOANS - "&UPPER('KEY INPUTS'!D52)&" UTILITY BUDGET" -> INTEREST ON LOANS - MARINA UTILITY UTILITY BUDGET
B28: =TEXT('KEY INPUTS'!D34+1,"0")&" Interest on Loans (*Items)" -> 2021 Interest on Loans (*Items) | H28: $ | I28: =+I25+I14 -> 0
B29: ="Less: Interest Accrued to "&TEXT('KEY INPUTS'!D29,"mm/dd/yyy")&" (Trial Balance)" -> Less: Interest Accrued to 12/31/2020 (Trial Balance) | H29: $
C30: Subtotal | H30: $ | I30: =+I28-I29 -> 0
B31: ="Add: Interest to be Accrued as of "&TEXT('KEY INPUTS'!D30,"mm/dd/yyyy")&"" -> Add: Interest to be Accrued as of 12/31/2021 | H31: $
B32: ="Required Appropriation "&TEXT('KEY INPUTS'!D34+1,"0") -> Required Appropriation 2021 | J32: $ | K32: =+I30+I31 -> 0
B35: ="LIST OF LOANS ISSUED DURING "&TEXT('KEY INPUTS'!D34,"0")&"" -> LIST OF LOANS ISSUED DURING 2020
B36: Purpose | G36: =TEXT('KEY INPUTS'!D33,"0")&" Maturity" -> 2021 Maturity | H36: Amount Issued | J36: Date of Issue | L36: Interest Rate
G41: =SUM(G37:G40) -> 0 | H41: =SUM(H37:I40) -> 0
B51: Sheet 49a.1

Sheet 50-Utility1
B2: ="DEBT SERVICE FOR "&UPPER('KEY INPUTS'!D53)&" UTILITY NOTES (OTHER THAN UTILITY ASSESSMENT NOTES)" -> DEBT SERVICE FOR UTILITY NOTES (OTHER THAN UTILITY ASSESSMENT NOTES)
E5: Original | F5: Original | G5: Amount | H5: Date | I5: Rate | J5: ='KEY INPUTS'!D33 -> 2021 | M5: Interest
C6: Title or Purpose of Issue | E6: Amount | F6: Date of | G6: of Note | H6: of | I6: of | M6: Computed to
E7: Issued | F7: Issue* | G7: Outstanding | H7: Maturity | I7: Interest | J7: For Principal | K7: For Interest | M7: (Insert Date)
G8: ='KEY INPUTS'!D46 -> Dec. 31, 2020
B9: 1. | K9: =+I9*G9 -> 0
B10: 2. | K10: =+I10*G10 -> 0
B11: 3.
B12: 4.
B13: 5.
B14: 6.
A15: Sheet 50 | B15: 7.
B16: 8.
B17: 9.
B18: TOTAL | E18: =SUM(E9:E17) -> 0 | G18: =SUM(G9:G17) -> 0 | J18: =SUM(J9:J17) -> 0 | K18: =SUM(K9:K17) -> 0
B22: Important: If there is more than one utility in the municipality, identify each note.
B23: Memo: | D23: Designate all "Capital Notes" issued under N.J.S. 40A:2-8(b) with "C". Such notes must be retired at the rate
D24: of 20% of the original amount issued annually.
D25: * See Sheet 33 for clarifications of "Original Date of Issue".
D26: ="All notes with an original date of issue of "&'KEY INPUTS'!D33-3&" or prior require one legally payable installment to be budgeted if it" -> All notes with an original date of issue of 2018 or prior require one legally payable installment to be budgeted if it
D27: ="is contemplated that such notes will be renewed in "&TEXT('KEY INPUTS'!D34+1,"0")&" or written intent of permanent financing submitted." -> is contemplated that such notes will be renewed in 2021 or written intent of permanent financing submitted.
D28: ** If interest on note is financed by ordinance, designate same, otherwise an amount must be included in this
D29: column.
J30: (Do not crowd - add additional sheets)

Sheet 50.1-Utility1
B2: ="DEBT SERVICE FOR "&UPPER('KEY INPUTS'!D52)&" UTILITY NOTES (OTHER THAN UTILITY ASSESSMENT NOTES)" -> DEBT SERVICE FOR MARINA UTILITY UTILITY NOTES (OTHER THAN UTILITY ASSESSMENT NOTES)
E5: Original | F5: Original | G5: Amount | H5: Date | I5: Rate | J5: ='KEY INPUTS'!D33 -> 2021 | M5: Interest
C6: Title or Purpose of Issue | E6: Amount | F6: Date of | G6: of Note | H6: of | I6: of | M6: Computed to
E7: Issued | F7: Issue* | G7: Outstanding | H7: Maturity | I7: Interest | J7: For Principal | K7: For Interest | M7: (Insert Date)
G8: ='KEY INPUTS'!D46 -> Dec. 31, 2020
B9: 1.
B10: 2.
B11: 3.
B12: 4.
B13: 5.
B14: 6.
A15: Sheet 50 | B15: 7.
B16: 8.
B17: 9.
B18: TOTAL | E18: =SUM(E9:E17)+'50-Utility1'!E18 -> 0 | G18: =SUM(G9:G17)+'50-Utility1'!G18 -> 0 | J18: =SUM(J9:J17)+'50-Utility1'!J18 -> 0 | K18: =SUM(K9:K17)+'50-Utility1'!K18 -> 0
B22: Important: If there is more than one utility in the municipality, identify each note. | I22: ="INTEREST ON NOTES - "&UPPER('KEY INPUTS'!D52)&" UTILITY BUDGET" -> INTEREST ON NOTES - MARINA UTILITY UTILITY BUDGET
B23: Memo: | D23: Designate all "Capital Notes" issued under N.J.S. 40A:2-8(b) with "C". Such notes must be retired at the rate | I23: =TEXT('KEY INPUTS'!D34+1,"0")&" Interest on Notes" -> 2021 Interest on Notes | L23: $ | M23: =K18 -> 0
D24: of 20% of the original amount issued annually. | I24: ="Less: Interest Accrued to "&TEXT('KEY INPUTS'!D29,"mm/dd/yyyy")&" (Trial Balance)" -> Less: Interest Accrued to 12/31/2020 (Trial Balance) | L24: $
D25: * See Sheet 33 for clarifications of "Original Date of Issue". | J25: Subtotal | L25: $ | M25: =+M23-M24 -> 0
D26: ="All notes with an original date of issue of "&'KEY INPUTS'!D33-3&" or prior require one legally payable installment to be budgeted if it" -> All notes with an original date of issue of 2018 or prior require one legally payable installment to be budgeted if it | I26: ="Add: Interest to be Accrued as of "&TEXT('KEY INPUTS'!D30,"mm/dd/yyyy")&"" -> Add: Interest to be Accrued as of 12/31/2021 | L26: $
D27: ="is contemplated that such notes will be renewed in "&TEXT('KEY INPUTS'!D34+1,"0")&" or written intent of permanent financing submitted." -> is contemplated that such notes will be renewed in 2021 or written intent of permanent financing submitted. | I27: ="Required Appropriation - "&TEXT('KEY INPUTS'!D34+1,"0")&"" -> Required Appropriation - 2021 | L27: $ | M27: =+M25+M26 -> 0
D28: ** If interest on note is financed by ordinance, designate same, otherwise an amount must be included in this
D29: column.
J30: (Do not crowd - add additional sheets)

Sheet 51-Utility1
B2: ="DEBT SERVICE SCHEDULE FOR "&UPPER('KEY INPUTS'!D52) &" UTILITY ASSESSMENT NOTES" -> DEBT SERVICE SCHEDULE FOR MARINA UTILITY UTILITY ASSESSMENT NOTES
E5: Original | F5: Original | G5: Amount | H5: Date | I5: Rate | J5: ='KEY INPUTS'!D33 -> 2021 | L5: Interest
C6: Title or Purpose of Issue | E6: Amount | F6: Date of | G6: of Note | H6: of | I6: of | L6: Computed to
E7: Issued | F7: Issue* | G7: Outstanding | H7: Maturity | I7: Interest | J7: For Principal | K7: For Interest | L7: (Insert Date)
G8: ='KEY INPUTS'!D46 -> Dec. 31, 2020 | K8: **
A15: Sheet 51
E23: =SUM(E9:E22) -> 0 | G23: =SUM(G9:G22) -> 0 | J23: =SUM(J9:J22) -> 0 | K23: =SUM(K9:K22) -> 0
B24: Important: If there is more than one utility in the municipality, identify each note.
B25: MEMO:* See Sheet 33 for clarification of "Original Date of Issue"
C26: ="Utility Assessment Notes with an original date of issue of December 31, "&'KEY INPUTS'!D33-3&" or prior must be appropriated in full in the "&TEXT('KEY INPUTS'!D34+1,"0")&" Dedicated Utility Assessment Budget or written intent of" -> Utility Assessment Notes with an original date of issue of December 31, 2018 or prior must be appropriated in full in the 2021 Dedicated Utility Assessment Budget or written intent of
D27: permanent financing submitted.
C28: ** Interest on Utility Assessment Notes must be included in the Utility Fund Budget appropriation "Interest on Notes".

Sheet 51a-Utility1
B2: ="SCHEDULE OF CAPITAL LEASE PROGRAM OBLIGATIONS "&UPPER('KEY INPUTS'!D52)&" UTILITY" -> SCHEDULE OF CAPITAL LEASE PROGRAM OBLIGATIONS MARINA UTILITY UTILITY
G5: Amount | H5: ='KEY INPUTS'!D34+1&" Budget Requirements" -> 2021 Budget Requirements
C6: Purpose | G6: Lease Obligation Outstanding
G7: ='KEY INPUTS'!D46 -> Dec. 31, 2020 | H7: For Prinicpal | I7: For Interest/Fees
A15: Sheet 51a
D23: Total | G23: =SUM(G9:G22) -> 0 | H23: =SUM(H9:H22) -> 0 | I23: =SUM(I9:I22) -> 0

Sheet 52-Utility1
B2: ="SCHEDULE OF IMPROVEMENT AUTHORIZATIONS "&UPPER('KEY INPUTS'!D52)&" (UTILITY CAPITAL FUND)" -> SCHEDULE OF IMPROVEMENT AUTHORIZATIONS MARINA UTILITY (UTILITY CAPITAL FUND)
E4: ='KEY INPUTS'!D25 -> Balance - January 1, 2020 | K4: ='KEY INPUTS'!D26 -> Balance - December 31, 2020
B5: IMPROVEMENTS
B6: Specify each authorization by purpose. Do | G6: ='KEY INPUTS'!D34 -> 2020 | I6: Expended | J6: Other
B7: not merely designate by a code number. | E7: Funded | F7: Unfunded | G7: Authorizations | K7: Funded | L7: Unfunded
B9: 1465: Acquisition of Marina Dredging Boat | F9: 30823.33 | L9: 30823.33
B10: 1467: Dredging of the Marina | E10: 223469.44 | I10: 20964.6 | K10: 202504.84
B11: 1551-2017: Various Improvements
B12: 2018-004: Amending 1551-2017 | F12: 19497.67 | L12: 19497.67
A17: Sheet 52
D27: PAGE TOTALS | E27: =SUM(E9:E26) -> 223469.44 | F27: 50321 | G27: 0 | H27: 0 | I27: 20964.6 | J27: 0 | K27: 202504.84 | L27: 50321
C28: Place an * before each item of "Improvement" which represents a funding or refunding of an emergency authorization.
K42: Proof | L42: =K27+L27 -> 252825.84

Sheet 52.1-Utility1 (hidden)
